Workbook

Sheet Router
A1: Checks | AM1: 2015 | AN1: 2016 | AO1: 2017 | AP1: 2018 | AQ1: 2019 | AR1: 2020 | AS1: 2021 | AT1: 2022 | AU1: 2023 | AV1: 2024 | AW1: 2025 | AX1: 2026 | AY1: 2027 | AZ1: 2028 | BA1: 2029 | BB1: 2030
A2: Total | B2: =SUM(A3:B10007) -> -6199 | AL2: PVID Projection | AM2: 82706 | AN2: =(25947*4.8)*(7/12)+((25947*4.8*(5/12))) -> 124545.6 | AO2: =(25947*4.8)*(7/12)+((25947*4.8*(5/12))) -> 124545.6 | AP2: 124545.6 | AQ2: 124545.6 | AR2: 124545.6 | AS2: =(25947*4.8)*(7/12)+((25947*0.906*4.8*(5/12))) -> 119667.564 | AT2: =(25947*4.8*0.906)*(7/12)+((25947*0.906*4.8*(5/12))) -> 112838.3136 | AU2: =(25947*4.8*0.906)*(7/12)+((25947*0.906*4.8*(5/12))) -> 112838.3136 | AV2: 112838.3136 | AW2: 112838.3136 | AX2: 112838.3136 | AY2: 112838.3136 | AZ2: 112838.3136 | BA2: 112838.3136 | BB2: 112838.3136
AI4: John Scott 10-11-11 | AM4: Mike Yu on 9/23/13 | AO4: and on 10/1/2015
AI5: Bill H. 10/18/2011 | AK5: and 10/2/15
AI6: Jan M on 12-8-11 and ---------- | AK6: on 9-20-13 | AL6: on 9/26/13 | AM6: and 11/21/13 | AN6: and 9/17/15 | AO6: and 11/5/15
F7: MWD BUDGET ROUTER | AE7: Available in given year | BF7: EOY Balance
C8: VCM Var #
F9: Calendar Year | H9: 2009 | I9: 2010 | J9: 2011 | K9: 2012 | L9: 2013 | M9: 2014 | N9: 2015 | O9: 2016 | P9: 2017 | Q9: 2018 | R9: 2019 | S9: 2020 | T9: 2021 | U9: 2022 | V9: 2023 | W9: 2024 | X9: 2025 | Y9: 2026 | Z9: 2027 | AA9: 2028 | AB9: 2029 | AC9: 2030 | AG9: 2009 | AH9: 2010 | AI9: 2011 | AJ9: 2012 | AK9: 2013 | AL9: 2014 | AM9: 2015 | AN9: 2016 | AO9: 2017 | AP9: 2018 | AQ9: 2019 | AR9: 2020 | AS9: 2021 | AT9: 2022 | AU9: 2023 | AV9: 2024 | AW9: 2025 | AX9: 2026 | AY9: 2027 | AZ9: 2028 | BA9: 2029 | BB9: 2030
C10: 64 | F10: Sales + Wheeling | L10: =OFFSET(Lib_Sales!$H$549,L$9-2009,0) -> 1924555.4 | M10: =OFFSET(Lib_Sales!$H$549,M$9-2009,0) -> 1806408.61 | N10: =OFFSET(Lib_Sales!$H$549,N$9-2009,0) -> 1822499.908 | O10: =OFFSET(Lib_Sales!$H$549,O$9-2009,0) -> 1794670.739 | P10: =OFFSET(Lib_Sales!$H$549,P$9-2009,0) -> 1801780.119 | Q10: =OFFSET(Lib_Sales!$H$549,Q$9-2009,0) -> 1795011.358 | R10: =OFFSET(Lib_Sales!$H$549,R$9-2009,0) -> 1816873.282 | S10: =OFFSET(Lib_Sales!$H$549,S$9-2009,0) -> 1776657.929 | T10: =OFFSET(Lib_Sales!$H$549,T$9-2009,0) -> 1799038.359 | U10: =OFFSET(Lib_Sales!$H$549,U$9-2009,0) -> 1800416.783 | V10: =OFFSET(Lib_Sales!$H$549,V$9-2009,0) -> 1799708.762 | W10: =OFFSET(Lib_Sales!$H$549,W$9-2009,0) -> 1804223.211 | X10: =OFFSET(Lib_Sales!$H$549,X$9-2009,0) -> 1796581.629 | Y10: =OFFSET(Lib_Sales!$H$549,Y$9-2009,0) -> 1800731.055 | Z10: =OFFSET(Lib_Sales!$H$549,Z$9-2009,0) -> 1800615.921 | AA10: =OFFSET(Lib_Sales!$H$549,AA$9-2009,0) -> 1800682.462 | AB10: =OFFSET(Lib_Sales!$H$549,AB$9-2009,0) -> 1800584.278 | AC10: =OFFSET(Lib_Sales!$H$549,AC$9-2009,0) -> 1774117.054
F11: % Treated | L11: =OFFSET(Lib_Sales!$I$549,L$9-2009,0) -> 0.5217455419 | M11: =OFFSET(Lib_Sales!$I$549,M$9-2009,0) -> 0.5274037311 | N11: =OFFSET(Lib_Sales!$I$549,N$9-2009,0) -> 0.5135041497 | O11: =OFFSET(Lib_Sales!$I$549,O$9-2009,0) -> 0.5241681146 | P11: =OFFSET(Lib_Sales!$I$549,P$9-2009,0) -> 0.5219703137 | Q11: =OFFSET(Lib_Sales!$I$549,Q$9-2009,0) -> 0.528785006 | R11: =OFFSET(Lib_Sales!$I$549,R$9-2009,0) -> 0.5317185042 | S11: =OFFSET(Lib_Sales!$I$549,S$9-2009,0) -> 0.5517954758 | T11: =OFFSET(Lib_Sales!$I$549,T$9-2009,0) -> 0.5522883959 | U11: =OFFSET(Lib_Sales!$I$549,U$9-2009,0) -> 0.5499073605 | V11: =OFFSET(Lib_Sales!$I$549,V$9-2009,0) -> 0.547562309 | W11: =OFFSET(Lib_Sales!$I$549,W$9-2009,0) -> 0.5447347369 | X11: =OFFSET(Lib_Sales!$I$549,X$9-2009,0) -> 0.5450762698 | Y11: =OFFSET(Lib_Sales!$I$549,Y$9-2009,0) -> 0.5429476008 | Z11: =OFFSET(Lib_Sales!$I$549,Z$9-2009,0) -> 0.5406724033 | AA11: =OFFSET(Lib_Sales!$I$549,AA$9-2009,0) -> 0.5384154097 | AB11: =OFFSET(Lib_Sales!$I$549,AB$9-2009,0) -> 0.5363291217 | AC11: =OFFSET(Lib_Sales!$I$549,AC$9-2009,0) -> 0.5330467021
C12: 66 | F12: SWP Allocation | H12: 0.4 | L12: 0.5 | M12: 0.5 | N12: 0.5 | O12: 0.5 | P12: 0.5 | Q12: 0.5 | R12: 0.5 | S12: 0.5 | T12: 0.5 | U12: 0.5 | V12: 0.5 | W12: 0.5 | X12: 0.5 | Y12: 0.5 | Z12: 0.5 | AA12: 0.5 | AB12: 0.5 | AC12: 0.5 | BL12: ops 10-24-11
F13: EOY DVL Storage (less 334 TAF Emergency) | J13: =BK127 -> 627000 | K13: =BL127 -> 627000 | L13: 617834.6 | M13: 566442.9896 | N13: 846784.0821 | O13: 756412.9436 | P13: 865911.4246 | Q13: 1012119.666 | R13: 1150406.984 | S13: 1347723.656 | T13: 1530092.86 | U13: 1701566.391 | V13: 1871058.943 | W13: 2035849.045 | X13: 2208091.729 | Y13: 2536345.988 | Z13: 2664827.38 | AA13: 2782403.232 | AB13: 2899889.268 | AC13: 3043653.527
C15: VCM Var # | D15: 2010 put / take cost | F15: COLORADO RIVER | H15: 2009 | I15: 2010 | J15: 2011 | K15: 2012 | L15: 2013 | M15: 2014 | N15: 2015 | O15: 2016 | P15: 2017 | Q15: 2018 | R15: 2019 | S15: 2020 | T15: 2021 | U15: 2022 | V15: 2023 | W15: 2024 | X15: 2025 | Y15: 2026 | Z15: 2027 | AA15: 2028 | AB15: 2029 | AC15: 2030 | AE15: Supplies | AG15: 2009 | AH15: 2010 | AI15: 2011 | AJ15: 2012 | AK15: 2013 | AL15: 2014 | AM15: 2015 | AN15: 2016 | AO15: 2017 | AP15: 2018 | AQ15: 2019 | AR15: 2020 | AS15: 2021 | AT15: 2022 | AU15: 2023 | AV15: 2024 | AW15: 2025 | AX15: 2026 | AY15: 2027 | AZ15: 2028 | BA15: 2029 | BB15: 2030 | BD15: Max Take | BF15: =F15 -> COLORADO RIVER | BH15: 2008 | BI15: 2009 | BJ15: 2010 | BK15: 2011 | BL15: 2012 | BM15: 2013 | BN15: 2014 | BO15: 2015 | BP15: 2016 | BQ15: 2017 | BR15: 2018 | BS15: 2019 | BT15: 2020 | BU15: 2021 | BV15: 2022 | BW15: 2023 | BX15: 2024 | BY15: 2025 | BZ15: 2026 | CA15: 2027 | CB15: 2028 | CC15: 2029 | CD15: 2030
F16: Current CRA Programs (Take - Put) | AE16: =F16 -> Current CRA Programs (Take - Put) | AM16: as of 11/2/15 | BF16: =F16 -> Current CRA Programs (Take - Put)
C17: ~no cost | G17: Basic Apportionment | L17: =AK17 -> 550000 | M17: =AL17 -> 550000 | N17: =AM17 -> 550000 | O17: =AN17 -> 550000 | P17: =AO17 -> 550000 | Q17: =AP17 -> 550000 | R17: =AQ17 -> 550000 | S17: =AR17 -> 550000 | T17: =AS17 -> 550000 | U17: =AT17 -> 550000 | V17: =AU17 -> 550000 | W17: =AV17 -> 550000 | X17: =AW17 -> 550000 | Y17: =AX17 -> 550000 | Z17: =AY17 -> 550000 | AA17: =AZ17 -> 550000 | AB17: =BA17 -> 550000 | AC17: =BB17 -> 550000 | AF17: =G17 -> Basic Apportionment | AG17: 550000 | AH17: 550000 | AI17: 550000 | AJ17: 550000 | AK17: 550000 | AL17: 550000 | AM17: 550000 | AN17: 550000 | AO17: 550000 | AP17: 550000 | AQ17: 550000 | AR17: 550000 | AS17: 550000 | AT17: 550000 | AU17: 550000 | AV17: 550000 | AW17: 550000 | AX17: 550000 | AY17: 550000 | AZ17: 550000 | BA17: 550000 | BB17: 550000 | BG17: =G17 -> Basic Apportionment
C18: no cost | G18: Less PPRs & Others | L18: -365 | M18: -1433 | N18: -1166 | O18: -680 | P18: -4373 | Q18: -4373 | R18: -4373 | S18: -18000 | T18: -18000 | U18: -18000 | V18: -18000 | W18: -18000 | X18: -18000 | Y18: -18000 | Z18: -18000 | AA18: -18000 | AB18: -18000 | AC18: -18000 | AF18: Less PPRs & Others | AG18: 0 | AH18: -60 | AI18: -1247 | AJ18: -1163 | AK18: -365 | AL18: -1433 | AM18: -1166 | AN18: -680 | AO18: -4373 | AP18: -4373 | AQ18: -4373 | AR18: -18000 | AS18: -18000 | AT18: -18000 | AU18: -18000 | AV18: -18000 | AW18: -18000 | AX18: -18000 | AY18: -18000 | AZ18: -18000 | BA18: -18000 | BB18: -18000 | BG18: Less PPRs & Others
C19: 39 | G19: Quechan Settlement | L19: 13000 | M19: 12126 | N19: 13000 | O19: 13000 | P19: 13000 | Q19: 13000 | R19: 13000 | S19: 13000 | T19: 13000 | U19: 13000 | V19: 13000 | W19: 13000 | X19: 13000 | Y19: 13000 | Z19: 13000 | AA19: 13000 | AB19: 13000 | AC19: 13000 | AF19: Quechan Settlement | AG19: 13000 | AH19: 13000 | AI19: 13000 | AJ19: 13000 | AK19: 13000 | AL19: 12126 | AM19: 13000 | AN19: 13000 | AO19: 13000 | AP19: 13000 | AQ19: 13000 | AR19: 13000 | AS19: 13000 | AT19: 13000 | AU19: 13000 | AV19: 13000 | AW19: 13000 | AX19: 13000 | AY19: 13000 | AZ19: 13000 | BA19: 13000 | BB19: 13000 | BG19: Quechan Settlement
C20: 40 | G20: LCWSP Unused Water \ Lower Colorado Supply | L20: 4208 | M20: 6109 | N20: 5882 | O20: 6185 | P20: 8311 | Q20: 8252 | R20: 8193 | S20: 8134 | T20: 7945 | U20: 7757 | V20: 7568 | W20: 7380 | X20: 7191 | Y20: 7002 | Z20: 6814 | AA20: 6625 | AB20: 6437 | AC20: 6248 | AF20: LCWSP Unused Water \ Lower Colorado Supply | AG20: 2349 | AH20: 3872 | AI20: 3611 | AJ20: 3253 | AK20: 4208 | AL20: 6109 | AM20: 5882 | AN20: 6185 | AO20: 8311 | AP20: 8252 | AQ20: 8193 | AR20: 8134 | AS20: 7945 | AT20: 7757 | AU20: 7568 | AV20: 7380 | AW20: 7191 | AX20: 7002 | AY20: 6814 | AZ20: 6625 | BA20: 6437 | BB20: 6248 | BG20: LCWSP Unused Water \ Lower Colorado Supply
C21: 32 | G21: IID-MWD Conservation | L21: 105000 | M21: 104100 | N21: 107820 | O21: 105000 | P21: 105000 | Q21: 105000 | R21: 105000 | S21: 105000 | T21: 105000 | U21: 105000 | V21: 105000 | W21: 105000 | X21: 105000 | Y21: 105000 | Z21: 105000 | AA21: 105000 | AB21: 105000 | AC21: 105000 | AF21: IID-MWD Conservation | AG21: 105000 | AH21: 105000 | AI21: 103940 | AJ21: 104140 | AK21: 105000 | AL21: 104100 | AM21: 107820 | AN21: 105000 | AO21: 105000 | AP21: 105000 | AQ21: 105000 | AR21: 105000 | AS21: =AR21 -> 105000 | AT21: =AS21 -> 105000 | AU21: =AT21 -> 105000 | AV21: =AU21 -> 105000 | AW21: =AV21 -> 105000 | AX21: 105000 | AY21: 105000 | AZ21: 105000 | BA21: 105000 | BB21: 105000 | BG21: IID-MWD Conservation
C22: no cost | G22: Less CVWD Take | L22: -6693 | M22: -19795 | N22: -9125 | O22: -10000 | P22: -10000 | Q22: -10000 | R22: -10000 | S22: -10000 | T22: -10000 | U22: -10000 | V22: -10000 | W22: -10000 | X22: -10000 | Y22: -10000 | Z22: -10000 | AA22: -10000 | AB22: -10000 | AC22: -10000 | AF22: Less CVWD Take | AG22: -12000 | AH22: -8000 | AI22: -4000 | AJ22: -10463 | AK22: -6693 | AL22: -19795 | AM22: -9125 | AN22: -10000 | AO22: -10000 | AP22: -10000 | AQ22: -10000 | AR22: -10000 | AS22: -10000 | AT22: -10000 | AU22: -10000 | AV22: -10000 | AW22: -10000 | AX22: -10000 | AY22: -10000 | AZ22: -10000 | BA22: -10000 | BB22: -10000 | BG22: Less CVWD Take
C23: 65 | G23: IID-SDCWA Exchange | L23: 100000 | M23: 100000 | N23: 100000 | O23: 100000 | P23: 100000 | Q23: 130000 | R23: 160000 | S23: 192500 | T23: 205000 | U23: 202500 | V23: 200000 | W23: 200000 | X23: 200000 | Y23: 200000 | Z23: 200000 | AA23: 200000 | AB23: 200000 | AC23: 200000 | AF23: IID-SDCWA Exchange | AG23: 60000 | AH23: 70000 | AI23: =63278+16722 -> 80000 | AJ23: 106722 | AK23: 100000 | AL23: 100000 | AM23: 100000 | AN23: 100000 | AO23: 100000 | AP23: 130000 | AQ23: 160000 | AR23: 192500 | AS23: 205000 | AT23: 202500 | AU23: 200000 | AV23: 200000 | AW23: 200000 | AX23: 200000 | AY23: 200000 | AZ23: 200000 | BA23: 200000 | BB23: 200000 | BG23: IID-SDCWA Exchange
C24: 35 | G24: IID/MWD Additional | L24: =AK24 -> 0 | M24: 0 | N24: 0 | O24: 0 | P24: 0 | Q24: 0 | R24: 0 | S24: 0 | T24: 0 | U24: 0 | V24: 0 | W24: 0 | X24: 0 | Y24: 0 | Z24: 0 | AA24: 0 | AB24: 0 | AC24: 0 | AF24: IID/MWD Additional | AJ24: 0 | AK24: 0 | AL24: 0 | AM24: 0 | AN24: 0 | AO24: 0 | AP24: 0 | AQ24: 0 | AR24: 0 | AS24: =AR24 -> 0 | AT24: =AS24 -> 0 | AU24: =AT24 -> 0 | AV24: =AU24 -> 0 | AW24: =AV24 -> 0 | AX24: 0 | AY24: 0 | AZ24: 0 | BA24: 0 | BB24: 0
C25: 65 | G25: AA Canal Lining SDCWA | L25: 56200 | M25: 56200 | N25: 56200 | O25: 56200 | P25: 56200 | Q25: 56200 | R25: 56200 | S25: 56200 | T25: 56200 | U25: 56200 | V25: 56200 | W25: 56200 | X25: 56200 | Y25: 56200 | Z25: 56200 | AA25: 56200 | AB25: 56200 | AC25: 56200 | AF25: AA Canal Lining SDCWA | AG25: 54429 | AH25: 56200 | AI25: 56200 | AJ25: 56200 | AK25: 56200 | AL25: 56200 | AM25: 56200 | AN25: 56200 | AO25: 56200 | AP25: 56200 | AQ25: 56200 | AR25: 56200 | AS25: 56200 | AT25: 56200 | AU25: 56200 | AV25: 56200 | AW25: 56200 | AX25: 56200 | AY25: 56200 | AZ25: 56200 | BA25: 56200 | BB25: 56200 | BG25: =G25 -> AA Canal Lining SDCWA
C26: 65 | G26: Coachella Canal Lining SDCWA | L26: 24056 | M26: 23923 | N26: 23920 | O26: 23920 | P26: 23920 | Q26: 23920 | R26: 23920 | S26: 23920 | T26: 23920 | U26: 23920 | V26: 23920 | W26: 23920 | X26: 23920 | Y26: 23920 | Z26: 23920 | AA26: 23920 | AB26: 23920 | AC26: 23920 | AF26: Coachella Canal Lining SDCWA | AG26: 25759 | AH26: 25307 | AI26: 23765 | AJ26: 23939 | AK26: 24056 | AL26: =21500+2423 -> 23923 | AM26: 23920 | AN26: 23920 | AO26: 23920 | AP26: 23920 | AQ26: 23920 | AR26: 23920 | AS26: 23920 | AT26: 23920 | AU26: 23920 | AV26: 23920 | AW26: 23920 | AX26: 23920 | AY26: 23920 | AZ26: 23920 | BA26: 23920 | BB26: 23920
C27: 46, 65 | G27: Canal Lining MWD | L27: 16000 | M27: 16000 | N27: 16000 | O27: 16000 | P27: 16000 | Q27: 16000 | R27: 0 | S27: 0 | T27: 0 | U27: 0 | V27: 0 | W27: 0 | X27: 0 | Y27: 0 | Z27: 0 | AA27: 0 | AB27: 0 | AC27: 0 | AF27: Canal Lining MWD | AG27: =11148+4500 -> 15648 | AH27: 16000 | AI27: 16000 | AJ27: 16000 | AK27: 16000 | AL27: 16000 | AM27: 16000 | AN27: 16000 | AO27: 16000 | AP27: 16000 | AQ27: 0 | AR27: 0 | AS27: 0 | AT27: 0 | AU27: 0 | AV27: 0 | AW27: 0 | AX27: 0 | AY27: 0 | AZ27: 0 | BA27: 0 | BB27: 0 | BG27: =G27 -> Canal Lining MWD
C28: 37 | G28: PVID Fallowing | L28: =AK28 -> 32750 | M28: 43010 | N28: =AM2 -> 82706 | O28: =AN2 -> 124545.6 | P28: 124545.6 | Q28: 124545.6 | R28: 124545.6 | S28: 124545.6 | T28: 119667.564 | U28: 112838.3136 | V28: 112838.3136 | W28: 112838.3136 | X28: 112838.3136 | Y28: 112838.3136 | Z28: 112838.3136 | AA28: 112838.3136 | AB28: 112838.3136 | AC28: 112838.3136 | AF28: PVID Fallowing | AG28: 144325 | AH28: 148614 | AI28: 122216 | AJ28: 73662 | AK28: 32750 | AL28: 43010 | AM28: =(25947*0.5*4.5)*(7/12)+((25947*4.5*(5/12))) -> 82706.0625 | AN28: =(25947*4.8)*(7/12)+((25947*4.8*(5/12))) -> 124545.6 | AO28: =(25947*4.8)*(7/12)+((25947*4.8*(5/12))) -> 124545.6 | AP28: 124545.6 | AQ28: 124545.6 | AR28: 124545.6 | AS28: =(25947*4.8)*(7/12)+((25947*0.906*4.8*(5/12))) -> 119667.564 | AT28: =(25947*4.8*0.906)*(7/12)+((25947*0.906*4.8*(5/12))) -> 112838.3136 | AU28: =(25947*4.8*0.906)*(7/12)+((25947*0.906*4.8*(5/12))) -> 112838.3136 | AV28: 112838.3136 | AW28: 112838.3136 | AX28: 112838.3136 | AY28: 112838.3136 | AZ28: 112838.3136 | BA28: 112838.3136 | BB28: 112838.3136 | BG28: PVID Fallowing
C29: no cost | G29: Agricultural Adjustment | L29: -50298 | M29: -118766 | N29: 35608 | O29: 11454 | P29: 20000 | Q29: 20000 | R29: 20000 | S29: 20000 | T29: 20000 | U29: 20000 | V29: 20000 | W29: 20000 | X29: 20000 | Y29: 0 | Z29: 0 | AA29: 0 | AB29: 0 | AC29: 0 | AF29: Agricultural Adjustment | AG29: 202558 | AH29: 219992 | AI29: -78791 | AJ29: =4329-73662-13000 -> -82333 | AK29: =-13000-69529+64981-32750 -> -50298 | AL29: =-12126-64427+797-43010 -> -118766 | AM29: 35608 | AN29: 11454 | AO29: 20000 | AP29: 20000 | AQ29: 20000 | AR29: 20000 | AS29: =AR29 -> 20000 | AT29: 20000 | AU29: 20000 | AV29: 20000 | AW29: 20000 | AX29: 0 | AY29: 0 | AZ29: 0 | BA29: 0 | BB29: 0 | BG29: Agricultural Adjustment
C30: 34 | G30: Special Surplus | L30: 0 | M30: 0 | N30: 0 | O30: 0 | P30: 0 | Q30: 0 | R30: 0 | S30: 0 | T30: 0 | U30: 0 | V30: 0 | W30: 0 | X30: 0 | Y30: 0 | Z30: 0 | AA30: 0 | AB30: 0 | AC30: 0 | AF30: Special Surplus | AJ30: 0 | AK30: 0 | AL30: 0 | AM30: 0 | AN30: 0 | AO30: 0 | AP30: 0 | AQ30: 0 | AR30: 0 | AS30: 0 | AT30: 0 | AU30: 0 | AV30: 0 | AW30: 0 | AX30: 0 | AY30: 0 | AZ30: 0 | BA30: 0 | BB30: 0 | BG30: Special Surplus
C31: no cost | G31: Lake Mead ICS (Intentionally Created Surplus) | L31: 93857 | M31: -45000 | N31: 28321 | O31: -200000 | P31: 0 | Q31: 0 | R31: 0 | S31: 0 | T31: 0 | U31: 0 | V31: 0 | W31: 0 | X31: 0 | Y31: 0 | Z31: 0 | AA31: 0 | AB31: 0 | AC31: 0 | AF31: Lake Mead ICS (Intentionally Created Surplus) | AG31: -55836 | AH31: -100864 | AI31: -185704 | AJ31: -179677 | AK31: 93857 | AL31: 319992 | AM31: 28321 | AN31: -200000 | AO31: 0 | AP31: 0 | AQ31: 0 | AR31: 0 | AS31: 0 | AT31: 0 | AU31: 0 | AV31: 0 | AW31: 0 | AX31: 0 | AY31: 0 | AZ31: 0 | BA31: 0 | BB31: 0 | BD31: 400000 | BG31: Lake Mead ICS (Intentionally Created Surplus) | BL31: 436000 | BM31: =BL31-L31 -> 342143 | BN31: 387143 | BO31: 358822 | BP31: 558822 | BQ31: 558822 | BR31: 558822 | BS31: 558822 | BT31: 558822 | BU31: 558822 | BV31: 558822 | BW31: 558822 | BX31: 558822 | BY31: =BX31-X31 -> 558822 | BZ31: 558822 | CA31: 558822 | CB31: 558822 | CC31: 558822 | CD31: 558822
C32: PAYGO funded | G32: Drop 2 ICS Water | L32: 0 | M32: 1000 | N32: 0 | O32: 0 | P32: 0 | Q32: 0 | R32: 0 | S32: 0 | T32: 0 | U32: 0 | V32: 0 | W32: 0 | X32: 0 | Y32: 0 | Z32: 0 | AA32: 0 | AB32: 0 | AC32: 0 | AF32: =G32 -> Drop 2 ICS Water | AJ32: 0 | AK32: 0 | AL32: 1000 | AM32: 0 | AN32: 0 | AO32: 0 | AP32: 0 | AQ32: 0 | AR32: 0 | AS32: 0 | AT32: 0 | AU32: 0 | AV32: 0 | AW32: 0 | AX32: 0 | AY32: 0 | AZ32: 0 | BA32: 0 | BB32: 0 | BD32: 34000 | BG32: =G32 -> Drop 2 ICS Water | BJ32: 66000 | BK32: 66000 | BL32: 66000 | BM32: 66000 | BN32: 65000 | BO32: 65000 | BP32: 65000 | BQ32: 65000 | BR32: 65000 | BS32: 65000 | BT32: 65000 | BU32: 65000 | BV32: 65000 | BW32: 65000 | BX32: 65000 | BY32: =BX32-X32 -> 65000 | BZ32: 65000 | CA32: 65000 | CB32: 65000 | CC32: 65000 | CD32: 65000
C33: 62, revenue in FPM | G33: Less CVWD QSA Transfer | L33: 0 | M33: 0 | N33: 0 | O33: -35000 | P33: -35000 | Q33: -35000 | R33: -35000 | S33: -35000 | T33: -35000 | U33: -35000 | V33: -35000 | W33: -35000 | X33: -35000 | Y33: -35000 | Z33: -35000 | AA33: -35000 | AB33: -35000 | AC33: -35000 | AF33: =G33 -> Less CVWD QSA Transfer | AJ33: 0 | AK33: 0 | AL33: 0 | AM33: 0 | AN33: -35000 | AO33: -35000 | AP33: -35000 | AQ33: -35000 | AR33: -35000 | AS33: -35000 | AT33: -35000 | AU33: -35000 | AV33: -35000 | AW33: -35000 | AX33: -35000 | AY33: -35000 | AZ33: -35000 | BA33: -35000 | BB33: -35000 | BG33: Less CVWD QSA Transfer
C34: no cost | G34: Nevada Storage | L34: =AK34 -> 75000 | M34: 65000 | N34: 150000 | O34: 0 | P34: 0 | Q34: 0 | R34: 0 | S34: 0 | T34: 0 | U34: 0 | V34: 0 | W34: 0 | X34: 0 | Y34: -10000 | Z34: -20000 | AA34: -30000 | AB34: -30000 | AC34: -30000 | AF34: =G34 -> Nevada Storage | AJ34: 62839 | AK34: 75000 | AL34: 65000 | AM34: 150000 | AN34: 0 | AO34: 0 | AP34: 0 | AQ34: 0 | AR34: 0 | AS34: 0 | AT34: 0 | AU34: 0 | AV34: 0 | AW34: 0 | AX34: -10000 | AY34: -20000 | AZ34: -30000 | BA34: -30000 | BB34: -30000 | BG34: Nevada Storage
M35: 18868 | AF35: IID Storage | AL35: 18868
AF36: Arizona Water Bank | AG36: 27504 | AH36: 8159
G37: Subtotal | L37: =SUM(L17:L34) -> 1012715 | M37: =SUM(M17:M35) -> 811342 | N37: 1159166 | O37: 760624.6 | P37: 967603.6 | Q37: 997544.6 | R37: 1011485.6 | S37: 1030299.6 | T37: 1037732.564 | U37: 1028215.314 | V37: 1025526.314 | W37: 1025338.314 | X37: 1025149.314 | Y37: 994960.3136 | Z37: 984772.3136 | AA37: 974583.3136 | AB37: 974395.3136 | AC37: 974206.3136 | AF37: Subtotal | AG37: =SUM(AG17:AG34) -> 1105232 | AH37: 1099061 | AI37: 698990 | AJ37: 736119 | AK37: 1012715 | AL37: =SUM(AL17:AL35) -> 1176334 | AM37: =SUM(AM17:AM35) -> 1159166.062 | AN37: =SUM(AN17:AN35) -> 760624.6 | AO37: =SUM(AO17:AO35) -> 967603.6 | AP37: =SUM(AP17:AP35) -> 997544.6 | AQ37: =SUM(AQ17:AQ35) -> 1011485.6 | AR37: =SUM(AR17:AR35) -> 1030299.6 | AS37: =SUM(AS17:AS35) -> 1037732.564 | AT37: =SUM(AT17:AT35) -> 1028215.314 | AU37: =SUM(AU17:AU35) -> 1025526.314 | AV37: =SUM(AV17:AV35) -> 1025338.314 | AW37: =SUM(AW17:AW35) -> 1025149.314 | AX37: =SUM(AX17:AX35) -> 994960.3136 | AY37: =SUM(AY17:AY35) -> 984772.3136 | AZ37: =SUM(AZ17:AZ35) -> 974583.3136 | BA37: =SUM(BA17:BA35) -> 974395.3136 | BB37: =SUM(BB17:BB35) -> 974206.3136 | BG37: Subtotal
F39: CRA Optional/ Programs Under Development (Take - Put) | AE39: =F39 -> CRA Optional/ Programs Under Development (Take - Put) | BF39: CRA Dry Year
C40: 76 | G40: Amend CVWD Agreement | AF40: Amend CVWD Agreement | AJ40: 0 | AK40: 0 | AL40: 0 | AM40: 0 | AN40: 35000 | AO40: 35000 | AP40: 35000 | AQ40: 35000 | AR40: 35000 | AS40: 0 | AT40: 0 | AU40: 0 | AV40: 0 | AW40: 0 | AX40: 0 | AY40: 0 | AZ40: 0 | BA40: 0 | BB40: 0
C41: 99 | G41: New Agricultural Transfers (Bard Fallowing) | AF41: New Agricultural Transfers (Bard Fallowing) | AJ41: 0 | AK41: 0 | AN41: 4275 | AO41: 4275 | AP41: 4275 | AQ41: 4275 | AR41: 4275 | AS41: 4275 | AT41: 4275 | AU41: 4275 | AV41: 4275 | AW41: 4275 | AX41: 4275 | AY41: 4275 | AZ41: 4275 | BA41: 4275 | BB41: 4275
C42: 102 | G42: Fund Mexico Conservation | AF42: Fund Mexico Conservation | AJ42: 0 | AK42: 0 | AL42: 0 | AM42: 0 | AN42: 0 | AO42: =+(47500*0.5) -> 23750 | AP42: 10000 | AQ42: 10000 | AR42: 10000 | AS42: 10000 | AT42: 10000 | AU42: 10000 | AV42: 10000 | AW42: 10000 | AX42: 10000 | AY42: 10000 | AZ42: 10000 | BA42: 10000 | BB42: 10000
C43: 33 | G43: C(2) Water (Salton Sea Rest.) | AF43: C(2) Water (Salton Sea Rest.) | AO43: 150000
C44: 38 | G44: Generic CRA Transfer | AF44: Generic CRA Transfer
C45: 26, 27 | D45: free | G45: Fund Yuma Desalting Plant | AF45: Fund Yuma Desalting Plant | AQ45: 9000 | AR45: 9000 | AS45: 9000 | AT45: 9000 | AU45: 9000 | AV45: 9000 | AW45: 9000 | AX45: 9000 | AY45: 9000 | AZ45: 9000 | BA45: 9000 | BB45: 9000
G46: Subtotal | L46: =SUM(L40:L45) -> 0 | M46: 0 | N46: 0 | O46: 0 | P46: 0 | Q46: 0 | R46: 0 | S46: 0 | T46: =SUM(T40:T45) -> 0 | U46: 0 | V46: 0 | W46: 0 | X46: 0 | Y46: 0 | Z46: 0 | AA46: 0 | AB46: 0 | AC46: 0 | AF46: Subtotal | AG46: =SUM(AG40:AG45) -> 0 | AH46: =SUM(AH40:AH45) -> 0 | AI46: 0 | AJ46: 0 | AK46: 0 | AL46: 0 | AM46: 0 | AN46: 39275 | AO46: =SUM(AO40:AO45) -> 213025 | AP46: =SUM(AP40:AP45) -> 49275 | AQ46: =SUM(AQ40:AQ45) -> 58275 | AR46: 58275 | AS46: 23275 | AT46: 23275 | AU46: 23275 | AV46: 23275 | AW46: 23275 | AX46: 23275 | AY46: 23275 | AZ46: 23275 | BA46: 23275 | BB46: 23275
F48: CRA 5-Year Supply Actions (Take - Put) | AE48: CRA 5-Year Supply Actions
C49: 71 | G49: Additional PVID Transfers | AF49: Additional PVID Transfers | AJ49: 0 | AK49: 0 | AL49: 0 | AM49: 0 | AN49: 0 | AO49: 0 | AP49: 0 | AQ49: 0 | AR49: 0 | AS49: 0 | AT49: 0 | AU49: 0 | AV49: 0 | AW49: 0 | AX49: 0 | AY49: 0 | AZ49: 0 | BA49: 0 | BB49: 0
C50: 73 | G50: Arizona Programs -- CAP | AF50: Arizona Programs -- CAP | AJ50: 0 | AK50: 0 | AL50: =AK50 -> 0 | AM50: 0 | AN50: 0 | AO50: 0 | AP50: 0 | AQ50: 0 | AR50: 0 | AS50: 0 | AT50: 0 | AU50: 0 | AV50: 0 | AW50: 0 | AX50: 0 | AY50: 0 | AZ50: 0 | BA50: 0 | BB50: 0
C51: 75 | G51: California Indians | AF51: California Indians / Other Ag (Quechan Fallowing) | AJ51: 0 | AK51: 0 | AL51: 0 | AM51: 0 | AN51: 0 | AO51: 2450 | AP51: 6650 | AQ51: 4200 | AR51: 0 | AS51: 0 | AT51: 0 | AU51: 0 | AV51: 0 | AW51: 0 | AX51: 0 | AY51: 0 | AZ51: 0 | BA51: 0 | BB51: 0
C52: 74 | G52: Expand SNWA Agreement | AF52: Expand SNWA Agreement | AJ52: 0 | AK52: 0 | AL52: 0 | AN52: 0 | AO52: 0 | AP52: 0 | AQ52: 0 | AR52: 0 | AS52: 0 | AT52: 0 | AU52: 0 | AV52: 0 | AW52: 0 | AX52: 0 | AY52: 0 | AZ52: 0 | BA52: 0 | BB52: 0
G53: Subtotal | L53: =SUM(L49:L52) -> 0 | M53: 0 | N53: 0 | O53: 0 | P53: 0 | Q53: 0 | R53: 0 | S53: 0 | T53: =SUM(T49:T52) -> 0 | U53: 0 | V53: 0 | W53: 0 | X53: 0 | Y53: 0 | Z53: 0 | AA53: 0 | AB53: 0 | AC53: 0 | AF53: Subtotal | AG53: =SUM(AG49:AG52) -> 0 | AH53: 0 | AI53: 0 | AJ53: 0 | AK53: 0 | AL53: 0 | AM53: 0 | AN53: 0 | AO53: 2450 | AP53: 6650 | AQ53: 4200 | AR53: 0 | AS53: =SUM(AS49:AS52) -> 0 | AT53: 0 | AU53: 0 | AV53: 0 | AW53: 0 | AX53: 0 | AY53: 0 | AZ53: 0 | BA53: 0 | BB53: 0
F55: Net CRA Diversions (1.25 max) | L55: =L37+L46+L53 -> 1012715 | M55: 811342 | N55: 1159166 | O55: 760624.6 | P55: 967603.6 | Q55: 997544.6 | R55: 1011485.6 | S55: 1030299.6 | T55: 1037732.564 | U55: 1028215.314 | V55: 1025526.314 | W55: 1025338.314 | X55: 1025149.314 | Y55: 994960.3136 | Z55: 984772.3136 | AA55: 974583.3136 | AB55: 974395.3136 | AC55: 974206.3136
F57: CRA Programs after intake
C58: 30, 31 | G58: Hayfield Recovery | AF58: =G58 -> Hayfield Recovery | AJ58: 0 | AK58: 0 | AL58: 0 | AM58: 0 | AN58: 2500 | AO58: 2500 | AP58: 2500 | AQ58: 2500 | AR58: 2500 | AS58: 2500 | AT58: 2500 | AU58: 2500 | AV58: 2500 | AW58: 2500 | AX58: 2500 | AY58: 2500 | AZ58: 2500 | BA58: 2500 | BB58: 2500 | BD58: 2500
G59: Subtotal | L59: =L58 -> 0 | M59: 0 | N59: 0 | O59: 0 | P59: 0 | Q59: 0 | R59: 0 | S59: 0 | T59: =T58 -> 0 | U59: 0 | V59: 0 | W59: 0 | X59: 0 | Y59: 0 | Z59: 0 | AA59: 0 | AB59: 0 | AC59: 0
F61: Total CR Delivered into Service Area for MWD & DWCV | L61: =L55+L59 -> 1012715 | M61: 811342 | N61: 1159166 | O61: 760624.6 | P61: 967603.6 | Q61: 997544.6 | R61: 1011485.6 | S61: 1030299.6 | T61: 1037732.564 | U61: 1028215.314 | V61: 1025526.314 | W61: 1025338.314 | X61: 1025149.314 | Y61: 994960.3136 | Z61: 984772.3136 | AA61: 974583.3136 | AB61: 974395.3136 | AC61: 974206.3136 | AE61: TOTAL CRA | AG61: =AG37+AG46+AG53 -> 1105232 | AH61: 1099061 | AI61: 698990 | AJ61: 736119 | AK61: 1012715 | AL61: 1176334 | AM61: 1159166.062 | AN61: 799899.6 | AO61: 1183078.6 | AP61: 1053469.6 | AQ61: 1073960.6 | AR61: 1088574.6 | AS61: 1061007.564 | AT61: 1051490.314 | AU61: 1048801.314 | AV61: 1048613.314 | AW61: 1048424.314 | AX61: 1018235.314 | AY61: 1008047.314 | AZ61: 997858.3136 | BA61: 997670.3136 | BB61: 997481.3136
F62: Water Needed to "Fill" CRA | L62: =1250000-L61 -> 237285 | M62: 438658 | N62: 90834 | O62: 489375.4 | P62: 282396.4 | Q62: 252455.4 | R62: 238514.4 | S62: 219700.4 | T62: 212267.436 | U62: 221784.6864 | V62: 224473.6864 | W62: 224661.6864 | X62: 224850.6864 | Y62: 255039.6864 | Z62: 265227.6864 | AA62: 275416.6864 | AB62: 275604.6864 | AC62: 275793.6864
F64: DWCV Actions
C65: 63 | G65: DWCV Exchange (without Yuba Accord) | L65: =-88350*L12 -> -44175 | M65: -44175 | N65: -44175 | O65: -44175 | P65: -44175 | Q65: -44175 | R65: -44175 | S65: -44175 | T65: -44175 | U65: -44175 | V65: -44175 | W65: -44175 | X65: -44175 | Y65: -44175 | Z65: -44175 | AA65: -44175 | AB65: -44175 | AC65: -44175 | AF65: =G65 -> DWCV Exchange (without Yuba Accord)
C66: 13 | G66: DWCV Transfer | L66: =-100000*L12 -> -50000 | M66: -50000 | N66: -50000 | O66: -50000 | P66: -50000 | Q66: -50000 | R66: -50000 | S66: -50000 | T66: =-100000*T12 -> -50000 | U66: -50000 | V66: -50000 | W66: -50000 | X66: -50000 | Y66: -50000 | Z66: -50000 | AA66: -50000 | AB66: -50000 | AC66: -50000 | AF66: =G66 -> DWCV Transfer
C67: 14 | G67: DWCV Callback | AF67: =G67 -> DWCV Callback
G68: DWCV Carryover
G69: DWCV Yuba Accord | L69: -2000 | M69: -2000 | N69: -2000 | O69: -2000 | P69: -2000 | Q69: -2000 | R69: -2000 | S69: -2000 | T69: -2000 | U69: -2000 | V69: -2000 | W69: -2000 | X69: -2000 | Y69: -2000 | Z69: -2000 | AA69: -2000 | AB69: -2000 | AC69: -2000
C70: no cost | G70: DWCV Account | Y70: =AX70 -> 190350 | Z70: 650 | AA70: 0 | AB70: 0 | AC70: 0 | AF70: =G70 -> DWCV Account | AG70: =BH70 -> 0 | AK70: =MIN(BL70,L85-L65-L66-L69-L68-L67) -> 190350 | AL70: =MIN(BM70,M85-M65-M66-M69-M68-M67) -> 190350 | AM70: 190350 | AN70: 190350 | AO70: 190350 | AP70: 190350 | AQ70: 190350 | AR70: 190350 | AS70: 190350 | AT70: 190350 | AU70: 190350 | AV70: 190350 | AW70: 190350 | AX70: 190350 | AY70: 650 | AZ70: 0 | BA70: 0 | BB70: 0 | BD70: Varies | BG70: DWCV Account | BL70: 191000 | BM70: =BL70-L70 -> 191000 | BN70: 191000 | BO70: 191000 | BP70: 191000 | BQ70: 191000 | BR70: 191000 | BS70: 191000 | BT70: 191000 | BU70: 191000 | BV70: 191000 | BW70: 191000 | BX70: 191000 | BY70: =BX70-X70 -> 191000 | BZ70: 650 | CA70: 0 | CB70: 0 | CC70: 0 | CD70: 0
G71: Subtotal | L71: =SUM(L65:L70) -> -96175 | M71: -96175 | N71: -96175 | O71: -96175 | P71: -96175 | Q71: -96175 | R71: -96175 | S71: -96175 | T71: =SUM(T65:T70) -> -96175 | U71: -96175 | V71: -96175 | W71: -96175 | X71: -96175 | Y71: 94175 | Z71: -95525 | AA71: -96175 | AB71: -96175 | AC71: -96175
AG72: DWCV Max Take | AH72: =MIN(H85-H33,BH70) -> 0
F73: Total CR Delivered into Service Area for MWD | L73: =L61+L71 -> 916540 | M73: 715167 | N73: 1062991 | O73: =O61+O71 -> 664449.6 | P73: 871428.6 | Q73: 901369.6 | R73: 915310.6 | S73: 934124.6 | T73: 941557.564 | U73: 932040.3136 | V73: 929351.3136 | W73: 929163.3136 | X73: 928974.3136 | Y73: =Y61+Y71 -> 1089135.314 | Z73: =Z61+Z71 -> 889247.3136 | AA73: =AA61+AA71 -> 878408.3136 | AB73: =AB61+AB71 -> 878220.3136 | AC73: =AC61+AC71 -> 878031.3136 | AG73: DWCV Max Put | AH73: 250000 | AI73: less any obligation delivered as wet water
F75: CRA Pump Stations | AG75: Lake Mead Max Put | AH75: =H21+H27+H28 -> 0
C76: 41 | G76: Intake | L76: =L55 -> 1012715 | M76: 811342 | N76: 1159166 | O76: 760624.6 | P76: 967603.6 | Q76: 997544.6 | R76: 1011485.6 | S76: 1030299.6 | T76: =T55 -> 1037732.564 | U76: 1028215.314 | V76: 1025526.314 | W76: 1025338.314 | X76: 1025149.314 | Y76: 994960.3136 | Z76: 984772.3136 | AA76: 974583.3136 | AB76: 974395.3136 | AC76: 974206.3136
C77: 42 | G77: Gene | L77: =L76 -> 1012715 | M77: 811342 | N77: 1159166 | O77: 760624.6 | P77: 967603.6 | Q77: 997544.6 | R77: 1011485.6 | S77: 1030299.6 | T77: =T76 -> 1037732.564 | U77: 1028215.314 | V77: 1025526.314 | W77: 1025338.314 | X77: 1025149.314 | Y77: =Y76 -> 994960.3136 | Z77: 984772.3136 | AA77: 974583.3136 | AB77: 974395.3136 | AC77: 974206.3136
C78: 43 | G78: Iron Mountain | L78: 1012715 | M78: 811342 | N78: 1159166 | O78: 760624.6 | P78: 967603.6 | Q78: 997544.6 | R78: 1011485.6 | S78: 1030299.6 | T78: 1037732.564 | U78: 1028215.314 | V78: 1025526.314 | W78: 1025338.314 | X78: 1025149.314 | Y78: 994960.3136 | Z78: 984772.3136 | AA78: 974583.3136 | AB78: 974395.3136 | AC78: 974206.3136
C79: 44 | G79: Eagle Mountain | L79: 1012715 | M79: 811342 | N79: 1159166 | O79: 760624.6 | P79: 967603.6 | Q79: 997544.6 | R79: 1011485.6 | S79: 1030299.6 | T79: 1037732.564 | U79: 1028215.314 | V79: 1025526.314 | W79: 1025338.314 | X79: 1025149.314 | Y79: 994960.3136 | Z79: 984772.3136 | AA79: 974583.3136 | AB79: 974395.3136 | AC79: 974206.3136
C80: 45 | G80: Hinds | L80: =L79+L58 -> 1012715 | M80: 811342 | N80: 1159166 | O80: 760624.6 | P80: 967603.6 | Q80: 997544.6 | R80: 1011485.6 | S80: 1030299.6 | T80: =T79+T58 -> 1037732.564 | U80: 1028215.314 | V80: 1025526.314 | W80: 1025338.314 | X80: 1025149.314 | Y80: 994960.3136 | Z80: 984772.3136 | AA80: 974583.3136 | AB80: 974395.3136 | AC80: 974206.3136
BJ81: Ops esti from 10-6-10 | BK81: Ops esti from 10-18-11
C82: VCM Var # | F82: STATE WATER PROJECT | H82: 2009 | I82: 2010 | J82: 2011 | K82: 2012 | L82: 2013 | M82: 2014 | N82: 2015 | O82: 2016 | P82: 2017 | Q82: 2018 | R82: 2019 | S82: 2020 | T82: 2021 | U82: 2022 | V82: 2023 | W82: 2024 | X82: 2025 | Y82: 2026 | Z82: 2027 | AA82: 2028 | AB82: 2029 | AC82: 2030 | AE82: Supplies | AG82: 2009 | AH82: 2010 | AI82: 2011 | AJ82: 2012 | AK82: 2013 | AL82: 2014 | AM82: 2015 | AN82: 2016 | AO82: 2017 | AP82: 2018 | AQ82: 2019 | AR82: 2020 | AS82: 2021 | AT82: 2022 | AU82: 2023 | AV82: 2024 | AW82: 2025 | AX82: 2026 | AY82: 2027 | AZ82: 2028 | BA82: 2029 | BB82: 2030 | BD82: Max Take | BF82: =F82 -> STATE WATER PROJECT | BH82: 2008 | BI82: 2009 | BJ82: 2010 | BK82: 2011 | BL82: 2012 | BM82: 2013 | BN82: 2014 | BO82: 2015 | BP82: 2016 | BQ82: 2017 | BR82: 2018 | BS82: 2019 | BT82: 2020 | BU82: 2021 | BV82: 2022 | BW82: 2023 | BX82: 2024 | BY82: 2025 | BZ82: 2026 | CA82: 2027 | CB82: 2028 | CC82: 2029 | CD82: 2030
F83: Base SWP Supplies | AE83: SWP | BF83: =F83 -> Base SWP Supplies
G84: MWD Table A | L84: =1911500*L12 -> 955750 | M84: 955750 | N84: 955750 | O84: 955750 | P84: 955750 | Q84: 955750 | R84: 955750 | S84: 955750 | T84: =1911500*T12 -> 955750 | U84: 955750 | V84: 955750 | W84: 955750 | X84: 955750 | Y84: 955750 | Z84: 955750 | AA84: 955750 | AB84: 955750 | AC84: 955750 | AF84: MWD Table A | BG84: =G84 -> MWD Table A
G85: DWCV Table A (Exchange + Transfer + Callback) | L85: =-SUM(L65:L67) -> 94175 | M85: =-SUM(M65:M67) -> 94175 | N85: 94175 | O85: 94175 | P85: 94175 | Q85: 94175 | R85: 94175 | S85: 94175 | T85: =-SUM(T65:T67) -> 94175 | U85: 94175 | V85: 94175 | W85: 94175 | X85: 94175 | Y85: 94175 | Z85: 94175 | AA85: 94175 | AB85: 94175 | AC85: 94175 | AF85: DWCV Table A | BG85: =G85 -> DWCV Table A (Exchange + Transfer + Callback)
G86: Port Huneme | L86: =1850*L12 -> 925 | M86: 925 | N86: 925 | O86: 925 | P86: 925 | Q86: 925 | R86: 925 | S86: 925 | T86: 925 | U86: 925 | V86: 925 | W86: 925 | X86: 925 | Y86: 925 | Z86: 925 | AA86: 925 | AB86: 925 | AC86: 925 | AF86: Port Huneme | BG86: Port Huneme
C87: 10 | G87: San Bernardino Transfer | M87: 20000 | N87: 20000 | O87: 20000 | P87: 20000 | Q87: 20000 | R87: 20000 | S87: 20000 | T87: 20000 | U87: 20000 | V87: 20000 | W87: 20000 | X87: 20000 | Y87: 20000 | Z87: 20000 | AA87: 20000 | AB87: 20000 | AC87: 20000 | AF87: SBVMWD-Min | BG87: San Bernardino Transfer
C88: 69 | G88: Yuba Accord (after losses) | M88: =IF(M12<=0.2,8000+6000,IF(M12<=0.6,8000+3000,0))+8000+2000 -> 21000 | N88: 21000 | O88: 21000 | P88: 21000 | Q88: 21000 | R88: 21000 | S88: 21000 | T88: 21000 | U88: 21000 | V88: 21000 | W88: 21000 | X88: 21000 | Y88: 21000 | Z88: 21000 | AA88: 21000 | AB88: 21000 | AC88: 21000 | AF88: Yuba Accord (after losses) | BG88: Yuba Accord (after losses)
G89: SWP Carryover | L89: 0 | M89: 0 | N89: 0 | O89: 0 | P89: 0 | Q89: 0 | R89: 0 | S89: 0 | T89: 0 | U89: 0 | V89: 0 | W89: 0 | X89: 0 | Y89: 0 | Z89: 0 | AA89: 0 | AB89: 0 | AC89: 0 | AF89: SWP Carryover | AG89: =MIN($BD89,BH89) -> 285500 | AH89: =MIN($BD89,BI89) -> 285500 | AI89: =MIN($BD89,BJ89) -> 285500 | AJ89: =MIN($BD89,BK89) -> 253280 | AK89: =MIN($BD89,BL89) -> 140000 | AL89: 140000 | AM89: 140000 | AN89: 140000 | AO89: 140000 | AP89: 140000 | AQ89: 140000 | AR89: 140000 | AS89: =MIN($BD89,BT89) -> 140000 | AT89: 140000 | AU89: 140000 | AV89: 140000 | AW89: 140000 | AX89: 140000 | AY89: 140000 | AZ89: 140000 | BA89: 140000 | BB89: 140000 | BD89: 285500 | BG89: SWP Carryover | BK89: 253280 | BL89: 140000 | BM89: 140000 | BN89: =BM89-M89 -> 140000 | BO89: =BN89-N89 -> 140000 | BP89: 140000 | BQ89: 140000 | BR89: 140000 | BS89: 140000 | BT89: 140000 | BU89: 140000 | BV89: 140000 | BW89: 140000 | BX89: 140000 | BY89: =BX89-X89 -> 140000 | BZ89: 140000 | CA89: 140000 | CB89: 140000 | CC89: 140000 | CD89: 140000
G90: Subtotal | L90: =SUM(L84:L89) -> 1050850 | M90: 1091850 | N90: 1091850 | O90: 1091850 | P90: 1091850 | Q90: 1091850 | R90: 1091850 | S90: 1091850 | T90: =SUM(T84:T89) -> 1091850 | U90: 1091850 | V90: 1091850 | W90: 1091850 | X90: 1091850 | Y90: 1091850 | Z90: 1091850 | AA90: 1091850 | AB90: 1091850 | AC90: 1091850 | AF90: Subtotal | BG90: Subtotal
AG91: SWP carryover put max (MWD+DWCV) | AH91: =MIN(MAX(142775,142775+(H12-0.5)*571100),285500) -> 142775
F92: SWP Programs (Take less Put) | AE92: SWP Dry Year | BF92: =F92 -> SWP Programs (Take less Put)
C93: 7,8 | D93: $77 / $160 | G93: Semitropic | L93: -75000 | M93: =-L93 -> 75000 | N93: =-M93 -> -75000 | O93: 75000 | P93: -75000 | Q93: 75000 | R93: -75000 | S93: 75000 | T93: -75000 | U93: 75000 | V93: -75000 | W93: 75000 | X93: -75000 | Y93: 75000 | Z93: -75000 | AA93: 75000 | AB93: -75000 | AC93: 75000 | AF93: Semitropic | AG93: =MIN(31500+MAX((155000*H12-22000),0)*0.35,BH93) -> 45500 | AH93: 31500 | AI93: 31500 | AJ93: 31500 | AK93: 50925 | AL93: 50925 | AM93: 50925 | AN93: 50925 | AO93: 50925 | AP93: 50925 | AQ93: 50925 | AR93: 50925 | AS93: 50925 | AT93: 50925 | AU93: 50925 | AV93: 50925 | AW93: 50925 | AX93: 50925 | AY93: 50925 | AZ93: 50925 | BA93: 50925 | BB93: 50925 | BD93: Varies | BG93: =G93 -> Semitropic | BJ93: 118000 | BK93: =BJ93-J93 -> 118000 | BL93: 118000 | BM93: 193000 | BN93: 118000 | BO93: 193000 | BP93: 118000 | BQ93: 193000 | BR93: 118000 | BS93: 193000 | BT93: 118000 | BU93: 193000 | BV93: 118000 | BW93: 193000 | BX93: 118000 | BY93: =BX93-X93 -> 193000 | BZ93: 118000 | CA93: 193000 | CB93: 118000 | CC93: 193000 | CD93: 118000
C94: 1,2 | D94: $128 / $124 | G94: Arvin-Edison | L94: 50000 | M94: =-L94 -> -50000 | N94: =-M94 -> 50000 | O94: -50000 | P94: 50000 | Q94: -50000 | R94: 50000 | S94: -50000 | T94: 50000 | U94: -50000 | V94: 50000 | W94: -50000 | X94: 50000 | Y94: -50000 | Z94: 50000 | AA94: -50000 | AB94: 50000 | AC94: -50000 | AF94: Arvin-Edison | AG94: =MIN($BD94,BH94) -> 40000 | AH94: =MIN($BD94,BI94) -> 40000 | AI94: 40000 | AJ94: 40000 | AK94: 40000 | AL94: 40000 | AM94: 40000 | AN94: 40000 | AO94: 40000 | AP94: 40000 | AQ94: 40000 | AR94: 40000 | AS94: =MIN($BD94,BT94) -> 40000 | AT94: 40000 | AU94: 40000 | AV94: 40000 | AW94: 40000 | AX94: =MIN($BD94,BY94) -> 40000 | AY94: 40000 | AZ94: 40000 | BA94: 40000 | BB94: 40000 | BD94: 40000 | BG94: =G94 -> Arvin-Edison | BJ94: 116000 | BK94: 116000 | BL94: 116000 | BM94: 66000 | BN94: 116000 | BO94: 66000 | BP94: 116000 | BQ94: 66000 | BR94: 116000 | BS94: 66000 | BT94: =BS94-S94 -> 116000 | BU94: 66000 | BV94: 116000 | BW94: 66000 | BX94: 116000 | BY94: =BX94-X94 -> 66000 | BZ94: 116000 | CA94: 66000 | CB94: 116000 | CC94: 66000 | CD94: 116000
C95: 87 | D95: $500 transfer | G95: San Joaquin GW Demo / Semitropic Ag Water Reuse Demo | AF95: =G95 -> San Joaquin GW Demo / Semitropic Ag Water Reuse Demo | AG95: =MIN($BD95,BH95) -> 0 | AH95: =MIN($BD95,BI95) -> 0 | AI95: 0 | AJ95: 0 | AK95: 0 | AL95: 0 | AM95: 0 | AN95: 0 | AO95: 0 | AP95: 0 | AQ95: 0 | AR95: 0 | AS95: 0 | AT95: 0 | AU95: 0 | AV95: 0 | AW95: 0 | AX95: 0 | AY95: 0 | AZ95: 0 | BA95: 0 | BB95: 0 | BG95: =G95 -> San Joaquin GW Demo / Semitropic Ag Water Reuse Demo
C96: 11,12 | G96: San Bernardino GWSP | AF96: SBVMWD-Storage | AG96: =MIN($BD96,BH96) -> 0 | AH96: 0 | AI96: 0 | AJ96: 0 | AK96: 0 | AL96: 0 | AM96: 0 | AN96: 0 | AO96: 0 | AP96: 0 | AQ96: 0 | AR96: 0 | AS96: 0 | AT96: 0 | AU96: 0 | AV96: 0 | AW96: 0 | AX96: 0 | AY96: 0 | AZ96: 0 | BA96: 0 | BB96: 0 | BD96: 0 | BG96: San Bernardino GWSP | BJ96: 0 | BK96: 0 | BL96: 0 | BM96: 0 | BN96: 0 | BO96: 0 | BP96: 0 | BQ96: 0 | BR96: 0 | BS96: 0 | BT96: 0 | BU96: 0 | BV96: 0 | BW96: 0 | BX96: 0 | BY96: =BX96-X96 -> 0 | BZ96: 0 | CA96: 0 | CB96: 0 | CC96: 0 | CD96: 0
C97: 3,4 | D97: $32 / $116 | G97: Kern Delta | L97: 25000 | M97: =-L97 -> -25000 | N97: =-M97 -> 25000 | O97: -25000 | P97: 25000 | Q97: -25000 | R97: 25000 | S97: -25000 | T97: 25000 | U97: -25000 | V97: 25000 | W97: -25000 | X97: 25000 | Y97: -25000 | Z97: 25000 | AA97: -25000 | AB97: 25000 | AC97: -25000 | AF97: Kern Delta | AG97: =MIN($BD97,BH97) -> 20000 | AH97: 20000 | AI97: 20000 | AJ97: 20000 | AK97: 20000 | AL97: 20000 | AM97: 20000 | AN97: 20000 | AO97: 20000 | AP97: 20000 | AQ97: 20000 | AR97: 20000 | AS97: =MIN($BD97,BT97) -> 20000 | AT97: 20000 | AU97: 20000 | AV97: 20000 | AW97: 20000 | AX97: 20000 | AY97: 20000 | AZ97: 20000 | BA97: 20000 | BB97: 20000 | BD97: 20000 | BG97: Kern Delta | BJ97: 88000 | BK97: =BJ97-J97 -> 88000 | BL97: 88000 | BM97: 63000 | BN97: 88000 | BO97: 63000 | BP97: 88000 | BQ97: 63000 | BR97: 88000 | BS97: 63000 | BT97: 88000 | BU97: 63000 | BV97: 88000 | BW97: 63000 | BX97: 88000 | BY97: =BX97-X97 -> 63000 | BZ97: 88000 | CA97: 63000 | CB97: 88000 | CC97: 63000 | CD97: 88000
C98: 68 | G98: CALFED Bay Delta Phase 8 | BG98: CALFED Bay Delta Phase 8
G99: SPILL (negative values only) | BG99: SPILL (negative values only)
G100: EWA Exchange | L100: =AK100 -> 0 | M100: =AL100 -> 0 | N100: =AM100 -> 0 | O100: =AN100 -> 0 | P100: =AO100 -> 0 | Q100: =AP100 -> 0 | R100: =AQ100 -> 0 | S100: =AR100 -> 0 | T100: =AS100 -> 0 | U100: =AT100 -> 0 | V100: =AU100 -> 0 | W100: =AV100 -> 0 | X100: =AW100 -> 0 | Y100: =AX100 -> 0 | Z100: =AY100 -> 0 | AA100: =AZ100 -> 0 | AB100: =BA100 -> 0 | AC100: =BB100 -> 0 | AF100: EWA Exchange | AG100: =MIN($BD100,BH100) -> 0 | AH100: =MIN($BD100,BI100) -> 0 | AI100: 0 | AJ100: 0 | AK100: 0 | AL100: 0 | AM100: 0 | AN100: 0 | AO100: 0 | AP100: 0 | AQ100: 0 | AR100: 0 | AS100: =MIN($BD100,BT100) -> 0 | AT100: 0 | AU100: 0 | AV100: 0 | AW100: 0 | AX100: 0 | AY100: 0 | AZ100: 0 | BA100: 0 | BB100: 0 | BD100: 0 | BG100: EWA Exchange | BK100: =BJ100-J100 -> 0 | BL100: 0 | BM100: 0 | BN100: 0 | BO100: 0 | BP100: 0 | BQ100: 0 | BR100: 0 | BS100: 0 | BT100: 0 | BU100: 0 | BV100: 0 | BW100: 0 | BX100: 0 | BY100: =BX100-X100 -> 0 | BZ100: 0 | CA100: 0 | CB100: 0 | CC100: 0 | CD100: 0
G101: Subtotal | L101: =SUM(L93:L100) -> 0 | M101: 0 | N101: 0 | O101: 0 | P101: 0 | Q101: 0 | R101: 0 | S101: 0 | T101: 0 | U101: 0 | V101: 0 | W101: 0 | X101: 0 | Y101: 0 | Z101: 0 | AA101: 0 | AB101: 0 | AC101: 0 | AF101: Subtotal | BG101: Subtotal
D103: 55 | F103: 5-Year Supply Actions | BF103: =F103 -> 5-Year Supply Actions
C104: 78 | D104: 65 | G104: Drought Water Bank | BG104: =G104 -> Drought Water Bank
D105: 100 | G105: Drought Water Bank losses | L105: =-L104+(L104*0.8*0.97) -> 0 | M105: 0 | N105: 0 | O105: 0 | P105: 0 | Q105: 0 | R105: 0 | S105: 0 | T105: 0 | U105: 0 | V105: 0 | W105: 0 | X105: 0 | Y105: 0 | Z105: 0 | AA105: 0 | AB105: 0 | AC105: 0
C106: 16 | G106: Generic SWP Transfers | BG106: Generic SWP Transfers
C107: 84 | G107: North Kern / DWA Exchange | BG107: North Kern / DWA Exchange
C108: 80 | G108: In-Delta Transfers -- Delta Wetlands | BG108: In-Delta Transfers -- Delta Wetlands
C109: 79 | G109: In-Delta Transfers -- Conaway | BG109: In-Delta Transfers -- Conaway
C110: 81 | G110: KCWA Crop Rotation | BG110: KCWA Crop Rotation
G111: Subtotal | L111: =SUM(L104:L110) -> 0 | M111: 0 | N111: 0 | O111: 0 | P111: 0 | Q111: 0 | R111: 0 | S111: 0 | T111: 0 | U111: 0 | V111: 0 | W111: 0 | X111: 0 | Y111: 0 | Z111: 0 | AA111: 0 | AB111: 0 | AC111: 0 | BG111: Subtotal
C113: 60 | F113: SWP East | L113: =ROUND(0.0038*L115^0.3521*L115,0) -> 526634 | M113: 554605 | N113: 554605 | O113: 554605 | P113: 554605 | Q113: 554605 | R113: 554605 | S113: 554605 | T113: 554605 | U113: 554605 | V113: 554605 | W113: 554605 | X113: 554605 | Y113: 554605 | Z113: 554605 | AA113: 554605 | AB113: 554605 | AC113: 554605
C114: 61 | F114: SWP West | L114: =L115-L113 -> 524216 | M114: 537245 | N114: 537245 | O114: 537245 | P114: 537245 | Q114: 537245 | R114: 537245 | S114: 537245 | T114: 537245 | U114: 537245 | V114: 537245 | W114: 537245 | X114: 537245 | Y114: 537245 | Z114: 537245 | AA114: 537245 | AB114: 537245 | AC114: 537245
F115: Total SWP Deliveries into Service Area | L115: =L90+L101+L111 -> 1050850 | M115: 1091850 | N115: 1091850 | O115: 1091850 | P115: 1091850 | Q115: 1091850 | R115: 1091850 | S115: 1091850 | T115: 1091850 | U115: 1091850 | V115: 1091850 | W115: 1091850 | X115: 1091850 | Y115: 1091850 | Z115: 1091850 | AA115: 1091850 | AB115: 1091850 | AC115: 1091850
F116: % East | L116: =L113/L115 -> 0.5011504972 | M116: 0.50794981 | N116: 0.50794981 | O116: 0.50794981 | P116: 0.50794981 | Q116: 0.50794981 | R116: 0.50794981 | S116: 0.50794981 | T116: 0.50794981 | U116: 0.50794981 | V116: 0.50794981 | W116: 0.50794981 | X116: 0.50794981 | Y116: 0.50794981 | Z116: 0.50794981 | AA116: 0.50794981 | AB116: 0.50794981 | AC116: 0.50794981
F118: Total SWP Deliveries that incur SWP power | L118: =L115-L85-L87 -> 956675 | M118: 977675 | N118: 977675 | O118: 977675 | P118: 977675 | Q118: 977675 | R118: 977675 | S118: 977675 | T118: 977675 | U118: 977675 | V118: 977675 | W118: 977675 | X118: 977675 | Y118: 977675 | Z118: 977675 | AA118: 977675 | AB118: 977675 | AC118: 977675
BJ119: Ops esti from 10-6-10
F120: MWD SERVICE AREA | H120: 2009 | I120: 2010 | J120: 2011 | K120: 2012 | L120: 2013 | M120: 2014 | N120: 2015 | O120: 2016 | P120: 2017 | Q120: 2018 | R120: 2019 | S120: 2020 | T120: 2021 | U120: 2022 | V120: 2023 | W120: 2024 | X120: 2025 | Y120: 2026 | Z120: 2027 | AA120: 2028 | AB120: 2029 | AC120: 2030 | AE120: Supplies | AG120: 2009 | AH120: 2010 | AI120: 2011 | AJ120: 2012 | AK120: 2013 | AL120: 2014 | AM120: 2015 | AN120: 2016 | AO120: 2017 | AP120: 2018 | AQ120: 2019 | AR120: 2020 | AS120: 2021 | AT120: 2022 | AU120: 2023 | AV120: 2024 | AW120: 2025 | AX120: 2026 | AY120: 2027 | AZ120: 2028 | BA120: 2029 | BB120: 2030 | BD120: Max Take | BF120: =F120 -> MWD SERVICE AREA | BH120: 2008 | BI120: 2009 | BJ120: 2010 | BK120: 2011 | BL120: 2012 | BM120: 2013 | BN120: 2014 | BO120: 2015 | BP120: 2016 | BQ120: 2017 | BR120: 2018 | BS120: 2019 | BT120: 2020 | BU120: 2021 | BV120: 2022 | BW120: 2023 | BX120: 2024 | BY120: 2025 | BZ120: 2026 | CA120: 2027 | CB120: 2028 | CC120: 2029 | CD120: 2030
F121: Total Imported Supplies (CRA + SWP) for MWD | L121: =L73+L115 -> 1967390 | M121: 1807017 | N121: 2154841 | O121: 1756299.6 | P121: 1963278.6 | Q121: 1993219.6 | R121: 2007160.6 | S121: 2025974.6 | T121: 2033407.564 | U121: 2023890.314 | V121: 2021201.314 | W121: 2021013.314 | X121: 2020824.314 | Y121: 2180985.314 | Z121: 1981097.314 | AA121: 1970258.314 | AB121: 1970070.314 | AC121: 1969881.314
F122: System Losses | L122: -56000 | M122: -56000 | N122: -56000 | O122: -56000 | P122: -56000 | Q122: -56000 | R122: -56000 | S122: -56000 | T122: -56000 | U122: -56000 | V122: -56000 | W122: -56000 | X122: -56000 | Y122: -56000 | Z122: -56000 | AA122: -56000 | AB122: -56000 | AC122: -56000
F123: Net Imported Supplies (CRA + SWP) for MWD | L123: =L121+L122 -> 1911390 | M123: 1751017 | N123: 2098841 | O123: 1700299.6 | P123: 1907278.6 | Q123: 1937219.6 | R123: 1951160.6 | S123: 1969974.6 | T123: =T121+T122 -> 1977407.564 | U123: 1967890.314 | V123: 1965201.314 | W123: 1965013.314 | X123: 1964824.314 | Y123: 2124985.314 | Z123: 1925097.314 | AA123: 1914258.314 | AB123: 1914070.314 | AC123: 1913881.314
F124: Remaining Demand (supply available for local storage) | L124: =L10-L123 -> 13165.4 | M124: 55391.61039 | N124: -276341.0925 | O124: 94371.13855 | P124: -105498.481 | Q124: -142208.2419 | R124: -134287.3178 | S124: -193316.6715 | T124: -178369.2046 | U124: -167473.5309 | V124: -165492.5512 | W124: -160790.1025 | X124: -168242.6841 | Y124: -324254.2587 | Z124: -124481.3924 | AA124: -113575.8519 | AB124: -113486.036 | AC124: -139764.2591
F126: In-Basin Supplies (Take - Put) | AE126: In-Basin Storage | BF126: In-Basin Supplies (Take - Put)
G127: DVL | L127: =L124-SUM(L128:L136) -> 9165.4 | M127: 51391.61039 | N127: -280341.0925 | O127: 90371.13855 | P127: -109498.481 | Q127: -146208.2419 | R127: -138287.3178 | S127: -197316.6715 | T127: -182369.2046 | U127: -171473.5309 | V127: -169492.5512 | W127: -164790.1025 | X127: -172242.6841 | Y127: -328254.2587 | Z127: -128481.3924 | AA127: -117575.8519 | AB127: -117486.036 | AC127: -143764.2591 | AF127: =G127 -> DVL | AG127: =MIN($BD127,BH127) -> 1000000 | AH127: =MIN($BD127,BI127) -> 1000000 | AI127: 627000 | AJ127: 627000 | AK127: =MIN($BD127,BL127) -> 627000 | AL127: 617834.6 | AM127: 566442.9896 | AN127: 846784.0821 | AO127: 756412.9436 | AP127: 865911.4246 | AQ127: 1000000 | AR127: 1000000 | AS127: 1000000 | AT127: 1000000 | AU127: 1000000 | AV127: 1000000 | AW127: 1000000 | AX127: 1000000 | AY127: 1000000 | AZ127: 1000000 | BA127: 1000000 | BB127: 1000000 | BD127: 1000000 | BG127: =G127 -> DVL | BJ127: 627000 | BK127: =BJ127-J127 -> 627000 | BL127: 627000 | BM127: 617834.6 | BN127: 566442.9896 | BO127: 846784.0821 | BP127: 756412.9436 | BQ127: 865911.4246 | BR127: 1012119.666 | BS127: 1150406.984 | BT127: 1347723.656 | BU127: 1530092.86 | BV127: 1701566.391 | BW127: 1871058.943 | BX127: 2035849.045 | BY127: 2208091.729 | BZ127: 2536345.988 | CA127: 2664827.38 | CB127: 2782403.232 | CC127: 2899889.268 | CD127: 3043653.527
G128: Mathews | AF128: =G128 -> Mathews | AG128: =MIN($BD128,BH128) -> 1000000 | AH128: 1000000 | AI128: 127000 | AJ128: 127000 | AK128: 127000 | AL128: 127000 | AM128: 127000 | AN128: 127000 | AO128: 127000 | AP128: 127000 | AQ128: 127000 | AR128: 127000 | AS128: =MIN($BD128,BT128) -> 127000 | AT128: 127000 | AU128: 127000 | AV128: 127000 | AW128: 127000 | AX128: =MIN($BD128,BY128) -> 127000 | AY128: =MIN($BD128,BZ128) -> 127000 | AZ128: =MIN($BD128,CA128) -> 127000 | BA128: =MIN($BD128,CB128) -> 127000 | BB128: =MIN($BD128,CC128) -> 127000 | BD128: 1000000 | BG128: =G128 -> Mathews | BJ128: 127000 | BK128: =BJ128-J128 -> 127000 | BL128: 127000 | BM128: 127000 | BN128: 127000 | BO128: 127000 | BP128: 127000 | BQ128: 127000 | BR128: 127000 | BS128: 127000 | BT128: 127000 | BU128: 127000 | BV128: 127000 | BW128: 127000 | BX128: 127000 | BY128: 127000 | BZ128: 127000 | CA128: 127000 | CB128: 127000 | CC128: 127000 | CD128: 127000
G129: Skinner | AF129: Skinner | AG129: 1000000 | AH129: 1000000 | AI129: 36000 | AJ129: 36000 | AK129: 36000 | AL129: 36000 | AM129: 36000 | AN129: 36000 | AO129: 36000 | AP129: 36000 | AQ129: 36000 | AR129: 36000 | AS129: 36000 | AT129: 36000 | AU129: 36000 | AV129: 36000 | AW129: 36000 | AX129: 36000 | AY129: 36000 | AZ129: 36000 | BA129: 36000 | BB129: 36000 | BD129: 1000000 | BG129: Skinner | BJ129: 36000 | BK129: =BJ129-J129 -> 36000 | BL129: 36000 | BM129: 36000 | BN129: 36000 | BO129: 36000 | BP129: 36000 | BQ129: 36000 | BR129: 36000 | BS129: 36000 | BT129: 36000 | BU129: 36000 | BV129: 36000 | BW129: 36000 | BX129: 36000 | BY129: 36000 | BZ129: 36000 | CA129: 36000 | CB129: 36000 | CC129: 36000 | CD129: 36000
G130: SWP Flex | AF130: SWP Flex | AG130: =MIN($BD130,BH130) -> 219000 | AH130: 219000 | AI130: 219000 | AJ130: 219000 | AK130: 219000 | AL130: 219000 | AM130: 219000 | AN130: 219000 | AO130: 219000 | AP130: 219000 | AQ130: 219000 | AR130: 219000 | AS130: =MIN($BD130,BT130) -> 219000 | AT130: 219000 | AU130: 219000 | AV130: 219000 | AW130: 219000 | AX130: 219000 | AY130: 219000 | AZ130: 219000 | BA130: 219000 | BB130: 219000 | BD130: 219000 | BG130: SWP Flex | BJ130: =154000+65000 -> 219000 | BK130: =BJ130-J130 -> 219000 | BL130: 219000 | BM130: 219000 | BN130: 219000 | BO130: 219000 | BP130: 219000 | BQ130: 219000 | BR130: 219000 | BS130: 219000 | BT130: 219000 | BU130: 219000 | BV130: 219000 | BW130: 219000 | BX130: 219000 | BY130: 219000 | BZ130: 219000 | CA130: 219000 | CB130: 219000 | CC130: 219000 | CD130: 219000
G131: Cyclic | AF131: Cyclic | AG131: 13400 | AH131: 13400 | AI131: 0 | AJ131: 0 | AK131: 0 | AL131: 0 | AM131: 0 | AN131: 0 | AO131: 0 | AP131: 0 | AQ131: 0 | AR131: 0 | AS131: 0 | AT131: 0 | AU131: 0 | AV131: 0 | AW131: 0 | AX131: 0 | AY131: 0 | AZ131: 0 | BA131: 0 | BB131: 0 | BD131: 13400 | BG131: Cyclic | BJ131: =BI131-I131 -> 0 | BK131: =BJ131-J131 -> 0 | BL131: 0 | BM131: 0 | BN131: 0 | BO131: 0 | BP131: 0 | BQ131: 0 | BR131: 0 | BS131: 0 | BT131: 0 | BU131: 0 | BV131: 0 | BW131: 0 | BX131: 0 | BY131: 0 | BZ131: 0 | CA131: 0 | CB131: 0 | CC131: 0 | CD131: 0
G132: LA Supplemental Storage | AF132: LA Supplemental Storage | AG132: 10000 | AH132: 10000 | AI132: 0 | AJ132: 0 | AK132: 0 | AL132: 0 | AM132: 0 | AN132: 0 | AO132: 0 | AP132: 0 | AQ132: 0 | AR132: 0 | AS132: 0 | AT132: 0 | AU132: 0 | AV132: 0 | AW132: 0 | AX132: 0 | AY132: 0 | AZ132: 0 | BA132: 0 | BB132: 0 | BD132: 10000 | BG132: LA Supplemental Storage | BJ132: 0 | BK132: =BJ132-J132 -> 0 | BL132: 0 | BM132: 0 | BN132: 0 | BO132: 0 | BP132: 0 | BQ132: 0 | BR132: 0 | BS132: 0 | BT132: 0 | BU132: 0 | BV132: 0 | BW132: 0 | BX132: 0 | BY132: 0 | BZ132: 0 | CA132: 0 | CB132: 0 | CC132: 0 | CD132: 0
C133: 18,19 | G133: other | AF133: other | AG133: =MIN($BD133,BH133) -> 0 | AH133: 0 | AI133: 0 | AJ133: 0 | AK133: 0 | AL133: 0 | AM133: 0 | AN133: 0 | AO133: 0 | AP133: 0 | AQ133: =MIN($BD133,BR133) -> 0 | AR133: 0 | AS133: 0 | AT133: 0 | AU133: 0 | AV133: 0 | AW133: 0 | AX133: 0 | AY133: 0 | AZ133: 0 | BA133: =MIN($BD133,CB133) -> 0 | BB133: 0 | BG133: other
C134: 20,21 | G134: Prop 13 GWSP | AF134: Prop 13 GWSP | AG134: 25666.66667 | AH134: 25666.66667 | AI134: 25666.66667 | AJ134: 25666.66667 | AK134: 25666.66667 | AL134: 25666.66667 | AM134: 25666.66667 | AN134: 25666.66667 | AO134: 25666.66667 | AP134: 25666.66667 | AQ134: 25666.66667 | AR134: 25666.66667 | AS134: 25666.66667 | AT134: 25666.66667 | AU134: 25666.66667 | AV134: 25666.66667 | AW134: 25666.66667 | AX134: 25666.66667 | AY134: 25666.66667 | AZ134: 25666.66667 | BA134: 25666.66667 | BB134: 25666.66667 | BD134: =77000/3 -> 25666.66667 | BG134: Prop 13 GWSP | BJ134: =60000-34000 -> 26000 | BK134: =BJ134-J134 -> 26000 | BL134: 26000 | BM134: 26000 | BN134: 26000 | BO134: 26000 | BP134: 26000 | BQ134: 26000 | BR134: 26000 | BS134: 26000 | BT134: 26000 | BU134: 26000 | BV134: 26000 | BW134: 26000 | BX134: 26000 | BY134: 26000 | BZ134: 26000 | CA134: 26000 | CB134: 26000 | CC134: 26000 | CD134: 26000
C135: 24, 25 | G135: Generic GWSP | AF135: Generic GWSP | AG135: 0 | AH135: 0 | AI135: 0 | AJ135: 0 | AK135: 0 | AL135: 0 | AM135: 0 | AN135: 0 | AO135: 0 | AP135: 0 | AQ135: 0 | AR135: 0 | AS135: 0 | AT135: 0 | AU135: 0 | AV135: 0 | AW135: 0 | AX135: 0 | AY135: 0 | AZ135: 0 | BA135: 0 | BB135: 0 | BG135: Generic GWSP | BJ135: =BI135-I135 -> 0 | BK135: =BJ135-J135 -> 0 | BL135: 0 | BM135: 0 | BN135: 0 | BO135: 0 | BP135: 0 | BQ135: 0 | BR135: 0 | BS135: 0 | BT135: 0 | BU135: 0 | BV135: 0 | BW135: 0 | BX135: 0 | BY135: 0 | BZ135: 0 | CA135: 0 | CB135: 0 | CC135: 0 | CD135: 0
C136: 36 | G136: San Gabriel Valley MWD | L136: 4000 | M136: 4000 | N136: 4000 | O136: 4000 | P136: 4000 | Q136: 4000 | R136: 4000 | S136: 4000 | T136: 4000 | U136: 4000 | V136: 4000 | W136: 4000 | X136: 4000 | Y136: 4000 | Z136: 4000 | AA136: 4000 | AB136: 4000 | AC136: 4000 | AF136: San Gabriel Valley MWD | BG136: San Gabriel Valley MWD
G137: Subtotal | L137: =SUM(L127:L136) -> 13165.4 | M137: 55391.61039 | N137: -276341.0925 | O137: 94371.13855 | P137: -105498.481 | Q137: -142208.2419 | R137: -134287.3178 | S137: -193316.6715 | T137: -178369.2046 | U137: -167473.5309 | V137: -165492.5512 | W137: -160790.1025 | X137: -168242.6841 | Y137: -324254.2587 | Z137: -124481.3924 | AA137: -113575.8519 | AB137: -113486.036 | AC137: -139764.2591 | AF137: Subtotal | BG137: Subtotal
F139: Unmet Demand | L139: =L124-L137 -> 0 | M139: 0 | N139: 0 | O139: 0 | P139: 0 | Q139: 0 | R139: 0 | S139: 0 | T139: 0 | U139: 0 | V139: 0 | W139: 0 | X139: 0 | Y139: 0 | Z139: 0 | AA139: 0 | AB139: 0 | AC139: 0 | BH139: Same as CUP programs
F141: Basic Operations Summary | H141: 2009 | I141: 2010 | J141: 2011 | K141: 2012 | L141: 2013 | M141: 2014 | N141: 2015 | O141: 2016 | P141: 2017 | Q141: 2018 | R141: 2019 | S141: 2020 | T141: 2021 | U141: 2022 | V141: 2023 | W141: 2024 | X141: 2025 | Y141: 2026 | Z141: 2027 | AA141: 2028 | AB141: 2029 | AC141: 2030
F142: Sales + Wheeling | L142: =L10 -> 1924555.4 | M142: 1806408.61 | N142: 1822499.908 | O142: 1794670.739 | P142: 1801780.119 | Q142: 1795011.358 | R142: 1816873.282 | S142: 1776657.929 | T142: 1799038.359 | U142: 1800416.783 | V142: 1799708.762 | W142: 1804223.211 | X142: 1796581.629 | Y142: 1800731.055 | Z142: 1800615.921 | AA142: 1800682.462 | AB142: 1800584.278 | AC142: 1774117.054
F143: SWP Allocation | L143: =L12 -> 0.5 | M143: 0.5 | N143: 0.5 | O143: 0.5 | P143: 0.5 | Q143: 0.5 | R143: 0.5 | S143: 0.5 | T143: 0.5 | U143: 0.5 | V143: 0.5 | W143: 0.5 | X143: 0.5 | Y143: 0.5 | Z143: 0.5 | AA143: 0.5 | AB143: 0.5 | AC143: 0.5
F144: Supplies
G145: CR for MWD | L145: =L73 -> 916540 | M145: 715167 | N145: 1062991 | O145: 664449.6 | P145: 871428.6 | Q145: 901369.6 | R145: 915310.6 | S145: 934124.6 | T145: 941557.564 | U145: 932040.3136 | V145: 929351.3136 | W145: 929163.3136 | X145: 928974.3136 | Y145: 1089135.314 | Z145: 889247.3136 | AA145: 878408.3136 | AB145: 878220.3136 | AC145: 878031.3136
G146: SWP | L146: =L115 -> 1050850 | M146: 1091850 | N146: 1091850 | O146: 1091850 | P146: 1091850 | Q146: 1091850 | R146: 1091850 | S146: 1091850 | T146: 1091850 | U146: 1091850 | V146: 1091850 | W146: 1091850 | X146: 1091850 | Y146: 1091850 | Z146: 1091850 | AA146: 1091850 | AB146: 1091850 | AC146: 1091850
G147: In-Basin (Take - Put) | L147: =L137 -> 13165.4 | M147: 55391.61039 | N147: -276341.0925 | O147: 94371.13855 | P147: -105498.481 | Q147: -142208.2419 | R147: -134287.3178 | S147: -193316.6715 | T147: -178369.2046 | U147: -167473.5309 | V147: -165492.5512 | W147: -160790.1025 | X147: -168242.6841 | Y147: -324254.2587 | Z147: -124481.3924 | AA147: -113575.8519 | AB147: -113486.036 | AC147: -139764.2591
G148: Losses | L148: =L122 -> -56000 | M148: -56000 | N148: -56000 | O148: -56000 | P148: -56000 | Q148: -56000 | R148: -56000 | S148: -56000 | T148: -56000 | U148: -56000 | V148: -56000 | W148: -56000 | X148: -56000 | Y148: -56000 | Z148: -56000 | AA148: -56000 | AB148: -56000 | AC148: -56000
G149: Total | L149: =SUM(L145:L148) -> 1924555.4 | M149: 1806408.61 | N149: 1822499.908 | O149: 1794670.739 | P149: 1801780.119 | Q149: 1795011.358 | R149: 1816873.282 | S149: 1776657.929 | T149: 1799038.359 | U149: 1800416.783 | V149: 1799708.762 | W149: 1804223.211 | X149: 1796581.629 | Y149: 1800731.055 | Z149: 1800615.921 | AA149: 1800682.462 | AB149: 1800584.278 | AC149: 1774117.054
F150: Storage Use (Take - Put)
G151: CRA | L151: =BM170 -> 93857 | M151: -44000 | N151: 28321 | O151: -200000 | P151: 0 | Q151: 0 | R151: 0 | S151: 0 | T151: 0 | U151: 0 | V151: 0 | W151: 0 | X151: 0 | Y151: 190350 | Z151: 650 | AA151: 0 | AB151: 0 | AC151: 0
G152: SWP | L152: 0 | M152: 0 | N152: 0 | O152: 0 | P152: 0 | Q152: 0 | R152: 0 | S152: 0 | T152: 0 | U152: 0 | V152: 0 | W152: 0 | X152: 0 | Y152: 0 | Z152: 0 | AA152: 0 | AB152: 0 | AC152: 0
G153: In-Basin | L153: =BM172 -> 9165.4 | M153: 51391.61039 | N153: -280341.0925 | O153: 90371.13855 | P153: -109498.481 | Q153: -146208.2419 | R153: -138287.3178 | S153: -197316.6715 | T153: -182369.2046 | U153: -171473.5309 | V153: -169492.5512 | W153: -164790.1025 | X153: -172242.6841 | Y153: -328254.2587 | Z153: -128481.3924 | AA153: -117575.8519 | AB153: -117486.036 | AC153: -143764.2591
G154: Total | L154: =SUM(L151:L153) -> 103022.4 | M154: 7391.610385 | N154: -252020.0925 | O154: -109628.8614 | P154: -109498.481 | Q154: -146208.2419 | R154: -138287.3178 | S154: -197316.6715 | T154: -182369.2046 | U154: -171473.5309 | V154: -169492.5512 | W154: -164790.1025 | X154: -172242.6841 | Y154: -137904.2587 | Z154: -127831.3924 | AA154: -117575.8519 | AB154: -117486.036 | AC154: -143764.2591
B158: =SUM(H158:AC158) -> 0 | F158: Check | K158: =K142-K149 -> 0 | L158: 0 | M158: 0 | N158: 0 | O158: 0 | P158: 0 | Q158: 0 | R158: 0 | S158: 0 | T158: 0 | U158: 0 | V158: 0 | W158: 0 | X158: 0 | Y158: 0 | Z158: 0 | AA158: 0 | AB158: 0 | AC158: 0
BF162: TOTAL STORAGE | BH162: 2008 | BI162: 2009 | BJ162: 2010 | BK162: 2011 | BL162: 2012 | BM162: 2013 | BN162: 2014 | BO162: 2015 | BP162: 2016 | BQ162: 2017 | BR162: 2018 | BS162: 2019 | BT162: 2020 | BU162: 2021 | BV162: 2022 | BW162: 2023 | BX162: 2024 | BY162: 2025 | BZ162: 2026 | CA162: 2027 | CB162: 2028 | CC162: 2029 | CD162: 2030
BF163: EOY Storage
F164: CHECKS | BG164: CRA | BH164: =SUM(BH17:BH80) -> 0 | BI164: =SUM(BI17:BI80) -> 0 | BJ164: =SUM(BJ17:BJ80) -> 66000 | BK164: 66000 | BL164: 693000 | BM164: 599143 | BN164: 643143 | BO164: 614822 | BP164: 814822 | BQ164: 814822 | BR164: 814822 | BS164: 814822 | BT164: 814822 | BU164: =SUM(BU17:BU80) -> 814822 | BV164: =SUM(BV17:BV80) -> 814822 | BW164: =SUM(BW17:BW80) -> 814822 | BX164: =SUM(BX17:BX80) -> 814822 | BY164: =SUM(BY17:BY80) -> 814822 | BZ164: 624472 | CA164: 623822 | CB164: 623822 | CC164: 623822 | CD164: 623822
G165: Total MWD Demand (Sales + Wheeling) | L165: =L10 -> 1924555.4 | M165: 1806408.61 | N165: 1822499.908 | O165: 1794670.739 | P165: 1801780.119 | Q165: 1795011.358 | R165: 1816873.282 | S165: 1776657.929 | T165: 1799038.359 | U165: 1800416.783 | V165: 1799708.762 | W165: 1804223.211 | X165: 1796581.629 | Y165: 1800731.055 | Z165: 1800615.921 | AA165: 1800682.462 | AB165: 1800584.278 | AC165: 1774117.054 | BG165: SWP | BH165: =SUM(BH84:BH118) -> 0 | BI165: =SUM(BI84:BI118) -> 0 | BJ165: =SUM(BJ84:BJ118) -> 322000 | BK165: 575280 | BL165: 462000 | BM165: 462000 | BN165: 462000 | BO165: 462000 | BP165: 462000 | BQ165: 462000 | BR165: 462000 | BS165: 462000 | BT165: 462000 | BU165: =SUM(BU84:BU118) -> 462000 | BV165: =SUM(BV84:BV118) -> 462000 | BW165: =SUM(BW84:BW118) -> 462000 | BX165: =SUM(BX84:BX118) -> 462000 | BY165: =SUM(BY84:BY118) -> 462000 | BZ165: 462000 | CA165: 462000 | CB165: 462000 | CC165: 462000 | CD165: 462000
G166: Total MWD Supplies (less Losses) | L166: =L73+L115+L122+L137 -> 1924555.4 | M166: 1806408.61 | N166: 1822499.908 | O166: 1794670.739 | P166: 1801780.119 | Q166: 1795011.358 | R166: 1816873.282 | S166: 1776657.929 | T166: 1799038.359 | U166: 1800416.783 | V166: 1799708.762 | W166: 1804223.211 | X166: 1796581.629 | Y166: 1800731.055 | Z166: 1800615.921 | AA166: 1800682.462 | AB166: 1800584.278 | AC166: 1774117.054 | BG166: In-Basin | BH166: =SUM(BH122:BH155) -> 0 | BI166: 0 | BJ166: 1035000 | BK166: 1035000 | BL166: =SUM(BL122:BL155) -> 1035000 | BM166: 1025834.6 | BN166: 974442.9896 | BO166: 1254784.082 | BP166: 1164412.944 | BQ166: 1273911.425 | BR166: 1420119.666 | BS166: 1558406.984 | BT166: 1755723.656 | BU166: 1938092.86 | BV166: 2109566.391 | BW166: 2279058.943 | BX166: 2443849.045 | BY166: 2616091.729 | BZ166: 2944345.988 | CA166: 3072827.38 | CB166: 3190403.232 | CC166: 3307889.268 | CD166: 3451653.527
B167: =SUM(H167:AC167) -> 0 | G167: checks | L167: =L166-L165 -> 0 | M167: 0 | N167: 0 | O167: 0 | P167: 0 | Q167: 0 | R167: 0 | S167: 0 | T167: 0 | U167: 0 | V167: 0 | W167: 0 | X167: 0 | Y167: 0 | Z167: 0 | AA167: 0 | AB167: 0 | AC167: 0 | BG167: Total | BH167: =SUM(BH164:BH166) -> 0 | BI167: =SUM(BI164:BI166) -> 0 | BJ167: =SUM(BJ164:BJ166) -> 1423000 | BK167: 1676280 | BL167: =SUM(BL164:BL166) -> 2190000 | BM167: 2086977.6 | BN167: 2079585.99 | BO167: 2331606.082 | BP167: 2441234.944 | BQ167: 2550733.425 | BR167: 2696941.666 | BS167: 2835228.984 | BT167: 3032545.656 | BU167: 3214914.86 | BV167: 3386388.391 | BW167: 3555880.943 | BX167: 3720671.045 | BY167: 3892913.729 | BZ167: 4030817.988 | CA167: 4158649.38 | CB167: 4276225.232 | CC167: 4393711.268 | CD167: 4537475.527
G169: STORAGE | BF169: Storage Use (Take - Put)
B170: =SUM(H170:AC170) -> 0 | G170: =BG127 -> DVL | L170: =MIN(0,BM127) -> 0 | M170: 0 | N170: 0 | O170: 0 | P170: 0 | Q170: 0 | R170: 0 | S170: 0 | T170: 0 | U170: 0 | V170: 0 | W170: 0 | X170: 0 | Y170: 0 | Z170: 0 | AA170: 0 | AB170: 0 | AC170: 0 | BG170: CRA | BI170: =-BI164+BH164 -> 0 | BJ170: =-BJ164+BI164 -> -66000 | BK170: 0 | BL170: -627000 | BM170: 93857 | BN170: -44000 | BO170: 28321 | BP170: -200000 | BQ170: 0 | BR170: 0 | BS170: 0 | BT170: 0 | BU170: 0 | BV170: 0 | BW170: 0 | BX170: 0 | BY170: =-BY164+BX164 -> 0 | BZ170: 190350 | CA170: 650 | CB170: 0 | CC170: 0 | CD170: 0
B171: =SUM(H171:AC171) -> 0 | G171: Mathews | L171: =MIN(0,BM128) -> 0 | M171: 0 | N171: 0 | O171: 0 | P171: 0 | Q171: 0 | R171: 0 | S171: =MIN(0,BT128) -> 0 | T171: 0 | U171: 0 | V171: 0 | W171: 0 | X171: 0 | Y171: 0 | Z171: 0 | AA171: 0 | AB171: 0 | AC171: =MIN(0,CD128) -> 0 | BG171: SWP | BI171: =-BI165+BH165 -> 0 | BJ171: -322000 | BK171: -253280 | BL171: 113280 | BM171: 0 | BN171: 0 | BO171: 0 | BP171: 0 | BQ171: 0 | BR171: 0 | BS171: 0 | BT171: =-BT165+BS165 -> 0 | BU171: 0 | BV171: 0 | BW171: 0 | BX171: 0 | BY171: 0 | BZ171: 0 | CA171: 0 | CB171: 0 | CC171: 0 | CD171: 0
B172: 0 | G172: Skinner | L172: 0 | M172: 0 | N172: 0 | O172: 0 | P172: 0 | Q172: 0 | R172: 0 | S172: 0 | T172: 0 | U172: 0 | V172: 0 | W172: 0 | X172: 0 | Y172: 0 | Z172: 0 | AA172: 0 | AB172: 0 | AC172: 0 | BG172: In-Basin | BI172: =-BI166+BH166 -> 0 | BJ172: =-BJ166+BI166 -> -1035000 | BK172: 0 | BL172: =-BL166+BK166 -> 0 | BM172: 9165.4 | BN172: 51391.61039 | BO172: -280341.0925 | BP172: 90371.13855 | BQ172: -109498.481 | BR172: -146208.2419 | BS172: -138287.3178 | BT172: =-BT166+BS166 -> -197316.6715 | BU172: =-BU166+BT166 -> -182369.2046 | BV172: -171473.5309 | BW172: -169492.5512 | BX172: -164790.1025 | BY172: -172242.6841 | BZ172: -328254.2587 | CA172: -128481.3924 | CB172: -117575.8519 | CC172: -117486.036 | CD172: -143764.2591
B173: 0 | G173: SWP Flex | L173: 0 | M173: 0 | N173: 0 | O173: 0 | P173: 0 | Q173: 0 | R173: 0 | S173: 0 | T173: 0 | U173: 0 | V173: 0 | W173: 0 | X173: 0 | Y173: 0 | Z173: 0 | AA173: 0 | AB173: 0 | AC173: 0 | BG173: Total | BI173: =SUM(BI170:BI172) -> 0 | BJ173: -1423000 | BK173: -253280 | BL173: =SUM(BL170:BL172) -> -513720 | BM173: 103022.4 | BN173: 7391.610385 | BO173: -252020.0925 | BP173: -109628.8614 | BQ173: -109498.481 | BR173: -146208.2419 | BS173: -138287.3178 | BT173: -197316.6715 | BU173: -182369.2046 | BV173: -171473.5309 | BW173: -169492.5512 | BX173: -164790.1025 | BY173: -172242.6841 | BZ173: -137904.2587 | CA173: -127831.3924 | CB173: -117575.8519 | CC173: -117486.036 | CD173: -143764.2591
B174: 0 | G174: Cyclic | L174: 0 | M174: 0 | N174: 0 | O174: 0 | P174: 0 | Q174: 0 | R174: 0 | S174: 0 | T174: 0 | U174: 0 | V174: 0 | W174: 0 | X174: 0 | Y174: 0 | Z174: 0 | AA174: 0 | AB174: 0 | AC174: 0
B175: 0 | G175: LA Supplemental Storage | L175: 0 | M175: 0 | N175: 0 | O175: 0 | P175: 0 | Q175: 0 | R175: 0 | S175: 0 | T175: 0 | U175: 0 | V175: 0 | W175: 0 | X175: 0 | Y175: 0 | Z175: 0 | AA175: 0 | AB175: 0 | AC175: 0
B176: 0 | G176: =BG95 -> San Joaquin GW Demo / Semitropic Ag Water Reuse Demo | L176: =MIN(0,BM95) -> 0 | M176: 0 | N176: 0 | O176: 0 | P176: 0 | Q176: 0 | R176: 0 | S176: 0 | T176: 0 | U176: 0 | V176: 0 | W176: 0 | X176: 0 | Y176: 0 | Z176: 0 | AA176: 0 | AB176: 0 | AC176: 0
B177: 0 | G177: =BG133 -> other | L177: =MIN(0,BM133) -> 0 | M177: 0 | N177: 0 | O177: 0 | P177: 0 | Q177: 0 | R177: 0 | S177: =MIN(0,BT133) -> 0 | T177: 0 | U177: 0 | V177: 0 | W177: 0 | X177: 0 | Y177: 0 | Z177: 0 | AA177: 0 | AB177: 0 | AC177: =MIN(0,CD133) -> 0 | BF177: Storage Use (Take - Put) | BJ177: 2010 | BK177: 2011 | BL177: 2012 | BM177: 2013 | BN177: 2014 | BO177: 2015
B178: 0 | G178: Prop 13 GWSP | L178: 0 | M178: 0 | N178: 0 | O178: 0 | P178: 0 | Q178: 0 | R178: 0 | S178: 0 | T178: 0 | U178: 0 | V178: 0 | W178: 0 | X178: 0 | Y178: 0 | Z178: 0 | AA178: 0 | AB178: 0 | AC178: 0 | BF178: CRA
B179: 0 | G179: =BG135 -> Generic GWSP | L179: =MIN(0,BM135) -> 0 | M179: 0 | N179: 0 | O179: 0 | P179: 0 | Q179: 0 | R179: 0 | S179: 0 | T179: 0 | U179: 0 | V179: 0 | W179: 0 | X179: 0 | Y179: =MIN(0,BZ135) -> 0 | Z179: 0 | AA179: 0 | AB179: 0 | AC179: 0 | BG179: =BG31 -> Lake Mead ICS (Intentionally Created Surplus) | BJ179: =-BJ31+BI31 -> 0 | BK179: =-BK31+BJ31 -> 0 | BL179: -436000 | BM179: 93857 | BN179: -45000 | BO179: 28321
G181: Wheeling from SM | L181: =OFFSET(Lib_Sales!$G$549,L$9-2009,0) -> 180200 | M181: =OFFSET(Lib_Sales!$G$549,M$9-2009,0) -> 180700 | N181: =OFFSET(Lib_Sales!$G$549,N$9-2009,0) -> 181700 | O181: =OFFSET(Lib_Sales!$G$549,O$9-2009,0) -> 181700 | P181: =OFFSET(Lib_Sales!$G$549,P$9-2009,0) -> 197700 | Q181: =OFFSET(Lib_Sales!$G$549,Q$9-2009,0) -> 227700 | R181: =OFFSET(Lib_Sales!$G$549,R$9-2009,0) -> 257700 | S181: =OFFSET(Lib_Sales!$G$549,S$9-2009,0) -> 290200 | T181: =OFFSET(Lib_Sales!$G$549,T$9-2009,0) -> 302700 | U181: =OFFSET(Lib_Sales!$G$549,U$9-2009,0) -> 300200 | V181: =OFFSET(Lib_Sales!$G$549,V$9-2009,0) -> 297700 | W181: =OFFSET(Lib_Sales!$G$549,W$9-2009,0) -> 297700 | X181: =OFFSET(Lib_Sales!$G$549,X$9-2009,0) -> 297700 | Y181: =OFFSET(Lib_Sales!$G$549,Y$9-2009,0) -> 297700 | Z181: =OFFSET(Lib_Sales!$G$549,Z$9-2009,0) -> 297700 | AA181: =OFFSET(Lib_Sales!$G$549,AA$9-2009,0) -> 297700 | AB181: =OFFSET(Lib_Sales!$G$549,AB$9-2009,0) -> 297700 | AC181: =OFFSET(Lib_Sales!$G$549,AC$9-2009,0) -> 297700 | BG181: =BG32 -> Drop 2 ICS Water | BJ181: =-BJ32+BI32 -> -66000 | BK181: =-BK32+BJ32 -> 0 | BL181: 0 | BM181: 0 | BN181: 1000 | BO181: 0
G182: Wheeling from Router | L182: =L23+L25+L26+L27 -> 196256 | M182: 196123 | N182: 196120 | O182: 196120 | P182: 196120 | Q182: 226120 | R182: 240120 | S182: =S23+S25+S26+S27 -> 272620 | T182: 285120 | U182: 282620 | V182: 280120 | W182: 280120 | X182: 280120 | Y182: 280120 | Z182: 280120 | AA182: 280120 | AB182: 280120 | AC182: 280120
G183: approved Error due to SLR | L183: -16000 | M183: -16000 | N183: -16000 | O183: -16000 | P183: 16000 | Q183: 16000 | R183: 16000 | S183: 16000 | T183: 16000 | U183: 16000 | V183: 16000 | W183: 16000 | X183: 16000 | Y183: 16000 | Z183: 16000 | AA183: 16000 | AB183: 16000 | AC183: 16000
B184: =SUM(H184:AC184) -> -6199 | G184: check | L184: =ROUND(L181-L182,4)-L183 -> -56 | M184: =ROUND(M181-M182,4)-M183 -> 577 | N184: 1580 | O184: 1580 | P184: -14420 | Q184: -14420 | R184: 1580 | S184: 1580 | T184: 1580 | U184: 1580 | V184: 1580 | W184: 1580 | X184: 1580 | Y184: 1580 | Z184: 1580 | AA184: 1580 | AB184: 1580 | AC184: 1580 | BG184: =BG70 -> DWCV Account | BJ184: =-BJ70+BI70 -> 0 | BK184: =-BK70+BJ70 -> 0 | BL184: -191000 | BM184: 0 | BN184: 0 | BO184: 0
BF185: SWP
BG186: =BG89 -> SWP Carryover | BJ186: =-BJ89+BI89 -> 0 | BK186: =-BK89+BJ89 -> -253280 | BL186: 113280 | BM186: 0 | BN186: 0 | BO186: 0
F187: TAF | BG187: =BG93 -> Semitropic | BJ187: =-BJ93+BI93 -> -118000 | BK187: =-BK93+BJ93 -> 0 | BL187: 0 | BM187: -75000 | BN187: 75000 | BO187: -75000
F188: Summary | I188: =I15 -> 2010 | J188: =J15 -> 2011 | K188: 2012 | L188: =L15 -> 2013 | M188: 2014 | N188: =N15 -> 2015 | O188: 2016 | P188: 2017 | Q188: 2018 | R188: 2019 | S188: 2020 | T188: 2021 | U188: 2022 | V188: 2023 | W188: 2024 | X188: 2025 | Y188: 2026 | Z188: 2027 | AA188: 2028 | AB188: 2029 | AC188: 2030 | BG188: =BG94 -> Arvin-Edison | BJ188: =-BJ94+BI94 -> -116000 | BK188: =-BK94+BJ94 -> 0 | BL188: 0 | BM188: 50000 | BN188: -50000 | BO188: 50000
F189: Colorado River | BG189: =BG96 -> San Bernardino GWSP | BJ189: =-BJ96+BI96 -> 0 | BK189: =-BK96+BJ96 -> 0 | BL189: 0 | BM189: 0 | BN189: 0 | BO189: 0
F190: Basic Apportionment | L190: =L17/1000 -> 550 | M190: =M17/1000 -> 550 | N190: 550 | O190: 550 | P190: 550 | Q190: 550 | R190: 550 | S190: 550 | T190: 550 | U190: 550 | V190: 550 | W190: 550 | X190: 550 | Y190: 550 | Z190: 550 | AA190: 550 | AB190: 550 | AC190: 550 | BG190: =BG97 -> Kern Delta | BJ190: =-BJ97+BI97 -> -88000 | BK190: =-BK97+BJ97 -> 0 | BL190: 0 | BM190: 25000 | BN190: -25000 | BO190: 25000
F191: IID-MWD Conservation | L191: =L21/1000 -> 105 | M191: =M21/1000 -> 104.1 | N191: 107.82 | O191: 105 | P191: 105 | Q191: 105 | R191: 105 | S191: 105 | T191: 105 | U191: 105 | V191: 105 | W191: 105 | X191: 105 | Y191: 105 | Z191: 105 | AA191: 105 | AB191: 105 | AC191: 105
F192: PVID Fallowing | L192: =L28/1000 -> 32.75 | M192: =M28/1000 -> 43.01 | N192: 82.706 | O192: 124.5456 | P192: 124.5456 | Q192: 124.5456 | R192: 124.5456 | S192: 124.5456 | T192: 119.667564 | U192: 112.8383136 | V192: 112.8383136 | W192: 112.8383136 | X192: 112.8383136 | Y192: 112.8383136 | Z192: 112.8383136 | AA192: 112.8383136 | AB192: 112.8383136 | AC192: 112.8383136 | BG192: =BG98 -> CALFED Bay Delta Phase 8 | BJ192: =-BJ98+BI98 -> 0 | BK192: =-BK98+BJ98 -> 0 | BL192: 0 | BM192: 0 | BN192: 0 | BO192: 0
F193: SDCWA Exchange & Canal Lining | L193: =SUM(L23,L25,L26,L27)/1000 -> 196.256 | M193: =SUM(M23,M25,M26,M27)/1000 -> 196.123 | N193: 196.12 | O193: 196.12 | P193: 196.12 | Q193: 226.12 | R193: 240.12 | S193: 272.62 | T193: 285.12 | U193: 282.62 | V193: 280.12 | W193: 280.12 | X193: 280.12 | Y193: 280.12 | Z193: 280.12 | AA193: 280.12 | AB193: 280.12 | AC193: 280.12 | BG193: =BG100 -> EWA Exchange | BJ193: =-BJ100+BI100 -> 0 | BK193: =-BK100+BJ100 -> 0 | BL193: 0 | BM193: 0 | BN193: 0 | BO193: 0
F194: Other Programs | L194: =L195-SUM(L190:L193) -> 32.534 | M194: =M195-SUM(M190:M193) -> -178.066 | N194: 126.345 | O194: -311.216 | P194: -104.237 | Q194: -104.296 | R194: -104.355 | S194: -118.041 | T194: -118.23 | U194: -118.418 | V194: -118.607 | W194: -118.795 | X194: -118.984 | Y194: 41.177 | Z194: -158.711 | AA194: -169.55 | AB194: -169.738 | AC194: -169.927 | BF194: In-Basin
F195: Subtotal (MWD water) | L195: =L73/1000 -> 916.54 | M195: =M73/1000 -> 715.167 | N195: 1062.991 | O195: 664.4496 | P195: 871.4286 | Q195: 901.3696 | R195: 915.3106 | S195: 934.1246 | T195: 941.557564 | U195: 932.0403136 | V195: 929.3513136 | W195: 929.1633136 | X195: 928.9743136 | Y195: 1089.135314 | Z195: 889.2473136 | AA195: 878.4083136 | AB195: 878.2203136 | AC195: 878.0313136 | BG195: =BG127 -> DVL | BJ195: =-BJ127+BI127 -> -627000 | BK195: =-BK127+BJ127 -> 0 | BL195: =-BL127+BK127 -> 0 | BM195: =-BM127+BL127 -> 9165.4 | BN195: =-BN127+BM127 -> 51391.61039 | BO195: =-BO127+BN127 -> -280341.0925
F196: State Water Project | L196: =L143 -> 0.5 | M196: =M143 -> 0.5 | N196: 0.5 | O196: 0.5 | P196: 0.5 | Q196: 0.5 | R196: 0.5 | S196: 0.5 | T196: 0.5 | U196: 0.5 | V196: 0.5 | W196: 0.5 | X196: 0.5 | Y196: 0.5 | Z196: 0.5 | AA196: 0.5 | AB196: 0.5 | AC196: 0.5 | BG196: Mathews | BJ196: -127000 | BK196: =-BK128+BJ128 -> 0 | BL196: 0 | BM196: 0 | BN196: 0 | BO196: 0
F197: Base Supplies | L197: =L90/10000 -> 105.085 | M197: =M90/10000 -> 109.185 | N197: 109.185 | O197: 109.185 | P197: 109.185 | Q197: 109.185 | R197: 109.185 | S197: 109.185 | T197: 109.185 | U197: 109.185 | V197: 109.185 | W197: 109.185 | X197: 109.185 | Y197: 109.185 | Z197: 109.185 | AA197: 109.185 | AB197: 109.185 | AC197: 109.185 | BG197: Skinner | BJ197: -36000 | BK197: =-BK129+BJ129 -> 0 | BL197: 0 | BM197: 0 | BN197: 0 | BO197: 0
F198: Drought Water Bank | L198: =(L104+L105)/1000 -> 0 | M198: =(M104+M105)/1000 -> 0 | N198: 0 | O198: 0 | P198: 0 | Q198: 0 | R198: 0 | S198: 0 | T198: 0 | U198: 0 | V198: 0 | W198: 0 | X198: 0 | Y198: 0 | Z198: 0 | AA198: 0 | AB198: 0 | AC198: 0 | BG198: SWP Flex | BJ198: -219000 | BK198: =-BK130+BJ130 -> 0 | BL198: 0 | BM198: 0 | BN198: 0 | BO198: 0
F199: Arvin-Edison, Semitropic & other | L199: =L200-L198-L197 -> 945.765 | M199: =M200-M198-M197 -> 982.665 | N199: 982.665 | O199: 982.665 | P199: 982.665 | Q199: 982.665 | R199: 982.665 | S199: 982.665 | T199: 982.665 | U199: 982.665 | V199: 982.665 | W199: 982.665 | X199: 982.665 | Y199: 982.665 | Z199: 982.665 | AA199: 982.665 | AB199: 982.665 | AC199: 982.665 | BG199: Cyclic | BJ199: 0 | BK199: =-BK131+BJ131 -> 0 | BL199: 0 | BM199: 0 | BN199: 0 | BO199: 0
F200: Subtotal | L200: =L115/1000 -> 1050.85 | M200: =M115/1000 -> 1091.85 | N200: 1091.85 | O200: 1091.85 | P200: 1091.85 | Q200: 1091.85 | R200: 1091.85 | S200: 1091.85 | T200: 1091.85 | U200: 1091.85 | V200: 1091.85 | W200: 1091.85 | X200: 1091.85 | Y200: 1091.85 | Z200: 1091.85 | AA200: 1091.85 | AB200: 1091.85 | AC200: 1091.85 | BG200: LA Supplemental Storage | BJ200: 0 | BK200: =-BK132+BJ132 -> 0 | BL200: 0 | BM200: 0 | BN200: 0 | BO200: 0
F201: System Losses | L201: =L122/1000 -> -56 | M201: =M122/1000 -> -56 | N201: -56 | O201: -56 | P201: -56 | Q201: -56 | R201: -56 | S201: -56 | T201: -56 | U201: -56 | V201: -56 | W201: -56 | X201: -56 | Y201: -56 | Z201: -56 | AA201: -56 | AB201: -56 | AC201: -56 | BG201: =BG95 -> San Joaquin GW Demo / Semitropic Ag Water Reuse Demo | BJ201: =-BJ95+BI95 -> 0 | BK201: 0 | BL201: 0 | BM201: 0 | BN201: 0 | BO201: 0
F202: In-Basin Supplies (Take - Put) | BG202: =BG133 -> other | BJ202: =-BJ133+BI133 -> 0 | BK202: =-BK133+BJ133 -> 0 | BL202: 0 | BM202: 0 | BN202: 0 | BO202: 0
F203: Diamond Valley Lake | L203: =L127/1000 -> 9.1654 | M203: 51.39161039 | N203: -280.3410925 | O203: 90.37113855 | P203: -109.498481 | Q203: -146.2082419 | R203: -138.2873178 | S203: -197.3166715 | T203: -182.3692046 | U203: -171.4735309 | V203: -169.4925512 | W203: -164.7901025 | X203: -172.2426841 | Y203: -328.2542587 | Z203: -128.4813924 | AA203: -117.5758519 | AB203: -117.486036 | AC203: -143.7642591 | BG203: =BG134 -> Prop 13 GWSP | BJ203: =-BJ134+BI134 -> -26000 | BK203: =-BK134+BJ134 -> 0 | BL203: 0 | BM203: 0 | BN203: 0 | BO203: 0
F204: Programs | L204: =(L137-L127)/1000 -> 4 | M204: 4 | N204: 4 | O204: 4 | P204: 4 | Q204: 4 | R204: 4 | S204: 4 | T204: 4 | U204: 4 | V204: 4 | W204: 4 | X204: 4 | Y204: 4 | Z204: 4 | AA204: 4 | AB204: 4 | AC204: 4 | BF204: TOTAL | BJ204: =SUM(BJ179:BJ203) -> -1423000 | BK204: =SUM(BK179:BK203) -> -253280 | BL204: =SUM(BL179:BL203) -> -513720 | BM204: =SUM(BM179:BM203) -> 103022.4 | BN204: =SUM(BN179:BN203) -> 7391.610385 | BO204: =SUM(BO179:BO203) -> -252020.0925
B205: =SUM(BJ205:BO205) -> 0 | F205: Subtotal | L205: =SUM(L203:L204) -> 13.1654 | M205: 55.39161039 | N205: -276.3410925 | O205: 94.37113855 | P205: -105.498481 | Q205: -142.2082419 | R205: -134.2873178 | S205: -193.3166715 | T205: -178.3692046 | U205: -167.4735309 | V205: -165.4925512 | W205: -160.7901025 | X205: -168.2426841 | Y205: -324.2542587 | Z205: -124.4813924 | AA205: -113.5758519 | AB205: -113.486036 | AC205: -139.7642591 | BF205: check | BJ205: =BJ204-BJ173 -> 0 | BK205: =BK204-BK173 -> 0 | BL205: =BL204-BL173 -> 0 | BM205: =BM204-BM173 -> 0 | BN205: =BN204-BN173 -> 0 | BO205: =BO204-BO173 -> 0
F206: Total Supplies = Sales | L206: =L195+L200+L201+L205 -> 1924.5554 | M206: 1806.40861 | N206: 1822.499908 | O206: 1794.670739 | P206: 1801.780119 | Q206: 1795.011358 | R206: 1816.873282 | S206: 1776.657929 | T206: 1799.038359 | U206: 1800.416783 | V206: 1799.708762 | W206: 1804.223211 | X206: 1796.581629 | Y206: 1800.731055 | Z206: 1800.615921 | AA206: 1800.682462 | AB206: 1800.584278 | AC206: 1774.117054
F209: check | L209: =L206-L142/1000 -> 0 | M209: 0 | N209: 0 | O209: 0 | P209: 0 | Q209: 0 | R209: 0 | S209: 0 | T209: 0 | U209: 0 | V209: 0 | W209: 0 | X209: 0 | Y209: 0 | Z209: 0 | AA209: 0 | AB209: 0 | AC209: 0
F212: TAF
F213: Summary | I213: =I9 -> 2010 | J213: =J9 -> 2011 | K213: 2012 | L213: 2013 | M213: =M9 -> 2014 | N213: 2015 | O213: 2016 | P213: 2017 | Q213: 2018 | R213: 2019 | S213: 2020 | T213: 2021 | U213: 2022 | V213: 2023 | W213: 2024 | X213: 2025 | Y213: 2026 | Z213: 2027 | AA213: 2028 | AB213: 2029 | AC213: 2030 | BG213: CRA | BH213: =SUM(BH61:BH128) -> 4016 | BI213: =SUM(BI61:BI128) -> 4018 | BJ213: 1080020 | BK213: 1333302 | BL213: =SUM(BL61:BL128) -> 1411024 | BM213: 1401860.6 | BN213: 1350470.99 | BO213: 1630814.082 | BP213: 1540444.944 | BQ213: 1649945.425 | BR213: 1796155.666 | BS213: 1934444.984 | BT213: 2131763.656 | BU213: 2314134.86 | BV213: 2485610.391 | BW213: 2655104.943 | BX213: 2819897.045 | BY213: 2992141.729 | BZ213: 3130047.988 | CA213: 3257881.38 | CB213: 3375459.232 | CC213: 3492947.268 | CD213: 3636713.527
F214: Colorado River
F215: Base Supplies | L215: =SUM(L17:L27)/1000 -> 861.406 | M215: =SUM(M17:M27)/1000 -> 847.23 | N215: 862.531 | O215: 859.625 | P215: 858.058 | Q215: 887.999 | R215: 901.94 | S215: 920.754 | T215: 933.065 | U215: 930.377 | V215: 927.688 | W215: 927.5 | X215: 927.311 | Y215: 927.122 | Z215: 926.934 | AA215: 926.745 | AB215: 926.557 | AC215: 926.368
F216: Draws from Programs | L216: =L73/1000-L215 -> 55.134 | M216: -132.063 | N216: 200.46 | O216: -195.1754 | P216: 13.3706 | Q216: 13.3706 | R216: 13.3706 | S216: 13.3706 | T216: 8.492564 | U216: 1.6633136 | V216: 1.6633136 | W216: 1.6633136 | X216: 1.6633136 | Y216: 162.0133136 | Z216: -37.6866864 | AA216: -48.3366864 | AB216: -48.3366864 | AC216: -48.3366864
F217: Subtotal | L217: =SUM(L215:L216) -> 916.54 | M217: =SUM(M215:M216) -> 715.167 | N217: 1062.991 | O217: 664.4496 | P217: 871.4286 | Q217: 901.3696 | R217: 915.3106 | S217: 934.1246 | T217: 941.557564 | U217: 932.0403136 | V217: 929.3513136 | W217: 929.1633136 | X217: 928.9743136 | Y217: 1089.135314 | Z217: 889.2473136 | AA217: 878.4083136 | AB217: 878.2203136 | AC217: 878.0313136
F218: State Water Project | L218: =L12 -> 0.5 | M218: =M12 -> 0.5 | N218: 0.5 | O218: 0.5 | P218: 0.5 | Q218: 0.5 | R218: 0.5 | S218: 0.5 | T218: 0.5 | U218: 0.5 | V218: 0.5 | W218: 0.5 | X218: 0.5 | Y218: 0.5 | Z218: 0.5 | AA218: 0.5 | AB218: 0.5 | AC218: 0.5
F219: Base Supplies | L219: =L90/1000 -> 1050.85 | M219: =M90/1000 -> 1091.85 | N219: 1091.85 | O219: 1091.85 | P219: 1091.85 | Q219: 1091.85 | R219: 1091.85 | S219: 1091.85 | T219: 1091.85 | U219: 1091.85 | V219: 1091.85 | W219: 1091.85 | X219: 1091.85 | Y219: 1091.85 | Z219: 1091.85 | AA219: 1091.85 | AB219: 1091.85 | AC219: 1091.85
F220: Draws from Programs | L220: =L115/1000-L219 -> 0 | M220: 0 | N220: 0 | O220: 0 | P220: 0 | Q220: 0 | R220: 0 | S220: 0 | T220: 0 | U220: 0 | V220: 0 | W220: 0 | X220: 0 | Y220: 0 | Z220: 0 | AA220: 0 | AB220: 0 | AC220: 0
F221: Subtotal | L221: =SUM(L219:L220) -> 1050.85 | M221: =SUM(M219:M220) -> 1091.85 | N221: 1091.85 | O221: 1091.85 | P221: 1091.85 | Q221: 1091.85 | R221: 1091.85 | S221: 1091.85 | T221: 1091.85 | U221: 1091.85 | V221: 1091.85 | W221: 1091.85 | X221: 1091.85 | Y221: 1091.85 | Z221: 1091.85 | AA221: 1091.85 | AB221: 1091.85 | AC221: 1091.85
F222: System Losses | L222: =L122/1000 -> -56 | M222: =M122/1000 -> -56 | N222: -56 | O222: -56 | P222: -56 | Q222: -56 | R222: -56 | S222: -56 | T222: -56 | U222: -56 | V222: -56 | W222: -56 | X222: -56 | Y222: -56 | Z222: -56 | AA222: -56 | AB222: -56 | AC222: -56
F223: In-Basin Supplies (Take - Put) | L223: =L137/1000 -> 13.1654 | M223: 55.39161039 | N223: -276.3410925 | O223: 94.37113855 | P223: -105.498481 | Q223: -142.2082419 | R223: -134.2873178 | S223: -193.3166715 | T223: -178.3692046 | U223: -167.4735309 | V223: -165.4925512 | W223: -160.7901025 | X223: -168.2426841 | Y223: -324.2542587 | Z223: -124.4813924 | AA223: -113.5758519 | AB223: -113.486036 | AC223: -139.7642591
F224: TOTAL SALES & WHEELING | L224: =L217+L221+L222+L223 -> 1924.5554 | M224: 1806.40861 | N224: 1822.499908 | O224: 1794.670739 | P224: 1801.780119 | Q224: 1795.011358 | R224: 1816.873282 | S224: 1776.657929 | T224: 1799.038359 | U224: 1800.416783 | V224: 1799.708762 | W224: 1804.223211 | X224: 1796.581629 | Y224: 1800.731055 | Z224: 1800.615921 | AA224: 1800.682462 | AB224: 1800.584278 | AC224: 1774.117054

Sheet Lib_Sales
A1: Checks
A2: Total | B2: =SUM(A3:B10027) -> 0
D3: Source: | E3: SM-v170
D4: Date | E4: 2013-10-31
D6: Tables for VCM
AJ8: OC-88 Calculation | AL8: Wheeling
D9: Total Treated Sales | AJ9: Total Firm Sales (Treated & Untreated) | AL9: for check
D10: Calendar Year | E10: Month | F10: Fiscal Year Ending | G10: Cash Year Ending | H10: Anaheim | I10: Beverly Hills | J10: Burbank | K10: Calleguas | L10: Central Basin | M10: Compton | N10: Eastern | O10: Foothill | P10: Fullerton | Q10: Glendale | R10: Inland Empire | S10: Las Virgenes | T10: Long Beach | U10: Los Angeles | V10: MWDOC | W10: Pasadena | X10: San Diego | Y10: San Fernando | Z10: San Marino | AA10: Santa Ana | AB10: Santa Monica | AC10: Three Valleys | AD10: Torrance | AE10: Upper San Gabriel | AF10: West Basin | AG10: Western | AH10: Total | AJ10: MWDOC | AL10: Wheeling | AN10: Est. OC-88 Flow
D11: 2009 | E11: 1 | F11: 2009 | G11: 2009 | H11: =[1]Table_VCM!H8 -> 0 | I11: =[1]Table_VCM!I8 -> 830.1 | J11: =[1]Table_VCM!J8 -> 641 | K11: =[1]Table_VCM!K8 -> 8067.8 | L11: =[1]Table_VCM!L8 -> 3850.3 | M11: =[1]Table_VCM!M8 -> 160.6 | N11: =[1]Table_VCM!N8 -> 3181 | O11: =[1]Table_VCM!O8 -> 749.9 | P11: =[1]Table_VCM!P8 -> 158.8 | Q11: =[1]Table_VCM!Q8 -> 1318.1 | R11: =[1]Table_VCM!R8 -> 0 | S11: =[1]Table_VCM!S8 -> 2126.7 | T11: =[1]Table_VCM!T8 -> 1838.9 | U11: =[1]Table_VCM!U8 -> 12186.6 | V11: =[1]Table_VCM!V8 -> 10567.7 | W11: =[1]Table_VCM!W8 -> 1208.2 | X11: =[1]Table_VCM!X8 -> 10035.9 | Y11: =[1]Table_VCM!Y8 -> 0 | Z11: =[1]Table_VCM!Z8 -> 0 | AA11: =[1]Table_VCM!AA8 -> 924.1 | AB11: =[1]Table_VCM!AB8 -> 920.6 | AC11: =[1]Table_VCM!AC8 -> 3357 | AD11: =[1]Table_VCM!AD8 -> 1450.7 | AE11: =[1]Table_VCM!AE8 -> 181.7 | AF11: =[1]Table_VCM!AF8 -> 8794.1 | AG11: =[1]Table_VCM!AG8 -> 3293.5 | AH11: =[1]Table_VCM!AH8 -> 75843.3 | AJ11: =[1]Table_VCM!AJ8 -> 10951.1 | AL11: =[1]Table_VCM!AL8 -> 10432 | AN11: =AJ11*0.21 -> 2299.731
D12: 2009 | E12: 2 | F12: 2009 | G12: 2009 | H12: =[1]Table_VCM!H9 -> 0.1 | I12: =[1]Table_VCM!I9 -> 569.2 | J12: =[1]Table_VCM!J9 -> 658 | K12: =[1]Table_VCM!K9 -> 4656.3 | L12: =[1]Table_VCM!L9 -> 2927.9 | M12: =[1]Table_VCM!M9 -> 145.5 | N12: =[1]Table_VCM!N9 -> 2460.2 | O12: =[1]Table_VCM!O9 -> 551.9 | P12: =[1]Table_VCM!P9 -> 417.8 | Q12: =[1]Table_VCM!Q9 -> 962.8 | R12: =[1]Table_VCM!R9 -> 0 | S12: =[1]Table_VCM!S9 -> 790.5 | T12: =[1]Table_VCM!T9 -> 1614.4 | U12: =[1]Table_VCM!U9 -> 11412.9 | V12: =[1]Table_VCM!V9 -> 7859 | W12: =[1]Table_VCM!W9 -> 858.8 | X12: =[1]Table_VCM!X9 -> 5244.4 | Y12: =[1]Table_VCM!Y9 -> 0 | Z12: =[1]Table_VCM!Z9 -> 0 | AA12: =[1]Table_VCM!AA9 -> 768.3 | AB12: =[1]Table_VCM!AB9 -> 741.8 | AC12: =[1]Table_VCM!AC9 -> 1868 | AD12: =[1]Table_VCM!AD9 -> 1016.6 | AE12: =[1]Table_VCM!AE9 -> 141.1 | AF12: =[1]Table_VCM!AF9 -> 7363.8 | AG12: =[1]Table_VCM!AG9 -> 2335.6 | AH12: =[1]Table_VCM!AH9 -> 55364.9 | AJ12: =[1]Table_VCM!AJ9 -> 8518 | AL12: =[1]Table_VCM!AL9 -> 11796 | AN12: 1788.78
D13: 2009 | E13: 3 | F13: 2009 | G13: 2009 | H13: =[1]Table_VCM!H10 -> 278.8 | I13: =[1]Table_VCM!I10 -> 865.5 | J13: =[1]Table_VCM!J10 -> 892.1 | K13: =[1]Table_VCM!K10 -> 7763.6 | L13: =[1]Table_VCM!L10 -> 3415.9 | M13: =[1]Table_VCM!M10 -> 160.1 | N13: =[1]Table_VCM!N10 -> 4211.8 | O13: =[1]Table_VCM!O10 -> 828.2 | P13: =[1]Table_VCM!P10 -> 1032.2 | Q13: =[1]Table_VCM!Q10 -> 1339.4 | R13: =[1]Table_VCM!R10 -> 0 | S13: =[1]Table_VCM!S10 -> 1374.9 | T13: =[1]Table_VCM!T10 -> 1783.7 | U13: =[1]Table_VCM!U10 -> 5532.7 | V13: =[1]Table_VCM!V10 -> 12925.4 | W13: =[1]Table_VCM!W10 -> 1274.9 | X13: =[1]Table_VCM!X10 -> 8496.9 | Y13: =[1]Table_VCM!Y10 -> 0 | Z13: =[1]Table_VCM!Z10 -> 0.3 | AA13: =[1]Table_VCM!AA10 -> 985.1 | AB13: =[1]Table_VCM!AB10 -> 920 | AC13: =[1]Table_VCM!AC10 -> 2088.7 | AD13: =[1]Table_VCM!AD10 -> 1315 | AE13: =[1]Table_VCM!AE10 -> 160.1 | AF13: =[1]Table_VCM!AF10 -> 9207.2 | AG13: =[1]Table_VCM!AG10 -> 3615.2 | AH13: =[1]Table_VCM!AH10 -> 70467.7 | AJ13: =[1]Table_VCM!AJ10 -> 14526.4 | AL13: =[1]Table_VCM!AL10 -> 11796 | AN13: 3050.544
D14: 2009 | E14: 4 | F14: 2009 | G14: 2009 | H14: =[1]Table_VCM!H11 -> 1559 | I14: =[1]Table_VCM!I11 -> 950.1 | J14: =[1]Table_VCM!J11 -> 923.1 | K14: =[1]Table_VCM!K11 -> 9852.8 | L14: =[1]Table_VCM!L11 -> 4000.8 | M14: =[1]Table_VCM!M11 -> 157.6 | N14: =[1]Table_VCM!N11 -> 5406.7 | O14: =[1]Table_VCM!O11 -> 988.3 | P14: =[1]Table_VCM!P11 -> 1451.7 | Q14: =[1]Table_VCM!Q11 -> 1559.7 | R14: =[1]Table_VCM!R11 -> 0 | S14: =[1]Table_VCM!S11 -> 1862.3 | T14: =[1]Table_VCM!T11 -> 2167.4 | U14: =[1]Table_VCM!U11 -> 5992.7 | V14: =[1]Table_VCM!V11 -> 16068.6 | W14: =[1]Table_VCM!W11 -> 1680.7 | X14: =[1]Table_VCM!X11 -> 10707.8 | Y14: =[1]Table_VCM!Y11 -> 0 | Z14: =[1]Table_VCM!Z11 -> 35 | AA14: =[1]Table_VCM!AA11 -> 1057.2 | AB14: =[1]Table_VCM!AB11 -> 1015.5 | AC14: =[1]Table_VCM!AC11 -> 2861.6 | AD14: =[1]Table_VCM!AD11 -> 1687 | AE14: =[1]Table_VCM!AE11 -> 332 | AF14: =[1]Table_VCM!AF11 -> 10261.5 | AG14: =[1]Table_VCM!AG11 -> 4929 | AH14: =[1]Table_VCM!AH11 -> 87508.1 | AJ14: =[1]Table_VCM!AJ11 -> 21478.3 | AL14: =[1]Table_VCM!AL11 -> 11796 | AN14: 4510.443
D15: 2009 | E15: 5 | F15: 2009 | G15: 2010 | H15: =[1]Table_VCM!H12 -> 1830.2 | I15: =[1]Table_VCM!I12 -> 1044.7 | J15: =[1]Table_VCM!J12 -> 822.4 | K15: =[1]Table_VCM!K12 -> 11318.3 | L15: =[1]Table_VCM!L12 -> 4671 | M15: =[1]Table_VCM!M12 -> 206.3 | N15: =[1]Table_VCM!N12 -> 7403.6 | O15: =[1]Table_VCM!O12 -> 1202.2 | P15: =[1]Table_VCM!P12 -> 1325.3 | Q15: =[1]Table_VCM!Q12 -> 1957.8 | R15: =[1]Table_VCM!R12 -> 0 | S15: =[1]Table_VCM!S12 -> 2155.4 | T15: =[1]Table_VCM!T12 -> 2176.3 | U15: =[1]Table_VCM!U12 -> 6629.5 | V15: =[1]Table_VCM!V12 -> 18209.9 | W15: =[1]Table_VCM!W12 -> 2056.3 | X15: =[1]Table_VCM!X12 -> 17171.8 | Y15: =[1]Table_VCM!Y12 -> 0 | Z15: =[1]Table_VCM!Z12 -> 88.1 | AA15: =[1]Table_VCM!AA12 -> 1159.8 | AB15: =[1]Table_VCM!AB12 -> 1099.1 | AC15: =[1]Table_VCM!AC12 -> 5194 | AD15: =[1]Table_VCM!AD12 -> 1831.5 | AE15: =[1]Table_VCM!AE12 -> 386 | AF15: =[1]Table_VCM!AF12 -> 10978.9 | AG15: =[1]Table_VCM!AG12 -> 6407.7 | AH15: =[1]Table_VCM!AH12 -> 107326.1 | AJ15: =[1]Table_VCM!AJ12 -> 28428.8 | AL15: =[1]Table_VCM!AL12 -> 11796 | AN15: 5970.048
D16: 2009 | E16: 6 | F16: 2009 | G16: 2010 | H16: =[1]Table_VCM!H13 -> 1314.7 | I16: =[1]Table_VCM!I13 -> 880.6 | J16: =[1]Table_VCM!J13 -> 862.5 | K16: =[1]Table_VCM!K13 -> 10466.7 | L16: =[1]Table_VCM!L13 -> 4180.6 | M16: =[1]Table_VCM!M13 -> 307.8 | N16: =[1]Table_VCM!N13 -> 6416.4 | O16: =[1]Table_VCM!O13 -> 962.6 | P16: =[1]Table_VCM!P13 -> 915.3 | Q16: =[1]Table_VCM!Q13 -> 2179.3 | R16: =[1]Table_VCM!R13 -> 0 | S16: =[1]Table_VCM!S13 -> 1810.3 | T16: =[1]Table_VCM!T13 -> 2482 | U16: =[1]Table_VCM!U13 -> 5766.1 | V16: =[1]Table_VCM!V13 -> 16215.6 | W16: =[1]Table_VCM!W13 -> 1665.2 | X16: =[1]Table_VCM!X13 -> 11507.8 | Y16: =[1]Table_VCM!Y13 -> 0 | Z16: =[1]Table_VCM!Z13 -> 1.7 | AA16: =[1]Table_VCM!AA13 -> 1098.2 | AB16: =[1]Table_VCM!AB13 -> 1027.1 | AC16: =[1]Table_VCM!AC13 -> 4363.9 | AD16: =[1]Table_VCM!AD13 -> 1736.2 | AE16: =[1]Table_VCM!AE13 -> 333 | AF16: =[1]Table_VCM!AF13 -> 10274.2 | AG16: =[1]Table_VCM!AG13 -> 6108.1 | AH16: =[1]Table_VCM!AH13 -> 92875.9 | AJ16: =[1]Table_VCM!AJ13 -> 24696.2 | AL16: =[1]Table_VCM!AL13 -> 11796 | AN16: 5186.202
D17: 2009 | E17: 7 | F17: 2010 | G17: 2010 | H17: =[1]Table_VCM!H14 -> 1041.3 | I17: =[1]Table_VCM!I14 -> 1016.8 | J17: =[1]Table_VCM!J14 -> 935.5 | K17: =[1]Table_VCM!K14 -> 11690.5 | L17: =[1]Table_VCM!L14 -> 4958.6 | M17: =[1]Table_VCM!M14 -> 862.6 | N17: =[1]Table_VCM!N14 -> 9251.6 | O17: =[1]Table_VCM!O14 -> 999.3 | P17: =[1]Table_VCM!P14 -> 735.7 | Q17: =[1]Table_VCM!Q14 -> 1873.9 | R17: =[1]Table_VCM!R14 -> 0 | S17: =[1]Table_VCM!S14 -> 2246.6 | T17: =[1]Table_VCM!T14 -> 2977.8 | U17: =[1]Table_VCM!U14 -> 6268 | V17: =[1]Table_VCM!V14 -> 23072.4 | W17: =[1]Table_VCM!W14 -> 2336.1 | X17: =[1]Table_VCM!X14 -> 13317.7 | Y17: =[1]Table_VCM!Y14 -> 0 | Z17: =[1]Table_VCM!Z14 -> 87.9 | AA17: =[1]Table_VCM!AA14 -> 1529 | AB17: =[1]Table_VCM!AB14 -> 1164.1 | AC17: =[1]Table_VCM!AC14 -> 5135.3 | AD17: =[1]Table_VCM!AD14 -> 2028.9 | AE17: =[1]Table_VCM!AE14 -> 911.2 | AF17: =[1]Table_VCM!AF14 -> 11931 | AG17: =[1]Table_VCM!AG14 -> 8255.1 | AH17: =[1]Table_VCM!AH14 -> 114626.9 | AJ17: =[1]Table_VCM!AJ14 -> 24792.5 | AL17: =[1]Table_VCM!AL14 -> 11796 | AN17: 5206.425
D18: 2009 | E18: 8 | F18: 2010 | G18: 2010 | H18: =[1]Table_VCM!H15 -> 1422.9 | I18: =[1]Table_VCM!I15 -> 1009.6 | J18: =[1]Table_VCM!J15 -> 917.1 | K18: =[1]Table_VCM!K15 -> 11702.9 | L18: =[1]Table_VCM!L15 -> 4940.9 | M18: =[1]Table_VCM!M15 -> 160 | N18: =[1]Table_VCM!N15 -> 8822.2 | O18: =[1]Table_VCM!O15 -> 986.9 | P18: =[1]Table_VCM!P15 -> 1369.4 | Q18: =[1]Table_VCM!Q15 -> 1840.2 | R18: =[1]Table_VCM!R15 -> 0 | S18: =[1]Table_VCM!S15 -> 2029.6 | T18: =[1]Table_VCM!T15 -> 3304.4 | U18: =[1]Table_VCM!U15 -> 6259.2 | V18: =[1]Table_VCM!V15 -> 23943.7 | W18: =[1]Table_VCM!W15 -> 2417.1 | X18: =[1]Table_VCM!X15 -> 15170.6 | Y18: =[1]Table_VCM!Y15 -> 0 | Z18: =[1]Table_VCM!Z15 -> 134.7 | AA18: =[1]Table_VCM!AA15 -> 1518.2 | AB18: =[1]Table_VCM!AB15 -> 1118.4 | AC18: =[1]Table_VCM!AC15 -> 4842.6 | AD18: =[1]Table_VCM!AD15 -> 1775.7 | AE18: =[1]Table_VCM!AE15 -> 822.1 | AF18: =[1]Table_VCM!AF15 -> 11716.5 | AG18: =[1]Table_VCM!AG15 -> 7847.4 | AH18: =[1]Table_VCM!AH15 -> 116072.3 | AJ18: =[1]Table_VCM!AJ15 -> 29667.1 | AL18: =[1]Table_VCM!AL15 -> 11796 | AN18: 6230.091
D19: 2009 | E19: 9 | F19: 2010 | G19: 2010 | H19: =[1]Table_VCM!H16 -> 1128.3 | I19: =[1]Table_VCM!I16 -> 1107.9 | J19: =[1]Table_VCM!J16 -> 862.9 | K19: =[1]Table_VCM!K16 -> 11146.4 | L19: =[1]Table_VCM!L16 -> 4385.2 | M19: =[1]Table_VCM!M16 -> 153.5 | N19: =[1]Table_VCM!N16 -> 7844.2 | O19: =[1]Table_VCM!O16 -> 1031.3 | P19: =[1]Table_VCM!P16 -> 1142.2 | Q19: =[1]Table_VCM!Q16 -> 1759.7 | R19: =[1]Table_VCM!R16 -> 0 | S19: =[1]Table_VCM!S16 -> 2130.7 | T19: =[1]Table_VCM!T16 -> 2757.7 | U19: =[1]Table_VCM!U16 -> 6415.2 | V19: =[1]Table_VCM!V16 -> 20541.2 | W19: =[1]Table_VCM!W16 -> 2171.5 | X19: =[1]Table_VCM!X16 -> 15278.6 | Y19: =[1]Table_VCM!Y16 -> 0 | Z19: =[1]Table_VCM!Z16 -> 129.1 | AA19: =[1]Table_VCM!AA16 -> 1420 | AB19: =[1]Table_VCM!AB16 -> 1058.9 | AC19: =[1]Table_VCM!AC16 -> 4411.2 | AD19: =[1]Table_VCM!AD16 -> 1512.1 | AE19: =[1]Table_VCM!AE16 -> 865.7 | AF19: =[1]Table_VCM!AF16 -> 11278.8 | AG19: =[1]Table_VCM!AG16 -> 7491.7 | AH19: =[1]Table_VCM!AH16 -> 108024 | AJ19: =[1]Table_VCM!AJ16 -> 21057.3 | AL19: =[1]Table_VCM!AL16 -> 11796 | AN19: 4422.033
D20: 2009 | E20: 10 | F20: 2010 | G20: 2010 | H20: =[1]Table_VCM!H17 -> 1513 | I20: =[1]Table_VCM!I17 -> 928.6 | J20: =[1]Table_VCM!J17 -> 745.2 | K20: =[1]Table_VCM!K17 -> 9017.5 | L20: =[1]Table_VCM!L17 -> 3752.5 | M20: =[1]Table_VCM!M17 -> 158.2 | N20: =[1]Table_VCM!N17 -> 5841.7 | O20: =[1]Table_VCM!O17 -> 834.7 | P20: =[1]Table_VCM!P17 -> 1082.9 | Q20: =[1]Table_VCM!Q17 -> 1379.5 | R20: =[1]Table_VCM!R17 -> 0 | S20: =[1]Table_VCM!S17 -> 1659.2 | T20: =[1]Table_VCM!T17 -> 5175.6 | U20: =[1]Table_VCM!U17 -> 5851.1 | V20: =[1]Table_VCM!V17 -> 17547.6 | W20: =[1]Table_VCM!W17 -> 1650.4 | X20: =[1]Table_VCM!X17 -> 10989.4 | Y20: =[1]Table_VCM!Y17 -> 0 | Z20: =[1]Table_VCM!Z17 -> 58.1 | AA20: =[1]Table_VCM!AA17 -> 1304.3 | AB20: =[1]Table_VCM!AB17 -> 1079.3 | AC20: =[1]Table_VCM!AC17 -> 2921.5 | AD20: =[1]Table_VCM!AD17 -> 1357 | AE20: =[1]Table_VCM!AE17 -> 456.7 | AF20: =[1]Table_VCM!AF17 -> 10313.6 | AG20: =[1]Table_VCM!AG17 -> 5189.9 | AH20: =[1]Table_VCM!AH17 -> 90807.5 | AJ20: =[1]Table_VCM!AJ17 -> 17980.2 | AL20: =[1]Table_VCM!AL17 -> 11796 | AN20: 3775.842
D21: 2009 | E21: 11 | F21: 2010 | G21: 2010 | H21: =[1]Table_VCM!H18 -> 708.1 | I21: =[1]Table_VCM!I18 -> 857.2 | J21: =[1]Table_VCM!J18 -> 657.2 | K21: =[1]Table_VCM!K18 -> 9817 | L21: =[1]Table_VCM!L18 -> 3653.6 | M21: =[1]Table_VCM!M18 -> 147.1 | N21: =[1]Table_VCM!N18 -> 4908 | O21: =[1]Table_VCM!O18 -> 956.4 | P21: =[1]Table_VCM!P18 -> 938.9 | Q21: =[1]Table_VCM!Q18 -> 1374 | R21: =[1]Table_VCM!R18 -> 0 | S21: =[1]Table_VCM!S18 -> 1507.3 | T21: =[1]Table_VCM!T18 -> 2784.4 | U21: =[1]Table_VCM!U18 -> 5332.9 | V21: =[1]Table_VCM!V18 -> 14759 | W21: =[1]Table_VCM!W18 -> 1458.9 | X21: =[1]Table_VCM!X18 -> 13900.5 | Y21: =[1]Table_VCM!Y18 -> 0.2 | Z21: =[1]Table_VCM!Z18 -> 9 | AA21: =[1]Table_VCM!AA18 -> 1201.5 | AB21: =[1]Table_VCM!AB18 -> 859.3 | AC21: =[1]Table_VCM!AC18 -> 2549 | AD21: =[1]Table_VCM!AD18 -> 1318.9 | AE21: =[1]Table_VCM!AE18 -> 873.7 | AF21: =[1]Table_VCM!AF18 -> 9552.5 | AG21: =[1]Table_VCM!AG18 -> 4701.2 | AH21: =[1]Table_VCM!AH18 -> 84825.8 | AJ21: =[1]Table_VCM!AJ18 -> 15150.9 | AL21: =[1]Table_VCM!AL18 -> 11796 | AN21: 3181.689
D22: 2009 | E22: 12 | F22: 2010 | G22: 2010 | H22: =[1]Table_VCM!H19 -> 857 | I22: =[1]Table_VCM!I19 -> 710.6 | J22: =[1]Table_VCM!J19 -> 637.2 | K22: =[1]Table_VCM!K19 -> 6035.4 | L22: =[1]Table_VCM!L19 -> 3482.1 | M22: =[1]Table_VCM!M19 -> 153 | N22: =[1]Table_VCM!N19 -> 2406 | O22: =[1]Table_VCM!O19 -> 740.2 | P22: =[1]Table_VCM!P19 -> 479.5 | Q22: =[1]Table_VCM!Q19 -> 1110.6 | R22: =[1]Table_VCM!R19 -> 0 | S22: =[1]Table_VCM!S19 -> 914 | T22: =[1]Table_VCM!T19 -> 891.7 | U22: =[1]Table_VCM!U19 -> 3529 | V22: =[1]Table_VCM!V19 -> 9645.1 | W22: =[1]Table_VCM!W19 -> 1112.4 | X22: =[1]Table_VCM!X19 -> 4428.4 | Y22: =[1]Table_VCM!Y19 -> 0 | Z22: =[1]Table_VCM!Z19 -> 0.1 | AA22: =[1]Table_VCM!AA19 -> 1052.7 | AB22: =[1]Table_VCM!AB19 -> 681.5 | AC22: =[1]Table_VCM!AC19 -> 1764 | AD22: =[1]Table_VCM!AD19 -> 1201.6 | AE22: =[1]Table_VCM!AE19 -> 428.1 | AF22: =[1]Table_VCM!AF19 -> 8629.7 | AG22: =[1]Table_VCM!AG19 -> 2689.8 | AH22: =[1]Table_VCM!AH19 -> 53579.7 | AJ22: =[1]Table_VCM!AJ19 -> 9861.3 | AL22: =[1]Table_VCM!AL19 -> 11796 | AN22: 2070.873
D23: 2010 | E23: 1 | F23: 2010 | G23: 2010 | H23: =[1]Table_VCM!H20 -> 1265.9 | I23: =[1]Table_VCM!I20 -> 707.7 | J23: =[1]Table_VCM!J20 -> 582 | K23: =[1]Table_VCM!K20 -> 5571.3 | L23: =[1]Table_VCM!L20 -> 3114.5 | M23: =[1]Table_VCM!M20 -> 132 | N23: =[1]Table_VCM!N20 -> 2485 | O23: =[1]Table_VCM!O20 -> 652 | P23: =[1]Table_VCM!P20 -> 207.7 | Q23: =[1]Table_VCM!Q20 -> 1074.1 | R23: =[1]Table_VCM!R20 -> 0 | S23: =[1]Table_VCM!S20 -> 1793.1 | T23: =[1]Table_VCM!T20 -> 1131.2 | U23: =[1]Table_VCM!U20 -> 19083.2 | V23: =[1]Table_VCM!V20 -> 10130.9 | W23: =[1]Table_VCM!W20 -> 1072.2 | X23: =[1]Table_VCM!X20 -> 5342.3 | Y23: =[1]Table_VCM!Y20 -> 0 | Z23: =[1]Table_VCM!Z20 -> 0.7 | AA23: =[1]Table_VCM!AA20 -> 1032.4 | AB23: =[1]Table_VCM!AB20 -> 728 | AC23: =[1]Table_VCM!AC20 -> 1591.3 | AD23: =[1]Table_VCM!AD20 -> 1047.2 | AE23: =[1]Table_VCM!AE20 -> 731.9 | AF23: =[1]Table_VCM!AF20 -> 8634.6 | AG23: =[1]Table_VCM!AG20 -> 2290.1 | AH23: =[1]Table_VCM!AH20 -> 70401.3 | AJ23: =[1]Table_VCM!AJ20 -> 10301.2 | AL23: =[1]Table_VCM!AL20 -> 12308.3 | AN23: 2163.252
D24: 2010 | E24: 2 | F24: 2010 | G24: 2010 | H24: =[1]Table_VCM!H21 -> 1578.8 | I24: =[1]Table_VCM!I21 -> 609.9 | J24: =[1]Table_VCM!J21 -> 485.2 | K24: =[1]Table_VCM!K21 -> 3112.6 | L24: =[1]Table_VCM!L21 -> 2514.6 | M24: =[1]Table_VCM!M21 -> 131.2 | N24: =[1]Table_VCM!N21 -> 1913.2 | O24: =[1]Table_VCM!O21 -> 435.3 | P24: =[1]Table_VCM!P21 -> 171.3 | Q24: =[1]Table_VCM!Q21 -> 750.1 | R24: =[1]Table_VCM!R21 -> 0 | S24: =[1]Table_VCM!S21 -> 1314.1 | T24: =[1]Table_VCM!T21 -> 861.8 | U24: =[1]Table_VCM!U21 -> 4626.8 | V24: =[1]Table_VCM!V21 -> 6827.4 | W24: =[1]Table_VCM!W21 -> 905.8 | X24: =[1]Table_VCM!X21 -> 4114.1 | Y24: =[1]Table_VCM!Y21 -> 0 | Z24: =[1]Table_VCM!Z21 -> 0.5 | AA24: =[1]Table_VCM!AA21 -> 858.8 | AB24: =[1]Table_VCM!AB21 -> 562.9 | AC24: =[1]Table_VCM!AC21 -> 1668.2 | AD24: =[1]Table_VCM!AD21 -> 748.6 | AE24: =[1]Table_VCM!AE21 -> 221.6 | AF24: =[1]Table_VCM!AF21 -> 7225.6 | AG24: =[1]Table_VCM!AG21 -> 1352.2 | AH24: =[1]Table_VCM!AH21 -> 42990.6 | AJ24: =[1]Table_VCM!AJ21 -> 6869 | AL24: =[1]Table_VCM!AL21 -> 12308.4 | AN24: 1442.49
D25: 2010 | E25: 3 | F25: 2010 | G25: 2010 | H25: =[1]Table_VCM!H22 -> 2016.3 | I25: =[1]Table_VCM!I22 -> 763.1 | J25: =[1]Table_VCM!J22 -> 642 | K25: =[1]Table_VCM!K22 -> 6378.6 | L25: =[1]Table_VCM!L22 -> 2806.3 | M25: =[1]Table_VCM!M22 -> 173.8 | N25: =[1]Table_VCM!N22 -> 3165.2 | O25: =[1]Table_VCM!O22 -> 730.9 | P25: =[1]Table_VCM!P22 -> 639.9 | Q25: =[1]Table_VCM!Q22 -> 1071.1 | R25: =[1]Table_VCM!R22 -> 0 | S25: =[1]Table_VCM!S22 -> 1443.3 | T25: =[1]Table_VCM!T22 -> 1408.8 | U25: =[1]Table_VCM!U22 -> 5487.4 | V25: =[1]Table_VCM!V22 -> 10874.3 | W25: =[1]Table_VCM!W22 -> 1333.4 | X25: =[1]Table_VCM!X22 -> 6303.1 | Y25: =[1]Table_VCM!Y22 -> 0 | Z25: =[1]Table_VCM!Z22 -> 1.8 | AA25: =[1]Table_VCM!AA22 -> 1116 | AB25: =[1]Table_VCM!AB22 -> 790.4 | AC25: =[1]Table_VCM!AC22 -> 1945.8 | AD25: =[1]Table_VCM!AD22 -> 1125.3 | AE25: =[1]Table_VCM!AE22 -> 306.1 | AF25: =[1]Table_VCM!AF22 -> 9177.4 | AG25: =[1]Table_VCM!AG22 -> 2440.7 | AH25: =[1]Table_VCM!AH22 -> 62141 | AJ25: =[1]Table_VCM!AJ22 -> 12529.6 | AL25: =[1]Table_VCM!AL22 -> 12308.3 | AN25: 2631.216
D26: 2010 | E26: 4 | F26: 2010 | G26: 2010 | H26: =[1]Table_VCM!H23 -> 1477.3 | I26: =[1]Table_VCM!I23 -> 891.8 | J26: =[1]Table_VCM!J23 -> 646.5 | K26: =[1]Table_VCM!K23 -> 6945.8 | L26: =[1]Table_VCM!L23 -> 2730.5 | M26: =[1]Table_VCM!M23 -> 174.2 | N26: =[1]Table_VCM!N23 -> 3365.5 | O26: =[1]Table_VCM!O23 -> 718.7 | P26: =[1]Table_VCM!P23 -> 888.1 | Q26: =[1]Table_VCM!Q23 -> 1289.1 | R26: =[1]Table_VCM!R23 -> 0 | S26: =[1]Table_VCM!S23 -> 1008 | T26: =[1]Table_VCM!T23 -> 1466.8 | U26: =[1]Table_VCM!U23 -> 5244.2 | V26: =[1]Table_VCM!V23 -> 12838.2 | W26: =[1]Table_VCM!W23 -> 1311.8 | X26: =[1]Table_VCM!X23 -> 6476 | Y26: =[1]Table_VCM!Y23 -> 0 | Z26: =[1]Table_VCM!Z23 -> 0.2 | AA26: =[1]Table_VCM!AA23 -> 1136.9 | AB26: =[1]Table_VCM!AB23 -> 799 | AC26: =[1]Table_VCM!AC23 -> 2215.7 | AD26: =[1]Table_VCM!AD23 -> 1311.4 | AE26: =[1]Table_VCM!AE23 -> 161.2 | AF26: =[1]Table_VCM!AF23 -> 9726.1 | AG26: =[1]Table_VCM!AG23 -> 3360 | AH26: =[1]Table_VCM!AH23 -> 66183 | AJ26: =[1]Table_VCM!AJ23 -> 25276.5 | AL26: =[1]Table_VCM!AL23 -> 12308.3 | AN26: 5308.065
D27: 2010 | E27: 5 | F27: 2010 | G27: 2011 | H27: =[1]Table_VCM!H24 -> 641.5 | I27: =[1]Table_VCM!I24 -> 921.2 | J27: =[1]Table_VCM!J24 -> 827.4 | K27: =[1]Table_VCM!K24 -> 10070 | L27: =[1]Table_VCM!L24 -> 3219.3 | M27: =[1]Table_VCM!M24 -> 182.7 | N27: =[1]Table_VCM!N24 -> 5950 | O27: =[1]Table_VCM!O24 -> 877.4 | P27: =[1]Table_VCM!P24 -> 1390 | Q27: =[1]Table_VCM!Q24 -> 1446.3 | R27: =[1]Table_VCM!R24 -> 0 | S27: =[1]Table_VCM!S24 -> 2142.3 | T27: =[1]Table_VCM!T24 -> 1788.6 | U27: =[1]Table_VCM!U24 -> 5667.8 | V27: =[1]Table_VCM!V24 -> 18196.7 | W27: =[1]Table_VCM!W24 -> 1828.4 | X27: =[1]Table_VCM!X24 -> 9630.1 | Y27: =[1]Table_VCM!Y24 -> 0 | Z27: =[1]Table_VCM!Z24 -> 2.2 | AA27: =[1]Table_VCM!AA24 -> 1309.5 | AB27: =[1]Table_VCM!AB24 -> 893.3 | AC27: =[1]Table_VCM!AC24 -> 4342.6 | AD27: =[1]Table_VCM!AD24 -> 1550.8 | AE27: =[1]Table_VCM!AE24 -> 370.1 | AF27: =[1]Table_VCM!AF24 -> 11610.4 | AG27: =[1]Table_VCM!AG24 -> 5173.1 | AH27: =[1]Table_VCM!AH24 -> 90031.7 | AJ27: =[1]Table_VCM!AJ24 -> 22797.6 | AL27: =[1]Table_VCM!AL24 -> 12308.4 | AN27: 4787.496
D28: 2010 | E28: 6 | F28: 2010 | G28: 2011 | H28: =[1]Table_VCM!H25 -> 1592.1 | I28: =[1]Table_VCM!I25 -> 948.9 | J28: =[1]Table_VCM!J25 -> 862.5 | K28: =[1]Table_VCM!K25 -> 10687.2 | L28: =[1]Table_VCM!L25 -> 3584.3 | M28: =[1]Table_VCM!M25 -> 174.6 | N28: =[1]Table_VCM!N25 -> 7583.1 | O28: =[1]Table_VCM!O25 -> 915.6 | P28: =[1]Table_VCM!P25 -> 1513.6 | Q28: =[1]Table_VCM!Q25 -> 1581.7 | R28: =[1]Table_VCM!R25 -> 0 | S28: =[1]Table_VCM!S25 -> 2011.7 | T28: =[1]Table_VCM!T25 -> 1960.1 | U28: =[1]Table_VCM!U25 -> 5700.6 | V28: =[1]Table_VCM!V25 -> 20839 | W28: =[1]Table_VCM!W25 -> 2123.4 | X28: =[1]Table_VCM!X25 -> 10022.1 | Y28: =[1]Table_VCM!Y25 -> 0.2 | Z28: =[1]Table_VCM!Z25 -> 159.5 | AA28: =[1]Table_VCM!AA25 -> 1366.8 | AB28: =[1]Table_VCM!AB25 -> 902.6 | AC28: =[1]Table_VCM!AC25 -> 3809 | AD28: =[1]Table_VCM!AD25 -> 1493.7 | AE28: =[1]Table_VCM!AE25 -> 408.4 | AF28: =[1]Table_VCM!AF25 -> 11518.9 | AG28: =[1]Table_VCM!AG25 -> 6760 | AH28: =[1]Table_VCM!AH25 -> 98519.6 | AJ28: =[1]Table_VCM!AJ25 -> 21359.2 | AL28: =[1]Table_VCM!AL25 -> 12308.3 | AN28: 4485.432
D29: 2010 | E29: 7 | F29: 2011 | G29: 2011 | H29: =[1]Table_VCM!H26 -> 1177 | I29: =[1]Table_VCM!I26 -> 1035.3 | J29: =[1]Table_VCM!J26 -> 881.7 | K29: =[1]Table_VCM!K26 -> 11367.9 | L29: =[1]Table_VCM!L26 -> 3867.3 | M29: =[1]Table_VCM!M26 -> 178.3 | N29: =[1]Table_VCM!N26 -> 8362.4 | O29: =[1]Table_VCM!O26 -> 964.4 | P29: =[1]Table_VCM!P26 -> 1213.7 | Q29: =[1]Table_VCM!Q26 -> 1754.9 | R29: =[1]Table_VCM!R26 -> 0 | S29: =[1]Table_VCM!S26 -> 2212.5 | T29: =[1]Table_VCM!T26 -> 2374.3 | U29: =[1]Table_VCM!U26 -> 6055.3 | V29: =[1]Table_VCM!V26 -> 21299.3 | W29: =[1]Table_VCM!W26 -> 2331.4 | X29: =[1]Table_VCM!X26 -> 12252.7 | Y29: =[1]Table_VCM!Y26 -> 7.1 | Z29: =[1]Table_VCM!Z26 -> 91 | AA29: =[1]Table_VCM!AA26 -> 1199.5 | AB29: =[1]Table_VCM!AB26 -> 978.2 | AC29: =[1]Table_VCM!AC26 -> 4677.3 | AD29: =[1]Table_VCM!AD26 -> 1603.8 | AE29: =[1]Table_VCM!AE26 -> 373.4 | AF29: =[1]Table_VCM!AF26 -> 12084.8 | AG29: =[1]Table_VCM!AG26 -> 7451.3 | AH29: =[1]Table_VCM!AH26 -> 105794.8 | AJ29: =[1]Table_VCM!AJ26 -> 21796.7 | AL29: =[1]Table_VCM!AL26 -> 12942.8 | AN29: 4577.307
D30: 2010 | E30: 8 | F30: 2011 | G30: 2011 | H30: =[1]Table_VCM!H27 -> 1349.1 | I30: =[1]Table_VCM!I27 -> 1038.1 | J30: =[1]Table_VCM!J27 -> 681.6 | K30: =[1]Table_VCM!K27 -> 11590.5 | L30: =[1]Table_VCM!L27 -> 3952.9 | M30: =[1]Table_VCM!M27 -> 184.1 | N30: =[1]Table_VCM!N27 -> 8737.7 | O30: =[1]Table_VCM!O27 -> 997 | P30: =[1]Table_VCM!P27 -> 1066.3 | Q30: =[1]Table_VCM!Q27 -> 1806.7 | R30: =[1]Table_VCM!R27 -> 0 | S30: =[1]Table_VCM!S27 -> 2399.3 | T30: =[1]Table_VCM!T27 -> 2636.1 | U30: =[1]Table_VCM!U27 -> 6230.4 | V30: =[1]Table_VCM!V27 -> 21708.1 | W30: =[1]Table_VCM!W27 -> 2423.9 | X30: =[1]Table_VCM!X27 -> 13078.6 | Y30: =[1]Table_VCM!Y27 -> 32.8 | Z30: =[1]Table_VCM!Z27 -> 102.7 | AA30: =[1]Table_VCM!AA27 -> 1218.8 | AB30: =[1]Table_VCM!AB27 -> 988.1 | AC30: =[1]Table_VCM!AC27 -> 5134.5 | AD30: =[1]Table_VCM!AD27 -> 1684.1 | AE30: =[1]Table_VCM!AE27 -> 666 | AF30: =[1]Table_VCM!AF27 -> 12273.1 | AG30: =[1]Table_VCM!AG27 -> 7454.7 | AH30: =[1]Table_VCM!AH27 -> 109435.2 | AJ30: =[1]Table_VCM!AJ27 -> 22205.1 | AL30: =[1]Table_VCM!AL27 -> 12942.9 | AN30: 4663.071
D31: 2010 | E31: 9 | F31: 2011 | G31: 2011 | H31: =[1]Table_VCM!H28 -> 1156.3 | I31: =[1]Table_VCM!I28 -> 984.1 | J31: =[1]Table_VCM!J28 -> 690.9 | K31: =[1]Table_VCM!K28 -> 10935.8 | L31: =[1]Table_VCM!L28 -> 3492.9 | M31: =[1]Table_VCM!M28 -> 181.7 | N31: =[1]Table_VCM!N28 -> 7763.1 | O31: =[1]Table_VCM!O28 -> 937.1 | P31: =[1]Table_VCM!P28 -> 1004.7 | Q31: =[1]Table_VCM!Q28 -> 1675.5 | R31: =[1]Table_VCM!R28 -> 0 | S31: =[1]Table_VCM!S28 -> 2162 | T31: =[1]Table_VCM!T28 -> 2239.1 | U31: =[1]Table_VCM!U28 -> 5783.2 | V31: =[1]Table_VCM!V28 -> 19908.4 | W31: =[1]Table_VCM!W28 -> 2275.5 | X31: =[1]Table_VCM!X28 -> 13797.5 | Y31: =[1]Table_VCM!Y28 -> 10.8 | Z31: =[1]Table_VCM!Z28 -> 172.1 | AA31: =[1]Table_VCM!AA28 -> 1176.4 | AB31: =[1]Table_VCM!AB28 -> 938.5 | AC31: =[1]Table_VCM!AC28 -> 4605.3 | AD31: =[1]Table_VCM!AD28 -> 1850.9 | AE31: =[1]Table_VCM!AE28 -> 493.4 | AF31: =[1]Table_VCM!AF28 -> 11025.2 | AG31: =[1]Table_VCM!AG28 -> 6608.1 | AH31: =[1]Table_VCM!AH28 -> 101868.5 | AJ31: =[1]Table_VCM!AJ28 -> 20365.9 | AL31: =[1]Table_VCM!AL28 -> 12942.8 | AN31: 4276.839
D32: 2010 | E32: 10 | F32: 2011 | G32: 2011 | H32: =[1]Table_VCM!H29 -> 776.1 | I32: =[1]Table_VCM!I29 -> 788 | J32: =[1]Table_VCM!J29 -> 518.3 | K32: =[1]Table_VCM!K29 -> 7474.2 | L32: =[1]Table_VCM!L29 -> 2885.5 | M32: =[1]Table_VCM!M29 -> 184.3 | N32: =[1]Table_VCM!N29 -> 4513.7 | O32: =[1]Table_VCM!O29 -> 603.5 | P32: =[1]Table_VCM!P29 -> 545.6 | Q32: =[1]Table_VCM!Q29 -> 1227 | R32: =[1]Table_VCM!R29 -> 0 | S32: =[1]Table_VCM!S29 -> 1562 | T32: =[1]Table_VCM!T29 -> 1553.4 | U32: =[1]Table_VCM!U29 -> 5412.4 | V32: =[1]Table_VCM!V29 -> 13976.6 | W32: =[1]Table_VCM!W29 -> 1481.9 | X32: =[1]Table_VCM!X29 -> 8636.4 | Y32: =[1]Table_VCM!Y29 -> 0 | Z32: =[1]Table_VCM!Z29 -> 56.5 | AA32: =[1]Table_VCM!AA29 -> 1440.1 | AB32: =[1]Table_VCM!AB29 -> 900.9 | AC32: =[1]Table_VCM!AC29 -> 2425.9 | AD32: =[1]Table_VCM!AD29 -> 1520.8 | AE32: =[1]Table_VCM!AE29 -> 153.9 | AF32: =[1]Table_VCM!AF29 -> 9307.3 | AG32: =[1]Table_VCM!AG29 -> 3544.5 | AH32: =[1]Table_VCM!AH29 -> 71488.8 | AJ32: =[1]Table_VCM!AJ29 -> 14217 | AL32: =[1]Table_VCM!AL29 -> 12942.8 | AN32: 2985.57
D33: 2010 | E33: 11 | F33: 2011 | G33: 2011 | H33: =[1]Table_VCM!H30 -> 358.9 | I33: =[1]Table_VCM!I30 -> 803.1 | J33: =[1]Table_VCM!J30 -> 515.4 | K33: =[1]Table_VCM!K30 -> 6940 | L33: =[1]Table_VCM!L30 -> 2948.6 | M33: =[1]Table_VCM!M30 -> 166.9 | N33: =[1]Table_VCM!N30 -> 4147.8 | O33: =[1]Table_VCM!O30 -> 609.9 | P33: =[1]Table_VCM!P30 -> 383.6 | Q33: =[1]Table_VCM!Q30 -> 1219 | R33: =[1]Table_VCM!R30 -> 0 | S33: =[1]Table_VCM!S30 -> 1339.5 | T33: =[1]Table_VCM!T30 -> 2974.5 | U33: =[1]Table_VCM!U30 -> 5120.9 | V33: =[1]Table_VCM!V30 -> 13941.4 | W33: =[1]Table_VCM!W30 -> 1486.7 | X33: =[1]Table_VCM!X30 -> 8767.2 | Y33: =[1]Table_VCM!Y30 -> 0 | Z33: =[1]Table_VCM!Z30 -> 0 | AA33: =[1]Table_VCM!AA30 -> 964.1 | AB33: =[1]Table_VCM!AB30 -> 989.5 | AC33: =[1]Table_VCM!AC30 -> 2169.6 | AD33: =[1]Table_VCM!AD30 -> 1388.2 | AE33: =[1]Table_VCM!AE30 -> 126.1 | AF33: =[1]Table_VCM!AF30 -> 9136.3 | AG33: =[1]Table_VCM!AG30 -> 3438.1 | AH33: =[1]Table_VCM!AH30 -> 69935.3 | AJ33: =[1]Table_VCM!AJ30 -> 15852.9 | AL33: =[1]Table_VCM!AL30 -> 12942.9 | AN33: 3329.109
D34: 2010 | E34: 12 | F34: 2011 | G34: 2011 | H34: =[1]Table_VCM!H31 -> 228 | I34: =[1]Table_VCM!I31 -> 692.9 | J34: =[1]Table_VCM!J31 -> 446.5 | K34: =[1]Table_VCM!K31 -> 5290.8 | L34: =[1]Table_VCM!L31 -> 2693.7 | M34: =[1]Table_VCM!M31 -> 135.6 | N34: =[1]Table_VCM!N31 -> 2743.1 | O34: =[1]Table_VCM!O31 -> 569.1 | P34: =[1]Table_VCM!P31 -> 630.6 | Q34: =[1]Table_VCM!Q31 -> 989 | R34: =[1]Table_VCM!R31 -> 0 | S34: =[1]Table_VCM!S31 -> 1009.2 | T34: =[1]Table_VCM!T31 -> 3596.6 | U34: =[1]Table_VCM!U31 -> 4760.4 | V34: =[1]Table_VCM!V31 -> 14415.3 | W34: =[1]Table_VCM!W31 -> 1095.9 | X34: =[1]Table_VCM!X31 -> 6535.5 | Y34: =[1]Table_VCM!Y31 -> 0 | Z34: =[1]Table_VCM!Z31 -> 0 | AA34: =[1]Table_VCM!AA31 -> 0 | AB34: =[1]Table_VCM!AB31 -> 327.4 | AC34: =[1]Table_VCM!AC31 -> 1639.9 | AD34: =[1]Table_VCM!AD31 -> 1222.7 | AE34: =[1]Table_VCM!AE31 -> 109.9 | AF34: =[1]Table_VCM!AF31 -> 8537.4 | AG34: =[1]Table_VCM!AG31 -> 2654.6 | AH34: =[1]Table_VCM!AH31 -> 60324.1 | AJ34: =[1]Table_VCM!AJ31 -> 14584.6 | AL34: =[1]Table_VCM!AL31 -> 12942.8 | AN34: 3062.766
D35: 2011 | E35: 1 | F35: 2011 | G35: 2011 | H35: =[1]Table_VCM!H32 -> 126.2 | I35: =[1]Table_VCM!I32 -> 694.5 | J35: =[1]Table_VCM!J32 -> 558.4 | K35: =[1]Table_VCM!K32 -> 5972.3 | L35: =[1]Table_VCM!L32 -> 2791.5 | M35: =[1]Table_VCM!M32 -> 127.1 | N35: =[1]Table_VCM!N32 -> 2554.6 | O35: =[1]Table_VCM!O32 -> 675 | P35: =[1]Table_VCM!P32 -> 665.3 | Q35: =[1]Table_VCM!Q32 -> 1041.5 | R35: =[1]Table_VCM!R32 -> 0 | S35: =[1]Table_VCM!S32 -> 1123.3 | T35: =[1]Table_VCM!T32 -> 2502.2 | U35: =[1]Table_VCM!U32 -> 5936.2 | V35: =[1]Table_VCM!V32 -> 9832.6 | W35: =[1]Table_VCM!W32 -> 1183.5 | X35: =[1]Table_VCM!X32 -> 5883.8 | Y35: =[1]Table_VCM!Y32 -> 0 | Z35: =[1]Table_VCM!Z32 -> 0 | AA35: =[1]Table_VCM!AA32 -> 1077.8 | AB35: =[1]Table_VCM!AB32 -> 468.8 | AC35: =[1]Table_VCM!AC32 -> 1593.3 | AD35: =[1]Table_VCM!AD32 -> 1250.1 | AE35: =[1]Table_VCM!AE32 -> 110.4 | AF35: =[1]Table_VCM!AF32 -> 8561.2 | AG35: =[1]Table_VCM!AG32 -> 2114.7 | AH35: =[1]Table_VCM!AH32 -> 56844.3 | AJ35: =[1]Table_VCM!AJ32 -> 10017.5 | AL35: =[1]Table_VCM!AL32 -> 13141.7 | AN35: 2103.675
D36: 2011 | E36: 2 | F36: 2011 | G36: 2011 | H36: =[1]Table_VCM!H33 -> 1752.4 | I36: =[1]Table_VCM!I33 -> 704.1 | J36: =[1]Table_VCM!J33 -> 447.1 | K36: =[1]Table_VCM!K33 -> 3484.9 | L36: =[1]Table_VCM!L33 -> 2484.7 | M36: =[1]Table_VCM!M33 -> 134.4 | N36: =[1]Table_VCM!N33 -> 2209.8 | O36: =[1]Table_VCM!O33 -> 610.7 | P36: =[1]Table_VCM!P33 -> 758.8 | Q36: =[1]Table_VCM!Q33 -> 934.1 | R36: =[1]Table_VCM!R33 -> 0 | S36: =[1]Table_VCM!S33 -> 1021.9 | T36: =[1]Table_VCM!T33 -> 1406.9 | U36: =[1]Table_VCM!U33 -> 17916.9 | V36: =[1]Table_VCM!V33 -> 10038.6 | W36: =[1]Table_VCM!W33 -> 938.5 | X36: =[1]Table_VCM!X33 -> 5140.4 | Y36: =[1]Table_VCM!Y33 -> 0 | Z36: =[1]Table_VCM!Z33 -> 0 | AA36: =[1]Table_VCM!AA33 -> 1092.4 | AB36: =[1]Table_VCM!AB33 -> 395.7 | AC36: =[1]Table_VCM!AC33 -> 1692.6 | AD36: =[1]Table_VCM!AD33 -> 1128.1 | AE36: =[1]Table_VCM!AE33 -> 205.7 | AF36: =[1]Table_VCM!AF33 -> 8050.1 | AG36: =[1]Table_VCM!AG33 -> 2672 | AH36: =[1]Table_VCM!AH33 -> 65220.8 | AJ36: =[1]Table_VCM!AJ33 -> 10188 | AL36: =[1]Table_VCM!AL33 -> 13141.6 | AN36: 2139.48
D37: 2011 | E37: 3 | F37: 2011 | G37: 2011 | H37: =[1]Table_VCM!H34 -> 2046.7 | I37: =[1]Table_VCM!I34 -> 747.9 | J37: =[1]Table_VCM!J34 -> 436.8 | K37: =[1]Table_VCM!K34 -> 5701.5 | L37: =[1]Table_VCM!L34 -> 2772 | M37: =[1]Table_VCM!M34 -> 146.4 | N37: =[1]Table_VCM!N34 -> 2311.5 | O37: =[1]Table_VCM!O34 -> 440.2 | P37: =[1]Table_VCM!P34 -> 420.7 | Q37: =[1]Table_VCM!Q34 -> 1143.9 | R37: =[1]Table_VCM!R34 -> 0 | S37: =[1]Table_VCM!S34 -> 989.4 | T37: =[1]Table_VCM!T34 -> 1480.9 | U37: =[1]Table_VCM!U34 -> 4997 | V37: =[1]Table_VCM!V34 -> 9891.2 | W37: =[1]Table_VCM!W34 -> 802.9 | X37: =[1]Table_VCM!X34 -> 5013 | Y37: =[1]Table_VCM!Y34 -> 0 | Z37: =[1]Table_VCM!Z34 -> 0 | AA37: =[1]Table_VCM!AA34 -> 1119.2 | AB37: =[1]Table_VCM!AB34 -> 316.1 | AC37: =[1]Table_VCM!AC34 -> 968.8 | AD37: =[1]Table_VCM!AD34 -> 1022.6 | AE37: =[1]Table_VCM!AE34 -> 177.3 | AF37: =[1]Table_VCM!AF34 -> 8112.1 | AG37: =[1]Table_VCM!AG34 -> 2187.5 | AH37: =[1]Table_VCM!AH34 -> 53245.6 | AJ37: =[1]Table_VCM!AJ34 -> 10006.6 | AL37: =[1]Table_VCM!AL34 -> 13141.7 | AN37: 2101.386
D38: 2011 | E38: 4 | F38: 2011 | G38: 2011 | H38: =[1]Table_VCM!H35 -> 1520.1 | I38: =[1]Table_VCM!I35 -> 899.7 | J38: =[1]Table_VCM!J35 -> 524.6 | K38: =[1]Table_VCM!K35 -> 7358.2 | L38: =[1]Table_VCM!L35 -> 3133.9 | M38: =[1]Table_VCM!M35 -> 135.6 | N38: =[1]Table_VCM!N35 -> 3958.1 | O38: =[1]Table_VCM!O35 -> 718.6 | P38: =[1]Table_VCM!P35 -> 468.7 | Q38: =[1]Table_VCM!Q35 -> 1374.6 | R38: =[1]Table_VCM!R35 -> 0 | S38: =[1]Table_VCM!S35 -> 762 | T38: =[1]Table_VCM!T35 -> 3596 | U38: =[1]Table_VCM!U35 -> 4340 | V38: =[1]Table_VCM!V35 -> 13274.9 | W38: =[1]Table_VCM!W35 -> 1253.9 | X38: =[1]Table_VCM!X35 -> 7077.2 | Y38: =[1]Table_VCM!Y35 -> 0 | Z38: =[1]Table_VCM!Z35 -> 0 | AA38: =[1]Table_VCM!AA35 -> 803.8 | AB38: =[1]Table_VCM!AB35 -> 543.7 | AC38: =[1]Table_VCM!AC35 -> 1834.8 | AD38: =[1]Table_VCM!AD35 -> 1410.6 | AE38: =[1]Table_VCM!AE35 -> 272.2 | AF38: =[1]Table_VCM!AF35 -> 8785.5 | AG38: =[1]Table_VCM!AG35 -> 3201.5 | AH38: =[1]Table_VCM!AH35 -> 67248.2 | AJ38: =[1]Table_VCM!AJ35 -> 13363.7 | AL38: =[1]Table_VCM!AL35 -> 13141.7 | AN38: 2806.377
D39: 2011 | E39: 5 | F39: 2011 | G39: 2012 | H39: =[1]Table_VCM!H36 -> 1312.2 | I39: =[1]Table_VCM!I36 -> 936.8 | J39: =[1]Table_VCM!J36 -> 676.8 | K39: =[1]Table_VCM!K36 -> 9761.3 | L39: =[1]Table_VCM!L36 -> 3515.8 | M39: =[1]Table_VCM!M36 -> 131.5 | N39: =[1]Table_VCM!N36 -> 5752 | O39: =[1]Table_VCM!O36 -> 780.2 | P39: =[1]Table_VCM!P36 -> 1148.5 | Q39: =[1]Table_VCM!Q36 -> 1649.1 | R39: =[1]Table_VCM!R36 -> 0 | S39: =[1]Table_VCM!S36 -> 2089.7 | T39: =[1]Table_VCM!T36 -> 4788.9 | U39: =[1]Table_VCM!U36 -> 4423.6 | V39: =[1]Table_VCM!V36 -> 18779.6 | W39: =[1]Table_VCM!W36 -> 1681.8 | X39: =[1]Table_VCM!X36 -> 9455.1 | Y39: =[1]Table_VCM!Y36 -> 2.1 | Z39: =[1]Table_VCM!Z36 -> 1.2 | AA39: =[1]Table_VCM!AA36 -> 1003.3 | AB39: =[1]Table_VCM!AB36 -> 692 | AC39: =[1]Table_VCM!AC36 -> 3099.2 | AD39: =[1]Table_VCM!AD36 -> 1697.3 | AE39: =[1]Table_VCM!AE36 -> 343.1 | AF39: =[1]Table_VCM!AF36 -> 10119.7 | AG39: =[1]Table_VCM!AG36 -> 5165.2 | AH39: =[1]Table_VCM!AH36 -> 89006 | AJ39: =[1]Table_VCM!AJ36 -> 17401.1 | AL39: =[1]Table_VCM!AL36 -> 13141.6 | AN39: 3654.231
D40: 2011 | E40: 6 | F40: 2011 | G40: 2012 | H40: =[1]Table_VCM!H37 -> 2712.9 | I40: =[1]Table_VCM!I37 -> 924.5 | J40: =[1]Table_VCM!J37 -> 561.6 | K40: =[1]Table_VCM!K37 -> 44403.6 | L40: =[1]Table_VCM!L37 -> 3859.6 | M40: =[1]Table_VCM!M37 -> 122.6 | N40: =[1]Table_VCM!N37 -> 7033.1 | O40: =[1]Table_VCM!O37 -> 809.3 | P40: =[1]Table_VCM!P37 -> 1575.7 | Q40: =[1]Table_VCM!Q37 -> 2194.4 | R40: =[1]Table_VCM!R37 -> 0 | S40: =[1]Table_VCM!S37 -> 2052.1 | T40: =[1]Table_VCM!T37 -> 4481.2 | U40: =[1]Table_VCM!U37 -> 3871.6 | V40: =[1]Table_VCM!V37 -> 25478.2 | W40: =[1]Table_VCM!W37 -> 2009.1 | X40: =[1]Table_VCM!X37 -> 10731.6 | Y40: =[1]Table_VCM!Y37 -> 6.6 | Z40: =[1]Table_VCM!Z37 -> 0 | AA40: =[1]Table_VCM!AA37 -> 2070.8 | AB40: =[1]Table_VCM!AB37 -> 642.7 | AC40: =[1]Table_VCM!AC37 -> 4107.7 | AD40: =[1]Table_VCM!AD37 -> 1598.3 | AE40: =[1]Table_VCM!AE37 -> 397.9 | AF40: =[1]Table_VCM!AF37 -> 10252.6 | AG40: =[1]Table_VCM!AG37 -> 5875.8 | AH40: =[1]Table_VCM!AH37 -> 137773.5 | AJ40: =[1]Table_VCM!AJ37 -> 19878.7 | AL40: =[1]Table_VCM!AL37 -> 13141.7 | AN40: 4174.527
D41: 2011 | E41: 7 | F41: 2012 | G41: 2012 | H41: =[1]Table_VCM!H38 -> 2838.2 | I41: =[1]Table_VCM!I38 -> 986.3 | J41: =[1]Table_VCM!J38 -> 886.8 | K41: =[1]Table_VCM!K38 -> 11479.3 | L41: =[1]Table_VCM!L38 -> 4096.3 | M41: =[1]Table_VCM!M38 -> 121.1 | N41: =[1]Table_VCM!N38 -> 8432.6 | O41: =[1]Table_VCM!O38 -> 896.9 | P41: =[1]Table_VCM!P38 -> 1335.2 | Q41: =[1]Table_VCM!Q38 -> 2210.6 | R41: =[1]Table_VCM!R38 -> 0 | S41: =[1]Table_VCM!S38 -> 2323.8 | T41: =[1]Table_VCM!T38 -> 5381.4 | U41: =[1]Table_VCM!U38 -> 5066.2 | V41: =[1]Table_VCM!V38 -> 29229.3 | W41: =[1]Table_VCM!W38 -> 2308.6 | X41: =[1]Table_VCM!X38 -> 12646.2 | Y41: =[1]Table_VCM!Y38 -> 2.8 | Z41: =[1]Table_VCM!Z38 -> 74.8 | AA41: =[1]Table_VCM!AA38 -> 2144.2 | AB41: =[1]Table_VCM!AB38 -> 667.1 | AC41: =[1]Table_VCM!AC38 -> 4539.5 | AD41: =[1]Table_VCM!AD38 -> 1697.8 | AE41: =[1]Table_VCM!AE38 -> 344.1 | AF41: =[1]Table_VCM!AF38 -> 11725.7 | AG41: =[1]Table_VCM!AG38 -> 7046.8 | AH41: =[1]Table_VCM!AH38 -> 118481.6 | AJ41: =[1]Table_VCM!AJ38 -> 22737.6 | AL41: =[1]Table_VCM!AL38 -> 13141.7 | AN41: 4774.896
D42: 2011 | E42: 8 | F42: 2012 | G42: 2012 | H42: =[1]Table_VCM!H39 -> 3325.8 | I42: =[1]Table_VCM!I39 -> 1048 | J42: =[1]Table_VCM!J39 -> 942.7 | K42: =[1]Table_VCM!K39 -> 11226.5 | L42: =[1]Table_VCM!L39 -> 4095.1 | M42: =[1]Table_VCM!M39 -> 129.2 | N42: =[1]Table_VCM!N39 -> 7884 | O42: =[1]Table_VCM!O39 -> 887.2 | P42: =[1]Table_VCM!P39 -> 1241.3 | Q42: =[1]Table_VCM!Q39 -> 1718.5 | R42: =[1]Table_VCM!R39 -> 0 | S42: =[1]Table_VCM!S39 -> 2097.9 | T42: =[1]Table_VCM!T39 -> 5087.4 | U42: =[1]Table_VCM!U39 -> 4347.8 | V42: =[1]Table_VCM!V39 -> 28845.6 | W42: =[1]Table_VCM!W39 -> 2297.3 | X42: =[1]Table_VCM!X39 -> 13162.4 | Y42: =[1]Table_VCM!Y39 -> 3.5 | Z42: =[1]Table_VCM!Z39 -> 77.3 | AA42: =[1]Table_VCM!AA39 -> 2134.2 | AB42: =[1]Table_VCM!AB39 -> 693.4 | AC42: =[1]Table_VCM!AC39 -> 4390.1 | AD42: =[1]Table_VCM!AD39 -> 1655 | AE42: =[1]Table_VCM!AE39 -> 418.3 | AF42: =[1]Table_VCM!AF39 -> 11445.2 | AG42: =[1]Table_VCM!AG39 -> 7362.4 | AH42: =[1]Table_VCM!AH39 -> 116516.1 | AJ42: =[1]Table_VCM!AJ39 -> 22010.4 | AL42: =[1]Table_VCM!AL39 -> 13141.6 | AN42: 4622.184
D43: 2011 | E43: 9 | F43: 2012 | G43: 2012 | H43: =[1]Table_VCM!H40 -> 2700.4 | I43: =[1]Table_VCM!I40 -> 998.1 | J43: =[1]Table_VCM!J40 -> 850.8 | K43: =[1]Table_VCM!K40 -> 10258.4 | L43: =[1]Table_VCM!L40 -> 3745.1 | M43: =[1]Table_VCM!M40 -> 120.2 | N43: =[1]Table_VCM!N40 -> 7062.1 | O43: =[1]Table_VCM!O40 -> 887.2 | P43: =[1]Table_VCM!P40 -> 1178.5 | Q43: =[1]Table_VCM!Q40 -> 1663.6 | R43: =[1]Table_VCM!R40 -> 0 | S43: =[1]Table_VCM!S40 -> 1932.8 | T43: =[1]Table_VCM!T40 -> 5481.1 | U43: =[1]Table_VCM!U40 -> 4123.3 | V43: =[1]Table_VCM!V40 -> 25973.2 | W43: =[1]Table_VCM!W40 -> 2010.7 | X43: =[1]Table_VCM!X40 -> 11639.7 | Y43: =[1]Table_VCM!Y40 -> 2.6 | Z43: =[1]Table_VCM!Z40 -> 71.2 | AA43: =[1]Table_VCM!AA40 -> 2044.7 | AB43: =[1]Table_VCM!AB40 -> 626.4 | AC43: =[1]Table_VCM!AC40 -> 3739.2 | AD43: =[1]Table_VCM!AD40 -> 1537.7 | AE43: =[1]Table_VCM!AE40 -> 730.8 | AF43: =[1]Table_VCM!AF40 -> 10501.6 | AG43: =[1]Table_VCM!AG40 -> 6123.2 | AH43: =[1]Table_VCM!AH40 -> 106002.6 | AJ43: =[1]Table_VCM!AJ40 -> 19789.8 | AL43: =[1]Table_VCM!AL40 -> 13141.6 | AN43: 4155.858
D44: 2011 | E44: 10 | F44: 2012 | G44: 2012 | H44: =[1]Table_VCM!H41 -> 206.3 | I44: =[1]Table_VCM!I41 -> 873.4 | J44: =[1]Table_VCM!J41 -> 765.5 | K44: =[1]Table_VCM!K41 -> 8786.6 | L44: =[1]Table_VCM!L41 -> 3265 | M44: =[1]Table_VCM!M41 -> 144.5 | N44: =[1]Table_VCM!N41 -> 6055.6 | O44: =[1]Table_VCM!O41 -> 727.3 | P44: =[1]Table_VCM!P41 -> 687.9 | Q44: =[1]Table_VCM!Q41 -> 1413.4 | R44: =[1]Table_VCM!R41 -> 0 | S44: =[1]Table_VCM!S41 -> 2112.2 | T44: =[1]Table_VCM!T41 -> 5091.8 | U44: =[1]Table_VCM!U41 -> 3902.9 | V44: =[1]Table_VCM!V41 -> 14294.8 | W44: =[1]Table_VCM!W41 -> 1438.8 | X44: =[1]Table_VCM!X41 -> 10106.1 | Y44: =[1]Table_VCM!Y41 -> 0.1 | Z44: =[1]Table_VCM!Z41 -> 3.3 | AA44: =[1]Table_VCM!AA41 -> 850.8 | AB44: =[1]Table_VCM!AB41 -> 527.5 | AC44: =[1]Table_VCM!AC41 -> 3266.5 | AD44: =[1]Table_VCM!AD41 -> 1470 | AE44: =[1]Table_VCM!AE41 -> 305.2 | AF44: =[1]Table_VCM!AF41 -> 9243.6 | AG44: =[1]Table_VCM!AG41 -> 4078.4 | AH44: =[1]Table_VCM!AH41 -> 79617.5 | AJ44: =[1]Table_VCM!AJ41 -> 14599.8 | AL44: =[1]Table_VCM!AL41 -> 9753.1 | AN44: 3065.958
D45: 2011 | E45: 11 | F45: 2012 | G45: 2012 | H45: =[1]Table_VCM!H42 -> 1243.9 | I45: =[1]Table_VCM!I42 -> 683.8 | J45: =[1]Table_VCM!J42 -> 511.2 | K45: =[1]Table_VCM!K42 -> 6056 | L45: =[1]Table_VCM!L42 -> 2780.2 | M45: =[1]Table_VCM!M42 -> 138.4 | N45: =[1]Table_VCM!N42 -> 2622.4 | O45: =[1]Table_VCM!O42 -> 493.1 | P45: =[1]Table_VCM!P42 -> 391.5 | Q45: =[1]Table_VCM!Q42 -> 1060.5 | R45: =[1]Table_VCM!R42 -> 0 | S45: =[1]Table_VCM!S42 -> 1910.3 | T45: =[1]Table_VCM!T42 -> 2240.9 | U45: =[1]Table_VCM!U42 -> 3343.3 | V45: =[1]Table_VCM!V42 -> 11161.2 | W45: =[1]Table_VCM!W42 -> 888.5 | X45: =[1]Table_VCM!X42 -> 6028.9 | Y45: =[1]Table_VCM!Y42 -> 0 | Z45: =[1]Table_VCM!Z42 -> 0 | AA45: =[1]Table_VCM!AA42 -> 985.1 | AB45: =[1]Table_VCM!AB42 -> 426.3 | AC45: =[1]Table_VCM!AC42 -> 2368.4 | AD45: =[1]Table_VCM!AD42 -> 1115.1 | AE45: =[1]Table_VCM!AE42 -> 263.3 | AF45: =[1]Table_VCM!AF42 -> 7263.9 | AG45: =[1]Table_VCM!AG42 -> 2664.8 | AH45: =[1]Table_VCM!AH42 -> 56641 | AJ45: =[1]Table_VCM!AJ42 -> 11371.7 | AL45: =[1]Table_VCM!AL42 -> 6474.9 | AN45: 2388.057
D46: 2011 | E46: 12 | F46: 2012 | G46: 2012 | H46: =[1]Table_VCM!H43 -> 1416.3 | I46: =[1]Table_VCM!I43 -> 750.2 | J46: =[1]Table_VCM!J43 -> 552.6 | K46: =[1]Table_VCM!K43 -> 6639.5 | L46: =[1]Table_VCM!L43 -> 2885 | M46: =[1]Table_VCM!M43 -> 145.2 | N46: =[1]Table_VCM!N43 -> 2745.6 | O46: =[1]Table_VCM!O43 -> 518.4 | P46: =[1]Table_VCM!P43 -> 472.9 | Q46: =[1]Table_VCM!Q43 -> 1216.7 | R46: =[1]Table_VCM!R43 -> 0 | S46: =[1]Table_VCM!S43 -> 1649.5 | T46: =[1]Table_VCM!T43 -> 1771.5 | U46: =[1]Table_VCM!U43 -> 3460.3 | V46: =[1]Table_VCM!V43 -> 12455.2 | W46: =[1]Table_VCM!W43 -> 862 | X46: =[1]Table_VCM!X43 -> 9374.2 | Y46: =[1]Table_VCM!Y43 -> 0 | Z46: =[1]Table_VCM!Z43 -> 80.8 | AA46: =[1]Table_VCM!AA43 -> 1143.2 | AB46: =[1]Table_VCM!AB43 -> 380.7 | AC46: =[1]Table_VCM!AC43 -> 1885.2 | AD46: =[1]Table_VCM!AD43 -> 1192.8 | AE46: =[1]Table_VCM!AE43 -> 307.8 | AF46: =[1]Table_VCM!AF43 -> 7805.5 | AG46: =[1]Table_VCM!AG43 -> 2365.3 | AH46: =[1]Table_VCM!AH43 -> 62076.4 | AJ46: =[1]Table_VCM!AJ43 -> 12682 | AL46: =[1]Table_VCM!AL43 -> 8740 | AN46: 2663.22
D47: 2012 | E47: 1 | F47: 2012 | G47: 2012 | H47: =[1]Table_VCM!H44 -> 1428.4 | I47: =[1]Table_VCM!I44 -> 810.5 | J47: =[1]Table_VCM!J44 -> 624 | K47: =[1]Table_VCM!K44 -> 8237 | L47: =[1]Table_VCM!L44 -> 2772.2 | M47: =[1]Table_VCM!M44 -> 145.6 | N47: =[1]Table_VCM!N44 -> 2883.7 | O47: =[1]Table_VCM!O44 -> 564.4 | P47: =[1]Table_VCM!P44 -> 439.8 | Q47: =[1]Table_VCM!Q44 -> 1235.2 | R47: =[1]Table_VCM!R44 -> 0 | S47: =[1]Table_VCM!S44 -> 1352.4 | T47: =[1]Table_VCM!T44 -> 1397 | U47: =[1]Table_VCM!U44 -> 9959 | V47: =[1]Table_VCM!V44 -> 9603.4 | W47: =[1]Table_VCM!W44 -> 940.3 | X47: =[1]Table_VCM!X44 -> 6862.5 | Y47: =[1]Table_VCM!Y44 -> 0 | Z47: =[1]Table_VCM!Z44 -> 0 | AA47: =[1]Table_VCM!AA44 -> 911.8 | AB47: =[1]Table_VCM!AB44 -> 435.6 | AC47: =[1]Table_VCM!AC44 -> 2054.3 | AD47: =[1]Table_VCM!AD44 -> 1163.9 | AE47: =[1]Table_VCM!AE44 -> 257.6 | AF47: =[1]Table_VCM!AF44 -> 8263.1 | AG47: =[1]Table_VCM!AG44 -> 2906 | AH47: =[1]Table_VCM!AH44 -> 65247.7 | AJ47: =[1]Table_VCM!AJ44 -> 9739.6 | AL47: =[1]Table_VCM!AL44 -> 15368.5 | AN47: 2045.316
D48: 2012 | E48: 2 | F48: 2012 | G48: 2012 | H48: =[1]Table_VCM!H45 -> 1813.9 | I48: =[1]Table_VCM!I45 -> 717.7 | J48: =[1]Table_VCM!J45 -> 1003.7 | K48: =[1]Table_VCM!K45 -> 4283.1 | L48: =[1]Table_VCM!L45 -> 2496.5 | M48: =[1]Table_VCM!M45 -> 133.6 | N48: =[1]Table_VCM!N45 -> 3044.7 | O48: =[1]Table_VCM!O45 -> 505 | P48: =[1]Table_VCM!P45 -> 348 | Q48: =[1]Table_VCM!Q45 -> 1278.7 | R48: =[1]Table_VCM!R45 -> 0 | S48: =[1]Table_VCM!S45 -> 1007.6 | T48: =[1]Table_VCM!T45 -> 1263 | U48: =[1]Table_VCM!U45 -> 8487.3 | V48: =[1]Table_VCM!V45 -> 11410.4 | W48: =[1]Table_VCM!W45 -> 996.6 | X48: =[1]Table_VCM!X45 -> 6109.9 | Y48: =[1]Table_VCM!Y45 -> 0 | Z48: =[1]Table_VCM!Z45 -> 5.5 | AA48: =[1]Table_VCM!AA45 -> 1063.4 | AB48: =[1]Table_VCM!AB45 -> 466 | AC48: =[1]Table_VCM!AC45 -> 2268.9 | AD48: =[1]Table_VCM!AD45 -> 1032.4 | AE48: =[1]Table_VCM!AE45 -> 239.1 | AF48: =[1]Table_VCM!AF45 -> 8103 | AG48: =[1]Table_VCM!AG45 -> 2973.1 | AH48: =[1]Table_VCM!AH45 -> 61051.1 | AJ48: =[1]Table_VCM!AJ45 -> 11590.7 | AL48: =[1]Table_VCM!AL45 -> 15368.5 | AN48: 2434.047
D49: 2012 | E49: 3 | F49: 2012 | G49: 2012 | H49: =[1]Table_VCM!H46 -> 1357.5 | I49: =[1]Table_VCM!I46 -> 852.5 | J49: =[1]Table_VCM!J46 -> 636.4 | K49: =[1]Table_VCM!K46 -> 6831.7 | L49: =[1]Table_VCM!L46 -> 2768.5 | M49: =[1]Table_VCM!M46 -> 141 | N49: =[1]Table_VCM!N46 -> 2771.4 | O49: =[1]Table_VCM!O46 -> 519.3 | P49: =[1]Table_VCM!P46 -> 1021.9 | Q49: =[1]Table_VCM!Q46 -> 1154 | R49: =[1]Table_VCM!R46 -> 0 | S49: =[1]Table_VCM!S46 -> 1657.9 | T49: =[1]Table_VCM!T46 -> 1391.6 | U49: =[1]Table_VCM!U46 -> 3402.8 | V49: =[1]Table_VCM!V46 -> 12634.4 | W49: =[1]Table_VCM!W46 -> 1069.2 | X49: =[1]Table_VCM!X46 -> 7332 | Y49: =[1]Table_VCM!Y46 -> 0 | Z49: =[1]Table_VCM!Z46 -> 12.8 | AA49: =[1]Table_VCM!AA46 -> 1137.1 | AB49: =[1]Table_VCM!AB46 -> 383.1 | AC49: =[1]Table_VCM!AC46 -> 2301.7 | AD49: =[1]Table_VCM!AD46 -> 1237.3 | AE49: =[1]Table_VCM!AE46 -> 274.4 | AF49: =[1]Table_VCM!AF46 -> 9020.9 | AG49: =[1]Table_VCM!AG46 -> 2577 | AH49: =[1]Table_VCM!AH46 -> 62486.4 | AJ49: =[1]Table_VCM!AJ46 -> 12810.6 | AL49: =[1]Table_VCM!AL46 -> 15368.5 | AN49: 2690.226
D50: 2012 | E50: 4 | F50: 2012 | G50: 2012 | H50: =[1]Table_VCM!H47 -> 1299.1 | I50: =[1]Table_VCM!I47 -> 842.7 | J50: =[1]Table_VCM!J47 -> 534.9 | K50: =[1]Table_VCM!K47 -> 7363.4 | L50: =[1]Table_VCM!L47 -> 2728.6 | M50: =[1]Table_VCM!M47 -> 133.2 | N50: =[1]Table_VCM!N47 -> 3963.4 | O50: =[1]Table_VCM!O47 -> 486.5 | P50: =[1]Table_VCM!P47 -> 907.9 | Q50: =[1]Table_VCM!Q47 -> 1186.7 | R50: =[1]Table_VCM!R47 -> 0 | S50: =[1]Table_VCM!S47 -> 1475.4 | T50: =[1]Table_VCM!T47 -> 1783.8 | U50: =[1]Table_VCM!U47 -> 6325.6 | V50: =[1]Table_VCM!V47 -> 13076.3 | W50: =[1]Table_VCM!W47 -> 1303.6 | X50: =[1]Table_VCM!X47 -> 6283.7 | Y50: =[1]Table_VCM!Y47 -> 0 | Z50: =[1]Table_VCM!Z47 -> 0.6 | AA50: =[1]Table_VCM!AA47 -> 984.1 | AB50: =[1]Table_VCM!AB47 -> 432.5 | AC50: =[1]Table_VCM!AC47 -> 1821.4 | AD50: =[1]Table_VCM!AD47 -> 1131.9 | AE50: =[1]Table_VCM!AE47 -> 239.5 | AF50: =[1]Table_VCM!AF47 -> 8638.9 | AG50: =[1]Table_VCM!AG47 -> 3066.6 | AH50: =[1]Table_VCM!AH47 -> 66010.3 | AJ50: =[1]Table_VCM!AJ47 -> 13228.1 | AL50: =[1]Table_VCM!AL47 -> 15368.5 | AN50: 2777.901
D51: 2012 | E51: 5 | F51: 2012 | G51: 2013 | H51: =[1]Table_VCM!H48 -> 1120 | I51: =[1]Table_VCM!I48 -> 962.8 | J51: =[1]Table_VCM!J48 -> 657.1 | K51: =[1]Table_VCM!K48 -> 10473 | L51: =[1]Table_VCM!L48 -> 3277.5 | M51: =[1]Table_VCM!M48 -> 133.6 | N51: =[1]Table_VCM!N48 -> 7330.8 | O51: =[1]Table_VCM!O48 -> 620.9 | P51: =[1]Table_VCM!P48 -> 860.9 | Q51: =[1]Table_VCM!Q48 -> 1562.7 | R51: =[1]Table_VCM!R48 -> 0 | S51: =[1]Table_VCM!S48 -> 1911.6 | T51: =[1]Table_VCM!T48 -> 2097.5 | U51: =[1]Table_VCM!U48 -> 5071.1 | V51: =[1]Table_VCM!V48 -> 17806 | W51: =[1]Table_VCM!W48 -> 1836.6 | X51: =[1]Table_VCM!X48 -> 9330.4 | Y51: =[1]Table_VCM!Y48 -> 0 | Z51: =[1]Table_VCM!Z48 -> 11.8 | AA51: =[1]Table_VCM!AA48 -> 1097.7 | AB51: =[1]Table_VCM!AB48 -> 552.6 | AC51: =[1]Table_VCM!AC48 -> 2805.6 | AD51: =[1]Table_VCM!AD48 -> 1390.2 | AE51: =[1]Table_VCM!AE48 -> 286.8 | AF51: =[1]Table_VCM!AF48 -> 10356.2 | AG51: =[1]Table_VCM!AG48 -> 5024.2 | AH51: =[1]Table_VCM!AH48 -> 86577.6 | AJ51: =[1]Table_VCM!AJ48 -> 18028.8 | AL51: =[1]Table_VCM!AL48 -> 15368.5 | AN51: 3786.048
D52: 2012 | E52: 6 | F52: 2012 | G52: 2013 | H52: =[1]Table_VCM!H49 -> 1106 | I52: =[1]Table_VCM!I49 -> 969.2 | J52: =[1]Table_VCM!J49 -> 739.8 | K52: =[1]Table_VCM!K49 -> 11049.5 | L52: =[1]Table_VCM!L49 -> 3492.3 | M52: =[1]Table_VCM!M49 -> 126.5 | N52: =[1]Table_VCM!N49 -> 8571.7 | O52: =[1]Table_VCM!O49 -> 736.7 | P52: =[1]Table_VCM!P49 -> 1183.5 | Q52: =[1]Table_VCM!Q49 -> 1610.2 | R52: =[1]Table_VCM!R49 -> 0 | S52: =[1]Table_VCM!S49 -> 2188.1 | T52: =[1]Table_VCM!T49 -> 2350.8 | U52: =[1]Table_VCM!U49 -> 5308.2 | V52: =[1]Table_VCM!V49 -> 20871.7 | W52: =[1]Table_VCM!W49 -> 2011 | X52: =[1]Table_VCM!X49 -> 9595.9 | Y52: =[1]Table_VCM!Y49 -> 8.4 | Z52: =[1]Table_VCM!Z49 -> 148.3 | AA52: =[1]Table_VCM!AA49 -> 941.6 | AB52: =[1]Table_VCM!AB49 -> 618.9 | AC52: =[1]Table_VCM!AC49 -> 3701.4 | AD52: =[1]Table_VCM!AD49 -> 1462.4 | AE52: =[1]Table_VCM!AE49 -> 307.9 | AF52: =[1]Table_VCM!AF49 -> 10998.1 | AG52: =[1]Table_VCM!AG49 -> 6769.5 | AH52: =[1]Table_VCM!AH49 -> 96867.6 | AJ52: =[1]Table_VCM!AJ49 -> 21207 | AL52: =[1]Table_VCM!AL49 -> 15368.5 | AN52: 4453.47
D53: 2012 | E53: 7 | F53: 2013 | G53: 2013 | H53: =[1]Table_VCM!H50 -> 467.9 | I53: =[1]Table_VCM!I50 -> 1031.3 | J53: =[1]Table_VCM!J50 -> 886.3 | K53: =[1]Table_VCM!K50 -> 11957.4 | L53: =[1]Table_VCM!L50 -> 3901 | M53: =[1]Table_VCM!M50 -> 127.7 | N53: =[1]Table_VCM!N50 -> 8540 | O53: =[1]Table_VCM!O50 -> 903.2 | P53: =[1]Table_VCM!P50 -> 1129.8 | Q53: =[1]Table_VCM!Q50 -> 1831.2 | R53: =[1]Table_VCM!R50 -> 0 | S53: =[1]Table_VCM!S50 -> 2094.8 | T53: =[1]Table_VCM!T50 -> 2668.7 | U53: =[1]Table_VCM!U50 -> 5599.9 | V53: =[1]Table_VCM!V50 -> 21141.6 | W53: =[1]Table_VCM!W50 -> 2278.3 | X53: =[1]Table_VCM!X50 -> 10861 | Y53: =[1]Table_VCM!Y50 -> 18.9 | Z53: =[1]Table_VCM!Z50 -> 189 | AA53: =[1]Table_VCM!AA50 -> 1173.2 | AB53: =[1]Table_VCM!AB50 -> 672 | AC53: =[1]Table_VCM!AC50 -> 4905.1 | AD53: =[1]Table_VCM!AD50 -> 1599.6 | AE53: =[1]Table_VCM!AE50 -> 378.2 | AF53: =[1]Table_VCM!AF50 -> 11207.9 | AG53: =[1]Table_VCM!AG50 -> 7429.5 | AH53: =[1]Table_VCM!AH50 -> 102993.5 | AJ53: =[1]Table_VCM!AJ50 -> 21551.5 | AL53: =[1]Table_VCM!AL50 -> 15368.5 | AN53: 4525.815
D54: 2012 | E54: 8 | F54: 2013 | G54: 2013 | H54: =[1]Table_VCM!H51 -> 192 | I54: =[1]Table_VCM!I51 -> 1207.5 | J54: =[1]Table_VCM!J51 -> 936.3 | K54: =[1]Table_VCM!K51 -> 12349.6 | L54: =[1]Table_VCM!L51 -> 4115.8 | M54: =[1]Table_VCM!M51 -> 125.1 | N54: =[1]Table_VCM!N51 -> 8924.2 | O54: =[1]Table_VCM!O51 -> 946.1 | P54: =[1]Table_VCM!P51 -> 1103 | Q54: =[1]Table_VCM!Q51 -> 1995.3 | R54: =[1]Table_VCM!R51 -> 0 | S54: =[1]Table_VCM!S51 -> 2255.4 | T54: =[1]Table_VCM!T51 -> 3025.4 | U54: =[1]Table_VCM!U51 -> 6340.5 | V54: =[1]Table_VCM!V51 -> 22208.8 | W54: =[1]Table_VCM!W51 -> 2395.3 | X54: =[1]Table_VCM!X51 -> 12942.8 | Y54: =[1]Table_VCM!Y51 -> 50.6 | Z54: =[1]Table_VCM!Z51 -> 263.2 | AA54: =[1]Table_VCM!AA51 -> 1178.3 | AB54: =[1]Table_VCM!AB51 -> 770.8 | AC54: =[1]Table_VCM!AC51 -> 5571.5 | AD54: =[1]Table_VCM!AD51 -> 1657.9 | AE54: =[1]Table_VCM!AE51 -> 352.7 | AF54: =[1]Table_VCM!AF51 -> 12207 | AG54: =[1]Table_VCM!AG51 -> 7764.1 | AH54: =[1]Table_VCM!AH51 -> 110879.2 | AJ54: =[1]Table_VCM!AJ51 -> 22665.1 | AL54: =[1]Table_VCM!AL51 -> 15368.5 | AN54: 4759.671
D55: 2012 | E55: 9 | F55: 2013 | G55: 2013 | H55: =[1]Table_VCM!H52 -> 52.6 | I55: =[1]Table_VCM!I52 -> 1138.6 | J55: =[1]Table_VCM!J52 -> 754.6 | K55: =[1]Table_VCM!K52 -> 11351.3 | L55: =[1]Table_VCM!L52 -> 3796.7 | M55: =[1]Table_VCM!M52 -> 119.4 | N55: =[1]Table_VCM!N52 -> 8015.1 | O55: =[1]Table_VCM!O52 -> 904.7 | P55: =[1]Table_VCM!P52 -> 949.6 | Q55: =[1]Table_VCM!Q52 -> 1729.9 | R55: =[1]Table_VCM!R52 -> 0 | S55: =[1]Table_VCM!S52 -> 2086 | T55: =[1]Table_VCM!T52 -> 2996.5 | U55: =[1]Table_VCM!U52 -> 5576.1 | V55: =[1]Table_VCM!V52 -> 20247 | W55: =[1]Table_VCM!W52 -> 2131.7 | X55: =[1]Table_VCM!X52 -> 12406.4 | Y55: =[1]Table_VCM!Y52 -> 19.7 | Z55: =[1]Table_VCM!Z52 -> 165.9 | AA55: =[1]Table_VCM!AA52 -> 1135.4 | AB55: =[1]Table_VCM!AB52 -> 727.8 | AC55: =[1]Table_VCM!AC52 -> 4948.4 | AD55: =[1]Table_VCM!AD52 -> 1753.6 | AE55: =[1]Table_VCM!AE52 -> 492.8 | AF55: =[1]Table_VCM!AF52 -> 11518.2 | AG55: =[1]Table_VCM!AG52 -> 6672.4 | AH55: =[1]Table_VCM!AH52 -> 101690.4 | AJ55: =[1]Table_VCM!AJ52 -> 20677.9 | AL55: =[1]Table_VCM!AL52 -> 15368.5 | AN55: 4342.359
D56: 2012 | E56: 10 | F56: 2013 | G56: 2013 | H56: =[1]Table_VCM!H53 -> 35.4 | I56: =[1]Table_VCM!I53 -> 984.3 | J56: =[1]Table_VCM!J53 -> 638.8 | K56: =[1]Table_VCM!K53 -> 10260 | L56: =[1]Table_VCM!L53 -> 3352.8 | M56: =[1]Table_VCM!M53 -> 122.7 | N56: =[1]Table_VCM!N53 -> 5594.8 | O56: =[1]Table_VCM!O53 -> 700.1 | P56: =[1]Table_VCM!P53 -> 841.1 | Q56: =[1]Table_VCM!Q53 -> 1577.8 | R56: =[1]Table_VCM!R53 -> 0 | S56: =[1]Table_VCM!S53 -> 2023.3 | T56: =[1]Table_VCM!T53 -> 5038.2 | U56: =[1]Table_VCM!U53 -> 5109.8 | V56: =[1]Table_VCM!V53 -> 17487.9 | W56: =[1]Table_VCM!W53 -> 1459.8 | X56: =[1]Table_VCM!X53 -> 13992.8 | Y56: =[1]Table_VCM!Y53 -> 6.9 | Z56: =[1]Table_VCM!Z53 -> 39.1 | AA56: =[1]Table_VCM!AA53 -> 1167.4 | AB56: =[1]Table_VCM!AB53 -> 669.6 | AC56: =[1]Table_VCM!AC53 -> 3441.9 | AD56: =[1]Table_VCM!AD53 -> 1638.2 | AE56: =[1]Table_VCM!AE53 -> 304.3 | AF56: =[1]Table_VCM!AF53 -> 10635.5 | AG56: =[1]Table_VCM!AG53 -> 4812.8 | AH56: =[1]Table_VCM!AH53 -> 91935.3 | AJ56: =[1]Table_VCM!AJ53 -> 26565.2 | AL56: =[1]Table_VCM!AL53 -> 15368.5 | AN56: 5578.692
D57: 2012 | E57: 11 | F57: 2013 | G57: 2013 | H57: =[1]Table_VCM!H54 -> 55.7 | I57: =[1]Table_VCM!I54 -> 892 | J57: =[1]Table_VCM!J54 -> 497.4 | K57: =[1]Table_VCM!K54 -> 7637 | L57: =[1]Table_VCM!L54 -> 2880.1 | M57: =[1]Table_VCM!M54 -> 138.5 | N57: =[1]Table_VCM!N54 -> 3700.8 | O57: =[1]Table_VCM!O54 -> 575 | P57: =[1]Table_VCM!P54 -> 650.7 | Q57: =[1]Table_VCM!Q54 -> 1369.5 | R57: =[1]Table_VCM!R54 -> 0 | S57: =[1]Table_VCM!S54 -> 1503.8 | T57: =[1]Table_VCM!T54 -> 4283 | U57: =[1]Table_VCM!U54 -> 6426.4 | V57: =[1]Table_VCM!V54 -> 13311.4 | W57: =[1]Table_VCM!W54 -> 1009.6 | X57: =[1]Table_VCM!X54 -> 8377.7 | Y57: =[1]Table_VCM!Y54 -> 0 | Z57: =[1]Table_VCM!Z54 -> 1 | AA57: =[1]Table_VCM!AA54 -> 1201.3 | AB57: =[1]Table_VCM!AB54 -> 577.1 | AC57: =[1]Table_VCM!AC54 -> 2205.7 | AD57: =[1]Table_VCM!AD54 -> 1374.6 | AE57: =[1]Table_VCM!AE54 -> 182.3 | AF57: =[1]Table_VCM!AF54 -> 8699.9 | AG57: =[1]Table_VCM!AG54 -> 3953.2 | AH57: =[1]Table_VCM!AH54 -> 71503.7 | AJ57: =[1]Table_VCM!AJ54 -> 17747.6 | AL57: =[1]Table_VCM!AL54 -> 15368.5 | AN57: 3726.996
D58: 2012 | E58: 12 | F58: 2013 | G58: 2013 | H58: =[1]Table_VCM!H55 -> 146.4 | I58: =[1]Table_VCM!I55 -> 621 | J58: =[1]Table_VCM!J55 -> 415.8 | K58: =[1]Table_VCM!K55 -> 4521.6 | L58: =[1]Table_VCM!L55 -> 2636.9 | M58: =[1]Table_VCM!M55 -> 149.7 | N58: =[1]Table_VCM!N55 -> 2032.7 | O58: =[1]Table_VCM!O55 -> 364.6 | P58: =[1]Table_VCM!P55 -> 307.6 | Q58: =[1]Table_VCM!Q55 -> 1171.3 | R58: =[1]Table_VCM!R55 -> 0 | S58: =[1]Table_VCM!S55 -> 1107.3 | T58: =[1]Table_VCM!T55 -> 2045.9 | U58: =[1]Table_VCM!U55 -> 10003 | V58: =[1]Table_VCM!V55 -> 8278.1 | W58: =[1]Table_VCM!W55 -> 687.7 | X58: =[1]Table_VCM!X55 -> 5594.3 | Y58: =[1]Table_VCM!Y55 -> 0.8 | Z58: =[1]Table_VCM!Z55 -> 0 | AA58: =[1]Table_VCM!AA55 -> 144.8 | AB58: =[1]Table_VCM!AB55 -> 236.1 | AC58: =[1]Table_VCM!AC55 -> 1241.8 | AD58: =[1]Table_VCM!AD55 -> 1064.4 | AE58: =[1]Table_VCM!AE55 -> 185.4 | AF58: =[1]Table_VCM!AF55 -> 7676.9 | AG58: =[1]Table_VCM!AG55 -> 1968.3 | AH58: =[1]Table_VCM!AH55 -> 52602.4 | AJ58: =[1]Table_VCM!AJ55 -> 10924.8 | AL58: =[1]Table_VCM!AL55 -> 17807.5 | AN58: 2294.208
D59: 2013 | E59: 1 | F59: 2013 | G59: 2013 | H59: =[1]Table_VCM!H56 -> 971.7 | I59: =[1]Table_VCM!I56 -> 717.6 | J59: =[1]Table_VCM!J56 -> 445 | K59: =[1]Table_VCM!K56 -> 6570.2 | L59: =[1]Table_VCM!L56 -> 2608.1 | M59: =[1]Table_VCM!M56 -> 153.7 | N59: =[1]Table_VCM!N56 -> 2675.7 | O59: =[1]Table_VCM!O56 -> 484 | P59: =[1]Table_VCM!P56 -> 483.4 | Q59: =[1]Table_VCM!Q56 -> 1043.9 | R59: =[1]Table_VCM!R56 -> 0 | S59: =[1]Table_VCM!S56 -> 1890.9 | T59: =[1]Table_VCM!T56 -> 1739.8 | U59: =[1]Table_VCM!U56 -> 7514.4 | V59: =[1]Table_VCM!V56 -> 9102 | W59: =[1]Table_VCM!W56 -> 848.9 | X59: =[1]Table_VCM!X56 -> 5485.6 | Y59: =[1]Table_VCM!Y56 -> 0 | Z59: =[1]Table_VCM!Z56 -> 0 | AA59: =[1]Table_VCM!AA56 -> 1020 | AB59: =[1]Table_VCM!AB56 -> 289.7 | AC59: =[1]Table_VCM!AC56 -> 1663.3 | AD59: =[1]Table_VCM!AD56 -> 1119.4 | AE59: =[1]Table_VCM!AE56 -> 227.6 | AF59: =[1]Table_VCM!AF56 -> 8540.4 | AG59: =[1]Table_VCM!AG56 -> 1928.8 | AH59: =[1]Table_VCM!AH56 -> 57524.1 | AJ59: =[1]Table_VCM!AJ56 -> 9283.9 | AL59: =[1]Table_VCM!AL56 -> 9858.836382 | AN59: 1949.619
D60: 2013 | E60: 2 | F60: 2013 | G60: 2013 | H60: =[1]Table_VCM!H57 -> 1184 | I60: =[1]Table_VCM!I57 -> 669.2 | J60: =[1]Table_VCM!J57 -> 439.3 | K60: =[1]Table_VCM!K57 -> 4018.8 | L60: =[1]Table_VCM!L57 -> 2427.9 | M60: =[1]Table_VCM!M57 -> 140.6 | N60: =[1]Table_VCM!N57 -> 2251.1 | O60: =[1]Table_VCM!O57 -> 388.1 | P60: =[1]Table_VCM!P57 -> 447.7 | Q60: =[1]Table_VCM!Q57 -> 1157.3 | R60: =[1]Table_VCM!R57 -> 0 | S60: =[1]Table_VCM!S57 -> 1733.4 | T60: =[1]Table_VCM!T57 -> 1453.1 | U60: =[1]Table_VCM!U57 -> 16435.6 | V60: =[1]Table_VCM!V57 -> 8187 | W60: =[1]Table_VCM!W57 -> 714.8 | X60: =[1]Table_VCM!X57 -> 5028.9 | Y60: =[1]Table_VCM!Y57 -> 0 | Z60: =[1]Table_VCM!Z57 -> 0 | AA60: =[1]Table_VCM!AA57 -> 1068.6 | AB60: =[1]Table_VCM!AB57 -> 254.1 | AC60: =[1]Table_VCM!AC57 -> 1495.6 | AD60: =[1]Table_VCM!AD57 -> 1056.8 | AE60: =[1]Table_VCM!AE57 -> 207.7 | AF60: =[1]Table_VCM!AF57 -> 8089.3 | AG60: =[1]Table_VCM!AG57 -> 2201.8 | AH60: =[1]Table_VCM!AH57 -> 61050.7 | AJ60: =[1]Table_VCM!AJ57 -> 8357.6 | AL60: =[1]Table_VCM!AL57 -> 9683.600012 | AN60: 1755.096
D61: 2013 | E61: 3 | F61: 2013 | G61: 2013 | H61: =[1]Table_VCM!H58 -> 1773.2 | I61: =[1]Table_VCM!I58 -> 821.7 | J61: =[1]Table_VCM!J58 -> 555.9 | K61: =[1]Table_VCM!K58 -> 9252.5 | L61: =[1]Table_VCM!L58 -> 2640.7 | M61: =[1]Table_VCM!M58 -> 150.9 | N61: =[1]Table_VCM!N58 -> 4004.8 | O61: =[1]Table_VCM!O58 -> 564.4 | P61: =[1]Table_VCM!P58 -> 1074.6 | Q61: =[1]Table_VCM!Q58 -> 1339.3 | R61: =[1]Table_VCM!R58 -> 0 | S61: =[1]Table_VCM!S58 -> 1953.9 | T61: =[1]Table_VCM!T58 -> 1491 | U61: =[1]Table_VCM!U58 -> 6114.7 | V61: =[1]Table_VCM!V58 -> 12575.2 | W61: =[1]Table_VCM!W58 -> 1201.7 | X61: =[1]Table_VCM!X58 -> 6748.5 | Y61: =[1]Table_VCM!Y58 -> 0 | Z61: =[1]Table_VCM!Z58 -> 0 | AA61: =[1]Table_VCM!AA58 -> 1429 | AB61: =[1]Table_VCM!AB58 -> 361.7 | AC61: =[1]Table_VCM!AC58 -> 2052.7 | AD61: =[1]Table_VCM!AD58 -> 1282.2 | AE61: =[1]Table_VCM!AE58 -> 393.7 | AF61: =[1]Table_VCM!AF58 -> 9396.3 | AG61: =[1]Table_VCM!AG58 -> 3248.6 | AH61: =[1]Table_VCM!AH58 -> 70427.2 | AJ61: =[1]Table_VCM!AJ58 -> 16166.6 | AL61: =[1]Table_VCM!AL58 -> 12126.11807 | AN61: 3394.986
D62: 2013 | E62: 4 | F62: 2013 | G62: 2013 | H62: =[1]Table_VCM!H59 -> 1908.8 | I62: =[1]Table_VCM!I59 -> 962.9 | J62: =[1]Table_VCM!J59 -> 578.1 | K62: =[1]Table_VCM!K59 -> 10104.6 | L62: =[1]Table_VCM!L59 -> 2854.9 | M62: =[1]Table_VCM!M59 -> 146 | N62: =[1]Table_VCM!N59 -> 4697.3 | O62: =[1]Table_VCM!O59 -> 720 | P62: =[1]Table_VCM!P59 -> 975.1 | Q62: =[1]Table_VCM!Q59 -> 1816.7 | R62: =[1]Table_VCM!R59 -> 0 | S62: =[1]Table_VCM!S59 -> 1782.3 | T62: =[1]Table_VCM!T59 -> 1677.5 | U62: =[1]Table_VCM!U59 -> 7476.3 | V62: =[1]Table_VCM!V59 -> 15080.7 | W62: =[1]Table_VCM!W59 -> 1603 | X62: =[1]Table_VCM!X59 -> 8750.2 | Y62: =[1]Table_VCM!Y59 -> 0 | Z62: =[1]Table_VCM!Z59 -> 21 | AA62: =[1]Table_VCM!AA59 -> 1261.5 | AB62: =[1]Table_VCM!AB59 -> 414.6 | AC62: =[1]Table_VCM!AC59 -> 2776.9 | AD62: =[1]Table_VCM!AD59 -> 1285.9 | AE62: =[1]Table_VCM!AE59 -> 223.4 | AF62: =[1]Table_VCM!AF59 -> 9635.7 | AG62: =[1]Table_VCM!AG59 -> 4656.5 | AH62: =[1]Table_VCM!AH59 -> 81409.9 | AJ62: =[1]Table_VCM!AJ59 -> 25901.2 | AL62: =[1]Table_VCM!AL59 -> 14826.38161 | AN62: 5439.252
D63: 2013 | E63: 5 | F63: 2013 | G63: 2014 | H63: =[1]Table_VCM!H60 -> 568.6 | I63: =[1]Table_VCM!I60 -> 1047.3 | J63: =[1]Table_VCM!J60 -> 688.7 | K63: =[1]Table_VCM!K60 -> 10982.5 | L63: =[1]Table_VCM!L60 -> 3051.6 | M63: =[1]Table_VCM!M60 -> 163.7 | N63: =[1]Table_VCM!N60 -> 6669.9 | O63: =[1]Table_VCM!O60 -> 747.5 | P63: =[1]Table_VCM!P60 -> 602.8 | Q63: =[1]Table_VCM!Q60 -> 1783.7 | R63: =[1]Table_VCM!R60 -> 0 | S63: =[1]Table_VCM!S60 -> 2107.8 | T63: =[1]Table_VCM!T60 -> 2055.9 | U63: =[1]Table_VCM!U60 -> 7172.7 | V63: =[1]Table_VCM!V60 -> 16883.7 | W63: =[1]Table_VCM!W60 -> 1746.6 | X63: =[1]Table_VCM!X60 -> 10645.6 | Y63: =[1]Table_VCM!Y60 -> 0 | Z63: =[1]Table_VCM!Z60 -> 12.1 | AA63: =[1]Table_VCM!AA60 -> 1199.3 | AB63: =[1]Table_VCM!AB60 -> 473.8 | AC63: =[1]Table_VCM!AC60 -> 3597.3 | AD63: =[1]Table_VCM!AD60 -> 1469.7 | AE63: =[1]Table_VCM!AE60 -> 270.2 | AF63: =[1]Table_VCM!AF60 -> 11399.2 | AG63: =[1]Table_VCM!AG60 -> 5077.5 | AH63: =[1]Table_VCM!AH60 -> 90417.7 | AJ63: =[1]Table_VCM!AJ60 -> 17161.3 | AL63: =[1]Table_VCM!AL60 -> 17700.01934 | AN63: 3603.873
D64: 2013 | E64: 6 | F64: 2013 | G64: 2014 | H64: =[1]Table_VCM!H61 -> 772.8 | I64: =[1]Table_VCM!I61 -> 1020.8 | J64: =[1]Table_VCM!J61 -> 791.3 | K64: =[1]Table_VCM!K61 -> 11332.5 | L64: =[1]Table_VCM!L61 -> 3234.3 | M64: =[1]Table_VCM!M61 -> 144.8 | N64: =[1]Table_VCM!N61 -> 8586.4 | O64: =[1]Table_VCM!O61 -> 802.2 | P64: =[1]Table_VCM!P61 -> 639.6 | Q64: =[1]Table_VCM!Q61 -> 1947.9 | R64: =[1]Table_VCM!R61 -> 0 | S64: =[1]Table_VCM!S61 -> 2314.1 | T64: =[1]Table_VCM!T61 -> 2287.3 | U64: =[1]Table_VCM!U61 -> 7210.8 | V64: =[1]Table_VCM!V61 -> 17788.5 | W64: =[1]Table_VCM!W61 -> 2176.5 | X64: =[1]Table_VCM!X61 -> 11525.7 | Y64: =[1]Table_VCM!Y61 -> 21.3 | Z64: =[1]Table_VCM!Z61 -> 122.8 | AA64: =[1]Table_VCM!AA61 -> 474.9 | AB64: =[1]Table_VCM!AB61 -> 883.2 | AC64: =[1]Table_VCM!AC61 -> 4654.8 | AD64: =[1]Table_VCM!AD61 -> 1552.9 | AE64: =[1]Table_VCM!AE61 -> 310.2 | AF64: =[1]Table_VCM!AF61 -> 10863.5 | AG64: =[1]Table_VCM!AG61 -> 6440.9 | AH64: =[1]Table_VCM!AH61 -> 97900 | AJ64: =[1]Table_VCM!AJ61 -> 18161.3 | AL64: =[1]Table_VCM!AL61 -> 17897.88842 | AN64: 3813.873
D65: 2013 | E65: 7 | F65: 2014 | G65: 2014 | H65: =[1]Table_VCM!H62 -> 431.7 | I65: =[1]Table_VCM!I62 -> 1185.5 | J65: =[1]Table_VCM!J62 -> 823.5 | K65: =[1]Table_VCM!K62 -> 11827.1 | L65: =[1]Table_VCM!L62 -> 3581.2 | M65: =[1]Table_VCM!M62 -> 43.5 | N65: =[1]Table_VCM!N62 -> 8317.3 | O65: =[1]Table_VCM!O62 -> 922.6 | P65: =[1]Table_VCM!P62 -> 733.9 | Q65: =[1]Table_VCM!Q62 -> 2176 | R65: =[1]Table_VCM!R62 -> 0 | S65: =[1]Table_VCM!S62 -> 2204.2 | T65: =[1]Table_VCM!T62 -> 3211.2 | U65: =[1]Table_VCM!U62 -> 7549 | V65: =[1]Table_VCM!V62 -> 20043.1 | W65: =[1]Table_VCM!W62 -> 2437.9 | X65: =[1]Table_VCM!X62 -> 13133.8 | Y65: =[1]Table_VCM!Y62 -> 12.8 | Z65: =[1]Table_VCM!Z62 -> 193 | AA65: =[1]Table_VCM!AA62 -> 1194.8 | AB65: =[1]Table_VCM!AB62 -> 608.3 | AC65: =[1]Table_VCM!AC62 -> 5697.3 | AD65: =[1]Table_VCM!AD62 -> 1739.3 | AE65: =[1]Table_VCM!AE62 -> 297.4 | AF65: =[1]Table_VCM!AF62 -> 11525.4 | AG65: =[1]Table_VCM!AG62 -> 7431 | AH65: =[1]Table_VCM!AH62 -> 107320.8 | AJ65: =[1]Table_VCM!AJ62 -> 20452.1 | AL65: =[1]Table_VCM!AL62 -> 17867.42499 | AN65: 4294.941
D66: 2013 | E66: 8 | F66: 2014 | G66: 2014 | H66: =[1]Table_VCM!H63 -> 5.3 | I66: =[1]Table_VCM!I63 -> 1184.4 | J66: =[1]Table_VCM!J63 -> 848.1 | K66: =[1]Table_VCM!K63 -> 10995.7 | L66: =[1]Table_VCM!L63 -> 3612.6 | M66: =[1]Table_VCM!M63 -> 1.3 | N66: =[1]Table_VCM!N63 -> 8108.2 | O66: =[1]Table_VCM!O63 -> 993.5 | P66: =[1]Table_VCM!P63 -> 768.8 | Q66: =[1]Table_VCM!Q63 -> 2001.7 | R66: =[1]Table_VCM!R63 -> 0 | S66: =[1]Table_VCM!S63 -> 2236.8 | T66: =[1]Table_VCM!T63 -> 3255.5 | U66: =[1]Table_VCM!U63 -> 10933.4 | V66: =[1]Table_VCM!V63 -> 20199.6 | W66: =[1]Table_VCM!W63 -> 2630.1 | X66: =[1]Table_VCM!X63 -> 12696.3 | Y66: =[1]Table_VCM!Y63 -> 24.5 | Z66: =[1]Table_VCM!Z63 -> 262.1 | AA66: =[1]Table_VCM!AA63 -> 1201.7 | AB66: =[1]Table_VCM!AB63 -> 608.9 | AC66: =[1]Table_VCM!AC63 -> 6266.9 | AD66: =[1]Table_VCM!AD63 -> 1631.5 | AE66: =[1]Table_VCM!AE63 -> 274 | AF66: =[1]Table_VCM!AF63 -> 12067 | AG66: =[1]Table_VCM!AG63 -> 8194.7 | AH66: =[1]Table_VCM!AH63 -> 111002.6 | AJ66: =[1]Table_VCM!AJ63 -> 20599.2 | AL66: =[1]Table_VCM!AL63 -> 18652.35978 | AN66: 4325.832
D67: 2013 | E67: 9 | F67: 2014 | G67: 2014 | H67: =[1]Table_VCM!H64 -> 10.3 | I67: =[1]Table_VCM!I64 -> 1060.6 | J67: =[1]Table_VCM!J64 -> 785.4 | K67: =[1]Table_VCM!K64 -> 11729.5 | L67: =[1]Table_VCM!L64 -> 3341.6 | M67: =[1]Table_VCM!M64 -> 3.3 | N67: =[1]Table_VCM!N64 -> 7286.3 | O67: =[1]Table_VCM!O64 -> 909 | P67: =[1]Table_VCM!P64 -> 743.9 | Q67: =[1]Table_VCM!Q64 -> 1813.2 | R67: =[1]Table_VCM!R64 -> 0 | S67: =[1]Table_VCM!S64 -> 2128.8 | T67: =[1]Table_VCM!T64 -> 3628.7 | U67: =[1]Table_VCM!U64 -> 7494.2 | V67: =[1]Table_VCM!V64 -> 18818 | W67: =[1]Table_VCM!W64 -> 2365.2 | X67: =[1]Table_VCM!X64 -> 12298.5 | Y67: =[1]Table_VCM!Y64 -> 15.4 | Z67: =[1]Table_VCM!Z64 -> 239.5 | AA67: =[1]Table_VCM!AA64 -> 1165.4 | AB67: =[1]Table_VCM!AB64 -> 585.7 | AC67: =[1]Table_VCM!AC64 -> 6185.7 | AD67: =[1]Table_VCM!AD64 -> 1509.1 | AE67: =[1]Table_VCM!AE64 -> 514 | AF67: =[1]Table_VCM!AF64 -> 11287.5 | AG67: =[1]Table_VCM!AG64 -> 7367.4 | AH67: =[1]Table_VCM!AH64 -> 103286.2 | AJ67: =[1]Table_VCM!AJ64 -> 19205.5 | AL67: =[1]Table_VCM!AL64 -> 21688.86706 | AN67: 4033.155
D68: 2013 | E68: 10 | F68: 2014 | G68: 2014 | H68: =[1]Table_VCM!H65 -> 438 | I68: =[1]Table_VCM!I65 -> 1000 | J68: =[1]Table_VCM!J65 -> 700 | K68: =[1]Table_VCM!K65 -> 10000 | L68: =[1]Table_VCM!L65 -> 3000 | M68: =[1]Table_VCM!M65 -> 50 | N68: =[1]Table_VCM!N65 -> 6395 | O68: =[1]Table_VCM!O65 -> 700 | P68: =[1]Table_VCM!P65 -> 700 | Q68: =[1]Table_VCM!Q65 -> 1400 | R68: =[1]Table_VCM!R65 -> 0 | S68: =[1]Table_VCM!S65 -> 2000 | T68: =[1]Table_VCM!T65 -> 7200 | U68: =[1]Table_VCM!U65 -> 6000 | V68: =[1]Table_VCM!V65 -> 14222 | W68: =[1]Table_VCM!W65 -> 1600 | X68: =[1]Table_VCM!X65 -> 12164 | Y68: =[1]Table_VCM!Y65 -> 0 | Z68: =[1]Table_VCM!Z65 -> 200 | AA68: =[1]Table_VCM!AA65 -> 1000 | AB68: =[1]Table_VCM!AB65 -> 600 | AC68: =[1]Table_VCM!AC65 -> 3722 | AD68: =[1]Table_VCM!AD65 -> 1500 | AE68: =[1]Table_VCM!AE65 -> 300 | AF68: =[1]Table_VCM!AF65 -> 9875 | AG68: =[1]Table_VCM!AG65 -> 4267 | AH68: =[1]Table_VCM!AH65 -> 89033 | AJ68: =[1]Table_VCM!AJ65 -> 20001 | AL68: =[1]Table_VCM!AL65 -> 15917.3832 | AN68: 4200.21
D69: 2013 | E69: 11 | F69: 2014 | G69: 2014 | H69: =[1]Table_VCM!H66 -> 476 | I69: =[1]Table_VCM!I66 -> 900 | J69: =[1]Table_VCM!J66 -> 500 | K69: =[1]Table_VCM!K66 -> 8000 | L69: =[1]Table_VCM!L66 -> 3000 | M69: =[1]Table_VCM!M66 -> 50 | N69: =[1]Table_VCM!N66 -> 4174 | O69: =[1]Table_VCM!O66 -> 600 | P69: =[1]Table_VCM!P66 -> 500 | Q69: =[1]Table_VCM!Q66 -> 1300 | R69: =[1]Table_VCM!R66 -> 0 | S69: =[1]Table_VCM!S66 -> 2000 | T69: =[1]Table_VCM!T66 -> 6000 | U69: =[1]Table_VCM!U66 -> 6000 | V69: =[1]Table_VCM!V66 -> 11794 | W69: =[1]Table_VCM!W66 -> 1300 | X69: =[1]Table_VCM!X66 -> 9793 | Y69: =[1]Table_VCM!Y66 -> 0 | Z69: =[1]Table_VCM!Z66 -> 0 | AA69: =[1]Table_VCM!AA66 -> 1000 | AB69: =[1]Table_VCM!AB66 -> 500 | AC69: =[1]Table_VCM!AC66 -> 2363 | AD69: =[1]Table_VCM!AD66 -> 1300 | AE69: =[1]Table_VCM!AE66 -> 400 | AF69: =[1]Table_VCM!AF66 -> 8663 | AG69: =[1]Table_VCM!AG66 -> 3701 | AH69: =[1]Table_VCM!AH66 -> 74314 | AJ69: =[1]Table_VCM!AJ66 -> 18000 | AL69: =[1]Table_VCM!AL66 -> 13468.37137 | AN69: 3780
D70: 2013 | E70: 12 | F70: 2014 | G70: 2014 | H70: =[1]Table_VCM!H67 -> 614 | I70: =[1]Table_VCM!I67 -> 700 | J70: =[1]Table_VCM!J67 -> 400 | K70: =[1]Table_VCM!K67 -> 6000 | L70: =[1]Table_VCM!L67 -> 2700 | M70: =[1]Table_VCM!M67 -> 50 | N70: =[1]Table_VCM!N67 -> 2352 | O70: =[1]Table_VCM!O67 -> 500 | P70: =[1]Table_VCM!P67 -> 400 | Q70: =[1]Table_VCM!Q67 -> 1200 | R70: =[1]Table_VCM!R67 -> 0 | S70: =[1]Table_VCM!S67 -> 1500 | T70: =[1]Table_VCM!T67 -> 4000 | U70: =[1]Table_VCM!U67 -> 6000 | V70: =[1]Table_VCM!V67 -> 10934 | W70: =[1]Table_VCM!W67 -> 1000 | X70: =[1]Table_VCM!X67 -> 6983 | Y70: =[1]Table_VCM!Y67 -> 0 | Z70: =[1]Table_VCM!Z67 -> 0 | AA70: =[1]Table_VCM!AA67 -> 600 | AB70: =[1]Table_VCM!AB67 -> 300 | AC70: =[1]Table_VCM!AC67 -> 1804 | AD70: =[1]Table_VCM!AD67 -> 1200 | AE70: =[1]Table_VCM!AE67 -> 300 | AF70: =[1]Table_VCM!AF67 -> 8162 | AG70: =[1]Table_VCM!AG67 -> 2743 | AH70: =[1]Table_VCM!AH67 -> 60442 | AJ70: =[1]Table_VCM!AJ67 -> 12000 | AL70: =[1]Table_VCM!AL67 -> 10512.74976 | AN70: 2520
D71: 2014 | E71: 1 | F71: 2014 | G71: 2014 | H71: =[1]Table_VCM!H68 -> 577.1843812 | I71: =[1]Table_VCM!I68 -> 767.650946 | J71: =[1]Table_VCM!J68 -> 459.0507102 | K71: =[1]Table_VCM!K68 -> 6983.330829 | L71: =[1]Table_VCM!L68 -> 2733.814299 | M71: =[1]Table_VCM!M68 -> 197.3256624 | N71: =[1]Table_VCM!N68 -> 3720.22841 | O71: =[1]Table_VCM!O68 -> 516.1761596 | P71: =[1]Table_VCM!P68 -> 253.9471807 | Q71: =[1]Table_VCM!Q68 -> 1040.507424 | R71: =[1]Table_VCM!R68 -> 0 | S71: =[1]Table_VCM!S68 -> 1695.521642 | T71: =[1]Table_VCM!T68 -> 1716.203397 | U71: =[1]Table_VCM!U68 -> 6183.405 | V71: =[1]Table_VCM!V68 -> 8546.080349 | W71: =[1]Table_VCM!W68 -> 1202.455679 | X71: =[1]Table_VCM!X68 -> 7834.956122 | Y71: =[1]Table_VCM!Y68 -> 0 | Z71: =[1]Table_VCM!Z68 -> 0.2250693976 | AA71: =[1]Table_VCM!AA68 -> 673.6836993 | AB71: =[1]Table_VCM!AB68 -> 285.7021664 | AC71: =[1]Table_VCM!AC68 -> 1885.639115 | AD71: =[1]Table_VCM!AD68 -> 1039.257325 | AE71: =[1]Table_VCM!AE68 -> 0 | AF71: =[1]Table_VCM!AF68 -> 8865.153171 | AG71: =[1]Table_VCM!AG68 -> 2434.534851 | AH71: =[1]Table_VCM!AH68 -> 59612.03359 | AJ71: =[1]Table_VCM!AJ68 -> 8788.576942 | AL71: =[1]Table_VCM!AL68 -> 10833.28584 | AN71: 1845.601158
D72: 2014 | E72: 2 | F72: 2014 | G72: 2014 | H72: =[1]Table_VCM!H69 -> 1052.748965 | I72: =[1]Table_VCM!I69 -> 658.4577947 | J72: =[1]Table_VCM!J69 -> 514.3127542 | K72: =[1]Table_VCM!K69 -> 4381.021378 | L72: =[1]Table_VCM!L69 -> 2321.06533 | M72: =[1]Table_VCM!M69 -> 188.8478169 | N72: =[1]Table_VCM!N69 -> 3338.666522 | O72: =[1]Table_VCM!O69 -> 438.3467729 | P72: =[1]Table_VCM!P69 -> 308.2132747 | Q72: =[1]Table_VCM!Q69 -> 891.7952689 | R72: =[1]Table_VCM!R69 -> 0 | S72: =[1]Table_VCM!S69 -> 1219.742053 | T72: =[1]Table_VCM!T69 -> 1193.907121 | U72: =[1]Table_VCM!U69 -> 4916.08 | V72: =[1]Table_VCM!V69 -> 7667.151065 | W72: =[1]Table_VCM!W69 -> 1024.689854 | X72: =[1]Table_VCM!X69 -> 6059.49821 | Y72: =[1]Table_VCM!Y69 -> 0 | Z72: =[1]Table_VCM!Z69 -> 1.929166265 | AA72: =[1]Table_VCM!AA69 -> 659.3521359 | AB72: =[1]Table_VCM!AB69 -> 247.8017008 | AC72: =[1]Table_VCM!AC69 -> 1738.959196 | AD72: =[1]Table_VCM!AD69 -> 841.6665108 | AE72: =[1]Table_VCM!AE69 -> 0 | AF72: =[1]Table_VCM!AF69 -> 7988.623634 | AG72: =[1]Table_VCM!AG69 -> 2101.299275 | AH72: =[1]Table_VCM!AH69 -> 49754.1758 | AJ72: =[1]Table_VCM!AJ69 -> 7906.133214 | AL72: =[1]Table_VCM!AL69 -> 9956.918566 | AN72: 1660.287975
D73: 2014 | E73: 3 | F73: 2014 | G73: 2014 | H73: =[1]Table_VCM!H70 -> 1166.217711 | I73: =[1]Table_VCM!I70 -> 841.655972 | J73: =[1]Table_VCM!J70 -> 655.0797518 | K73: =[1]Table_VCM!K70 -> 7439.327887 | L73: =[1]Table_VCM!L70 -> 2682.868296 | M73: =[1]Table_VCM!M70 -> 212.6568561 | N73: =[1]Table_VCM!N70 -> 5094.896582 | O73: =[1]Table_VCM!O70 -> 550.0250349 | P73: =[1]Table_VCM!P70 -> 598.6653627 | Q73: =[1]Table_VCM!Q70 -> 1108.813114 | R73: =[1]Table_VCM!R70 -> 0 | S73: =[1]Table_VCM!S70 -> 1577.244975 | T73: =[1]Table_VCM!T70 -> 1448.046616 | U73: =[1]Table_VCM!U70 -> 3105.15 | V73: =[1]Table_VCM!V70 -> 10739.26082 | W73: =[1]Table_VCM!W70 -> 1362.136147 | X73: =[1]Table_VCM!X70 -> 9156.575073 | Y73: =[1]Table_VCM!Y70 -> 0 | Z73: =[1]Table_VCM!Z70 -> 4.801480482 | AA73: =[1]Table_VCM!AA70 -> 806.0752742 | AB73: =[1]Table_VCM!AB70 -> 285.2323259 | AC73: =[1]Table_VCM!AC70 -> 1850.688041 | AD73: =[1]Table_VCM!AD70 -> 1032.807773 | AE73: =[1]Table_VCM!AE70 -> 0 | AF73: =[1]Table_VCM!AF70 -> 9364.442148 | AG73: =[1]Table_VCM!AG70 -> 2886.50954 | AH73: =[1]Table_VCM!AH70 -> 63969.17678 | AJ73: =[1]Table_VCM!AJ70 -> 11533.52502 | AL73: =[1]Table_VCM!AL70 -> 12628.10582 | AN73: 2422.040254
D74: 2014 | E74: 4 | F74: 2014 | G74: 2014 | H74: =[1]Table_VCM!H71 -> 1232.290662 | I74: =[1]Table_VCM!I71 -> 925.3377325 | J74: =[1]Table_VCM!J71 -> 716.8486036 | K74: =[1]Table_VCM!K71 -> 8543.207289 | L74: =[1]Table_VCM!L71 -> 2889.674527 | M74: =[1]Table_VCM!M71 -> 205.1435559 | N74: =[1]Table_VCM!N71 -> 6547.967883 | O74: =[1]Table_VCM!O71 -> 649.7295452 | P74: =[1]Table_VCM!P71 -> 723.3715675 | Q74: =[1]Table_VCM!Q71 -> 1240.647873 | R74: =[1]Table_VCM!R71 -> 0 | S74: =[1]Table_VCM!S71 -> 1553.63419 | T74: =[1]Table_VCM!T71 -> 2246.422486 | U74: =[1]Table_VCM!U71 -> 3094.9625 | V74: =[1]Table_VCM!V71 -> 12449.48848 | W74: =[1]Table_VCM!W71 -> 1680.173764 | X74: =[1]Table_VCM!X71 -> 10448.27058 | Y74: =[1]Table_VCM!Y71 -> 0 | Z74: =[1]Table_VCM!Z71 -> 20.65279663 | AA74: =[1]Table_VCM!AA71 -> 648.82896 | AB74: =[1]Table_VCM!AB71 -> 320.0396749 | AC74: =[1]Table_VCM!AC71 -> 2258.641566 | AD74: =[1]Table_VCM!AD71 -> 1187.157275 | AE74: =[1]Table_VCM!AE71 -> 0 | AF74: =[1]Table_VCM!AF71 -> 9964.821733 | AG74: =[1]Table_VCM!AG71 -> 4099.946672 | AH74: =[1]Table_VCM!AH71 -> 73647.25991 | AJ74: =[1]Table_VCM!AJ71 -> 15983.26129 | AL74: =[1]Table_VCM!AL71 -> 14722.47507 | AN74: 3356.484871
D75: 2014 | E75: 5 | F75: 2014 | G75: 2015 | H75: =[1]Table_VCM!H72 -> 1031.260194 | I75: =[1]Table_VCM!I72 -> 1006.710272 | J75: =[1]Table_VCM!J72 -> 992.2071181 | K75: =[1]Table_VCM!K72 -> 10722.93791 | L75: =[1]Table_VCM!L72 -> 3272.20129 | M75: =[1]Table_VCM!M72 -> 220.652429 | N75: =[1]Table_VCM!N72 -> 9454.110483 | O75: =[1]Table_VCM!O72 -> 711.1334006 | P75: =[1]Table_VCM!P72 -> 887.0768036 | Q75: =[1]Table_VCM!Q72 -> 1488.554538 | R75: =[1]Table_VCM!R72 -> 0 | S75: =[1]Table_VCM!S72 -> 2187.338745 | T75: =[1]Table_VCM!T72 -> 2389.642585 | U75: =[1]Table_VCM!U72 -> 3362.2825 | V75: =[1]Table_VCM!V72 -> 15602.94046 | W75: =[1]Table_VCM!W72 -> 2117.530625 | X75: =[1]Table_VCM!X72 -> 13310.9471 | Y75: =[1]Table_VCM!Y72 -> 0.5126428916 | Z75: =[1]Table_VCM!Z72 -> 40.99478313 | AA75: =[1]Table_VCM!AA72 -> 848.8695229 | AB75: =[1]Table_VCM!AB72 -> 366.1623489 | AC75: =[1]Table_VCM!AC72 -> 3221.228534 | AD75: =[1]Table_VCM!AD72 -> 1373.021631 | AE75: =[1]Table_VCM!AE72 -> 0 | AF75: =[1]Table_VCM!AF72 -> 11361.59806 | AG75: =[1]Table_VCM!AG72 -> 5476.554327 | AH75: =[1]Table_VCM!AH72 -> 91446.46829 | AJ75: =[1]Table_VCM!AJ72 -> 18249.31632 | AL75: =[1]Table_VCM!AL72 -> 16192.98964 | AN75: =AJ75*0.21 -> 3832.356426
D76: 2014 | E76: 6 | F76: 2014 | G76: 2015 | H76: =[1]Table_VCM!H73 -> 1194.936349 | I76: =[1]Table_VCM!I73 -> 978.6697349 | J76: =[1]Table_VCM!J73 -> 1225.179052 | K76: =[1]Table_VCM!K73 -> 11072.21225 | L76: =[1]Table_VCM!L73 -> 3333.077446 | M76: =[1]Table_VCM!M73 -> 242.6339088 | N76: =[1]Table_VCM!N73 -> 10894.1146 | O76: =[1]Table_VCM!O73 -> 698.7758747 | P76: =[1]Table_VCM!P73 -> 994.5508783 | Q76: =[1]Table_VCM!Q73 -> 1682.485379 | R76: =[1]Table_VCM!R73 -> 0 | S76: =[1]Table_VCM!S73 -> 2161.277784 | T76: =[1]Table_VCM!T73 -> 2555.412231 | U76: =[1]Table_VCM!U73 -> 2931.1475 | V76: =[1]Table_VCM!V73 -> 18815.16949 | W76: =[1]Table_VCM!W73 -> 2303.898022 | X76: =[1]Table_VCM!X73 -> 12637.66952 | Y76: =[1]Table_VCM!Y73 -> 3.75966506 | Z76: =[1]Table_VCM!Z73 -> 135.8347402 | AA76: =[1]Table_VCM!AA73 -> 855.3838699 | AB76: =[1]Table_VCM!AB73 -> 363.7348398 | AC76: =[1]Table_VCM!AC73 -> 3768.413389 | AD76: =[1]Table_VCM!AD73 -> 1354.699041 | AE76: =[1]Table_VCM!AE73 -> 0 | AF76: =[1]Table_VCM!AF73 -> 11465.15429 | AG76: =[1]Table_VCM!AG73 -> 6316.154766 | AH76: =[1]Table_VCM!AH73 -> 97984.34461 | AJ76: =[1]Table_VCM!AJ73 -> 24586.80842 | AL76: =[1]Table_VCM!AL73 -> 18324.4931 | AN76: 5163.229768
D77: 2014 | E77: 7 | F77: 2015 | G77: 2015 | H77: =[1]Table_VCM!H74 -> 795.1838586 | I77: =[1]Table_VCM!I74 -> 1035.242856 | J77: =[1]Table_VCM!J74 -> 765.5815811 | K77: =[1]Table_VCM!K74 -> 11554.92097 | L77: =[1]Table_VCM!L74 -> 3615.917276 | M77: =[1]Table_VCM!M74 -> 230.5902098 | N77: =[1]Table_VCM!N74 -> 12109.31613 | O77: =[1]Table_VCM!O74 -> 789.4963593 | P77: =[1]Table_VCM!P74 -> 794.8639082 | Q77: =[1]Table_VCM!Q74 -> 1682.855922 | R77: =[1]Table_VCM!R74 -> 0 | S77: =[1]Table_VCM!S74 -> 2284.857562 | T77: =[1]Table_VCM!T74 -> 2728.935575 | U77: =[1]Table_VCM!U74 -> 2899.939143 | V77: =[1]Table_VCM!V74 -> 21219.73764 | W77: =[1]Table_VCM!W74 -> 2623.047361 | X77: =[1]Table_VCM!X74 -> 13900.30742 | Y77: =[1]Table_VCM!Y74 -> 6.823706191 | Z77: =[1]Table_VCM!Z74 -> 202.9970852 | AA77: =[1]Table_VCM!AA74 -> 1038.840882 | AB77: =[1]Table_VCM!AB74 -> 382.4393334 | AC77: =[1]Table_VCM!AC74 -> 4587.374867 | AD77: =[1]Table_VCM!AD74 -> 1434.747277 | AE77: =[1]Table_VCM!AE74 -> 0 | AF77: =[1]Table_VCM!AF74 -> 12031.00218 | AG77: =[1]Table_VCM!AG74 -> 7373.366019 | AH77: =[1]Table_VCM!AH74 -> 106088.3851 | AJ77: =[1]Table_VCM!AJ74 -> 28902.72095 | AL77: =[1]Table_VCM!AL74 -> 18425.99326 | AN77: 6069.5714
D78: 2014 | E78: 8 | F78: 2015 | G78: 2015 | H78: =[1]Table_VCM!H75 -> 845.6624418 | I78: =[1]Table_VCM!I75 -> 1098.73832 | J78: =[1]Table_VCM!J75 -> 1154.367817 | K78: =[1]Table_VCM!K75 -> 11499.47409 | L78: =[1]Table_VCM!L75 -> 3733.654559 | M78: =[1]Table_VCM!M75 -> 219.3575278 | N78: =[1]Table_VCM!N75 -> 11967.28624 | O78: =[1]Table_VCM!O75 -> 797.0196287 | P78: =[1]Table_VCM!P75 -> 864.3970802 | Q78: =[1]Table_VCM!Q75 -> 1618.112865 | R78: =[1]Table_VCM!R75 -> 0 | S78: =[1]Table_VCM!S75 -> 2241.192356 | T78: =[1]Table_VCM!T75 -> 2828.594362 | U78: =[1]Table_VCM!U75 -> 2998.01427 | V78: =[1]Table_VCM!V75 -> 21560.06218 | W78: =[1]Table_VCM!W75 -> 2684.47654 | X78: =[1]Table_VCM!X75 -> 15274.85035 | Y78: =[1]Table_VCM!Y75 -> 20.61284869 | Z78: =[1]Table_VCM!Z75 -> 259.4851299 | AA78: =[1]Table_VCM!AA75 -> 1057.806706 | AB78: =[1]Table_VCM!AB75 -> 388.0628824 | AC78: =[1]Table_VCM!AC75 -> 4663.553092 | AD78: =[1]Table_VCM!AD75 -> 1341.572632 | AE78: =[1]Table_VCM!AE75 -> 0 | AF78: =[1]Table_VCM!AF75 -> 12074.0726 | AG78: =[1]Table_VCM!AG75 -> 7239.548124 | AH78: =[1]Table_VCM!AH75 -> 108429.9746 | AJ78: =[1]Table_VCM!AJ75 -> 29324.03755 | AL78: =[1]Table_VCM!AL75 -> 18916.16479 | AN78: 6158.047885
D79: 2014 | E79: 9 | F79: 2015 | G79: 2015 | H79: =[1]Table_VCM!H76 -> 637.1215769 | I79: =[1]Table_VCM!I76 -> 1066.08351 | J79: =[1]Table_VCM!J76 -> 1407.854303 | K79: =[1]Table_VCM!K76 -> 10903.15856 | L79: =[1]Table_VCM!L76 -> 3350.275149 | M79: =[1]Table_VCM!M76 -> 191.1033914 | N79: =[1]Table_VCM!N76 -> 10591.3717 | O79: =[1]Table_VCM!O76 -> 777.5783088 | P79: =[1]Table_VCM!P76 -> 736.9195982 | Q79: =[1]Table_VCM!Q76 -> 1514.276746 | R79: =[1]Table_VCM!R76 -> 0 | S79: =[1]Table_VCM!S76 -> 2079.28523 | T79: =[1]Table_VCM!T76 -> 2631.346852 | U79: =[1]Table_VCM!U76 -> 2816.496192 | V79: =[1]Table_VCM!V76 -> 19449.77669 | W79: =[1]Table_VCM!W76 -> 2418.8542 | X79: =[1]Table_VCM!X76 -> 14974.77408 | Y79: =[1]Table_VCM!Y76 -> 7.84226231 | Z79: =[1]Table_VCM!Z76 -> 239.4319261 | AA79: =[1]Table_VCM!AA76 -> 1027.655908 | AB79: =[1]Table_VCM!AB76 -> 361.8449848 | AC79: =[1]Table_VCM!AC76 -> 4116.40438 | AD79: =[1]Table_VCM!AD76 -> 1390.222599 | AE79: =[1]Table_VCM!AE76 -> 0 | AF79: =[1]Table_VCM!AF76 -> 11158.82631 | AG79: =[1]Table_VCM!AG76 -> 6471.582092 | AH79: =[1]Table_VCM!AH76 -> 100320.0866 | AJ79: =[1]Table_VCM!AJ76 -> 23730.64741 | AL79: =[1]Table_VCM!AL76 -> 17804.6142 | AN79: 4983.435955
D80: 2014 | E80: 10 | F80: 2015 | G80: 2015 | H80: =[1]Table_VCM!H77 -> 395.6429493 | I80: =[1]Table_VCM!I77 -> 943.1477537 | J80: =[1]Table_VCM!J77 -> 1068.238891 | K80: =[1]Table_VCM!K77 -> 9396.677242 | L80: =[1]Table_VCM!L77 -> 2945.946045 | M80: =[1]Table_VCM!M77 -> 201.4739158 | N80: =[1]Table_VCM!N77 -> 8008.203096 | O80: =[1]Table_VCM!O77 -> 628.2302382 | P80: =[1]Table_VCM!P77 -> 581.2034335 | Q80: =[1]Table_VCM!Q77 -> 1295.479208 | R80: =[1]Table_VCM!R77 -> 0 | S80: =[1]Table_VCM!S77 -> 1913.703311 | T80: =[1]Table_VCM!T77 -> 3966.833745 | U80: =[1]Table_VCM!U77 -> 2765.876772 | V80: =[1]Table_VCM!V77 -> 13570.94453 | W80: =[1]Table_VCM!W77 -> 1830.675159 | X80: =[1]Table_VCM!X77 -> 12419.28581 | Y80: =[1]Table_VCM!Y77 -> 1.658614306 | Z80: =[1]Table_VCM!Z77 -> 104.114404 | AA80: =[1]Table_VCM!AA77 -> 945.4706684 | AB80: =[1]Table_VCM!AB77 -> 346.1522431 | AC80: =[1]Table_VCM!AC77 -> 3008.761867 | AD80: =[1]Table_VCM!AD77 -> 1304.587277 | AE80: =[1]Table_VCM!AE77 -> 0 | AF80: =[1]Table_VCM!AF77 -> 10217.25921 | AG80: =[1]Table_VCM!AG77 -> 4608.53962 | AH80: =[1]Table_VCM!AH77 -> 82468.106 | AJ80: =[1]Table_VCM!AJ77 -> 15748.63945 | AL80: =[1]Table_VCM!AL77 -> 17151.05217 | AN80: 3307.214284
D81: 2014 | E81: 11 | F81: 2015 | G81: 2015 | H81: =[1]Table_VCM!H78 -> 500.6929737 | I81: =[1]Table_VCM!I78 -> 822.5597291 | J81: =[1]Table_VCM!J78 -> 1036.576827 | K81: =[1]Table_VCM!K78 -> 7793.948503 | L81: =[1]Table_VCM!L78 -> 2720.108338 | M81: =[1]Table_VCM!M78 -> 195.8083087 | N81: =[1]Table_VCM!N78 -> 5436.447612 | O81: =[1]Table_VCM!O78 -> 552.4761296 | P81: =[1]Table_VCM!P78 -> 398.3487944 | Q81: =[1]Table_VCM!Q78 -> 1125.509369 | R81: =[1]Table_VCM!R78 -> 0 | S81: =[1]Table_VCM!S78 -> 1685.649883 | T81: =[1]Table_VCM!T78 -> 2918.790001 | U81: =[1]Table_VCM!U78 -> 2572.099303 | V81: =[1]Table_VCM!V78 -> 11292.63567 | W81: =[1]Table_VCM!W78 -> 1420.790565 | X81: =[1]Table_VCM!X78 -> 9742.799037 | Y81: =[1]Table_VCM!Y78 -> 0.04751884534 | Z81: =[1]Table_VCM!Z78 -> 10.38023728 | AA81: =[1]Table_VCM!AA78 -> 850.0579819 | AB81: =[1]Table_VCM!AB78 -> 308.3072778 | AC81: =[1]Table_VCM!AC78 -> 2218.065254 | AD81: =[1]Table_VCM!AD78 -> 1121.083015 | AE81: =[1]Table_VCM!AE78 -> 0 | AF81: =[1]Table_VCM!AF78 -> 8793.542766 | AG81: =[1]Table_VCM!AG78 -> 3743.183898 | AH81: =[1]Table_VCM!AH78 -> 67259.90899 | AJ81: =[1]Table_VCM!AJ78 -> 13405.52839 | AL81: =[1]Table_VCM!AL78 -> 14353.60861 | AN81: 2815.160962
D82: 2014 | E82: 12 | F82: 2015 | G82: 2015 | H82: =[1]Table_VCM!H79 -> 549.0276788 | I82: =[1]Table_VCM!I79 -> 680.201831 | J82: =[1]Table_VCM!J79 -> 681.0901194 | K82: =[1]Table_VCM!K79 -> 5777.983568 | L82: =[1]Table_VCM!L79 -> 2568.851543 | M82: =[1]Table_VCM!M79 -> 195.1432156 | N82: =[1]Table_VCM!N79 -> 3430.275435 | O82: =[1]Table_VCM!O79 -> 445.0646992 | P82: =[1]Table_VCM!P79 -> 304.3909956 | Q82: =[1]Table_VCM!Q79 -> 982.8892224 | R82: =[1]Table_VCM!R79 -> 0 | S82: =[1]Table_VCM!S79 -> 1324.006865 | T82: =[1]Table_VCM!T79 -> 2099.044724 | U82: =[1]Table_VCM!U79 -> 2597.804477 | V82: =[1]Table_VCM!V79 -> 8807.982972 | W82: =[1]Table_VCM!W79 -> 1021.39388 | X82: =[1]Table_VCM!X79 -> 6712.996654 | Y82: =[1]Table_VCM!Y79 -> 0.189662174 | Z82: =[1]Table_VCM!Z79 -> 25.29532772 | AA82: =[1]Table_VCM!AA79 -> 446.7181134 | AB82: =[1]Table_VCM!AB79 -> 199.4080101 | AC82: =[1]Table_VCM!AC79 -> 1563.043727 | AD82: =[1]Table_VCM!AD79 -> 1006.00166 | AE82: =[1]Table_VCM!AE79 -> 0 | AF82: =[1]Table_VCM!AF79 -> 8098.434148 | AG82: =[1]Table_VCM!AG79 -> 2209.482134 | AH82: =[1]Table_VCM!AH79 -> 51726.72066 | AJ82: =[1]Table_VCM!AJ79 -> 9880.629882 | AL82: =[1]Table_VCM!AL79 -> 11390.29894 | AN82: 2074.932275
D83: 2015 | E83: 1 | F83: 2015 | G83: 2015 | H83: =[1]Table_VCM!H80 -> 515.5479966 | I83: =[1]Table_VCM!I80 -> 728.4816179 | J83: =[1]Table_VCM!J80 -> 435.17344 | K83: =[1]Table_VCM!K80 -> 7642.082 | L83: =[1]Table_VCM!L80 -> 2736.468543 | M83: =[1]Table_VCM!M80 -> 199.3236889 | N83: =[1]Table_VCM!N80 -> 3696.559888 | O83: =[1]Table_VCM!O80 -> 522.5635356 | P83: =[1]Table_VCM!P80 -> 220.9612909 | Q83: =[1]Table_VCM!Q80 -> 1008.283084 | R83: =[1]Table_VCM!R80 -> 0 | S83: =[1]Table_VCM!S80 -> 1668.126384 | T83: =[1]Table_VCM!T80 -> 1634.076159 | U83: =[1]Table_VCM!U80 -> 6043.574814 | V83: =[1]Table_VCM!V80 -> 7325.773128 | W83: =[1]Table_VCM!W80 -> 1175.319227 | X83: =[1]Table_VCM!X80 -> 7708.993143 | Y83: =[1]Table_VCM!Y80 -> 0 | Z83: =[1]Table_VCM!Z80 -> 0.2127375947 | AA83: =[1]Table_VCM!AA80 -> 578.7693513 | AB83: =[1]Table_VCM!AB80 -> 277.5538517 | AC83: =[1]Table_VCM!AC80 -> 1872.524639 | AD83: =[1]Table_VCM!AD80 -> 983.9445858 | AE83: =[1]Table_VCM!AE80 -> 0 | AF83: =[1]Table_VCM!AF80 -> 8617.526245 | AG83: =[1]Table_VCM!AG80 -> 2471.979356 | AH83: =[1]Table_VCM!AH80 -> 58063.81871 | AJ83: =[1]Table_VCM!AJ80 -> 7530.707677 | AL83: =[1]Table_VCM!AL80 -> 10893.23762 | AN83: 1581.448612
D84: 2015 | E84: 2 | F84: 2015 | G84: 2015 | H84: =[1]Table_VCM!H81 -> 940.3279744 | I84: =[1]Table_VCM!I81 -> 624.8600384 | J84: =[1]Table_VCM!J81 -> 487.5610591 | K84: =[1]Table_VCM!K81 -> 5037.644914 | L84: =[1]Table_VCM!L81 -> 2323.318839 | M84: =[1]Table_VCM!M81 -> 190.7600007 | N84: =[1]Table_VCM!N81 -> 3317.42554 | O84: =[1]Table_VCM!O81 -> 447.4292376 | P84: =[1]Table_VCM!P81 -> 268.1786144 | Q84: =[1]Table_VCM!Q81 -> 864.1765193 | R84: =[1]Table_VCM!R81 -> 0 | S84: =[1]Table_VCM!S81 -> 1200.034167 | T84: =[1]Table_VCM!T81 -> 1136.773862 | U84: =[1]Table_VCM!U81 -> 4804.908828 | V84: =[1]Table_VCM!V81 -> 6519.609796 | W84: =[1]Table_VCM!W81 -> 1001.565137 | X84: =[1]Table_VCM!X81 -> 5962.079357 | Y84: =[1]Table_VCM!Y81 -> 0 | Z84: =[1]Table_VCM!Z81 -> 1.823465097 | AA84: =[1]Table_VCM!AA81 -> 566.4569417 | AB84: =[1]Table_VCM!AB81 -> 240.7343193 | AC84: =[1]Table_VCM!AC81 -> 1726.864868 | AD84: =[1]Table_VCM!AD81 -> 796.8702132 | AE84: =[1]Table_VCM!AE81 -> 0 | AF84: =[1]Table_VCM!AF81 -> 7765.480471 | AG84: =[1]Table_VCM!AG81 -> 2133.618431 | AH84: =[1]Table_VCM!AH81 -> 48358.50259 | AJ84: =[1]Table_VCM!AJ81 -> 6721.574279 | AL84: =[1]Table_VCM!AL81 -> 10012.0205 | AN84: 1411.530599
D85: 2015 | E85: 3 | F85: 2015 | G85: 2015 | H85: =[1]Table_VCM!H82 -> 1041.679616 | I85: =[1]Table_VCM!I82 -> 798.7105434 | J85: =[1]Table_VCM!J82 -> 621.0061388 | K85: =[1]Table_VCM!K82 -> 8098.451879 | L85: =[1]Table_VCM!L82 -> 2685.473078 | M85: =[1]Table_VCM!M82 -> 214.8101191 | N85: =[1]Table_VCM!N82 -> 5062.482263 | O85: =[1]Table_VCM!O82 -> 555.2402864 | P85: =[1]Table_VCM!P82 -> 520.9030908 | Q85: =[1]Table_VCM!Q82 -> 1074.473358 | R85: =[1]Table_VCM!R82 -> 0 | S85: =[1]Table_VCM!S82 -> 1551.760762 | T85: =[1]Table_VCM!T82 -> 1378.751759 | U85: =[1]Table_VCM!U82 -> 3034.930808 | V85: =[1]Table_VCM!V82 -> 9193.757448 | W85: =[1]Table_VCM!W82 -> 1331.396102 | X85: =[1]Table_VCM!X82 -> 9009.364361 | Y85: =[1]Table_VCM!Y82 -> 0 | Z85: =[1]Table_VCM!Z82 -> 4.53840202 | AA85: =[1]Table_VCM!AA82 -> 692.5084636 | AB85: =[1]Table_VCM!AB82 -> 277.0974113 | AC85: =[1]Table_VCM!AC82 -> 1837.816647 | AD85: =[1]Table_VCM!AD82 -> 977.8383007 | AE85: =[1]Table_VCM!AE82 -> 0 | AF85: =[1]Table_VCM!AF82 -> 9102.868775 | AG85: =[1]Table_VCM!AG82 -> 2930.905668 | AH85: =[1]Table_VCM!AH82 -> 61996.76528 | AJ85: =[1]Table_VCM!AJ82 -> 9864.992346 | AL85: =[1]Table_VCM!AL82 -> 12697.99019 | AN85: 2071.648393
D86: 2015 | E86: 4 | F86: 2015 | G86: 2015 | H86: =[1]Table_VCM!H83 -> 1100.696767 | I86: =[1]Table_VCM!I83 -> 878.1224487 | J86: =[1]Table_VCM!J83 -> 679.5621177 | K86: =[1]Table_VCM!K83 -> 9203.233807 | L86: =[1]Table_VCM!L83 -> 2892.480095 | M86: =[1]Table_VCM!M83 -> 207.2207427 | N86: =[1]Table_VCM!N83 -> 6506.308956 | O86: =[1]Table_VCM!O83 -> 651.4922125 | P86: =[1]Table_VCM!P83 -> 629.4108676 | Q86: =[1]Table_VCM!Q83 -> 1202.225217 | R86: =[1]Table_VCM!R83 -> 0 | S86: =[1]Table_VCM!S83 -> 1528.531467 | T86: =[1]Table_VCM!T83 -> 2138.922132 | U86: =[1]Table_VCM!U83 -> 3024.973686 | V86: =[1]Table_VCM!V83 -> 10549.68849 | W86: =[1]Table_VCM!W83 -> 1642.256396 | X86: =[1]Table_VCM!X83 -> 10280.29321 | Y86: =[1]Table_VCM!Y83 -> 0 | Z86: =[1]Table_VCM!Z83 -> 19.5212069 | AA86: =[1]Table_VCM!AA83 -> 557.4163612 | AB86: =[1]Table_VCM!AB83 -> 310.9120439 | AC86: =[1]Table_VCM!AC83 -> 2242.932886 | AD86: =[1]Table_VCM!AD83 -> 1123.972807 | AE86: =[1]Table_VCM!AE83 -> 0 | AF86: =[1]Table_VCM!AF83 -> 9686.478187 | AG86: =[1]Table_VCM!AG83 -> 4163.00614 | AH86: =[1]Table_VCM!AH83 -> 71219.65825 | AJ86: =[1]Table_VCM!AJ83 -> 13536.08977 | AL86: =[1]Table_VCM!AL83 -> 14803.94975 | AN86: 2842.578853
D87: 2015 | E87: 5 | F87: 2015 | G87: 2016 | H87: =[1]Table_VCM!H84 -> 921.1339466 | I87: =[1]Table_VCM!I84 -> 955.3429611 | J87: =[1]Table_VCM!J84 -> 960.7086218 | K87: =[1]Table_VCM!K84 -> 11384.74656 | L87: =[1]Table_VCM!L84 -> 3275.378252 | M87: =[1]Table_VCM!M84 -> 222.8866514 | N87: =[1]Table_VCM!N84 -> 9393.962342 | O87: =[1]Table_VCM!O84 -> 710.7697652 | P87: =[1]Table_VCM!P84 -> 771.8519855 | Q87: =[1]Table_VCM!Q84 -> 1442.454254 | R87: =[1]Table_VCM!R84 -> 0 | S87: =[1]Table_VCM!S84 -> 2151.99699 | T87: =[1]Table_VCM!T84 -> 2275.288573 | U87: =[1]Table_VCM!U84 -> 3286.248569 | V87: =[1]Table_VCM!V84 -> 13309.68164 | W87: =[1]Table_VCM!W84 -> 2069.743195 | X87: =[1]Table_VCM!X84 -> 13096.94634 | Y87: =[1]Table_VCM!Y84 -> 0.1928628356 | Z87: =[1]Table_VCM!Z84 -> 38.74863332 | AA87: =[1]Table_VCM!AA84 -> 729.2734908 | AB87: =[1]Table_VCM!AB84 -> 355.7192848 | AC87: =[1]Table_VCM!AC84 -> 3198.825136 | AD87: =[1]Table_VCM!AD84 -> 1299.944843 | AE87: =[1]Table_VCM!AE84 -> 0 | AF87: =[1]Table_VCM!AF84 -> 11044.23889 | AG87: =[1]Table_VCM!AG84 -> 5560.786789 | AH87: =[1]Table_VCM!AH84 -> 88456.87058 | AJ87: =[1]Table_VCM!AJ84 -> 15546.14128 | AL87: =[1]Table_VCM!AL84 -> 16282.6022 | AN87: 3264.689668
D88: 2015 | E88: 6 | F88: 2015 | G88: 2016 | H88: =[1]Table_VCM!H85 -> 1067.331447 | I88: =[1]Table_VCM!I85 -> 928.7331899 | J88: =[1]Table_VCM!J85 -> 1198.689755 | K88: =[1]Table_VCM!K85 -> 11734.30647 | L88: =[1]Table_VCM!L85 -> 3336.313511 | M88: =[1]Table_VCM!M85 -> 245.0907052 | N88: =[1]Table_VCM!N85 -> 10824.80498 | O88: =[1]Table_VCM!O85 -> 698.8401577 | P88: =[1]Table_VCM!P85 -> 865.3659604 | Q88: =[1]Table_VCM!Q85 -> 1630.379089 | R88: =[1]Table_VCM!R85 -> 0 | S88: =[1]Table_VCM!S85 -> 2126.357107 | T88: =[1]Table_VCM!T85 -> 2433.125475 | U88: =[1]Table_VCM!U85 -> 2864.863163 | V88: =[1]Table_VCM!V85 -> 16358.59517 | W88: =[1]Table_VCM!W85 -> 2251.904741 | X88: =[1]Table_VCM!X85 -> 12434.49308 | Y88: =[1]Table_VCM!Y85 -> 1.414434251 | Z88: =[1]Table_VCM!Z85 -> 128.3922036 | AA88: =[1]Table_VCM!AA85 -> 734.8700406 | AB88: =[1]Table_VCM!AB85 -> 353.361009 | AC88: =[1]Table_VCM!AC85 -> 3742.204361 | AD88: =[1]Table_VCM!AD85 -> 1282.597442 | AE88: =[1]Table_VCM!AE85 -> 0 | AF88: =[1]Table_VCM!AF85 -> 11144.90253 | AG88: =[1]Table_VCM!AG85 -> 6413.300752 | AH88: =[1]Table_VCM!AH85 -> 94800.23677 | AJ88: =[1]Table_VCM!AJ85 -> 21966.93898 | AL88: =[1]Table_VCM!AL85 -> 18425.90147 | AN88: 4613.057185
D89: 2015 | E89: 7 | F89: 2016 | G89: 2016 | H89: =[1]Table_VCM!H86 -> 729.5798761 | I89: =[1]Table_VCM!I86 -> 1009.131604 | J89: =[1]Table_VCM!J86 -> 745.4936547 | K89: =[1]Table_VCM!K86 -> 12529.78804 | L89: =[1]Table_VCM!L86 -> 3717.839979 | M89: =[1]Table_VCM!M86 -> 239.2582757 | N89: =[1]Table_VCM!N86 -> 12359.43211 | O89: =[1]Table_VCM!O86 -> 807.0657822 | P89: =[1]Table_VCM!P86 -> 710.4218953 | Q89: =[1]Table_VCM!Q86 -> 1675.07783 | R89: =[1]Table_VCM!R86 -> 0 | S89: =[1]Table_VCM!S86 -> 2309.061513 | T89: =[1]Table_VCM!T86 -> 2668.993875 | U89: =[1]Table_VCM!U86 -> 2911.426639 | V89: =[1]Table_VCM!V86 -> 18949.68278 | W89: =[1]Table_VCM!W86 -> 2633.562641 | X89: =[1]Table_VCM!X86 -> 14048.70372 | Y89: =[1]Table_VCM!Y86 -> 2.636966938 | Z89: =[1]Table_VCM!Z86 -> 197.0917091 | AA89: =[1]Table_VCM!AA86 -> 916.7465315 | AB89: =[1]Table_VCM!AB86 -> 381.6339788 | AC89: =[1]Table_VCM!AC86 -> 4679.332983 | AD89: =[1]Table_VCM!AD86 -> 1395.319657 | AE89: =[1]Table_VCM!AE86 -> 0 | AF89: =[1]Table_VCM!AF86 -> 12012.92966 | AG89: =[1]Table_VCM!AG86 -> 7690.337401 | AH89: =[1]Table_VCM!AH86 -> 105320.5491 | AJ89: =[1]Table_VCM!AJ86 -> 26931.27263 | AL89: =[1]Table_VCM!AL86 -> 18527.96334 | AN89: 5655.567253
D90: 2015 | E90: 8 | F90: 2016 | G90: 2016 | H90: =[1]Table_VCM!H87 -> 775.8938928 | I90: =[1]Table_VCM!I87 -> 1071.025564 | J90: =[1]Table_VCM!J87 -> 1153.069467 | K90: =[1]Table_VCM!K87 -> 12472.787 | L90: =[1]Table_VCM!L87 -> 3838.895951 | M90: =[1]Table_VCM!M87 -> 227.6033485 | N90: =[1]Table_VCM!N87 -> 12214.46862 | O90: =[1]Table_VCM!O87 -> 814.5260084 | P90: =[1]Table_VCM!P87 -> 772.5682418 | Q90: =[1]Table_VCM!Q87 -> 1610.634013 | R90: =[1]Table_VCM!R87 -> 0 | S90: =[1]Table_VCM!S87 -> 2264.933753 | T90: =[1]Table_VCM!T87 -> 2766.463634 | U90: =[1]Table_VCM!U87 -> 3009.89027 | V90: =[1]Table_VCM!V87 -> 19276.37948 | W90: =[1]Table_VCM!W87 -> 2695.238078 | X90: =[1]Table_VCM!X87 -> 15437.92094 | Y90: =[1]Table_VCM!Y87 -> 7.96567129 | Z90: =[1]Table_VCM!Z87 -> 251.9364635 | AA90: =[1]Table_VCM!AA87 -> 933.483314 | AB90: =[1]Table_VCM!AB87 -> 387.2456855 | AC90: =[1]Table_VCM!AC87 -> 4757.03827 | AD90: =[1]Table_VCM!AD87 -> 1304.705501 | AE90: =[1]Table_VCM!AE87 -> 0 | AF90: =[1]Table_VCM!AF87 -> 12055.93538 | AG90: =[1]Table_VCM!AG87 -> 7550.766849 | AH90: =[1]Table_VCM!AH87 -> 107651.3754 | AJ90: =[1]Table_VCM!AJ87 -> 27218.51941 | AL90: =[1]Table_VCM!AL87 -> 19020.84749 | AN90: 5715.889075
D91: 2015 | E91: 9 | F91: 2016 | G91: 2016 | H91: =[1]Table_VCM!H88 -> 584.5579939 | I91: =[1]Table_VCM!I88 -> 1039.194384 | J91: =[1]Table_VCM!J88 -> 1426.312215 | K91: =[1]Table_VCM!K88 -> 11859.75689 | L91: =[1]Table_VCM!L88 -> 3444.710136 | M91: =[1]Table_VCM!M88 -> 198.2871171 | N91: =[1]Table_VCM!N88 -> 10810.13478 | O91: =[1]Table_VCM!O88 -> 795.2476021 | P91: =[1]Table_VCM!P88 -> 658.6332732 | Q91: =[1]Table_VCM!Q88 -> 1507.27782 | R91: =[1]Table_VCM!R88 -> 0 | S91: =[1]Table_VCM!S88 -> 2101.311513 | T91: =[1]Table_VCM!T88 -> 2573.54871 | U91: =[1]Table_VCM!U88 -> 2827.653147 | V91: =[1]Table_VCM!V88 -> 17395.97104 | W91: =[1]Table_VCM!W88 -> 2428.550911 | X91: =[1]Table_VCM!X88 -> 15134.64112 | Y91: =[1]Table_VCM!Y88 -> 3.030579842 | Z91: =[1]Table_VCM!Z88 -> 232.4666262 | AA91: =[1]Table_VCM!AA88 -> 906.8761213 | AB91: =[1]Table_VCM!AB88 -> 361.0829985 | AC91: =[1]Table_VCM!AC88 -> 4198.921463 | AD91: =[1]Table_VCM!AD88 -> 1352.018541 | AE91: =[1]Table_VCM!AE88 -> 0 | AF91: =[1]Table_VCM!AF88 -> 11142.06394 | AG91: =[1]Table_VCM!AG88 -> 6749.78696 | AH91: =[1]Table_VCM!AH88 -> 99732.03588 | AJ91: =[1]Table_VCM!AJ88 -> 21832.29367 | AL91: =[1]Table_VCM!AL88 -> 17903.14555 | AN91: 4584.78167
D92: 2015 | E92: 10 | F92: 2016 | G92: 2016 | H92: =[1]Table_VCM!H89 -> 363.0017521 | I92: =[1]Table_VCM!I89 -> 919.3593563 | J92: =[1]Table_VCM!J89 -> 1040.209606 | K92: =[1]Table_VCM!K89 -> 10311.04925 | L92: =[1]Table_VCM!L89 -> 3028.984113 | M92: =[1]Table_VCM!M89 -> 209.0474775 | N92: =[1]Table_VCM!N89 -> 8173.611245 | O92: =[1]Table_VCM!O89 -> 647.1510327 | P92: =[1]Table_VCM!P89 -> 519.4595458 | Q92: =[1]Table_VCM!Q89 -> 1289.491555 | R92: =[1]Table_VCM!R89 -> 0 | S92: =[1]Table_VCM!S89 -> 1933.975551 | T92: =[1]Table_VCM!T89 -> 3879.701326 | U92: =[1]Table_VCM!U89 -> 2776.833208 | V92: =[1]Table_VCM!V89 -> 11780.68032 | W92: =[1]Table_VCM!W89 -> 1838.013976 | X92: =[1]Table_VCM!X89 -> 12551.87108 | Y92: =[1]Table_VCM!Y89 -> 0.6409582952 | Z92: =[1]Table_VCM!Z89 -> 101.0856181 | AA92: =[1]Table_VCM!AA89 -> 834.3500639 | AB92: =[1]Table_VCM!AB89 -> 345.4233032 | AC92: =[1]Table_VCM!AC89 -> 3069.075245 | AD92: =[1]Table_VCM!AD89 -> 1268.736523 | AE92: =[1]Table_VCM!AE89 -> 0 | AF92: =[1]Table_VCM!AF89 -> 10201.91123 | AG92: =[1]Table_VCM!AG89 -> 4806.654723 | AH92: =[1]Table_VCM!AH89 -> 81890.31806 | AJ92: =[1]Table_VCM!AJ89 -> 13671.0961 | AL92: =[1]Table_VCM!AL89 -> 17245.96668 | AN92: 2870.930181
D93: 2015 | E93: 11 | F93: 2016 | G93: 2016 | H93: =[1]Table_VCM!H90 -> 459.3849759 | I93: =[1]Table_VCM!I90 -> 801.8128444 | J93: =[1]Table_VCM!J90 -> 1009.378316 | K93: =[1]Table_VCM!K90 -> 8663.396401 | L93: =[1]Table_VCM!L90 -> 2796.780666 | M93: =[1]Table_VCM!M90 -> 203.1688958 | N93: =[1]Table_VCM!N90 -> 5548.736565 | O93: =[1]Table_VCM!O90 -> 572.0317255 | P93: =[1]Table_VCM!P90 -> 356.0303879 | Q93: =[1]Table_VCM!Q90 -> 1120.30731 | R93: =[1]Table_VCM!R90 -> 0 | S93: =[1]Table_VCM!S90 -> 1703.506308 | T93: =[1]Table_VCM!T90 -> 2854.678104 | U93: =[1]Table_VCM!U90 -> 2582.288131 | V93: =[1]Table_VCM!V90 -> 9802.923485 | W93: =[1]Table_VCM!W90 -> 1426.486235 | X93: =[1]Table_VCM!X90 -> 9846.810788 | Y93: =[1]Table_VCM!Y90 -> 0.01836327951 | Z93: =[1]Table_VCM!Z90 -> 10.07826642 | AA93: =[1]Table_VCM!AA90 -> 750.1511736 | AB93: =[1]Table_VCM!AB90 -> 307.6580331 | AC93: =[1]Table_VCM!AC90 -> 2262.528396 | AD93: =[1]Table_VCM!AD90 -> 1090.275056 | AE93: =[1]Table_VCM!AE90 -> 0 | AF93: =[1]Table_VCM!AF90 -> 8780.333435 | AG93: =[1]Table_VCM!AG90 -> 3904.098489 | AH93: =[1]Table_VCM!AH90 -> 66852.86235 | AJ93: =[1]Table_VCM!AJ90 -> 11637.0857 | AL93: =[1]Table_VCM!AL90 -> 14433.04198 | AN93: 2443.787997
D94: 2015 | E94: 12 | F94: 2016 | G94: 2016 | H94: =[1]Table_VCM!H91 -> 503.731988 | I94: =[1]Table_VCM!I91 -> 663.0455462 | J94: =[1]Table_VCM!J91 -> 663.2191459 | K94: =[1]Table_VCM!K91 -> 6590.924442 | L94: =[1]Table_VCM!L91 -> 2641.260361 | M94: =[1]Table_VCM!M91 -> 202.4788015 | N94: =[1]Table_VCM!N91 -> 3501.127224 | O94: =[1]Table_VCM!O91 -> 465.5203773 | P94: =[1]Table_VCM!P91 -> 272.0541539 | Q94: =[1]Table_VCM!Q91 -> 978.3463482 | R94: =[1]Table_VCM!R91 -> 0 | S94: =[1]Table_VCM!S91 -> 1338.032334 | T94: =[1]Table_VCM!T91 -> 2052.938722 | U94: =[1]Table_VCM!U91 -> 2608.095131 | V94: =[1]Table_VCM!V91 -> 7646.043461 | W94: =[1]Table_VCM!W91 -> 1025.488448 | X94: =[1]Table_VCM!X91 -> 6784.662972 | Y94: =[1]Table_VCM!Y91 -> 0.07329343735 | Z94: =[1]Table_VCM!Z91 -> 24.55946286 | AA94: =[1]Table_VCM!AA91 -> 394.2155996 | AB94: =[1]Table_VCM!AB91 -> 198.9880895 | AC94: =[1]Table_VCM!AC91 -> 1594.376365 | AD94: =[1]Table_VCM!AD91 -> 978.3561981 | AE94: =[1]Table_VCM!AE91 -> 0 | AF94: =[1]Table_VCM!AF91 -> 8086.268982 | AG94: =[1]Table_VCM!AG91 -> 2304.464888 | AH94: =[1]Table_VCM!AH91 -> 51518.27233 | AJ94: =[1]Table_VCM!AJ91 -> 8577.18796 | AL94: =[1]Table_VCM!AL91 -> 11453.33324 | AN94: 1801.209472
D95: 2016 | E95: 1 | F95: 2016 | G95: 2016 | H95: =[1]Table_VCM!H92 -> 510.1243023 | I95: =[1]Table_VCM!I92 -> 701.0624039 | J95: =[1]Table_VCM!J92 -> 427.3892693 | K95: =[1]Table_VCM!K92 -> 7262.918106 | L95: =[1]Table_VCM!L92 -> 2832.748633 | M95: =[1]Table_VCM!M92 -> 206.4903385 | N95: =[1]Table_VCM!N92 -> 3799.336503 | O95: =[1]Table_VCM!O92 -> 540.1113485 | P95: =[1]Table_VCM!P92 -> 221.450591 | Q95: =[1]Table_VCM!Q92 -> 987.7523843 | R95: =[1]Table_VCM!R92 -> 0 | S95: =[1]Table_VCM!S92 -> 1687.414282 | T95: =[1]Table_VCM!T92 -> 1632.61015 | U95: =[1]Table_VCM!U92 -> 6003.040389 | V95: =[1]Table_VCM!V92 -> 7073.2726 | W95: =[1]Table_VCM!W92 -> 1179.752916 | X95: =[1]Table_VCM!X92 -> 6373.534266 | Y95: =[1]Table_VCM!Y92 -> 0 | Z95: =[1]Table_VCM!Z92 -> 0.2068077084 | AA95: =[1]Table_VCM!AA92 -> 579.3851358 | AB95: =[1]Table_VCM!AB92 -> 269.0585317 | AC95: =[1]Table_VCM!AC92 -> 1906.066969 | AD95: =[1]Table_VCM!AD92 -> 947.5557721 | AE95: =[1]Table_VCM!AE92 -> 0 | AF95: =[1]Table_VCM!AF92 -> 8590.091471 | AG95: =[1]Table_VCM!AG92 -> 2385.132546 | AH95: =[1]Table_VCM!AH92 -> 56116.50572 | AJ95: =[1]Table_VCM!AJ92 -> 7269.636413 | AL95: =[1]Table_VCM!AL92 -> 11394.09821 | AN95: 1526.623647
D96: 2016 | E96: 2 | F96: 2016 | G96: 2016 | H96: =[1]Table_VCM!H93 -> 930.4354881 | I96: =[1]Table_VCM!I93 -> 601.341022 | J96: =[1]Table_VCM!J93 -> 478.8398042 | K96: =[1]Table_VCM!K93 -> 4799.008616 | L96: =[1]Table_VCM!L93 -> 2405.062642 | M96: =[1]Table_VCM!M93 -> 197.6187443 | N96: =[1]Table_VCM!N93 -> 3409.660965 | O96: =[1]Table_VCM!O93 -> 466.5862562 | P96: =[1]Table_VCM!P93 -> 268.7724732 | Q96: =[1]Table_VCM!Q93 -> 846.5801231 | R96: =[1]Table_VCM!R93 -> 0 | S96: =[1]Table_VCM!S93 -> 1213.909696 | T96: =[1]Table_VCM!T93 -> 1135.754007 | U96: =[1]Table_VCM!U93 -> 4772.68217 | V96: =[1]Table_VCM!V93 -> 6267.819587 | W96: =[1]Table_VCM!W93 -> 1005.343369 | X96: =[1]Table_VCM!X93 -> 4931.741102 | Y96: =[1]Table_VCM!Y93 -> 0 | Z96: =[1]Table_VCM!Z93 -> 1.772637501 | AA96: =[1]Table_VCM!AA93 -> 567.0596263 | AB96: =[1]Table_VCM!AB93 -> 233.3659651 | AC96: =[1]Table_VCM!AC93 -> 1757.79801 | AD96: =[1]Table_VCM!AD93 -> 767.3998933 | AE96: =[1]Table_VCM!AE93 -> 0 | AF96: =[1]Table_VCM!AF93 -> 7740.758271 | AG96: =[1]Table_VCM!AG93 -> 2058.659086 | AH96: =[1]Table_VCM!AH93 -> 46857.96955 | AJ96: =[1]Table_VCM!AJ93 -> 6461.337547 | AL96: =[1]Table_VCM!AL93 -> 10515.62987 | AN96: 1356.880885
D97: 2016 | E97: 3 | F97: 2016 | G97: 2016 | H97: =[1]Table_VCM!H94 -> 1030.720885 | I97: =[1]Table_VCM!I94 -> 768.647993 | J97: =[1]Table_VCM!J94 -> 609.8978832 | K97: =[1]Table_VCM!K94 -> 7694.663638 | L97: =[1]Table_VCM!L94 -> 2779.95894 | M97: =[1]Table_VCM!M94 -> 222.5335806 | N97: =[1]Table_VCM!N94 -> 5203.236047 | O97: =[1]Table_VCM!O94 -> 572.0882378 | P97: =[1]Table_VCM!P94 -> 522.0565867 | Q97: =[1]Table_VCM!Q94 -> 1052.59489 | R97: =[1]Table_VCM!R94 -> 0 | S97: =[1]Table_VCM!S94 -> 1569.70317 | T97: =[1]Table_VCM!T94 -> 1377.514814 | U97: =[1]Table_VCM!U94 -> 3014.575442 | V97: =[1]Table_VCM!V94 -> 8870.696639 | W97: =[1]Table_VCM!W94 -> 1336.418563 | X97: =[1]Table_VCM!X94 -> 7451.510463 | Y97: =[1]Table_VCM!Y94 -> 0 | Z97: =[1]Table_VCM!Z94 -> 4.411897779 | AA97: =[1]Table_VCM!AA94 -> 693.2452614 | AB97: =[1]Table_VCM!AB94 -> 268.6160619 | AC97: =[1]Table_VCM!AC94 -> 1870.737256 | AD97: =[1]Table_VCM!AD94 -> 941.6753132 | AE97: =[1]Table_VCM!AE94 -> 0 | AF97: =[1]Table_VCM!AF94 -> 9073.888863 | AG97: =[1]Table_VCM!AG94 -> 2827.935631 | AH97: =[1]Table_VCM!AH94 -> 59757.32806 | AJ97: =[1]Table_VCM!AJ94 -> 9513.859273 | AL97: =[1]Table_VCM!AL94 -> 13925.54248 | AN97: 1997.910447
D98: 2016 | E98: 4 | F98: 2016 | G98: 2016 | H98: =[1]Table_VCM!H95 -> 1089.11716 | I98: =[1]Table_VCM!I95 -> 845.0709252 | J98: =[1]Table_VCM!J95 -> 667.4064413 | K98: =[1]Table_VCM!K95 -> 8739.834855 | L98: =[1]Table_VCM!L95 -> 2994.249305 | M98: =[1]Table_VCM!M95 -> 214.6713295 | N98: =[1]Table_VCM!N95 -> 6687.205908 | O98: =[1]Table_VCM!O95 -> 666.2786667 | P98: =[1]Table_VCM!P95 -> 630.8046447 | Q98: =[1]Table_VCM!Q95 -> 1177.74546 | R98: =[1]Table_VCM!R95 -> 0 | S98: =[1]Table_VCM!S95 -> 1546.205283 | T98: =[1]Table_VCM!T95 -> 2137.003201 | U98: =[1]Table_VCM!U95 -> 3004.685103 | V98: =[1]Table_VCM!V95 -> 10123.3705 | W98: =[1]Table_VCM!W95 -> 1648.451525 | X98: =[1]Table_VCM!X95 -> 10007.21236 | Y98: =[1]Table_VCM!Y95 -> 0 | Z98: =[1]Table_VCM!Z95 -> 18.97706924 | AA98: =[1]Table_VCM!AA95 -> 558.0094271 | AB98: =[1]Table_VCM!AB95 -> 301.3957021 | AC98: =[1]Table_VCM!AC95 -> 2283.110299 | AD98: =[1]Table_VCM!AD95 -> 1082.405388 | AE98: =[1]Table_VCM!AE95 -> 0 | AF98: =[1]Table_VCM!AF95 -> 9655.640294 | AG98: =[1]Table_VCM!AG95 -> 4016.749335 | AH98: =[1]Table_VCM!AH95 -> 70095.60019 | AJ98: =[1]Table_VCM!AJ95 -> 12984.87505 | AL98: =[1]Table_VCM!AL95 -> 15503.14686 | AN98: 2726.82376
D99: 2016 | E99: 5 | F99: 2016 | G99: 2017 | H99: =[1]Table_VCM!H96 -> 911.4433864 | I99: =[1]Table_VCM!I96 -> 919.3849459 | J99: =[1]Table_VCM!J96 -> 903.9363886 | K99: =[1]Table_VCM!K96 -> 10803.63974 | L99: =[1]Table_VCM!L96 -> 3390.619376 | M99: =[1]Table_VCM!M96 -> 230.9005033 | N99: =[1]Table_VCM!N96 -> 9655.145628 | O99: =[1]Table_VCM!O96 -> 724.286629 | P99: =[1]Table_VCM!P96 -> 773.5611864 | Q99: =[1]Table_VCM!Q96 -> 1413.082944 | R99: =[1]Table_VCM!R96 -> 0 | S99: =[1]Table_VCM!S96 -> 2176.879696 | T99: =[1]Table_VCM!T96 -> 2273.247301 | U99: =[1]Table_VCM!U96 -> 3264.207608 | V99: =[1]Table_VCM!V96 -> 12817.40945 | W99: =[1]Table_VCM!W96 -> 2077.550944 | X99: =[1]Table_VCM!X96 -> 14682.93412 | Y99: =[1]Table_VCM!Y96 -> 0.04645006413 | Z99: =[1]Table_VCM!Z96 -> 37.66854689 | AA99: =[1]Table_VCM!AA96 -> 730.0494049 | AB99: =[1]Table_VCM!AB96 -> 344.8314909 | AC99: =[1]Table_VCM!AC96 -> 3256.125342 | AD99: =[1]Table_VCM!AD96 -> 1251.869523 | AE99: =[1]Table_VCM!AE96 -> 0 | AF99: =[1]Table_VCM!AF96 -> 11009.07843 | AG99: =[1]Table_VCM!AG96 -> 5365.422458 | AH99: =[1]Table_VCM!AH96 -> 89013.32149 | AJ99: =[1]Table_VCM!AJ96 -> 14960.33628 | AL99: =[1]Table_VCM!AL96 -> 15620.1027 | AN99: 3141.670619
D100: 2016 | E100: 6 | F100: 2016 | G100: 2017 | H100: =[1]Table_VCM!H97 -> 1056.102853 | I100: =[1]Table_VCM!I97 -> 893.7767361 | J100: =[1]Table_VCM!J97 -> 1103.946087 | K100: =[1]Table_VCM!K97 -> 11134.33844 | L100: =[1]Table_VCM!L97 -> 3453.698586 | M100: =[1]Table_VCM!M97 -> 253.9029001 | N100: =[1]Table_VCM!N97 -> 11125.77044 | O100: =[1]Table_VCM!O97 -> 712.6125266 | P100: =[1]Table_VCM!P97 -> 867.2822401 | Q100: =[1]Table_VCM!Q97 -> 1597.181246 | R100: =[1]Table_VCM!R97 -> 0 | S100: =[1]Table_VCM!S97 -> 2150.943349 | T100: =[1]Table_VCM!T97 -> 2430.942599 | U100: =[1]Table_VCM!U97 -> 2845.648446 | V100: =[1]Table_VCM!V97 -> 15912.87742 | W100: =[1]Table_VCM!W97 -> 2260.399662 | X100: =[1]Table_VCM!X97 -> 14449.37261 | Y100: =[1]Table_VCM!Y97 -> 0.3406595235 | Z100: =[1]Table_VCM!Z97 -> 124.813376 | AA100: =[1]Table_VCM!AA97 -> 735.6519092 | AB100: =[1]Table_VCM!AB97 -> 342.5453967 | AC100: =[1]Table_VCM!AC97 -> 3809.238061 | AD100: =[1]Table_VCM!AD97 -> 1235.163674 | AE100: =[1]Table_VCM!AE97 -> 0 | AF100: =[1]Table_VCM!AF97 -> 11109.42159 | AG100: =[1]Table_VCM!AG97 -> 6187.985476 | AH100: =[1]Table_VCM!AH97 -> 95793.95629 | AJ100: =[1]Table_VCM!AJ97 -> 21667.20111 | AL100: =[1]Table_VCM!AL97 -> 17379.6384 | AN100: 4550.112233
D101: 2016 | E101: 7 | F101: 2017 | G101: 2017 | H101: =[1]Table_VCM!H98 -> 739.5622966 | I101: =[1]Table_VCM!I98 -> 994.9033507 | J101: =[1]Table_VCM!J98 -> 750.0672265 | K101: =[1]Table_VCM!K98 -> 12177.54471 | L101: =[1]Table_VCM!L98 -> 3942.786651 | M101: =[1]Table_VCM!M98 -> 253.9234408 | N101: =[1]Table_VCM!N98 -> 13013.78225 | O101: =[1]Table_VCM!O98 -> 838.4484988 | P101: =[1]Table_VCM!P98 -> 729.4104632 | Q101: =[1]Table_VCM!Q98 -> 1681.107951 | R101: =[1]Table_VCM!R98 -> 0 | S101: =[1]Table_VCM!S98 -> 2392.89299 | T101: =[1]Table_VCM!T98 -> 2731.82441 | U101: =[1]Table_VCM!U98 -> 2962.635482 | V101: =[1]Table_VCM!V98 -> 18883.64256 | W101: =[1]Table_VCM!W98 -> 2708.157243 | X101: =[1]Table_VCM!X98 -> 16274.47135 | Y101: =[1]Table_VCM!Y98 -> 0.6506350579 | Z101: =[1]Table_VCM!Z98 -> 196.2844245 | AA101: =[1]Table_VCM!AA98 -> 940.1693856 | AB101: =[1]Table_VCM!AB98 -> 379.0020422 | AC101: =[1]Table_VCM!AC98 -> 4879.660093 | AD101: =[1]Table_VCM!AD98 -> 1376.58445 | AE101: =[1]Table_VCM!AE98 -> 0 | AF101: =[1]Table_VCM!AF98 -> 12267.58607 | AG101: =[1]Table_VCM!AG98 -> 7601.653663 | AH101: =[1]Table_VCM!AH98 -> 108716.7516 | AJ101: =[1]Table_VCM!AJ98 -> 27418.52154 | AL101: =[1]Table_VCM!AL98 -> 17486.19817 | AN101: 5757.889524
D102: 2016 | E102: 8 | F102: 2017 | G102: 2017 | H102: =[1]Table_VCM!H99 -> 786.5100012 | I102: =[1]Table_VCM!I99 -> 1055.924637 | J102: =[1]Table_VCM!J99 -> 1101.679397 | K102: =[1]Table_VCM!K99 -> 12122.30026 | L102: =[1]Table_VCM!L99 -> 4071.167074 | M102: =[1]Table_VCM!M99 -> 241.5541332 | N102: =[1]Table_VCM!N99 -> 12861.1439 | O102: =[1]Table_VCM!O99 -> 845.9275128 | P102: =[1]Table_VCM!P99 -> 793.2178932 | Q102: =[1]Table_VCM!Q99 -> 1616.432142 | R102: =[1]Table_VCM!R99 -> 0 | S102: =[1]Table_VCM!S99 -> 2347.163152 | T102: =[1]Table_VCM!T99 -> 2831.588695 | U102: =[1]Table_VCM!U99 -> 3062.830982 | V102: =[1]Table_VCM!V99 -> 19221.01427 | W102: =[1]Table_VCM!W99 -> 2771.579612 | X102: =[1]Table_VCM!X99 -> 17453.31552 | Y102: =[1]Table_VCM!Y99 -> 1.96541903 | Z102: =[1]Table_VCM!Z99 -> 250.9045357 | AA102: =[1]Table_VCM!AA99 -> 957.3337925 | AB102: =[1]Table_VCM!AB99 -> 384.5750479 | AC102: =[1]Table_VCM!AC99 -> 4960.692024 | AD102: =[1]Table_VCM!AD99 -> 1287.186987 | AE102: =[1]Table_VCM!AE99 -> 0 | AF102: =[1]Table_VCM!AF99 -> 12311.50344 | AG102: =[1]Table_VCM!AG99 -> 7463.692617 | AH102: =[1]Table_VCM!AH99 -> 110801.203 | AJ102: =[1]Table_VCM!AJ99 -> 27658.61261 | AL102: =[1]Table_VCM!AL99 -> 17938.42743 | AN102: 5808.308648
D103: 2016 | E103: 9 | F103: 2017 | G103: 2017 | H103: =[1]Table_VCM!H100 -> 592.5561636 | I103: =[1]Table_VCM!I100 -> 1024.542261 | J103: =[1]Table_VCM!J100 -> 1323.34419 | K103: =[1]Table_VCM!K100 -> 11528.16177 | L103: =[1]Table_VCM!L100 -> 3653.131177 | M103: =[1]Table_VCM!M100 -> 210.4409843 | N103: =[1]Table_VCM!N100 -> 11382.45988 | O103: =[1]Table_VCM!O100 -> 826.6005558 | P103: =[1]Table_VCM!P100 -> 676.2376049 | Q103: =[1]Table_VCM!Q100 -> 1512.703876 | R103: =[1]Table_VCM!R100 -> 0 | S103: =[1]Table_VCM!S100 -> 2177.600536 | T103: =[1]Table_VCM!T100 -> 2634.132379 | U103: =[1]Table_VCM!U100 -> 2877.388505 | V103: =[1]Table_VCM!V100 -> 17349.29676 | W103: =[1]Table_VCM!W100 -> 2497.338638 | X103: =[1]Table_VCM!X100 -> 16650.60062 | Y103: =[1]Table_VCM!Y100 -> 0.7477535888 | Z103: =[1]Table_VCM!Z100 -> 231.5144465 | AA103: =[1]Table_VCM!AA100 -> 930.0467867 | AB103: =[1]Table_VCM!AB100 -> 358.5927917 | AC103: =[1]Table_VCM!AC100 -> 4378.681656 | AD103: =[1]Table_VCM!AD100 -> 1333.864746 | AE103: =[1]Table_VCM!AE100 -> 0 | AF103: =[1]Table_VCM!AF100 -> 11378.25927 | AG103: =[1]Table_VCM!AG100 -> 6671.9495 | AH103: =[1]Table_VCM!AH100 -> 102200.1928 | AJ103: =[1]Table_VCM!AJ100 -> 22088.27644 | AL103: =[1]Table_VCM!AL100 -> 17127.53358 | AN103: 4638.538053
D104: 2016 | E104: 10 | F104: 2017 | G104: 2017 | H104: =[1]Table_VCM!H101 -> 367.9684956 | I104: =[1]Table_VCM!I101 -> 906.3968471 | J104: =[1]Table_VCM!J101 -> 1046.591247 | K104: =[1]Table_VCM!K101 -> 10027.18031 | L104: =[1]Table_VCM!L101 -> 3212.251789 | M104: =[1]Table_VCM!M101 -> 221.8608933 | N104: =[1]Table_VCM!N101 -> 8606.349871 | O104: =[1]Table_VCM!O101 -> 678.1310204 | P104: =[1]Table_VCM!P101 -> 533.3439615 | Q104: =[1]Table_VCM!Q101 -> 1294.133602 | R104: =[1]Table_VCM!R101 -> 0 | S104: =[1]Table_VCM!S101 -> 2004.18937 | T104: =[1]Table_VCM!T101 -> 3971.033011 | U104: =[1]Table_VCM!U101 -> 2825.674698 | V104: =[1]Table_VCM!V101 -> 11564.09508 | W104: =[1]Table_VCM!W101 -> 1890.074982 | X104: =[1]Table_VCM!X101 -> 14425.93359 | Y104: =[1]Table_VCM!Y101 -> 0.1581475792 | Z104: =[1]Table_VCM!Z101 -> 100.671573 | AA104: =[1]Table_VCM!AA101 -> 855.6676901 | AB104: =[1]Table_VCM!AB101 -> 343.0410934 | AC104: =[1]Table_VCM!AC101 -> 3200.465547 | AD104: =[1]Table_VCM!AD101 -> 1251.700971 | AE104: =[1]Table_VCM!AE101 -> 0 | AF104: =[1]Table_VCM!AF101 -> 10418.17671 | AG104: =[1]Table_VCM!AG101 -> 4751.225152 | AH104: =[1]Table_VCM!AH101 -> 84496.31566 | AJ104: =[1]Table_VCM!AJ101 -> 13419.75598 | AL104: =[1]Table_VCM!AL101 -> 16607.72983 | AN104: 2818.148756
D105: 2016 | E105: 11 | F105: 2017 | G105: 2017 | H105: =[1]Table_VCM!H102 -> 465.6704755 | I105: =[1]Table_VCM!I102 -> 790.5076824 | J105: =[1]Table_VCM!J102 -> 1015.570809 | K105: =[1]Table_VCM!K102 -> 8430.302823 | L105: =[1]Table_VCM!L102 -> 2965.99895 | M105: =[1]Table_VCM!M102 -> 215.6219881 | N105: =[1]Table_VCM!N102 -> 5842.505447 | O105: =[1]Table_VCM!O102 -> 602.8225328 | P105: =[1]Table_VCM!P102 -> 365.5465743 | Q105: =[1]Table_VCM!Q102 -> 1124.34031 | R105: =[1]Table_VCM!R102 -> 0 | S105: =[1]Table_VCM!S102 -> 1765.352842 | T105: =[1]Table_VCM!T102 -> 2921.879814 | U105: =[1]Table_VCM!U102 -> 2627.707783 | V105: =[1]Table_VCM!V102 -> 9622.698876 | W105: =[1]Table_VCM!W102 -> 1466.890884 | X105: =[1]Table_VCM!X102 -> 8339.061135 | Y105: =[1]Table_VCM!Y102 -> 0.0045308848 | Z105: =[1]Table_VCM!Z102 -> 10.03698599 | AA105: =[1]Table_VCM!AA102 -> 769.3175199 | AB105: =[1]Table_VCM!AB102 -> 305.5362713 | AC105: =[1]Table_VCM!AC102 -> 2359.389589 | AD105: =[1]Table_VCM!AD102 -> 1075.635738 | AE105: =[1]Table_VCM!AE102 -> 0 | AF105: =[1]Table_VCM!AF102 -> 8966.463563 | AG105: =[1]Table_VCM!AG102 -> 3859.077051 | AH105: =[1]Table_VCM!AH102 -> 65907.94017 | AJ105: =[1]Table_VCM!AJ102 -> 11423.14042 | AL105: =[1]Table_VCM!AL102 -> 15778.64285 | AN105: 2398.859488
D106: 2016 | E106: 12 | F106: 2017 | G106: 2017 | H106: =[1]Table_VCM!H103 -> 510.6242621 | I106: =[1]Table_VCM!I103 -> 653.6969341 | J106: =[1]Table_VCM!J103 -> 667.2879671 | K106: =[1]Table_VCM!K103 -> 6421.697781 | L106: =[1]Table_VCM!L103 -> 2801.06894 | M106: =[1]Table_VCM!M103 -> 214.8895949 | N106: =[1]Table_VCM!N103 -> 3686.488741 | O106: =[1]Table_VCM!O103 -> 496.0429467 | P106: =[1]Table_VCM!P103 -> 279.3257749 | Q106: =[1]Table_VCM!Q103 -> 981.8683016 | R106: =[1]Table_VCM!R103 -> 0 | S106: =[1]Table_VCM!S103 -> 1386.610176 | T106: =[1]Table_VCM!T103 -> 2101.26676 | U106: =[1]Table_VCM!U103 -> 2653.968701 | V106: =[1]Table_VCM!V103 -> 7505.47262 | W106: =[1]Table_VCM!W103 -> 1054.534995 | X106: =[1]Table_VCM!X103 -> 5747.438725 | Y106: =[1]Table_VCM!Y103 -> 0.01808414022 | Z106: =[1]Table_VCM!Z103 -> 24.45886767 | AA106: =[1]Table_VCM!AA103 -> 404.2877997 | AB106: =[1]Table_VCM!AB103 -> 197.6157693 | AC106: =[1]Table_VCM!AC103 -> 1662.633275 | AD106: =[1]Table_VCM!AD103 -> 965.2196342 | AE106: =[1]Table_VCM!AE103 -> 0 | AF106: =[1]Table_VCM!AF103 -> 8257.685967 | AG106: =[1]Table_VCM!AG103 -> 2277.890168 | AH106: =[1]Table_VCM!AH103 -> 50952.09279 | AJ106: =[1]Table_VCM!AJ103 -> 8419.498231 | AL106: =[1]Table_VCM!AL103 -> 12423.30964 | AN106: 1768.094629
D107: 2017 | E107: 1 | F107: 2017 | G107: 2017 | H107: =[1]Table_VCM!H104 -> 518.0858816 | I107: =[1]Table_VCM!I104 -> 705.6791918 | J107: =[1]Table_VCM!J104 -> 431.0180466 | K107: =[1]Table_VCM!K104 -> 7053.563338 | L107: =[1]Table_VCM!L104 -> 3001.011153 | M107: =[1]Table_VCM!M104 -> 218.8347768 | N107: =[1]Table_VCM!N104 -> 3916.497094 | O107: =[1]Table_VCM!O104 -> 542.1449436 | P107: =[1]Table_VCM!P104 -> 227.3579402 | Q107: =[1]Table_VCM!Q104 -> 948.9050056 | R107: =[1]Table_VCM!R104 -> 0 | S107: =[1]Table_VCM!S104 -> 1624.655194 | T107: =[1]Table_VCM!T104 -> 1695.187839 | U107: =[1]Table_VCM!U104 -> 6117.169803 | V107: =[1]Table_VCM!V104 -> 6728.318301 | W107: =[1]Table_VCM!W104 -> 1212.954868 | X107: =[1]Table_VCM!X104 -> 6473.141396 | Y107: =[1]Table_VCM!Y104 -> 0 | Z107: =[1]Table_VCM!Z104 -> 0.2056199203 | AA107: =[1]Table_VCM!AA104 -> 594.1834916 | AB107: =[1]Table_VCM!AB104 -> 267.2760714 | AC107: =[1]Table_VCM!AC104 -> 1960.78245 | AD107: =[1]Table_VCM!AD104 -> 960.4110152 | AE107: =[1]Table_VCM!AE104 -> 0 | AF107: =[1]Table_VCM!AF104 -> 8839.573961 | AG107: =[1]Table_VCM!AG104 -> 2351.175913 | AH107: =[1]Table_VCM!AH104 -> 56388.13329 | AJ107: =[1]Table_VCM!AJ104 -> 6913.784346 | AL107: =[1]Table_VCM!AL104 -> 12397.43102 | AN107: 1451.894713
D108: 2017 | E108: 2 | F108: 2017 | G108: 2017 | H108: =[1]Table_VCM!H105 -> 944.9569212 | I108: =[1]Table_VCM!I105 -> 605.3011031 | J108: =[1]Table_VCM!J105 -> 482.9054257 | K108: =[1]Table_VCM!K105 -> 4672.82018 | L108: =[1]Table_VCM!L105 -> 2547.92103 | M108: =[1]Table_VCM!M105 -> 209.4328196 | N108: =[1]Table_VCM!N105 -> 3514.805084 | O108: =[1]Table_VCM!O105 -> 468.4812562 | P108: =[1]Table_VCM!P105 -> 275.9421668 | Q108: =[1]Table_VCM!Q105 -> 813.2849176 | R108: =[1]Table_VCM!R105 -> 0 | S108: =[1]Table_VCM!S105 -> 1168.761408 | T108: =[1]Table_VCM!T105 -> 1179.287279 | U108: =[1]Table_VCM!U105 -> 4863.420094 | V108: =[1]Table_VCM!V105 -> 5938.408163 | W108: =[1]Table_VCM!W105 -> 1033.636888 | X108: =[1]Table_VCM!X105 -> 5008.815541 | Y108: =[1]Table_VCM!Y105 -> 0 | Z108: =[1]Table_VCM!Z105 -> 1.762456459 | AA108: =[1]Table_VCM!AA105 -> 581.5431704 | AB108: =[1]Table_VCM!AB105 -> 231.8199611 | AC108: =[1]Table_VCM!AC105 -> 1808.257288 | AD108: =[1]Table_VCM!AD105 -> 777.8110084 | AE108: =[1]Table_VCM!AE105 -> 0 | AF108: =[1]Table_VCM!AF105 -> 7965.573532 | AG108: =[1]Table_VCM!AG105 -> 2029.350387 | AH108: =[1]Table_VCM!AH105 -> 47124.29808 | AJ108: =[1]Table_VCM!AJ105 -> 6121.186294 | AL108: =[1]Table_VCM!AL105 -> 11441.60719 | AN108: 1285.449122
D109: 2017 | E109: 3 | F109: 2017 | G109: 2017 | H109: =[1]Table_VCM!H106 -> 1046.807486 | I109: =[1]Table_VCM!I106 -> 773.7098602 | J109: =[1]Table_VCM!J106 -> 615.0762622 | K109: =[1]Table_VCM!K106 -> 7470.735814 | L109: =[1]Table_VCM!L106 -> 2945.085803 | M109: =[1]Table_VCM!M106 -> 235.8371187 | N109: =[1]Table_VCM!N106 -> 5363.688855 | O109: =[1]Table_VCM!O106 -> 574.1821095 | P109: =[1]Table_VCM!P106 -> 535.9828109 | Q109: =[1]Table_VCM!Q106 -> 1011.197316 | R109: =[1]Table_VCM!R106 -> 0 | S109: =[1]Table_VCM!S106 -> 1511.322048 | T109: =[1]Table_VCM!T106 -> 1430.314739 | U109: =[1]Table_VCM!U106 -> 3071.888355 | V109: =[1]Table_VCM!V106 -> 8432.669995 | W109: =[1]Table_VCM!W106 -> 1374.029579 | X109: =[1]Table_VCM!X106 -> 7567.964465 | Y109: =[1]Table_VCM!Y106 -> 0 | Z109: =[1]Table_VCM!Z106 -> 4.386558299 | AA109: =[1]Table_VCM!AA106 -> 710.9517737 | AB109: =[1]Table_VCM!AB106 -> 266.8365329 | AC109: =[1]Table_VCM!AC106 -> 1924.438563 | AD109: =[1]Table_VCM!AD106 -> 954.4507776 | AE109: =[1]Table_VCM!AE106 -> 0 | AF109: =[1]Table_VCM!AF106 -> 9337.422307 | AG109: =[1]Table_VCM!AG106 -> 2787.674902 | AH109: =[1]Table_VCM!AH106 -> 59946.65403 | AJ109: =[1]Table_VCM!AJ106 -> 9040.138491 | AL109: =[1]Table_VCM!AL106 -> 15151.78727 | AN109: 1898.429083
D110: 2017 | E110: 4 | F110: 2017 | G110: 2017 | H110: =[1]Table_VCM!H107 -> 1106.11516 | I110: =[1]Table_VCM!I107 -> 850.6360692 | J110: =[1]Table_VCM!J107 -> 673.0731005 | K110: =[1]Table_VCM!K107 -> 8480.62852 | L110: =[1]Table_VCM!L107 -> 3172.104809 | M110: =[1]Table_VCM!M107 -> 227.5048452 | N110: =[1]Table_VCM!N107 -> 6893.420069 | O110: =[1]Table_VCM!O107 -> 668.5500878 | P110: =[1]Table_VCM!P107 -> 647.6317994 | Q110: =[1]Table_VCM!Q107 -> 1131.425831 | R110: =[1]Table_VCM!R107 -> 0 | S110: =[1]Table_VCM!S107 -> 1488.698105 | T110: =[1]Table_VCM!T107 -> 2218.914196 | U110: =[1]Table_VCM!U107 -> 3061.809981 | V110: =[1]Table_VCM!V107 -> 9574.699058 | W110: =[1]Table_VCM!W107 -> 1694.844127 | X110: =[1]Table_VCM!X107 -> 10163.60749 | Y110: =[1]Table_VCM!Y107 -> 0 | Z110: =[1]Table_VCM!Z107 -> 18.86807554 | AA110: =[1]Table_VCM!AA107 -> 572.2618156 | AB110: =[1]Table_VCM!AB107 -> 299.3990144 | AC110: =[1]Table_VCM!AC107 -> 2348.649169 | AD110: =[1]Table_VCM!AD107 -> 1097.0901 | AE110: =[1]Table_VCM!AE107 -> 0 | AF110: =[1]Table_VCM!AF107 -> 9936.069577 | AG110: =[1]Table_VCM!AG107 -> 3959.563715 | AH110: =[1]Table_VCM!AH107 -> 70285.56472 | AJ110: =[1]Table_VCM!AJ107 -> 12277.39628 | AL110: =[1]Table_VCM!AL107 -> 16868.31114 | AN110: 2578.253218
D111: 2017 | E111: 5 | F111: 2017 | G111: 2018 | H111: =[1]Table_VCM!H108 -> 925.6684072 | I111: =[1]Table_VCM!I108 -> 925.4394788 | J111: =[1]Table_VCM!J108 -> 869.9467372 | K111: =[1]Table_VCM!K108 -> 10474.77213 | L111: =[1]Table_VCM!L108 -> 3592.018877 | M111: =[1]Table_VCM!M108 -> 244.704234 | N111: =[1]Table_VCM!N108 -> 9952.882499 | O111: =[1]Table_VCM!O108 -> 726.6673954 | P111: =[1]Table_VCM!P108 -> 794.1964716 | Q111: =[1]Table_VCM!Q108 -> 1357.507712 | R111: =[1]Table_VCM!R108 -> 0 | S111: =[1]Table_VCM!S108 -> 2095.916185 | T111: =[1]Table_VCM!T108 -> 2360.38051 | U111: =[1]Table_VCM!U108 -> 3326.266512 | V111: =[1]Table_VCM!V108 -> 12162.93201 | W111: =[1]Table_VCM!W108 -> 2136.019752 | X111: =[1]Table_VCM!X108 -> 14912.40255 | Y111: =[1]Table_VCM!Y108 -> 0.00444268342 | Z111: =[1]Table_VCM!Z108 -> 37.45219976 | AA111: =[1]Table_VCM!AA108 -> 748.6959497 | AB111: =[1]Table_VCM!AB108 -> 342.5470495 | AC111: =[1]Table_VCM!AC108 -> 3349.595543 | AD111: =[1]Table_VCM!AD108 -> 1268.853312 | AE111: =[1]Table_VCM!AE108 -> 0 | AF111: =[1]Table_VCM!AF108 -> 11328.81569 | AG111: =[1]Table_VCM!AG108 -> 5289.03606 | AH111: =[1]Table_VCM!AH108 -> 89222.72171 | AJ111: =[1]Table_VCM!AJ108 -> 14186.93102 | AL111: =[1]Table_VCM!AL108 -> 16995.56579 | AN111: 2979.255515
D112: 2017 | E112: 6 | F112: 2017 | G112: 2018 | H112: =[1]Table_VCM!H109 -> 1072.585594 | I112: =[1]Table_VCM!I109 -> 899.6626282 | J112: =[1]Table_VCM!J109 -> 1036.171186 | K112: =[1]Table_VCM!K109 -> 10794.30849 | L112: =[1]Table_VCM!L109 -> 3658.844931 | M112: =[1]Table_VCM!M109 -> 269.0817638 | N112: =[1]Table_VCM!N109 -> 11468.85714 | O112: =[1]Table_VCM!O109 -> 714.9712873 | P112: =[1]Table_VCM!P109 -> 890.4175999 | Q112: =[1]Table_VCM!Q109 -> 1534.3656 | R112: =[1]Table_VCM!R109 -> 0 | S112: =[1]Table_VCM!S109 -> 2070.944475 | T112: =[1]Table_VCM!T109 -> 2524.120245 | U112: =[1]Table_VCM!U109 -> 2899.749729 | V112: =[1]Table_VCM!V109 -> 15240.38561 | W112: =[1]Table_VCM!W109 -> 2324.014407 | X112: =[1]Table_VCM!X109 -> 14675.19089 | Y112: =[1]Table_VCM!Y109 -> 0.03258213838 | Z112: =[1]Table_VCM!Z109 -> 124.0965176 | AA112: =[1]Table_VCM!AA109 -> 754.4415503 | AB112: =[1]Table_VCM!AB109 -> 340.2761002 | AC112: =[1]Table_VCM!AC109 -> 3918.585892 | AD112: =[1]Table_VCM!AD109 -> 1251.920818 | AE112: =[1]Table_VCM!AE109 -> 0 | AF112: =[1]Table_VCM!AF109 -> 11432.07312 | AG112: =[1]Table_VCM!AG109 -> 6099.88842 | AH112: =[1]Table_VCM!AH109 -> 95994.98658 | AJ112: =[1]Table_VCM!AJ109 -> 21011.53515 | AL112: =[1]Table_VCM!AL109 -> 18910.04134 | AN112: 4412.422383
D113: 2017 | E113: 7 | F113: 2018 | G113: 2018 | H113: =[1]Table_VCM!H110 -> 746.966227 | I113: =[1]Table_VCM!I110 -> 995.9372767 | J113: =[1]Table_VCM!J110 -> 752.2678307 | K113: =[1]Table_VCM!K110 -> 11738.02888 | L113: =[1]Table_VCM!L110 -> 4153.969548 | M113: =[1]Table_VCM!M110 -> 267.6207965 | N113: =[1]Table_VCM!N110 -> 13341.17387 | O113: =[1]Table_VCM!O110 -> 836.4318266 | P113: =[1]Table_VCM!P110 -> 744.7418025 | Q113: =[1]Table_VCM!Q110 -> 1606.093088 | R113: =[1]Table_VCM!R110 -> 0 | S113: =[1]Table_VCM!S110 -> 2291.20116 | T113: =[1]Table_VCM!T110 -> 2820.905758 | U113: =[1]Table_VCM!U110 -> 3002.326716 | V113: =[1]Table_VCM!V110 -> 17985.43092 | W113: =[1]Table_VCM!W110 -> 2769.031649 | X113: =[1]Table_VCM!X110 -> 16437.74045 | Y113: =[1]Table_VCM!Y110 -> 0.06188664938 | Z113: =[1]Table_VCM!Z110 -> 194.0817785 | AA113: =[1]Table_VCM!AA110 -> 958.8701474 | AB113: =[1]Table_VCM!AB110 -> 374.4167952 | AC113: =[1]Table_VCM!AC110 -> 4992.077129 | AD113: =[1]Table_VCM!AD110 -> 1387.572457 | AE113: =[1]Table_VCM!AE110 -> 0 | AF113: =[1]Table_VCM!AF110 -> 12554.31783 | AG113: =[1]Table_VCM!AG110 -> 7452.142389 | AH113: =[1]Table_VCM!AH110 -> 108403.4082 | AJ113: =[1]Table_VCM!AJ110 -> 26617.25583 | AL113: =[1]Table_VCM!AL110 -> 19025.98447 | AN113: 5589.623723
D114: 2017 | E114: 8 | F114: 2018 | G114: 2018 | H114: =[1]Table_VCM!H111 -> 794.383936 | I114: =[1]Table_VCM!I111 -> 1057.021977 | J114: =[1]Table_VCM!J111 -> 1043.719084 | K114: =[1]Table_VCM!K111 -> 11684.94325 | L114: =[1]Table_VCM!L111 -> 4289.226262 | M114: =[1]Table_VCM!M111 -> 254.584253 | N114: =[1]Table_VCM!N111 -> 13184.69555 | O114: =[1]Table_VCM!O111 -> 843.8836522 | P114: =[1]Table_VCM!P111 -> 809.8903887 | Q114: =[1]Table_VCM!Q111 -> 1544.303262 | R114: =[1]Table_VCM!R111 -> 0 | S114: =[1]Table_VCM!S111 -> 2247.414723 | T114: =[1]Table_VCM!T111 -> 2923.923231 | U114: =[1]Table_VCM!U111 -> 3103.864562 | V114: =[1]Table_VCM!V111 -> 18316.97928 | W114: =[1]Table_VCM!W111 -> 2833.879636 | X114: =[1]Table_VCM!X111 -> 17628.41106 | Y114: =[1]Table_VCM!Y111 -> 0.1869453497 | Z114: =[1]Table_VCM!Z111 -> 248.0889589 | AA114: =[1]Table_VCM!AA111 -> 976.3759689 | AB114: =[1]Table_VCM!AB111 -> 379.9223775 | AC114: =[1]Table_VCM!AC111 -> 5074.975865 | AD114: =[1]Table_VCM!AD111 -> 1297.461416 | AE114: =[1]Table_VCM!AE111 -> 0 | AF114: =[1]Table_VCM!AF111 -> 12599.26169 | AG114: =[1]Table_VCM!AG111 -> 7316.894795 | AH114: =[1]Table_VCM!AH111 -> 110454.2921 | AJ114: =[1]Table_VCM!AJ111 -> 26805.98268 | AL114: =[1]Table_VCM!AL111 -> 19518.03579 | AN114: 5629.256363
D115: 2017 | E115: 9 | F115: 2018 | G115: 2018 | H115: =[1]Table_VCM!H112 -> 598.4883814 | I115: =[1]Table_VCM!I112 -> 1025.606988 | J115: =[1]Table_VCM!J112 -> 1210.294656 | K115: =[1]Table_VCM!K112 -> 11114.02235 | L115: =[1]Table_VCM!L112 -> 3848.799595 | M115: =[1]Table_VCM!M112 -> 221.792772 | N115: =[1]Table_VCM!N112 -> 11668.81183 | O115: =[1]Table_VCM!O112 -> 824.6269543 | P115: =[1]Table_VCM!P112 -> 690.451314 | Q115: =[1]Table_VCM!Q112 -> 1445.203587 | R115: =[1]Table_VCM!R112 -> 0 | S115: =[1]Table_VCM!S112 -> 2085.058085 | T115: =[1]Table_VCM!T112 -> 2720.028114 | U115: =[1]Table_VCM!U112 -> 2915.937661 | V115: =[1]Table_VCM!V112 -> 16536.14114 | W115: =[1]Table_VCM!W112 -> 2553.474228 | X115: =[1]Table_VCM!X112 -> 16817.64314 | Y115: =[1]Table_VCM!Y112 -> 0.07112430171 | Z115: =[1]Table_VCM!Z112 -> 228.9164595 | AA115: =[1]Table_VCM!AA112 -> 948.5462014 | AB115: =[1]Table_VCM!AB112 -> 354.2544601 | AC115: =[1]Table_VCM!AC112 -> 4479.557211 | AD115: =[1]Table_VCM!AD112 -> 1344.511761 | AE115: =[1]Table_VCM!AE112 -> 0 | AF115: =[1]Table_VCM!AF112 -> 11644.2047 | AG115: =[1]Table_VCM!AG112 -> 6540.723885 | AH115: =[1]Table_VCM!AH112 -> 101817.1666 | AJ115: =[1]Table_VCM!AJ112 -> 21325.02074 | AL115: =[1]Table_VCM!AL112 -> 18635.73687 | AN115: 4478.254355
D116: 2017 | E116: 10 | F116: 2018 | G116: 2018 | H116: =[1]Table_VCM!H113 -> 371.6523139 | I116: =[1]Table_VCM!I113 -> 907.3387951 | J116: =[1]Table_VCM!J113 -> 1049.661816 | K116: =[1]Table_VCM!K113 -> 9671.695857 | L116: =[1]Table_VCM!L113 -> 3384.305897 | M116: =[1]Table_VCM!M113 -> 233.8287036 | N116: =[1]Table_VCM!N113 -> 8822.862395 | O116: =[1]Table_VCM!O113 -> 676.6971488 | P116: =[1]Table_VCM!P113 -> 544.5542164 | Q116: =[1]Table_VCM!Q113 -> 1236.386416 | R116: =[1]Table_VCM!R113 -> 0 | S116: =[1]Table_VCM!S113 -> 1919.016449 | T116: =[1]Table_VCM!T113 -> 4100.52339 | U116: =[1]Table_VCM!U113 -> 2863.531031 | V116: =[1]Table_VCM!V113 -> 10862.13181 | W116: =[1]Table_VCM!W113 -> 1932.560399 | X116: =[1]Table_VCM!X113 -> 14570.65776 | Y116: =[1]Table_VCM!Y113 -> 0.01504257058 | Z116: =[1]Table_VCM!Z113 -> 99.54186621 | AA116: =[1]Table_VCM!AA113 -> 872.6876419 | AB116: =[1]Table_VCM!AB113 -> 338.8909095 | AC116: =[1]Table_VCM!AC113 -> 3274.197497 | AD116: =[1]Table_VCM!AD113 -> 1261.692148 | AE116: =[1]Table_VCM!AE113 -> 0 | AF116: =[1]Table_VCM!AF113 -> 10661.68201 | AG116: =[1]Table_VCM!AG113 -> 4657.776837 | AH116: =[1]Table_VCM!AH113 -> 84313.88835 | AJ116: =[1]Table_VCM!AJ113 -> 12605.15045 | AL116: =[1]Table_VCM!AL113 -> 18070.16063 | AN116: 2647.081595
D117: 2017 | E117: 11 | F117: 2018 | G117: 2018 | H117: =[1]Table_VCM!H114 -> 470.3324111 | I117: =[1]Table_VCM!I114 -> 791.3291958 | J117: =[1]Table_VCM!J114 -> 1018.550368 | K117: =[1]Table_VCM!K114 -> 8137.220728 | L117: =[1]Table_VCM!L114 -> 3124.863303 | M117: =[1]Table_VCM!M114 -> 227.2532541 | N117: =[1]Table_VCM!N114 -> 5989.487108 | O117: =[1]Table_VCM!O114 -> 601.6624294 | P117: =[1]Table_VCM!P114 -> 373.229928 | Q117: =[1]Table_VCM!Q114 -> 1074.169687 | R117: =[1]Table_VCM!R114 -> 0 | S117: =[1]Table_VCM!S114 -> 1690.329862 | T117: =[1]Table_VCM!T114 -> 3017.15863 | U117: =[1]Table_VCM!U114 -> 2662.911899 | V117: =[1]Table_VCM!V114 -> 9038.582164 | W117: =[1]Table_VCM!W114 -> 1499.863899 | X117: =[1]Table_VCM!X114 -> 8422.720446 | Y117: =[1]Table_VCM!Y114 -> 0.00043096552 | Z117: =[1]Table_VCM!Z114 -> 9.924353894 | AA117: =[1]Table_VCM!AA114 -> 784.6198941 | AB117: =[1]Table_VCM!AB114 -> 301.8398287 | AC117: =[1]Table_VCM!AC114 -> 2413.74493 | AD117: =[1]Table_VCM!AD114 -> 1084.221548 | AE117: =[1]Table_VCM!AE114 -> 0 | AF117: =[1]Table_VCM!AF114 -> 9176.037795 | AG117: =[1]Table_VCM!AG114 -> 3783.175734 | AH117: =[1]Table_VCM!AH114 -> 65693.22983 | AJ117: =[1]Table_VCM!AJ114 -> 10729.73337 | AL117: =[1]Table_VCM!AL114 -> 17168.06654 | AN117: 2253.244008
D118: 2017 | E118: 12 | F118: 2018 | G118: 2018 | H118: =[1]Table_VCM!H115 -> 515.7362406 | I118: =[1]Table_VCM!I115 -> 654.3762706 | J118: =[1]Table_VCM!J115 -> 669.2457072 | K118: =[1]Table_VCM!K115 -> 6207.107428 | L118: =[1]Table_VCM!L115 -> 2951.099339 | M118: =[1]Table_VCM!M115 -> 226.4813535 | N118: =[1]Table_VCM!N115 -> 3779.230844 | O118: =[1]Table_VCM!O115 -> 495.2710182 | P118: =[1]Table_VCM!P115 -> 285.19687 | Q118: =[1]Table_VCM!Q115 -> 938.0551038 | R118: =[1]Table_VCM!R115 -> 0 | S118: =[1]Table_VCM!S115 -> 1327.682791 | T118: =[1]Table_VCM!T115 -> 2169.786419 | U118: =[1]Table_VCM!U115 -> 2689.524641 | V118: =[1]Table_VCM!V115 -> 7049.875699 | W118: =[1]Table_VCM!W115 -> 1078.239007 | X118: =[1]Table_VCM!X115 -> 5805.098305 | Y118: =[1]Table_VCM!Y115 -> 0.00172011457 | Z118: =[1]Table_VCM!Z115 -> 24.18439746 | AA118: =[1]Table_VCM!AA115 -> 412.3294249 | AB118: =[1]Table_VCM!AB115 -> 195.2249718 | AC118: =[1]Table_VCM!AC115 -> 1700.936826 | AD118: =[1]Table_VCM!AD115 -> 972.9240943 | AE118: =[1]Table_VCM!AE115 -> 0 | AF118: =[1]Table_VCM!AF115 -> 8450.693855 | AG118: =[1]Table_VCM!AG115 -> 2233.08804 | AH118: =[1]Table_VCM!AH115 -> 50831.39037 | AJ118: =[1]Table_VCM!AJ115 -> 7908.418161 | AL118: =[1]Table_VCM!AL115 -> 13517.27196 | AN118: 1660.767814
D119: 2018 | E119: 1 | F119: 2018 | G119: 2018 | H119: =[1]Table_VCM!H116 -> 523.6060132 | I119: =[1]Table_VCM!I116 -> 706.4722316 | J119: =[1]Table_VCM!J116 -> 428.260084 | K119: =[1]Table_VCM!K116 -> 6781.77199 | L119: =[1]Table_VCM!L116 -> 3157.647506 | M119: =[1]Table_VCM!M116 -> 230.3398457 | N119: =[1]Table_VCM!N116 -> 4075.544296 | O119: =[1]Table_VCM!O116 -> 541.0360572 | P119: =[1]Table_VCM!P116 -> 232.1342742 | Q119: =[1]Table_VCM!Q116 -> 900.3771627 | R119: =[1]Table_VCM!R116 -> 0 | S119: =[1]Table_VCM!S116 -> 1510.737693 | T119: =[1]Table_VCM!T116 -> 1750.75448 | U119: =[1]Table_VCM!U116 -> 6207.019951 | V119: =[1]Table_VCM!V116 -> 6826.099647 | W119: =[1]Table_VCM!W116 -> 1239.946367 | X119: =[1]Table_VCM!X116 -> 6516.670755 | Y119: =[1]Table_VCM!Y116 -> 0 | Z119: =[1]Table_VCM!Z116 -> 0.2033608446 | AA119: =[1]Table_VCM!AA116 -> 605.9826736 | AB119: =[1]Table_VCM!AB116 -> 263.3135041 | AC119: =[1]Table_VCM!AC116 -> 1964.635629 | AD119: =[1]Table_VCM!AD116 -> 974.7910334 | AE119: =[1]Table_VCM!AE116 -> 0 | AF119: =[1]Table_VCM!AF116 -> 9045.734486 | AG119: =[1]Table_VCM!AG116 -> 2297.862958 | AH119: =[1]Table_VCM!AH116 -> 56780.942 | AJ119: =[1]Table_VCM!AJ116 -> 7014.240322 | AL119: =[1]Table_VCM!AL116 -> 14278.68004 | AN119: 1472.990468
D120: 2018 | E120: 2 | F120: 2018 | G120: 2018 | H120: =[1]Table_VCM!H117 -> 955.0253031 | I120: =[1]Table_VCM!I117 -> 605.9813383 | J120: =[1]Table_VCM!J117 -> 479.8154505 | K120: =[1]Table_VCM!K117 -> 4506.177279 | L120: =[1]Table_VCM!L117 -> 2680.908558 | M120: =[1]Table_VCM!M117 -> 220.4435879 | N120: =[1]Table_VCM!N117 -> 3657.539753 | O120: =[1]Table_VCM!O117 -> 467.6656954 | P120: =[1]Table_VCM!P117 -> 281.7391578 | Q120: =[1]Table_VCM!Q117 -> 771.6928062 | R120: =[1]Table_VCM!R117 -> 0 | S120: =[1]Table_VCM!S117 -> 1086.810248 | T120: =[1]Table_VCM!T117 -> 1217.943191 | U120: =[1]Table_VCM!U117 -> 4934.854929 | V120: =[1]Table_VCM!V117 -> 6024.337804 | W120: =[1]Table_VCM!W117 -> 1056.638082 | X120: =[1]Table_VCM!X117 -> 5042.497878 | Y120: =[1]Table_VCM!Y117 -> 0 | Z120: =[1]Table_VCM!Z117 -> 1.743092954 | AA120: =[1]Table_VCM!AA117 -> 593.0913433 | AB120: =[1]Table_VCM!AB117 -> 228.3830571 | AC120: =[1]Table_VCM!AC117 -> 1811.810737 | AD120: =[1]Table_VCM!AD117 -> 789.4569977 | AE120: =[1]Table_VCM!AE117 -> 0 | AF120: =[1]Table_VCM!AF117 -> 8151.350225 | AG120: =[1]Table_VCM!AG117 -> 1983.334831 | AH120: =[1]Table_VCM!AH117 -> 47549.24135 | AJ120: =[1]Table_VCM!AJ117 -> 6209.751802 | AL120: =[1]Table_VCM!AL117 -> 13177.81465 | AN120: 1304.047878
D121: 2018 | E121: 3 | F121: 2018 | G121: 2018 | H121: =[1]Table_VCM!H118 -> 1057.961071 | I121: =[1]Table_VCM!I118 -> 774.5793526 | J121: =[1]Table_VCM!J118 -> 611.1405631 | K121: =[1]Table_VCM!K118 -> 7180.51953 | L121: =[1]Table_VCM!L118 -> 3098.803159 | M121: =[1]Table_VCM!M118 -> 248.2360725 | N121: =[1]Table_VCM!N118 -> 5581.50587 | O121: =[1]Table_VCM!O118 -> 572.9456524 | P121: =[1]Table_VCM!P118 -> 547.242734 | Q121: =[1]Table_VCM!Q118 -> 959.483789 | R121: =[1]Table_VCM!R118 -> 0 | S121: =[1]Table_VCM!S118 -> 1405.351236 | T121: =[1]Table_VCM!T118 -> 1477.199092 | U121: =[1]Table_VCM!U118 -> 3117.008833 | V121: =[1]Table_VCM!V118 -> 8555.135485 | W121: =[1]Table_VCM!W118 -> 1404.605423 | X121: =[1]Table_VCM!X118 -> 7618.856084 | Y121: =[1]Table_VCM!Y118 -> 0 | Z121: =[1]Table_VCM!Z118 -> 4.338364685 | AA121: =[1]Table_VCM!AA118 -> 725.0697179 | AB121: =[1]Table_VCM!AB118 -> 262.880482 | AC121: =[1]Table_VCM!AC118 -> 1928.220323 | AD121: =[1]Table_VCM!AD118 -> 968.7415544 | AE121: =[1]Table_VCM!AE118 -> 0 | AF121: =[1]Table_VCM!AF118 -> 9555.193875 | AG121: =[1]Table_VCM!AG118 -> 2724.464326 | AH121: =[1]Table_VCM!AH118 -> 60379.48259 | AJ121: =[1]Table_VCM!AJ118 -> 9171.364362 | AL121: =[1]Table_VCM!AL118 -> 17450.99627 | AN121: 1925.986516
D122: 2018 | E122: 4 | F122: 2018 | G122: 2018 | H122: =[1]Table_VCM!H119 -> 1117.90066 | I122: =[1]Table_VCM!I119 -> 851.592011 | J122: =[1]Table_VCM!J119 -> 668.7662961 | K122: =[1]Table_VCM!K119 -> 8145.809085 | L122: =[1]Table_VCM!L119 -> 3337.671314 | M122: =[1]Table_VCM!M119 -> 239.4657362 | N122: =[1]Table_VCM!N119 -> 7173.358787 | O122: =[1]Table_VCM!O119 -> 666.9378614 | P122: =[1]Table_VCM!P119 -> 661.2372436 | Q122: =[1]Table_VCM!Q119 -> 1073.563711 | R122: =[1]Table_VCM!R119 -> 0 | S122: =[1]Table_VCM!S119 -> 1384.313638 | T122: =[1]Table_VCM!T119 -> 2291.648087 | U122: =[1]Table_VCM!U119 -> 3106.782426 | V122: =[1]Table_VCM!V119 -> 9712.98468 | W122: =[1]Table_VCM!W119 -> 1732.558956 | X122: =[1]Table_VCM!X119 -> 10231.9538 | Y122: =[1]Table_VCM!Y119 -> 0 | Z122: =[1]Table_VCM!Z119 -> 18.66077846 | AA122: =[1]Table_VCM!AA119 -> 583.6256812 | AB122: =[1]Table_VCM!AB119 -> 294.9602004 | AC122: =[1]Table_VCM!AC119 -> 2353.264555 | AD122: =[1]Table_VCM!AD119 -> 1113.516584 | AE122: =[1]Table_VCM!AE119 -> 0 | AF122: =[1]Table_VCM!AF119 -> 10167.80307 | AG122: =[1]Table_VCM!AG119 -> 3869.780539 | AH122: =[1]Table_VCM!AH119 -> 70798.1557 | AJ122: =[1]Table_VCM!AJ119 -> 12454.65785 | AL122: =[1]Table_VCM!AL119 -> 19427.99416 | AN122: 2615.478148
D123: 2018 | E123: 5 | F123: 2018 | G123: 2019 | H123: =[1]Table_VCM!H120 -> 935.5312726 | I123: =[1]Table_VCM!I120 -> 926.4794843 | J123: =[1]Table_VCM!J120 -> 823.4043247 | K123: =[1]Table_VCM!K120 -> 10051.87889 | L123: =[1]Table_VCM!L120 -> 3779.502598 | M123: =[1]Table_VCM!M120 -> 257.5693695 | N123: =[1]Table_VCM!N120 -> 10357.06462 | O123: =[1]Table_VCM!O120 -> 724.8237484 | P123: =[1]Table_VCM!P120 -> 810.8809454 | Q123: =[1]Table_VCM!Q120 -> 1288.083565 | R123: =[1]Table_VCM!R120 -> 0 | S123: =[1]Table_VCM!S120 -> 1948.954828 | T123: =[1]Table_VCM!T120 -> 2437.751533 | U123: =[1]Table_VCM!U120 -> 3375.123344 | V123: =[1]Table_VCM!V120 -> 12339.23287 | W123: =[1]Table_VCM!W120 -> 2183.551921 | X123: =[1]Table_VCM!X120 -> 15012.68266 | Y123: =[1]Table_VCM!Y120 -> 0 | Z123: =[1]Table_VCM!Z120 -> 37.04072527 | AA123: =[1]Table_VCM!AA120 -> 763.5634105 | AB123: =[1]Table_VCM!AB120 -> 337.4685337 | AC123: =[1]Table_VCM!AC120 -> 3356.177912 | AD123: =[1]Table_VCM!AD120 -> 1287.851567 | AE123: =[1]Table_VCM!AE120 -> 0 | AF123: =[1]Table_VCM!AF120 -> 11593.03143 | AG123: =[1]Table_VCM!AG120 -> 5169.107076 | AH123: =[1]Table_VCM!AH120 -> 89796.75663 | AJ123: =[1]Table_VCM!AJ120 -> 14392.42023 | AL123: =[1]Table_VCM!AL120 -> 19574.55908 | AN123: 3022.408249
D124: 2018 | E124: 6 | F124: 2018 | G124: 2019 | H124: =[1]Table_VCM!H121 -> 1084.013841 | I124: =[1]Table_VCM!I121 -> 900.6736658 | J124: =[1]Table_VCM!J121 -> 953.6682459 | K124: =[1]Table_VCM!K121 -> 10357.30254 | L124: =[1]Table_VCM!L121 -> 3849.816606 | M124: =[1]Table_VCM!M121 -> 283.2285291 | N124: =[1]Table_VCM!N121 -> 11934.60232 | O124: =[1]Table_VCM!O121 -> 713.1742137 | P124: =[1]Table_VCM!P121 -> 909.1234864 | Q124: =[1]Table_VCM!Q121 -> 1455.896783 | R124: =[1]Table_VCM!R121 -> 0 | S124: =[1]Table_VCM!S121 -> 1925.734083 | T124: =[1]Table_VCM!T121 -> 2606.858499 | U124: =[1]Table_VCM!U121 -> 2942.341802 | V124: =[1]Table_VCM!V121 -> 15463.49447 | W124: =[1]Table_VCM!W121 -> 2375.729962 | X124: =[1]Table_VCM!X121 -> 14773.87584 | Y124: =[1]Table_VCM!Y121 -> 0 | Z124: =[1]Table_VCM!Z121 -> 122.7331117 | AA124: =[1]Table_VCM!AA121 -> 769.4231061 | AB124: =[1]Table_VCM!AB121 -> 335.231253 | AC124: =[1]Table_VCM!AC121 -> 3926.286398 | AD124: =[1]Table_VCM!AD121 -> 1270.665547 | AE124: =[1]Table_VCM!AE121 -> 0 | AF124: =[1]Table_VCM!AF121 -> 11698.69708 | AG124: =[1]Table_VCM!AG121 -> 5961.573345 | AH124: =[1]Table_VCM!AH121 -> 96614.14472 | AJ124: =[1]Table_VCM!AJ121 -> 21323.17766 | AL124: =[1]Table_VCM!AL121 -> 21779.54685 | AN124: 4477.867309
D125: 2018 | E125: 7 | F125: 2019 | G125: 2019 | H125: =[1]Table_VCM!H122 -> 757.8965635 | I125: =[1]Table_VCM!I122 -> 1000.981097 | J125: =[1]Table_VCM!J122 -> 750.3963927 | K125: =[1]Table_VCM!K122 -> 11304.28375 | L125: =[1]Table_VCM!L122 -> 4387.988189 | M125: =[1]Table_VCM!M122 -> 282.7995368 | N125: =[1]Table_VCM!N122 -> 13937.59874 | O125: =[1]Table_VCM!O122 -> 837.4509181 | P125: =[1]Table_VCM!P122 -> 763.3803508 | Q125: =[1]Table_VCM!Q122 -> 1529.954623 | R125: =[1]Table_VCM!R122 -> 0 | S125: =[1]Table_VCM!S122 -> 2138.933025 | T125: =[1]Table_VCM!T122 -> 2924.839904 | U125: =[1]Table_VCM!U122 -> 3058.416724 | V125: =[1]Table_VCM!V122 -> 18320.54739 | W125: =[1]Table_VCM!W122 -> 2841.791967 | X125: =[1]Table_VCM!X122 -> 16613.41479 | Y125: =[1]Table_VCM!Y122 -> 0 | Z125: =[1]Table_VCM!Z122 -> 192.7050152 | AA125: =[1]Table_VCM!AA122 -> 981.7604372 | AB125: =[1]Table_VCM!AB122 -> 370.3177071 | AC125: =[1]Table_VCM!AC122 -> 5021.575483 | AD125: =[1]Table_VCM!AD122 -> 1413.891773 | AE125: =[1]Table_VCM!AE122 -> 0 | AF125: =[1]Table_VCM!AF122 -> 12897.68379 | AG125: =[1]Table_VCM!AG122 -> 7311.832746 | AH125: =[1]Table_VCM!AH122 -> 109640.4409 | AJ125: =[1]Table_VCM!AJ122 -> 27121.06683 | AL125: =[1]Table_VCM!AL122 -> 21913.08378 | AN125: 5695.424034
D126: 2018 | E126: 8 | F126: 2019 | G126: 2019 | H126: =[1]Table_VCM!H123 -> 806.0081346 | I126: =[1]Table_VCM!I123 -> 1062.375154 | J126: =[1]Table_VCM!J123 -> 980.7047188 | K126: =[1]Table_VCM!K123 -> 11253.34298 | L126: =[1]Table_VCM!L123 -> 4530.864746 | M126: =[1]Table_VCM!M123 -> 269.0235952 | N126: =[1]Table_VCM!N123 -> 13774.12497 | O126: =[1]Table_VCM!O123 -> 844.9022857 | P126: =[1]Table_VCM!P123 -> 830.1594015 | Q126: =[1]Table_VCM!Q123 -> 1471.094005 | R126: =[1]Table_VCM!R123 -> 0 | S126: =[1]Table_VCM!S123 -> 2098.056537 | T126: =[1]Table_VCM!T123 -> 3031.652978 | U126: =[1]Table_VCM!U123 -> 3161.851518 | V126: =[1]Table_VCM!V123 -> 18658.43317 | W126: =[1]Table_VCM!W123 -> 2908.343929 | X126: =[1]Table_VCM!X123 -> 17816.8104 | Y126: =[1]Table_VCM!Y123 -> 0 | Z126: =[1]Table_VCM!Z123 -> 246.3290834 | AA126: =[1]Table_VCM!AA123 -> 999.6841602 | AB126: =[1]Table_VCM!AB123 -> 375.7630147 | AC126: =[1]Table_VCM!AC123 -> 5104.96407 | AD126: =[1]Table_VCM!AD123 -> 1322.071516 | AE126: =[1]Table_VCM!AE123 -> 0 | AF126: =[1]Table_VCM!AF123 -> 12943.85688 | AG126: =[1]Table_VCM!AG123 -> 7179.131607 | AH126: =[1]Table_VCM!AH123 -> 111669.5489 | AJ126: =[1]Table_VCM!AJ123 -> 27312.68583 | AL126: =[1]Table_VCM!AL123 -> 22479.80146 | AN126: 5735.664025
D127: 2018 | E127: 9 | F127: 2019 | G127: 2019 | H127: =[1]Table_VCM!H124 -> 607.2460456 | I127: =[1]Table_VCM!I124 -> 1030.801067 | J127: =[1]Table_VCM!J124 -> 1091.831937 | K127: =[1]Table_VCM!K124 -> 10705.48951 | L127: =[1]Table_VCM!L124 -> 4065.626137 | M127: =[1]Table_VCM!M124 -> 234.3722686 | N127: =[1]Table_VCM!N124 -> 12190.47279 | O127: =[1]Table_VCM!O124 -> 825.6467713 | P127: =[1]Table_VCM!P124 -> 707.7311419 | Q127: =[1]Table_VCM!Q124 -> 1376.692251 | R127: =[1]Table_VCM!R124 -> 0 | S127: =[1]Table_VCM!S124 -> 1946.48976 | T127: =[1]Table_VCM!T124 -> 2820.245499 | U127: =[1]Table_VCM!U124 -> 2970.413733 | V127: =[1]Table_VCM!V124 -> 16844.4422 | W127: =[1]Table_VCM!W124 -> 2620.570462 | X127: =[1]Table_VCM!X124 -> 16997.37759 | Y127: =[1]Table_VCM!Y124 -> 0 | Z127: =[1]Table_VCM!Z124 -> 227.2925886 | AA127: =[1]Table_VCM!AA124 -> 971.1900365 | AB127: =[1]Table_VCM!AB124 -> 350.3761078 | AC127: =[1]Table_VCM!AC124 -> 4506.027067 | AD127: =[1]Table_VCM!AD124 -> 1370.014307 | AE127: =[1]Table_VCM!AE124 -> 0 | AF127: =[1]Table_VCM!AF124 -> 11962.67867 | AG127: =[1]Table_VCM!AG124 -> 6417.574516 | AH127: =[1]Table_VCM!AH124 -> 102840.6025 | AJ127: =[1]Table_VCM!AJ124 -> 21726.85458 | AL127: =[1]Table_VCM!AL124 -> 21463.61803 | AN127: 4562.639461
D128: 2018 | E128: 10 | F128: 2019 | G128: 2019 | H128: =[1]Table_VCM!H125 -> 377.0906921 | I128: =[1]Table_VCM!I125 -> 911.9339174 | J128: =[1]Table_VCM!J125 -> 1047.050543 | K128: =[1]Table_VCM!K125 -> 9321.438633 | L128: =[1]Table_VCM!L125 -> 3574.964654 | M128: =[1]Table_VCM!M125 -> 247.0908462 | N128: =[1]Table_VCM!N125 -> 9217.293542 | O128: =[1]Table_VCM!O125 -> 677.7260569 | P128: =[1]Table_VCM!P125 -> 558.1826982 | Q128: =[1]Table_VCM!Q125 -> 1177.774269 | R128: =[1]Table_VCM!R125 -> 0 | S128: =[1]Table_VCM!S125 -> 1791.482882 | T128: =[1]Table_VCM!T125 -> 4251.604082 | U128: =[1]Table_VCM!U125 -> 2917.028033 | V128: =[1]Table_VCM!V125 -> 11062.14785 | W128: =[1]Table_VCM!W125 -> 1983.341223 | X128: =[1]Table_VCM!X125 -> 14726.37811 | Y128: =[1]Table_VCM!Y125 -> 0 | Z128: =[1]Table_VCM!Z125 -> 98.83574333 | AA128: =[1]Table_VCM!AA125 -> 893.5205702 | AB128: =[1]Table_VCM!AB125 -> 335.1807562 | AC128: =[1]Table_VCM!AC125 -> 3293.544841 | AD128: =[1]Table_VCM!AD125 -> 1285.623781 | AE128: =[1]Table_VCM!AE125 -> 0 | AF128: =[1]Table_VCM!AF125 -> 10953.28357 | AG128: =[1]Table_VCM!AG125 -> 4570.079773 | AH128: =[1]Table_VCM!AH125 -> 85272.59706 | AJ128: =[1]Table_VCM!AJ125 -> 12837.26255 | AL128: =[1]Table_VCM!AL125 -> 20812.21839 | AN128: 2695.825136
D129: 2018 | E129: 11 | F129: 2019 | G129: 2019 | H129: =[1]Table_VCM!H126 -> 477.2147725 | I129: =[1]Table_VCM!I126 -> 795.3367996 | J129: =[1]Table_VCM!J126 -> 1016.016491 | K129: =[1]Table_VCM!K126 -> 7848.962282 | L129: =[1]Table_VCM!L126 -> 3300.906063 | M129: =[1]Table_VCM!M126 -> 240.1424546 | N129: =[1]Table_VCM!N126 -> 6257.250581 | O129: =[1]Table_VCM!O126 -> 602.6959489 | P129: =[1]Table_VCM!P126 -> 382.5707009 | Q129: =[1]Table_VCM!Q126 -> 1023.247587 | R129: =[1]Table_VCM!R126 -> 0 | S129: =[1]Table_VCM!S126 -> 1577.994298 | T129: =[1]Table_VCM!T126 -> 3128.323564 | U129: =[1]Table_VCM!U126 -> 2712.660899 | V129: =[1]Table_VCM!V126 -> 9205.019232 | W129: =[1]Table_VCM!W126 -> 1539.274996 | X129: =[1]Table_VCM!X126 -> 8512.736216 | Y129: =[1]Table_VCM!Y126 -> 0 | Z129: =[1]Table_VCM!Z126 -> 9.853953231 | AA129: =[1]Table_VCM!AA126 -> 803.3504561 | AB129: =[1]Table_VCM!AB126 -> 298.535308 | AC129: =[1]Table_VCM!AC126 -> 2428.007831 | AD129: =[1]Table_VCM!AD126 -> 1104.786939 | AE129: =[1]Table_VCM!AE126 -> 0 | AF129: =[1]Table_VCM!AF126 -> 9427.006348 | AG129: =[1]Table_VCM!AG126 -> 3711.945743 | AH129: =[1]Table_VCM!AH126 -> 66403.83946 | AJ129: =[1]Table_VCM!AJ126 -> 10927.31141 | AL129: =[1]Table_VCM!AL126 -> 19773.23597 | AN129: 2294.735397
D130: 2018 | E130: 12 | F130: 2019 | G130: 2019 | H130: =[1]Table_VCM!H127 -> 523.2829949 | I130: =[1]Table_VCM!I127 -> 657.6902907 | J130: =[1]Table_VCM!J127 -> 667.5808057 | K130: =[1]Table_VCM!K127 -> 5996.833086 | L130: =[1]Table_VCM!L127 -> 3117.352907 | M130: =[1]Table_VCM!M127 -> 239.3267739 | N130: =[1]Table_VCM!N127 -> 3948.183536 | O130: =[1]Table_VCM!O127 -> 496.311076 | P130: =[1]Table_VCM!P127 -> 292.334452 | Q130: =[1]Table_VCM!Q127 -> 893.585654 | R130: =[1]Table_VCM!R127 -> 0 | S130: =[1]Table_VCM!S127 -> 1239.447945 | T130: =[1]Table_VCM!T127 -> 2249.730563 | U130: =[1]Table_VCM!U127 -> 2739.770825 | V130: =[1]Table_VCM!V127 -> 7179.692591 | W130: =[1]Table_VCM!W127 -> 1106.571299 | X130: =[1]Table_VCM!X127 -> 5867.138877 | Y130: =[1]Table_VCM!Y127 -> 0 | Z130: =[1]Table_VCM!Z127 -> 24.01283994 | AA130: =[1]Table_VCM!AA127 -> 422.1726138 | AB130: =[1]Table_VCM!AB127 -> 193.0876629 | AC130: =[1]Table_VCM!AC127 -> 1710.987719 | AD130: =[1]Table_VCM!AD127 -> 991.3784076 | AE130: =[1]Table_VCM!AE127 -> 0 | AF130: =[1]Table_VCM!AF127 -> 8681.823941 | AG130: =[1]Table_VCM!AG127 -> 2191.043247 | AH130: =[1]Table_VCM!AH127 -> 51429.34011 | AJ130: =[1]Table_VCM!AJ127 -> 8054.044312 | AL130: =[1]Table_VCM!AL127 -> 15568.45132 | AN130: 1691.349305
D131: 2019 | E131: 1 | F131: 2019 | G131: 2019 | H131: =[1]Table_VCM!H128 -> 532.0741794 | I131: =[1]Table_VCM!I128 -> 709.8240303 | J131: =[1]Table_VCM!J128 -> 401.9181231 | K131: =[1]Table_VCM!K128 -> 6518.445796 | L131: =[1]Table_VCM!L128 -> 3331.499476 | M131: =[1]Table_VCM!M128 -> 243.10005 | N131: =[1]Table_VCM!N128 -> 4263.583706 | O131: =[1]Table_VCM!O128 -> 541.8088299 | P131: =[1]Table_VCM!P128 -> 237.9322387 | Q131: =[1]Table_VCM!Q128 -> 867.684189 | R131: =[1]Table_VCM!R128 -> 0 | S131: =[1]Table_VCM!S128 -> 1397.629629 | T131: =[1]Table_VCM!T128 -> 1814.698876 | U131: =[1]Table_VCM!U128 -> 6325.876287 | V131: =[1]Table_VCM!V128 -> 6952.5512 | W131: =[1]Table_VCM!W128 -> 1272.252217 | X131: =[1]Table_VCM!X128 -> 6581.894247 | Y131: =[1]Table_VCM!Y128 -> 0 | Z131: =[1]Table_VCM!Z128 -> 0.202209706 | AA131: =[1]Table_VCM!AA128 -> 620.4471181 | AB131: =[1]Table_VCM!AB128 -> 260.0401422 | AC131: =[1]Table_VCM!AC128 -> 1972.83687 | AD131: =[1]Table_VCM!AD128 -> 1000.673554 | AE131: =[1]Table_VCM!AE128 -> 0 | AF131: =[1]Table_VCM!AF128 -> 9292.609179 | AG131: =[1]Table_VCM!AG128 -> 2246.969882 | AH131: =[1]Table_VCM!AH128 -> 57386.55203 | AJ131: =[1]Table_VCM!AJ128 -> 7144.155979 | AL131: =[1]Table_VCM!AL128 -> 16159.92905 | AN131: 1500.272756
D132: 2019 | E132: 2 | F132: 2019 | G132: 2019 | H132: =[1]Table_VCM!H129 -> 970.4707197 | I132: =[1]Table_VCM!I129 -> 608.8563663 | J132: =[1]Table_VCM!J129 -> 450.3023571 | K132: =[1]Table_VCM!K129 -> 4345.911189 | L132: =[1]Table_VCM!L129 -> 2828.512505 | M132: =[1]Table_VCM!M129 -> 232.6555662 | N132: =[1]Table_VCM!N129 -> 3826.293069 | O132: =[1]Table_VCM!O129 -> 468.4828545 | P132: =[1]Table_VCM!P129 -> 288.7760921 | Q132: =[1]Table_VCM!Q129 -> 743.6724013 | R132: =[1]Table_VCM!R129 -> 0 | S132: =[1]Table_VCM!S129 -> 1005.441388 | T132: =[1]Table_VCM!T129 -> 1262.427237 | U132: =[1]Table_VCM!U129 -> 5029.350964 | V132: =[1]Table_VCM!V129 -> 6135.55704 | W132: =[1]Table_VCM!W129 -> 1084.167975 | X132: =[1]Table_VCM!X129 -> 5092.966796 | Y132: =[1]Table_VCM!Y129 -> 0 | Z132: =[1]Table_VCM!Z129 -> 1.733226052 | AA132: =[1]Table_VCM!AA129 -> 607.2480795 | AB132: =[1]Table_VCM!AB129 -> 225.5439304 | AC132: =[1]Table_VCM!AC129 -> 1819.374021 | AD132: =[1]Table_VCM!AD129 -> 810.418554 | AE132: =[1]Table_VCM!AE129 -> 0 | AF132: =[1]Table_VCM!AF129 -> 8373.815531 | AG132: =[1]Table_VCM!AG129 -> 1939.407925 | AH132: =[1]Table_VCM!AH129 -> 48151.38579 | AJ132: =[1]Table_VCM!AJ129 -> 6324.384939 | AL132: =[1]Table_VCM!AL129 -> 14914.02211 | AN132: 1328.120837
D133: 2019 | E133: 3 | F133: 2019 | G133: 2019 | H133: =[1]Table_VCM!H130 -> 1075.071246 | I133: =[1]Table_VCM!I130 -> 778.2542799 | J133: =[1]Table_VCM!J130 -> 573.5497592 | K133: =[1]Table_VCM!K130 -> 6899.134337 | L133: =[1]Table_VCM!L130 -> 3269.41531 | M133: =[1]Table_VCM!M130 -> 261.9876793 | N133: =[1]Table_VCM!N130 -> 5839.028054 | O133: =[1]Table_VCM!O130 -> 573.699121 | P133: =[1]Table_VCM!P130 -> 560.9110901 | Q133: =[1]Table_VCM!Q130 -> 924.6446354 | R133: =[1]Table_VCM!R130 -> 0 | S133: =[1]Table_VCM!S130 -> 1300.133395 | T133: =[1]Table_VCM!T130 -> 1531.152177 | U133: =[1]Table_VCM!U130 -> 3176.695486 | V133: =[1]Table_VCM!V130 -> 8713.530283 | W133: =[1]Table_VCM!W130 -> 1441.201338 | X133: =[1]Table_VCM!X130 -> 7695.111033 | Y133: =[1]Table_VCM!Y130 -> 0 | Z133: =[1]Table_VCM!Z130 -> 4.313807062 | AA133: =[1]Table_VCM!AA130 -> 742.3766991 | AB133: =[1]Table_VCM!AB130 -> 259.6125032 | AC133: =[1]Table_VCM!AC130 -> 1936.269551 | AD133: =[1]Table_VCM!AD130 -> 994.4634503 | AE133: =[1]Table_VCM!AE130 -> 0 | AF133: =[1]Table_VCM!AF130 -> 9815.97265 | AG133: =[1]Table_VCM!AG130 -> 2664.122881 | AH133: =[1]Table_VCM!AH130 -> 61030.65076 | AJ133: =[1]Table_VCM!AJ130 -> 9341.105359 | AL133: =[1]Table_VCM!AL130 -> 19750.20526 | AN133: 1961.632125
D134: 2019 | E134: 4 | F134: 2019 | G134: 2019 | H134: =[1]Table_VCM!H131 -> 1135.980224 | I134: =[1]Table_VCM!I131 -> 855.6323184 | J134: =[1]Table_VCM!J131 -> 627.630976 | K134: =[1]Table_VCM!K131 -> 7820.706598 | L134: =[1]Table_VCM!L131 -> 3521.434932 | M134: =[1]Table_VCM!M131 -> 252.7314901 | N134: =[1]Table_VCM!N131 -> 7504.326642 | O134: =[1]Table_VCM!O131 -> 667.6344681 | P134: =[1]Table_VCM!P131 -> 677.7528145 | Q134: =[1]Table_VCM!Q131 -> 1034.58228 | R134: =[1]Table_VCM!R131 -> 0 | S134: =[1]Table_VCM!S131 -> 1280.67087 | T134: =[1]Table_VCM!T131 -> 2375.348032 | U134: =[1]Table_VCM!U131 -> 3166.273257 | V134: =[1]Table_VCM!V131 -> 9892.035243 | W134: =[1]Table_VCM!W131 -> 1777.699448 | X134: =[1]Table_VCM!X131 -> 10334.3625 | Y134: =[1]Table_VCM!Y131 -> 0 | Z134: =[1]Table_VCM!Z131 -> 18.55514778 | AA134: =[1]Table_VCM!AA131 -> 597.5564777 | AB134: =[1]Table_VCM!AB131 -> 291.293425 | AC134: =[1]Table_VCM!AC131 -> 2363.088102 | AD134: =[1]Table_VCM!AD131 -> 1143.082527 | AE134: =[1]Table_VCM!AE131 -> 0 | AF134: =[1]Table_VCM!AF131 -> 10445.30107 | AG134: =[1]Table_VCM!AG131 -> 3784.072627 | AH134: =[1]Table_VCM!AH131 -> 71567.75147 | AJ134: =[1]Table_VCM!AJ131 -> 12684.18896 | AL134: =[1]Table_VCM!AL131 -> 21987.67719 | AN134: 2663.679681
D135: 2019 | E135: 5 | F135: 2019 | G135: 2020 | H135: =[1]Table_VCM!H132 -> 950.6614165 | I135: =[1]Table_VCM!I132 -> 930.8750892 | J135: =[1]Table_VCM!J132 -> 739.5345095 | K135: =[1]Table_VCM!K132 -> 9640.451824 | L135: =[1]Table_VCM!L132 -> 3987.592313 | M135: =[1]Table_VCM!M132 -> 271.8380158 | N135: =[1]Table_VCM!N132 -> 10834.92382 | O135: =[1]Table_VCM!O132 -> 725.4853363 | P135: =[1]Table_VCM!P132 -> 831.1341326 | Q135: =[1]Table_VCM!Q132 -> 1241.312851 | R135: =[1]Table_VCM!R132 -> 0 | S135: =[1]Table_VCM!S132 -> 1803.037698 | T135: =[1]Table_VCM!T132 -> 2526.787746 | U135: =[1]Table_VCM!U132 -> 3439.752553 | V135: =[1]Table_VCM!V132 -> 12567.3433 | W135: =[1]Table_VCM!W132 -> 2240.442688 | X135: =[1]Table_VCM!X132 -> 15162.94031 | Y135: =[1]Table_VCM!Y132 -> 0 | Z135: =[1]Table_VCM!Z132 -> 36.83105359 | AA135: =[1]Table_VCM!AA132 -> 781.7892131 | AB135: =[1]Table_VCM!AB132 -> 333.2733191 | AC135: =[1]Table_VCM!AC132 -> 3370.188054 | AD135: =[1]Table_VCM!AD132 -> 1322.046429 | AE135: =[1]Table_VCM!AE132 -> 0 | AF135: =[1]Table_VCM!AF132 -> 11909.42653 | AG135: =[1]Table_VCM!AG132 -> 5054.621676 | AH135: =[1]Table_VCM!AH132 -> 90702.28988 | AJ135: =[1]Table_VCM!AJ132 -> 14658.33459 | AL135: =[1]Table_VCM!AL132 -> 22153.55237 | AN135: 3078.250265
D136: 2019 | E136: 6 | F136: 2019 | G136: 2020 | H136: =[1]Table_VCM!H133 -> 1101.545361 | I136: =[1]Table_VCM!I133 -> 904.9468371 | J136: =[1]Table_VCM!J133 -> 833.4919328 | K136: =[1]Table_VCM!K133 -> 9932.043047 | L136: =[1]Table_VCM!L133 -> 4061.77763 | M136: =[1]Table_VCM!M133 -> 298.9186233 | N136: =[1]Table_VCM!N133 -> 12485.2467 | O136: =[1]Table_VCM!O133 -> 713.8428491 | P136: =[1]Table_VCM!P133 -> 931.8304551 | Q136: =[1]Table_VCM!Q133 -> 1403.03272 | R136: =[1]Table_VCM!R133 -> 0 | S136: =[1]Table_VCM!S133 -> 1781.555477 | T136: =[1]Table_VCM!T133 -> 2702.07116 | U136: =[1]Table_VCM!U133 -> 2998.68381 | V136: =[1]Table_VCM!V133 -> 15751.60866 | W136: =[1]Table_VCM!W133 -> 2437.627781 | X136: =[1]Table_VCM!X133 -> 14921.74334 | Y136: =[1]Table_VCM!Y133 -> 0 | Z136: =[1]Table_VCM!Z133 -> 122.0383721 | AA136: =[1]Table_VCM!AA133 -> 787.7887762 | AB136: =[1]Table_VCM!AB133 -> 331.063851 | AC136: =[1]Table_VCM!AC133 -> 3942.676419 | AD136: =[1]Table_VCM!AD133 -> 1304.404089 | AE136: =[1]Table_VCM!AE133 -> 0 | AF136: =[1]Table_VCM!AF133 -> 12017.97599 | AG136: =[1]Table_VCM!AG133 -> 5829.536399 | AH136: =[1]Table_VCM!AH133 -> 97595.45028 | AJ136: =[1]Table_VCM!AJ133 -> 21724.60136 | AL136: =[1]Table_VCM!AL133 -> 24649.05237 | AN136: 4562.166286
D137: 2019 | E137: 7 | F137: 2020 | G137: 2020 | H137: =[1]Table_VCM!H134 -> 779.9663288 | I137: =[1]Table_VCM!I134 -> 1018.544096 | J137: =[1]Table_VCM!J134 -> 713.2127323 | K137: =[1]Table_VCM!K134 -> 10975.06842 | L137: =[1]Table_VCM!L134 -> 4688.564664 | M137: =[1]Table_VCM!M134 -> 302.2685958 | N137: =[1]Table_VCM!N134 -> 14766.42933 | O137: =[1]Table_VCM!O134 -> 848.7436688 | P137: =[1]Table_VCM!P134 -> 792.4162231 | Q137: =[1]Table_VCM!Q134 -> 1493.186729 | R137: =[1]Table_VCM!R134 -> 0 | S137: =[1]Table_VCM!S134 -> 2004.003972 | T137: =[1]Table_VCM!T134 -> 3070.292709 | U137: =[1]Table_VCM!U134 -> 3156.694626 | V137: =[1]Table_VCM!V134 -> 18899.65515 | W137: =[1]Table_VCM!W134 -> 2952.983064 | X137: =[1]Table_VCM!X134 -> 16993.48244 | Y137: =[1]Table_VCM!Y134 -> 0 | Z137: =[1]Table_VCM!Z134 -> 194.0555359 | AA137: =[1]Table_VCM!AA134 -> 1018.001575 | AB137: =[1]Table_VCM!AB134 -> 370.3736651 | AC137: =[1]Table_VCM!AC134 -> 5106.784288 | AD137: =[1]Table_VCM!AD134 -> 1469.925833 | AE137: =[1]Table_VCM!AE134 -> 0 | AF137: =[1]Table_VCM!AF134 -> 13418.49843 | AG137: =[1]Table_VCM!AG134 -> 7240.986432 | AH137: =[1]Table_VCM!AH134 -> 112274.1385 | AJ137: =[1]Table_VCM!AJ134 -> 27986.48383 | AL137: =[1]Table_VCM!AL134 -> 24800.18309 | AN137: 5877.161605
D138: 2019 | E138: 8 | F138: 2020 | G138: 2020 | H138: =[1]Table_VCM!H135 -> 829.4788972 | I138: =[1]Table_VCM!I135 -> 1081.015361 | J138: =[1]Table_VCM!J135 -> 882.4984768 | K138: =[1]Table_VCM!K135 -> 10925.8151 | L138: =[1]Table_VCM!L135 -> 4841.228241 | M138: =[1]Table_VCM!M135 -> 287.5442629 | N138: =[1]Table_VCM!N135 -> 14593.23423 | O138: =[1]Table_VCM!O135 -> 856.2854085 | P138: =[1]Table_VCM!P135 -> 861.7352763 | Q138: =[1]Table_VCM!Q135 -> 1435.74065 | R138: =[1]Table_VCM!R135 -> 0 | S138: =[1]Table_VCM!S135 -> 1965.706072 | T138: =[1]Table_VCM!T135 -> 3182.417617 | U138: =[1]Table_VCM!U135 -> 3263.453152 | V138: =[1]Table_VCM!V135 -> 19248.38664 | W138: =[1]Table_VCM!W135 -> 3022.139012 | X138: =[1]Table_VCM!X135 -> 18224.40831 | Y138: =[1]Table_VCM!Y135 -> 0 | Z138: =[1]Table_VCM!Z135 -> 248.0554137 | AA138: =[1]Table_VCM!AA135 -> 1036.586942 | AB138: =[1]Table_VCM!AB135 -> 375.8197955 | AC138: =[1]Table_VCM!AC135 -> 5191.587857 | AD138: =[1]Table_VCM!AD135 -> 1374.46664 | AE138: =[1]Table_VCM!AE135 -> 0 | AF138: =[1]Table_VCM!AF135 -> 13466.53601 | AG138: =[1]Table_VCM!AG135 -> 7109.57107 | AH138: =[1]Table_VCM!AH135 -> 114303.7104 | AJ138: =[1]Table_VCM!AJ135 -> 28183.51436 | AL138: =[1]Table_VCM!AL135 -> 25441.56714 | AN138: 5918.538016
D139: 2019 | E139: 9 | F139: 2020 | G139: 2020 | H139: =[1]Table_VCM!H136 -> 624.9289041 | I139: =[1]Table_VCM!I136 -> 1048.887282 | J139: =[1]Table_VCM!J136 -> 942.929622 | K139: =[1]Table_VCM!K136 -> 10396.1095 | L139: =[1]Table_VCM!L136 -> 4344.120864 | M139: =[1]Table_VCM!M136 -> 250.5073994 | N139: =[1]Table_VCM!N136 -> 12915.40662 | O139: =[1]Table_VCM!O136 -> 836.7963584 | P139: =[1]Table_VCM!P136 -> 734.6503454 | Q139: =[1]Table_VCM!Q136 -> 1343.60756 | R139: =[1]Table_VCM!R136 -> 0 | S139: =[1]Table_VCM!S136 -> 1823.700492 | T139: =[1]Table_VCM!T136 -> 2960.496806 | U139: =[1]Table_VCM!U136 -> 3065.863784 | V139: =[1]Table_VCM!V136 -> 17377.08577 | W139: =[1]Table_VCM!W136 -> 2723.105802 | X139: =[1]Table_VCM!X136 -> 17386.22922 | Y139: =[1]Table_VCM!Y136 -> 0 | Z139: =[1]Table_VCM!Z136 -> 228.8855068 | AA139: =[1]Table_VCM!AA136 -> 1007.040974 | AB139: =[1]Table_VCM!AB136 -> 350.4290524 | AC139: =[1]Table_VCM!AC136 -> 4582.487767 | AD139: =[1]Table_VCM!AD136 -> 1424.309455 | AE139: =[1]Table_VCM!AE136 -> 0 | AF139: =[1]Table_VCM!AF136 -> 12445.73735 | AG139: =[1]Table_VCM!AG136 -> 6355.392911 | AH139: =[1]Table_VCM!AH136 -> 105168.7093 | AJ139: =[1]Table_VCM!AJ136 -> 22418.27901 | AL139: =[1]Table_VCM!AL136 -> 24291.49919 | AN139: =AJ139*0.21 -> 4707.838591
D140: 2019 | E140: 10 | F140: 2020 | G140: 2020 | H140: =[1]Table_VCM!H137 -> 388.0714822 | I140: =[1]Table_VCM!I137 -> 927.9345141 | J140: =[1]Table_VCM!J137 -> 995.1670688 | K140: =[1]Table_VCM!K137 -> 9057.905875 | L140: =[1]Table_VCM!L137 -> 3819.849149 | M140: =[1]Table_VCM!M137 -> 264.1015751 | N140: =[1]Table_VCM!N137 -> 9765.420593 | O140: =[1]Table_VCM!O137 -> 687.0816248 | P140: =[1]Table_VCM!P137 -> 579.4136894 | Q140: =[1]Table_VCM!Q137 -> 1149.469978 | R140: =[1]Table_VCM!R137 -> 0 | S140: =[1]Table_VCM!S137 -> 1678.471822 | T140: =[1]Table_VCM!T137 -> 4463.037105 | U140: =[1]Table_VCM!U137 -> 3010.76261 | V140: =[1]Table_VCM!V137 -> 11409.3646 | W140: =[1]Table_VCM!W137 -> 2060.943627 | X140: =[1]Table_VCM!X137 -> 15063.27573 | Y140: =[1]Table_VCM!Y137 -> 0 | Z140: =[1]Table_VCM!Z137 -> 99.52840674 | AA140: =[1]Table_VCM!AA137 -> 926.5043828 | AB140: =[1]Table_VCM!AB137 -> 335.2314048 | AC140: =[1]Table_VCM!AC137 -> 3349.431488 | AD140: =[1]Table_VCM!AD137 -> 1336.574441 | AE140: =[1]Table_VCM!AE137 -> 0 | AF140: =[1]Table_VCM!AF137 -> 11395.5824 | AG140: =[1]Table_VCM!AG137 -> 4525.799041 | AH140: =[1]Table_VCM!AH137 -> 87288.9226 | AJ140: =[1]Table_VCM!AJ137 -> 13240.19629 | AL140: =[1]Table_VCM!AL137 -> 23554.27615 | AN140: 2780.441221
D141: 2019 | E141: 11 | F141: 2020 | G141: 2020 | H141: =[1]Table_VCM!H138 -> 491.1111516 | I141: =[1]Table_VCM!I138 -> 809.2916084 | J141: =[1]Table_VCM!J138 -> 965.6708173 | K141: =[1]Table_VCM!K138 -> 7634.205911 | L141: =[1]Table_VCM!L138 -> 3527.01759 | M141: =[1]Table_VCM!M138 -> 256.6748283 | N141: =[1]Table_VCM!N138 -> 6629.352032 | O141: =[1]Table_VCM!O138 -> 611.1415329 | P141: =[1]Table_VCM!P138 -> 397.1221286 | Q141: =[1]Table_VCM!Q138 -> 998.6568847 | R141: =[1]Table_VCM!R138 -> 0 | S141: =[1]Table_VCM!S138 -> 1478.450612 | T141: =[1]Table_VCM!T138 -> 3283.895648 | U141: =[1]Table_VCM!U138 -> 2799.828426 | V141: =[1]Table_VCM!V138 -> 9493.944758 | W141: =[1]Table_VCM!W138 -> 1599.502373 | X141: =[1]Table_VCM!X138 -> 8707.483394 | Y141: =[1]Table_VCM!Y138 -> 0 | Z141: =[1]Table_VCM!Z138 -> 9.92301198 | AA141: =[1]Table_VCM!AA138 -> 833.0056893 | AB141: =[1]Table_VCM!AB138 -> 298.5804191 | AC141: =[1]Table_VCM!AC138 -> 2469.207579 | AD141: =[1]Table_VCM!AD138 -> 1148.57084 | AE141: =[1]Table_VCM!AE138 -> 0 | AF141: =[1]Table_VCM!AF138 -> 9807.673373 | AG141: =[1]Table_VCM!AG138 -> 3675.979702 | AH141: =[1]Table_VCM!AH138 -> 67926.29031 | AJ141: =[1]Table_VCM!AJ138 -> 11270.29594 | AL141: =[1]Table_VCM!AL138 -> 22378.4054 | AN141: 2366.762148
D142: 2019 | E142: 12 | F142: 2020 | G142: 2020 | H142: =[1]Table_VCM!H139 -> 538.5208696 | I142: =[1]Table_VCM!I139 -> 669.2299834 | J142: =[1]Table_VCM!J139 -> 634.5008253 | K142: =[1]Table_VCM!K139 -> 5843.42926 | L142: =[1]Table_VCM!L139 -> 3330.891073 | M142: =[1]Table_VCM!M139 -> 255.8029928 | N142: =[1]Table_VCM!N139 -> 4182.971133 | O142: =[1]Table_VCM!O139 -> 503.4663978 | P142: =[1]Table_VCM!P139 -> 303.4536611 | Q142: =[1]Table_VCM!Q139 -> 872.110989 | R142: =[1]Table_VCM!R139 -> 0 | S142: =[1]Table_VCM!S139 -> 1161.26058 | T142: =[1]Table_VCM!T139 -> 2361.610062 | U142: =[1]Table_VCM!U139 -> 2827.809491 | V142: =[1]Table_VCM!V139 -> 7405.04752 | W142: =[1]Table_VCM!W139 -> 1149.868232 | X142: =[1]Table_VCM!X139 -> 6001.362318 | Y142: =[1]Table_VCM!Y139 -> 0 | Z142: =[1]Table_VCM!Z139 -> 24.18112739 | AA142: =[1]Table_VCM!AA139 -> 437.7568799 | AB142: =[1]Table_VCM!AB139 -> 193.11684 | AC142: =[1]Table_VCM!AC139 -> 1740.020683 | AD142: =[1]Table_VCM!AD139 -> 1030.667806 | AE142: =[1]Table_VCM!AE139 -> 0 | AF142: =[1]Table_VCM!AF139 -> 9032.400145 | AG142: =[1]Table_VCM!AG139 -> 2169.813639 | AH142: =[1]Table_VCM!AH139 -> 52669.29251 | AJ142: =[1]Table_VCM!AJ139 -> 8306.843239 | AL142: =[1]Table_VCM!AL139 -> 17619.63067 | AN142: 1744.43708
D143: 2020 | E143: 1 | F143: 2020 | G143: 2020 | H143: =[1]Table_VCM!H140 -> 548.1353638 | I143: =[1]Table_VCM!I140 -> 722.1302232 | J143: =[1]Table_VCM!J140 -> 378.6762208 | K143: =[1]Table_VCM!K140 -> 6451.354874 | L143: =[1]Table_VCM!L140 -> 3222.288315 | M143: =[1]Table_VCM!M140 -> 259.6203024 | N143: =[1]Table_VCM!N140 -> 4362.135063 | O143: =[1]Table_VCM!O140 -> 549.3822984 | P143: =[1]Table_VCM!P140 -> 246.9826957 | Q143: =[1]Table_VCM!Q140 -> 843.8313694 | R143: =[1]Table_VCM!R140 -> 0 | S143: =[1]Table_VCM!S140 -> 1294.956454 | T143: =[1]Table_VCM!T140 -> 1905.359888 | U143: =[1]Table_VCM!U140 -> 6532.072039 | V143: =[1]Table_VCM!V140 -> 7171.564638 | W143: =[1]Table_VCM!W140 -> 1321.860876 | X143: =[1]Table_VCM!X140 -> 6727.157137 | Y143: =[1]Table_VCM!Y140 -> 0 | Z143: =[1]Table_VCM!Z140 -> 0.2030597052 | AA143: =[1]Table_VCM!AA140 -> 643.3377049 | AB143: =[1]Table_VCM!AB140 -> 259.7964604 | AC143: =[1]Table_VCM!AC140 -> 2004.559245 | AD143: =[1]Table_VCM!AD140 -> 1040.363096 | AE143: =[1]Table_VCM!AE140 -> 0 | AF143: =[1]Table_VCM!AF140 -> 9529.942409 | AG143: =[1]Table_VCM!AG140 -> 2216.994724 | AH143: =[1]Table_VCM!AH140 -> 58232.70446 | AJ143: =[1]Table_VCM!AJ140 -> 7369.183344 | AL143: =[1]Table_VCM!AL140 -> 18197.94882 | AN143: 1547.528502
D144: 2020 | E144: 2 | F144: 2020 | G144: 2020 | H144: =[1]Table_VCM!H141 -> 999.7653364 | I144: =[1]Table_VCM!I141 -> 619.4120866 | J144: =[1]Table_VCM!J141 -> 424.2625177 | K144: =[1]Table_VCM!K141 -> 4312.183412 | L144: =[1]Table_VCM!L141 -> 2735.789952 | M144: =[1]Table_VCM!M141 -> 248.4660471 | N144: =[1]Table_VCM!N141 -> 3914.736595 | O144: =[1]Table_VCM!O141 -> 475.1871609 | P144: =[1]Table_VCM!P141 -> 299.7605455 | Q144: =[1]Table_VCM!Q141 -> 723.2286916 | R144: =[1]Table_VCM!R141 -> 0 | S144: =[1]Table_VCM!S141 -> 931.5792884 | T144: =[1]Table_VCM!T141 -> 1325.497166 | U144: =[1]Table_VCM!U141 -> 5193.285691 | V144: =[1]Table_VCM!V141 -> 6328.441745 | W144: =[1]Table_VCM!W141 -> 1126.442705 | X144: =[1]Table_VCM!X141 -> 5205.368947 | Y144: =[1]Table_VCM!Y141 -> 0 | Z144: =[1]Table_VCM!Z141 -> 1.740511759 | AA144: =[1]Table_VCM!AA141 -> 629.6517049 | AB144: =[1]Table_VCM!AB141 -> 225.3325747 | AC144: =[1]Table_VCM!AC141 -> 1848.628778 | AD144: =[1]Table_VCM!AD141 -> 842.5620446 | AE144: =[1]Table_VCM!AE141 -> 0 | AF144: =[1]Table_VCM!AF141 -> 8587.682772 | AG144: =[1]Table_VCM!AG141 -> 1913.535723 | AH144: =[1]Table_VCM!AH141 -> 48912.542 | AJ144: =[1]Table_VCM!AJ141 -> 6523.196412 | AL144: =[1]Table_VCM!AL141 -> 16794.91353 | AN144: 1369.871247
D145: 2020 | E145: 3 | F145: 2020 | G145: 2020 | H145: =[1]Table_VCM!H142 -> 1107.523332 | I145: =[1]Table_VCM!I142 -> 791.7468455 | J145: =[1]Table_VCM!J142 -> 540.3828362 | K145: =[1]Table_VCM!K142 -> 6826.197263 | L145: =[1]Table_VCM!L142 -> 3162.239354 | M145: =[1]Table_VCM!M142 -> 279.7914708 | N145: =[1]Table_VCM!N142 -> 5973.995297 | O145: =[1]Table_VCM!O142 -> 581.6505979 | P145: =[1]Table_VCM!P142 -> 582.2470037 | Q145: =[1]Table_VCM!Q142 -> 899.2259612 | R145: =[1]Table_VCM!R142 -> 0 | S145: =[1]Table_VCM!S142 -> 1204.622524 | T145: =[1]Table_VCM!T142 -> 1607.647405 | U145: =[1]Table_VCM!U142 -> 3280.241791 | V145: =[1]Table_VCM!V142 -> 8987.927091 | W145: =[1]Table_VCM!W142 -> 1497.397793 | X145: =[1]Table_VCM!X142 -> 7864.942699 | Y145: =[1]Table_VCM!Y142 -> 0 | Z145: =[1]Table_VCM!Z142 -> 4.331940377 | AA145: =[1]Table_VCM!AA142 -> 769.7657186 | AB145: =[1]Table_VCM!AB142 -> 259.3692221 | AC145: =[1]Table_VCM!AC142 -> 1967.403938 | AD145: =[1]Table_VCM!AD142 -> 1033.906682 | AE145: =[1]Table_VCM!AE142 -> 0 | AF145: =[1]Table_VCM!AF142 -> 10066.67258 | AG145: =[1]Table_VCM!AG142 -> 2628.582795 | AH145: =[1]Table_VCM!AH142 -> 61917.81214 | AJ145: =[1]Table_VCM!AJ142 -> 9635.199956 | AL145: =[1]Table_VCM!AL142 -> 22241.015 | AN145: 2023.391991
D146: 2020 | E146: 4 | F146: 2020 | G146: 2020 | H146: =[1]Table_VCM!H143 -> 1170.270909 | I146: =[1]Table_VCM!I143 -> 870.4663842 | J146: =[1]Table_VCM!J143 -> 591.3366738 | K146: =[1]Table_VCM!K143 -> 7733.617137 | L146: =[1]Table_VCM!L143 -> 3405.997424 | M146: =[1]Table_VCM!M143 -> 269.9062624 | N146: =[1]Table_VCM!N143 -> 7677.786723 | O146: =[1]Table_VCM!O143 -> 676.6993983 | P146: =[1]Table_VCM!P143 -> 703.5331489 | Q146: =[1]Table_VCM!Q143 -> 1006.141397 | R146: =[1]Table_VCM!R143 -> 0 | S146: =[1]Table_VCM!S143 -> 1186.589762 | T146: =[1]Table_VCM!T143 -> 2494.01866 | U146: =[1]Table_VCM!U143 -> 3269.479843 | V146: =[1]Table_VCM!V143 -> 10202.73704 | W146: =[1]Table_VCM!W143 -> 1847.016903 | X146: =[1]Table_VCM!X143 -> 10562.44264 | Y146: =[1]Table_VCM!Y143 -> 0 | Z146: =[1]Table_VCM!Z143 -> 18.63314533 | AA146: =[1]Table_VCM!AA143 -> 619.6025441 | AB146: =[1]Table_VCM!AB143 -> 291.020456 | AC146: =[1]Table_VCM!AC143 -> 2401.08555 | AD146: =[1]Table_VCM!AD143 -> 1188.420411 | AE146: =[1]Table_VCM!AE143 -> 0 | AF146: =[1]Table_VCM!AF143 -> 10712.07405 | AG146: =[1]Table_VCM!AG143 -> 3733.592122 | AH146: =[1]Table_VCM!AH143 -> 72632.46858 | AJ146: =[1]Table_VCM!AJ143 -> 13082.52848 | AL146: =[1]Table_VCM!AL143 -> 24760.66713 | AN146: 2747.330982
D147: 2020 | E147: 5 | F147: 2020 | G147: 2021 | H147: =[1]Table_VCM!H144 -> 979.3580699 | I147: =[1]Table_VCM!I144 -> 947.0136361 | J147: =[1]Table_VCM!J144 -> 659.6379478 | K147: =[1]Table_VCM!K144 -> 9525.416928 | L147: =[1]Table_VCM!L144 -> 3856.873521 | M147: =[1]Table_VCM!M144 -> 290.3112026 | N147: =[1]Table_VCM!N144 -> 11085.36958 | O147: =[1]Table_VCM!O144 -> 735.235996 | P147: =[1]Table_VCM!P144 -> 862.7487796 | Q147: =[1]Table_VCM!Q144 -> 1207.188902 | R147: =[1]Table_VCM!R144 -> 0 | S147: =[1]Table_VCM!S144 -> 1670.582289 | T147: =[1]Table_VCM!T144 -> 2653.02419 | U147: =[1]Table_VCM!U144 -> 3551.873362 | V147: =[1]Table_VCM!V144 -> 12962.74331 | W147: =[1]Table_VCM!W144 -> 2327.803791 | X147: =[1]Table_VCM!X144 -> 15497.58751 | Y147: =[1]Table_VCM!Y144 -> 0 | Z147: =[1]Table_VCM!Z144 -> 36.98587487 | AA147: =[1]Table_VCM!AA144 -> 810.6323059 | AB147: =[1]Table_VCM!AB144 -> 332.961011 | AC147: =[1]Table_VCM!AC144 -> 3424.379239 | AD147: =[1]Table_VCM!AD144 -> 1374.482527 | AE147: =[1]Table_VCM!AE144 -> 0 | AF147: =[1]Table_VCM!AF144 -> 12213.59328 | AG147: =[1]Table_VCM!AG144 -> 4987.19172 | AH147: =[1]Table_VCM!AH144 -> 91992.99497 | AJ147: =[1]Table_VCM!AJ144 -> 15119.36485 | AL147: =[1]Table_VCM!AL144 -> 24947.46177 | AN147: 3175.066618
D148: 2020 | E148: 6 | F148: 2020 | G148: 2021 | H148: =[1]Table_VCM!H145 -> 1134.796595 | I148: =[1]Table_VCM!I145 -> 920.6358669 | J148: =[1]Table_VCM!J145 -> 716.5394739 | K148: =[1]Table_VCM!K145 -> 9812.530248 | L148: =[1]Table_VCM!L145 -> 3928.626941 | M148: =[1]Table_VCM!M145 -> 319.2321161 | N148: =[1]Table_VCM!N145 -> 12773.83914 | O148: =[1]Table_VCM!O145 -> 723.4555057 | P148: =[1]Table_VCM!P145 -> 967.2753847 | Q148: =[1]Table_VCM!Q145 -> 1364.463057 | R148: =[1]Table_VCM!R145 -> 0 | S148: =[1]Table_VCM!S145 -> 1650.678202 | T148: =[1]Table_VCM!T145 -> 2837.064634 | U148: =[1]Table_VCM!U145 -> 3096.427717 | V148: =[1]Table_VCM!V145 -> 16249.5148 | W148: =[1]Table_VCM!W145 -> 2532.67768 | X148: =[1]Table_VCM!X145 -> 15251.06731 | Y148: =[1]Table_VCM!Y145 -> 0 | Z148: =[1]Table_VCM!Z145 -> 122.5513668 | AA148: =[1]Table_VCM!AA145 -> 816.853215 | AB148: =[1]Table_VCM!AB145 -> 330.7536134 | AC148: =[1]Table_VCM!AC145 -> 4006.072973 | AD148: =[1]Table_VCM!AD145 -> 1356.140442 | AE148: =[1]Table_VCM!AE145 -> 0 | AF148: =[1]Table_VCM!AF145 -> 12324.91509 | AG148: =[1]Table_VCM!AG145 -> 5751.768881 | AH148: =[1]Table_VCM!AH145 -> 98987.88024 | AJ148: =[1]Table_VCM!AJ145 -> 22415.58164 | AL148: =[1]Table_VCM!AL145 -> 27757.68334 | AN148: 4707.272145
D149: 2020 | E149: 7 | F149: 2021 | G149: 2021 | H149: =[1]Table_VCM!H146 -> 803.7285816 | I149: =[1]Table_VCM!I146 -> 1036.483946 | J149: =[1]Table_VCM!J146 -> 672.1519333 | K149: =[1]Table_VCM!K146 -> 10843.55799 | L149: =[1]Table_VCM!L146 -> 4536.098506 | M149: =[1]Table_VCM!M146 -> 322.8974027 | N149: =[1]Table_VCM!N146 -> 15111.85319 | O149: =[1]Table_VCM!O146 -> 860.2264201 | P149: =[1]Table_VCM!P146 -> 822.7814915 | Q149: =[1]Table_VCM!Q146 -> 1452.533053 | R149: =[1]Table_VCM!R146 -> 0 | S149: =[1]Table_VCM!S146 -> 1857.289329 | T149: =[1]Table_VCM!T146 -> 3224.557674 | U149: =[1]Table_VCM!U146 -> 3260.474157 | V149: =[1]Table_VCM!V146 -> 19502.35643 | W149: =[1]Table_VCM!W146 -> 3068.961274 | X149: =[1]Table_VCM!X146 -> 17373.2464 | Y149: =[1]Table_VCM!Y146 -> 0 | Z149: =[1]Table_VCM!Z146 -> 194.9241773 | AA149: =[1]Table_VCM!AA146 -> 1055.84606 | AB149: =[1]Table_VCM!AB146 -> 370.127074 | AC149: =[1]Table_VCM!AC146 -> 5190.308283 | AD149: =[1]Table_VCM!AD146 -> 1528.642248 | AE149: =[1]Table_VCM!AE146 -> 0 | AF149: =[1]Table_VCM!AF146 -> 13764.94382 | AG149: =[1]Table_VCM!AG146 -> 7146.329918 | AH149: =[1]Table_VCM!AH146 -> 114000.3194 | AJ149: =[1]Table_VCM!AJ146 -> 28887.3571 | AL149: =[1]Table_VCM!AL146 -> 27927.87401 | AN149: 6066.344992
D150: 2020 | E150: 8 | F150: 2021 | G150: 2021 | H150: =[1]Table_VCM!H147 -> 854.7495872 | I150: =[1]Table_VCM!I147 -> 1100.055531 | J150: =[1]Table_VCM!J147 -> 776.2300632 | K150: =[1]Table_VCM!K147 -> 10795.04786 | L150: =[1]Table_VCM!L147 -> 4683.797658 | M150: =[1]Table_VCM!M147 -> 307.1681841 | N150: =[1]Table_VCM!N147 -> 14934.60661 | O150: =[1]Table_VCM!O147 -> 867.8596274 | P150: =[1]Table_VCM!P147 -> 894.7568402 | Q150: =[1]Table_VCM!Q147 -> 1396.651008 | R150: =[1]Table_VCM!R147 -> 0 | S150: =[1]Table_VCM!S147 -> 1821.795247 | T150: =[1]Table_VCM!T147 -> 3342.316228 | U150: =[1]Table_VCM!U147 -> 3370.742477 | V150: =[1]Table_VCM!V147 -> 19862.37952 | W150: =[1]Table_VCM!W147 -> 3140.833317 | X150: =[1]Table_VCM!X147 -> 18631.68054 | Y150: =[1]Table_VCM!Y147 -> 0 | Z150: =[1]Table_VCM!Z147 -> 249.1657722 | AA150: =[1]Table_VCM!AA147 -> 1075.122343 | AB150: =[1]Table_VCM!AB147 -> 375.5695784 | AC150: =[1]Table_VCM!AC147 -> 5276.498857 | AD150: =[1]Table_VCM!AD147 -> 1429.369923 | AE150: =[1]Table_VCM!AE147 -> 0 | AF150: =[1]Table_VCM!AF147 -> 13814.22167 | AG150: =[1]Table_VCM!AG147 -> 7016.63246 | AH150: =[1]Table_VCM!AH147 -> 116017.2509 | AJ150: =[1]Table_VCM!AJ147 -> 29090.00389 | AL150: =[1]Table_VCM!AL147 -> 28650.14661 | AN150: 6108.900817
D151: 2020 | E151: 9 | F151: 2021 | G151: 2021 | H151: =[1]Table_VCM!H148 -> 643.9678268 | I151: =[1]Table_VCM!I148 -> 1067.361573 | J151: =[1]Table_VCM!J148 -> 782.6627811 | K151: =[1]Table_VCM!K148 -> 10273.3352 | L151: =[1]Table_VCM!L148 -> 4202.85558 | M151: =[1]Table_VCM!M148 -> 267.6036802 | N151: =[1]Table_VCM!N148 -> 13217.5304 | O151: =[1]Table_VCM!O148 -> 848.1342106 | P151: =[1]Table_VCM!P148 -> 762.8020342 | Q151: =[1]Table_VCM!Q148 -> 1307.026344 | R151: =[1]Table_VCM!R148 -> 0 | S151: =[1]Table_VCM!S148 -> 1690.186003 | T151: =[1]Table_VCM!T148 -> 3109.245143 | U151: =[1]Table_VCM!U148 -> 3166.657158 | V151: =[1]Table_VCM!V148 -> 17931.43462 | W151: =[1]Table_VCM!W148 -> 2830.055599 | X151: =[1]Table_VCM!X148 -> 17774.77014 | Y151: =[1]Table_VCM!Y148 -> 0 | Z151: =[1]Table_VCM!Z148 -> 229.9100559 | AA151: =[1]Table_VCM!AA148 -> 1044.477995 | AB151: =[1]Table_VCM!AB148 -> 350.1957402 | AC151: =[1]Table_VCM!AC148 -> 4657.436633 | AD151: =[1]Table_VCM!AD148 -> 1481.203717 | AE151: =[1]Table_VCM!AE148 -> 0 | AF151: =[1]Table_VCM!AF148 -> 12767.06753 | AG151: =[1]Table_VCM!AG148 -> 6272.313162 | AH151: =[1]Table_VCM!AH148 -> 106678.2331 | AJ151: =[1]Table_VCM!AJ148 -> 23137.98612 | AL151: =[1]Table_VCM!AL148 -> 27355.03712 | AN151: 4858.977085
D152: 2020 | E152: 10 | F152: 2021 | G152: 2021 | H152: =[1]Table_VCM!H149 -> 399.8943678 | I152: =[1]Table_VCM!I149 -> 944.2784366 | J152: =[1]Table_VCM!J149 -> 937.8737071 | K152: =[1]Table_VCM!K149 -> 8955.324265 | L152: =[1]Table_VCM!L149 -> 3695.632514 | M152: =[1]Table_VCM!M149 -> 282.1256123 | N152: =[1]Table_VCM!N149 -> 9993.858298 | O152: =[1]Table_VCM!O149 -> 696.6037102 | P152: =[1]Table_VCM!P149 -> 601.6167333 | Q152: =[1]Table_VCM!Q149 -> 1118.174375 | R152: =[1]Table_VCM!R149 -> 0 | S152: =[1]Table_VCM!S149 -> 1555.589634 | T152: =[1]Table_VCM!T149 -> 4687.279653 | U152: =[1]Table_VCM!U149 -> 3109.744477 | V152: =[1]Table_VCM!V149 -> 11770.66751 | W152: =[1]Table_VCM!W149 -> 2141.887048 | X152: =[1]Table_VCM!X149 -> 15399.90415 | Y152: =[1]Table_VCM!Y149 -> 0 | Z152: =[1]Table_VCM!Z149 -> 99.97392093 | AA152: =[1]Table_VCM!AA149 -> 960.9474345 | AB152: =[1]Table_VCM!AB149 -> 335.008211 | AC152: =[1]Table_VCM!AC149 -> 3404.213105 | AD152: =[1]Table_VCM!AD149 -> 1389.964114 | AE152: =[1]Table_VCM!AE149 -> 0 | AF152: =[1]Table_VCM!AF149 -> 11689.79915 | AG152: =[1]Table_VCM!AG149 -> 4466.636334 | AH152: =[1]Table_VCM!AH149 -> 88636.99676 | AJ152: =[1]Table_VCM!AJ149 -> 13659.47655 | AL152: =[1]Table_VCM!AL149 -> 26524.83872 | AN152: 2868.490076
D153: 2020 | E153: 11 | F153: 2021 | G153: 2021 | H153: =[1]Table_VCM!H150 -> 506.0732172 | I153: =[1]Table_VCM!I150 -> 823.5458463 | J153: =[1]Table_VCM!J150 -> 910.075602 | K153: =[1]Table_VCM!K150 -> 7553.107075 | L153: =[1]Table_VCM!L150 -> 3412.323465 | M153: =[1]Table_VCM!M150 -> 274.1920152 | N153: =[1]Table_VCM!N150 -> 6784.42922 | O153: =[1]Table_VCM!O150 -> 619.7426036 | P153: =[1]Table_VCM!P150 -> 412.3397878 | Q153: =[1]Table_VCM!Q150 -> 971.4673359 | R153: =[1]Table_VCM!R150 -> 0 | S153: =[1]Table_VCM!S150 -> 1370.212127 | T153: =[1]Table_VCM!T150 -> 3448.892961 | U153: =[1]Table_VCM!U150 -> 2891.875619 | V153: =[1]Table_VCM!V150 -> 9794.591634 | W153: =[1]Table_VCM!W150 -> 1662.32272 | X153: =[1]Table_VCM!X150 -> 8902.074961 | Y153: =[1]Table_VCM!Y150 -> 0 | Z153: =[1]Table_VCM!Z150 -> 9.967429879 | AA153: =[1]Table_VCM!AA150 -> 863.9729017 | AB153: =[1]Table_VCM!AB150 -> 298.3816273 | AC153: =[1]Table_VCM!AC150 -> 2509.592696 | AD153: =[1]Table_VCM!AD150 -> 1194.45068 | AE153: =[1]Table_VCM!AE150 -> 0 | AF153: =[1]Table_VCM!AF150 -> 10060.89271 | AG153: =[1]Table_VCM!AG150 -> 3627.926108 | AH153: =[1]Table_VCM!AH150 -> 68902.45034 | AJ153: =[1]Table_VCM!AJ150 -> 11627.19493 | AL153: =[1]Table_VCM!AL150 -> 25200.67228 | AN153: 2441.710936
D154: 2020 | E154: 12 | F154: 2021 | G154: 2021 | H154: =[1]Table_VCM!H151 -> 554.9273075 | I154: =[1]Table_VCM!I151 -> 681.0172839 | J154: =[1]Table_VCM!J151 -> 597.9715968 | K154: =[1]Table_VCM!K151 -> 5789.352164 | L154: =[1]Table_VCM!L151 -> 3222.574732 | M154: =[1]Table_VCM!M151 -> 273.2606799 | N154: =[1]Table_VCM!N151 -> 4280.82133 | O154: =[1]Table_VCM!O151 -> 510.7615654 | P154: =[1]Table_VCM!P151 -> 315.081959 | Q154: =[1]Table_VCM!Q151 -> 848.3667935 | R154: =[1]Table_VCM!R151 -> 0 | S154: =[1]Table_VCM!S151 -> 1076.243816 | T154: =[1]Table_VCM!T151 -> 2480.267704 | U154: =[1]Table_VCM!U151 -> 2920.77659 | V154: =[1]Table_VCM!V151 -> 7639.544819 | W154: =[1]Table_VCM!W151 -> 1195.029229 | X154: =[1]Table_VCM!X151 -> 6135.478507 | Y154: =[1]Table_VCM!Y151 -> 0 | Z154: =[1]Table_VCM!Z151 -> 24.2893682 | AA154: =[1]Table_VCM!AA151 -> 454.0306107 | AB154: =[1]Table_VCM!AB151 -> 192.9882647 | AC154: =[1]Table_VCM!AC151 -> 1768.479586 | AD154: =[1]Table_VCM!AD151 -> 1071.837991 | AE154: =[1]Table_VCM!AE151 -> 0 | AF154: =[1]Table_VCM!AF151 -> 9265.603097 | AG154: =[1]Table_VCM!AG151 -> 2141.449135 | AH154: =[1]Table_VCM!AH151 -> 53440.15413 | AJ154: =[1]Table_VCM!AJ151 -> 8569.897905 | AL154: =[1]Table_VCM!AL151 -> 19841.74164 | AN154: 1799.67856
D155: 2021 | E155: 1 | F155: 2021 | G155: 2021 | H155: =[1]Table_VCM!H152 -> 566.558998 | I155: =[1]Table_VCM!I152 -> 740.907946 | J155: =[1]Table_VCM!J152 -> 370.2938245 | K155: =[1]Table_VCM!K152 -> 6645.682818 | L155: =[1]Table_VCM!L152 -> 3308.976621 | M155: =[1]Table_VCM!M152 -> 265.4483856 | N155: =[1]Table_VCM!N152 -> 4585.13092 | O155: =[1]Table_VCM!O152 -> 571.807557 | P155: =[1]Table_VCM!P152 -> 257.3229545 | Q155: =[1]Table_VCM!Q152 -> 868.3395626 | R155: =[1]Table_VCM!R152 -> 0 | S155: =[1]Table_VCM!S152 -> 1340.114196 | T155: =[1]Table_VCM!T152 -> 1965.826019 | U155: =[1]Table_VCM!U152 -> 6746.820517 | V155: =[1]Table_VCM!V152 -> 7334.31332 | W155: =[1]Table_VCM!W152 -> 1373.969194 | X155: =[1]Table_VCM!X152 -> 7028.029593 | Y155: =[1]Table_VCM!Y152 -> 0 | Z155: =[1]Table_VCM!Z152 -> 0.2124630289 | AA155: =[1]Table_VCM!AA152 -> 663.253591 | AB155: =[1]Table_VCM!AB152 -> 268.013301 | AC155: =[1]Table_VCM!AC152 -> 2072.140646 | AD155: =[1]Table_VCM!AD152 -> 1066.908356 | AE155: =[1]Table_VCM!AE152 -> 0 | AF155: =[1]Table_VCM!AF152 -> 9812.444442 | AG155: =[1]Table_VCM!AG152 -> 2309.378027 | AH155: =[1]Table_VCM!AH152 -> 60161.89325 | AJ155: =[1]Table_VCM!AJ152 -> 7536.206829 | AL155: =[1]Table_VCM!AL152 -> 18981.80258 | AN155: 1582.603434
D156: 2021 | E156: 2 | F156: 2021 | G156: 2021 | H156: =[1]Table_VCM!H153 -> 1033.368917 | I156: =[1]Table_VCM!I153 -> 635.5188054 | J156: =[1]Table_VCM!J153 -> 414.8710207 | K156: =[1]Table_VCM!K153 -> 4442.804683 | L156: =[1]Table_VCM!L153 -> 2809.390132 | M156: =[1]Table_VCM!M153 -> 254.043734 | N156: =[1]Table_VCM!N153 -> 4114.861082 | O156: =[1]Table_VCM!O153 -> 494.5152086 | P156: =[1]Table_VCM!P153 -> 312.3104192 | Q156: =[1]Table_VCM!Q153 -> 744.2341071 | R156: =[1]Table_VCM!R153 -> 0 | S156: =[1]Table_VCM!S153 -> 964.0653361 | T156: =[1]Table_VCM!T153 -> 1367.561496 | U156: =[1]Table_VCM!U153 -> 5364.020213 | V156: =[1]Table_VCM!V153 -> 6468.286486 | W156: =[1]Table_VCM!W153 -> 1170.847556 | X156: =[1]Table_VCM!X153 -> 5438.179347 | Y156: =[1]Table_VCM!Y153 -> 0 | Z156: =[1]Table_VCM!Z153 -> 1.821111677 | AA156: =[1]Table_VCM!AA153 -> 649.1439118 | AB156: =[1]Table_VCM!AB153 -> 232.4593918 | AC156: =[1]Table_VCM!AC153 -> 1910.953164 | AD156: =[1]Table_VCM!AD153 -> 864.0603354 | AE156: =[1]Table_VCM!AE153 -> 0 | AF156: =[1]Table_VCM!AF153 -> 8842.252814 | AG156: =[1]Table_VCM!AG153 -> 1993.273735 | AH156: =[1]Table_VCM!AH153 -> 50522.84301 | AJ156: =[1]Table_VCM!AJ153 -> 6667.254002 | AL156: =[1]Table_VCM!AL153 -> 17518.33331 | AN156: 1400.12334
D157: 2021 | E157: 3 | F157: 2021 | G157: 2021 | H157: =[1]Table_VCM!H154 -> 1144.748817 | I157: =[1]Table_VCM!I154 -> 812.3348258 | J157: =[1]Table_VCM!J154 -> 528.4208938 | K157: =[1]Table_VCM!K154 -> 7031.68839 | L157: =[1]Table_VCM!L154 -> 3247.31218 | M157: =[1]Table_VCM!M154 -> 286.0723661 | N157: =[1]Table_VCM!N154 -> 6279.390747 | O157: =[1]Table_VCM!O154 -> 605.4228682 | P157: =[1]Table_VCM!P154 -> 606.6235484 | Q157: =[1]Table_VCM!Q154 -> 925.3430319 | R157: =[1]Table_VCM!R154 -> 0 | S157: =[1]Table_VCM!S154 -> 1246.63014 | T157: =[1]Table_VCM!T154 -> 1658.665704 | U157: =[1]Table_VCM!U154 -> 3388.083059 | V157: =[1]Table_VCM!V154 -> 9191.035607 | W157: =[1]Table_VCM!W154 -> 1556.425852 | X157: =[1]Table_VCM!X154 -> 8216.702674 | Y157: =[1]Table_VCM!Y154 -> 0 | Z157: =[1]Table_VCM!Z154 -> 4.532544617 | AA157: =[1]Table_VCM!AA154 -> 793.5954526 | AB157: =[1]Table_VCM!AB154 -> 267.5725501 | AC157: =[1]Table_VCM!AC154 -> 2033.732691 | AD157: =[1]Table_VCM!AD154 -> 1060.287204 | AE157: =[1]Table_VCM!AE154 -> 0 | AF157: =[1]Table_VCM!AF154 -> 10365.08524 | AG157: =[1]Table_VCM!AG154 -> 2738.117183 | AH157: =[1]Table_VCM!AH154 -> 63987.82357 | AJ157: =[1]Table_VCM!AJ154 -> 9852.309999 | AL157: =[1]Table_VCM!AL154 -> 23199.01875 | AN157: 2068.9851
D158: 2021 | E158: 4 | F158: 2021 | G158: 2021 | H158: =[1]Table_VCM!H155 -> 1209.605432 | I158: =[1]Table_VCM!I155 -> 893.1013273 | J158: =[1]Table_VCM!J155 -> 578.2468147 | K158: =[1]Table_VCM!K155 -> 7966.132139 | L158: =[1]Table_VCM!L155 -> 3497.628004 | M158: =[1]Table_VCM!M155 -> 275.9652498 | N158: =[1]Table_VCM!N155 -> 8070.281363 | O158: =[1]Table_VCM!O155 -> 704.4393973 | P158: =[1]Table_VCM!P155 -> 732.9874992 | Q158: =[1]Table_VCM!Q155 -> 1035.363714 | R158: =[1]Table_VCM!R155 -> 0 | S158: =[1]Table_VCM!S155 -> 1227.968539 | T158: =[1]Table_VCM!T155 -> 2573.165734 | U158: =[1]Table_VCM!U155 -> 3376.967301 | V158: =[1]Table_VCM!V155 -> 10425.54312 | W158: =[1]Table_VCM!W155 -> 1919.827095 | X158: =[1]Table_VCM!X155 -> 11034.84844 | Y158: =[1]Table_VCM!Y155 -> 0 | Z158: =[1]Table_VCM!Z155 -> 19.49601223 | AA158: =[1]Table_VCM!AA155 -> 638.7836578 | AB158: =[1]Table_VCM!AB155 -> 300.2248489 | AC158: =[1]Table_VCM!AC155 -> 2482.035378 | AD158: =[1]Table_VCM!AD155 -> 1218.743409 | AE158: =[1]Table_VCM!AE155 -> 0 | AF158: =[1]Table_VCM!AF155 -> 11029.61875 | AG158: =[1]Table_VCM!AG155 -> 3889.172814 | AH158: =[1]Table_VCM!AH155 -> 75100.14604 | AJ158: =[1]Table_VCM!AJ155 -> 13367.62897 | AL158: =[1]Table_VCM!AL155 -> 25827.20173 | AN158: 2807.202083
D159: 2021 | E159: 5 | F159: 2021 | G159: 2022 | H159: =[1]Table_VCM!H156 -> 1012.275732 | I159: =[1]Table_VCM!I156 -> 971.6390554 | J159: =[1]Table_VCM!J156 -> 642.970263 | K159: =[1]Table_VCM!K156 -> 9811.293526 | L159: =[1]Table_VCM!L156 -> 3960.633893 | M159: =[1]Table_VCM!M156 -> 296.82825 | N159: =[1]Table_VCM!N156 -> 11652.06259 | O159: =[1]Table_VCM!O156 -> 765.4195538 | P159: =[1]Table_VCM!P156 -> 898.8689038 | Q159: =[1]Table_VCM!Q156 -> 1242.250432 | R159: =[1]Table_VCM!R156 -> 0 | S159: =[1]Table_VCM!S156 -> 1728.838861 | T159: =[1]Table_VCM!T156 -> 2737.217266 | U159: =[1]Table_VCM!U156 -> 3668.644793 | V159: =[1]Table_VCM!V156 -> 13252.24671 | W159: =[1]Table_VCM!W156 -> 2419.566807 | X159: =[1]Table_VCM!X156 -> 16190.71793 | Y159: =[1]Table_VCM!Y156 -> 0 | Z159: =[1]Table_VCM!Z156 -> 38.69862313 | AA159: =[1]Table_VCM!AA156 -> 835.727152 | AB159: =[1]Table_VCM!AB156 -> 343.4918996 | AC159: =[1]Table_VCM!AC156 -> 3539.828233 | AD159: =[1]Table_VCM!AD156 -> 1409.552971 | AE159: =[1]Table_VCM!AE156 -> 0 | AF159: =[1]Table_VCM!AF156 -> 12575.64845 | AG159: =[1]Table_VCM!AG156 -> 5195.010546 | AH159: =[1]Table_VCM!AH156 -> 95189.43244 | AJ159: =[1]Table_VCM!AJ156 -> 15455.51935 | AL159: =[1]Table_VCM!AL156 -> 26022.04231 | AN159: 3245.659064
D160: 2021 | E160: 6 | F160: 2021 | G160: 2022 | H160: =[1]Table_VCM!H157 -> 1172.938775 | I160: =[1]Table_VCM!I157 -> 944.5753788 | J160: =[1]Table_VCM!J157 -> 696.8527958 | K160: =[1]Table_VCM!K157 -> 10106.95737 | L160: =[1]Table_VCM!L157 -> 4034.317674 | M160: =[1]Table_VCM!M157 -> 326.3983943 | N160: =[1]Table_VCM!N157 -> 13426.84808 | O160: =[1]Table_VCM!O157 -> 753.1472973 | P160: =[1]Table_VCM!P157 -> 1007.771654 | Q160: =[1]Table_VCM!Q157 -> 1404.09245 | R160: =[1]Table_VCM!R157 -> 0 | S160: =[1]Table_VCM!S157 -> 1708.240679 | T160: =[1]Table_VCM!T157 -> 2927.098189 | U160: =[1]Table_VCM!U157 -> 3198.225911 | V160: =[1]Table_VCM!V157 -> 16634.7237 | W160: =[1]Table_VCM!W157 -> 2632.516912 | X160: =[1]Table_VCM!X157 -> 15933.17209 | Y160: =[1]Table_VCM!Y157 -> 0 | Z160: =[1]Table_VCM!Z157 -> 128.2264966 | AA160: =[1]Table_VCM!AA157 -> 842.1406425 | AB160: =[1]Table_VCM!AB157 -> 341.2146864 | AC160: =[1]Table_VCM!AC157 -> 4141.1331 | AD160: =[1]Table_VCM!AD157 -> 1390.742881 | AE160: =[1]Table_VCM!AE157 -> 0 | AF160: =[1]Table_VCM!AF157 -> 12690.27024 | AG160: =[1]Table_VCM!AG157 -> 5991.448028 | AH160: =[1]Table_VCM!AH157 -> 102433.0534 | AJ160: =[1]Table_VCM!AJ157 -> 22987.96755 | AL160: =[1]Table_VCM!AL157 -> 28953.31064 | AN160: 4827.473185
D161: 2021 | E161: 7 | F161: 2022 | G161: 2022 | H161: =[1]Table_VCM!H158 -> 800.9462026 | I161: =[1]Table_VCM!I158 -> 1025.292841 | J161: =[1]Table_VCM!J158 -> 633.6982414 | K161: =[1]Table_VCM!K158 -> 10768.16421 | L161: =[1]Table_VCM!L158 -> 4491.055213 | M161: =[1]Table_VCM!M158 -> 318.3043716 | N161: =[1]Table_VCM!N158 -> 15314.64637 | O161: =[1]Table_VCM!O158 -> 863.4873469 | P161: =[1]Table_VCM!P158 -> 826.4814894 | Q161: =[1]Table_VCM!Q158 -> 1441.108105 | R161: =[1]Table_VCM!R158 -> 0 | S161: =[1]Table_VCM!S158 -> 1853.116921 | T161: =[1]Table_VCM!T158 -> 3207.560265 | U161: =[1]Table_VCM!U158 -> 3246.874993 | V161: =[1]Table_VCM!V158 -> 19248.50812 | W161: =[1]Table_VCM!W158 -> 3075.525059 | X161: =[1]Table_VCM!X158 -> 17499.25675 | Y161: =[1]Table_VCM!Y158 -> 0 | Z161: =[1]Table_VCM!Z158 -> 196.6355069 | AA161: =[1]Table_VCM!AA158 -> 1049.488836 | AB161: =[1]Table_VCM!AB158 -> 368.1379477 | AC161: =[1]Table_VCM!AC158 -> 5172.852584 | AD161: =[1]Table_VCM!AD158 -> 1511.418212 | AE161: =[1]Table_VCM!AE158 -> 0 | AF161: =[1]Table_VCM!AF158 -> 13664.63365 | AG161: =[1]Table_VCM!AG158 -> 7177.117338 | AH161: =[1]Table_VCM!AH158 -> 113754.3106 | AJ161: =[1]Table_VCM!AJ158 -> 28589.12126 | AL161: =[1]Table_VCM!AL158 -> 29130.83206 | AN161: 6003.715465
D162: 2021 | E162: 8 | F162: 2022 | G162: 2022 | H162: =[1]Table_VCM!H159 -> 851.7905817 | I162: =[1]Table_VCM!I159 -> 1088.178033 | J162: =[1]Table_VCM!J159 -> 728.8469872 | K162: =[1]Table_VCM!K159 -> 10720.00118 | L162: =[1]Table_VCM!L159 -> 4637.287717 | M162: =[1]Table_VCM!M159 -> 302.7988922 | N162: =[1]Table_VCM!N159 -> 15135.02124 | O162: =[1]Table_VCM!O159 -> 871.1539809 | P162: =[1]Table_VCM!P159 -> 898.7805069 | Q162: =[1]Table_VCM!Q159 -> 1385.665602 | R162: =[1]Table_VCM!R159 -> 0 | S162: =[1]Table_VCM!S159 -> 1817.702576 | T162: =[1]Table_VCM!T159 -> 3324.698086 | U162: =[1]Table_VCM!U159 -> 3356.683393 | V162: =[1]Table_VCM!V159 -> 19605.42607 | W162: =[1]Table_VCM!W159 -> 3147.550819 | X162: =[1]Table_VCM!X159 -> 18766.81847 | Y162: =[1]Table_VCM!Y159 -> 0 | Z162: =[1]Table_VCM!Z159 -> 251.3533138 | AA162: =[1]Table_VCM!AA159 -> 1068.649057 | AB162: =[1]Table_VCM!AB159 -> 373.5512031 | AC162: =[1]Table_VCM!AC159 -> 5258.753288 | AD162: =[1]Table_VCM!AD159 -> 1413.264442 | AE162: =[1]Table_VCM!AE159 -> 0 | AF162: =[1]Table_VCM!AF159 -> 13713.55239 | AG162: =[1]Table_VCM!AG159 -> 7046.861125 | AH162: =[1]Table_VCM!AH159 -> 115764.3889 | AJ162: =[1]Table_VCM!AJ159 -> 28782.95338 | AL162: =[1]Table_VCM!AL159 -> 29884.21565 | AN162: 6044.42021
D163: 2021 | E163: 9 | F163: 2022 | G163: 2022 | H163: =[1]Table_VCM!H160 -> 641.7385138 | I163: =[1]Table_VCM!I160 -> 1055.837077 | J163: =[1]Table_VCM!J160 -> 732.201712 | K163: =[1]Table_VCM!K160 -> 10202.02132 | L163: =[1]Table_VCM!L160 -> 4161.121377 | M163: =[1]Table_VCM!M160 -> 263.7971707 | N163: =[1]Table_VCM!N160 -> 13394.90276 | O163: =[1]Table_VCM!O160 -> 851.3421843 | P163: =[1]Table_VCM!P160 -> 766.2323082 | Q163: =[1]Table_VCM!Q160 -> 1296.745884 | R163: =[1]Table_VCM!R160 -> 0 | S163: =[1]Table_VCM!S160 -> 1686.388993 | T163: =[1]Table_VCM!T160 -> 3092.855574 | U163: =[1]Table_VCM!U160 -> 3153.449298 | V163: =[1]Table_VCM!V160 -> 17699.901 | W163: =[1]Table_VCM!W160 -> 2836.108421 | X163: =[1]Table_VCM!X160 -> 17903.69279 | Y163: =[1]Table_VCM!Y160 -> 0 | Z163: =[1]Table_VCM!Z160 -> 231.9285427 | AA163: =[1]Table_VCM!AA160 -> 1038.189218 | AB163: =[1]Table_VCM!AB160 -> 348.3137283 | AC163: =[1]Table_VCM!AC160 -> 4641.773052 | AD163: =[1]Table_VCM!AD160 -> 1464.514197 | AE163: =[1]Table_VCM!AE160 -> 0 | AF163: =[1]Table_VCM!AF160 -> 12674.02924 | AG163: =[1]Table_VCM!AG160 -> 6299.335191 | AH163: =[1]Table_VCM!AH160 -> 106436.4196 | AJ163: =[1]Table_VCM!AJ160 -> 22881.25679 | AL163: =[1]Table_VCM!AL160 -> 28533.32094 | AN163: 4805.063925
D164: 2021 | E164: 10 | F164: 2022 | G164: 2022 | H164: =[1]Table_VCM!H161 -> 398.5099979 | I164: =[1]Table_VCM!I161 -> 934.0828917 | J164: =[1]Table_VCM!J161 -> 884.21812 | K164: =[1]Table_VCM!K161 -> 8893.440641 | L164: =[1]Table_VCM!L161 -> 3658.935017 | M164: =[1]Table_VCM!M161 -> 278.1125367 | N164: =[1]Table_VCM!N161 -> 10127.97066 | O164: =[1]Table_VCM!O161 -> 699.1481145 | P164: =[1]Table_VCM!P161 -> 604.3221669 | Q164: =[1]Table_VCM!Q161 -> 1109.379336 | R164: =[1]Table_VCM!R161 -> 0 | S164: =[1]Table_VCM!S161 -> 1552.094995 | T164: =[1]Table_VCM!T161 -> 4662.571889 | U164: =[1]Table_VCM!U161 -> 3096.773994 | V164: =[1]Table_VCM!V161 -> 11593.9657 | W164: =[1]Table_VCM!W161 -> 2146.46804 | X164: =[1]Table_VCM!X161 -> 15511.6016 | Y164: =[1]Table_VCM!Y161 -> 0 | Z164: =[1]Table_VCM!Z161 -> 100.8516383 | AA164: =[1]Table_VCM!AA161 -> 955.1615927 | AB164: =[1]Table_VCM!AB161 -> 333.2078195 | AC164: =[1]Table_VCM!AC161 -> 3392.764283 | AD164: =[1]Table_VCM!AD161 -> 1374.30264 | AE164: =[1]Table_VCM!AE161 -> 0 | AF164: =[1]Table_VCM!AF161 -> 11604.61131 | AG164: =[1]Table_VCM!AG161 -> 4485.879247 | AH164: =[1]Table_VCM!AH161 -> 88398.37424 | AJ164: =[1]Table_VCM!AJ161 -> 13454.41986 | AL164: =[1]Table_VCM!AL161 -> 27667.36279 | AN164: 2825.428171
D165: 2021 | E165: 11 | F165: 2022 | G165: 2022 | H165: =[1]Table_VCM!H162 -> 504.3212732 | I165: =[1]Table_VCM!I162 -> 814.6538729 | J165: =[1]Table_VCM!J162 -> 858.0103396 | K165: =[1]Table_VCM!K162 -> 7501.256193 | L165: =[1]Table_VCM!L162 -> 3378.439217 | M165: =[1]Table_VCM!M162 -> 270.2917904 | N165: =[1]Table_VCM!N162 -> 6875.472718 | O165: =[1]Table_VCM!O162 -> 621.9504243 | P165: =[1]Table_VCM!P162 -> 414.1940546 | Q165: =[1]Table_VCM!Q162 -> 963.8262267 | R165: =[1]Table_VCM!R162 -> 0 | S165: =[1]Table_VCM!S162 -> 1367.13394 | T165: =[1]Table_VCM!T162 -> 3430.713027 | U165: =[1]Table_VCM!U162 -> 2879.813849 | V165: =[1]Table_VCM!V162 -> 9647.554771 | W165: =[1]Table_VCM!W162 -> 1665.878037 | X165: =[1]Table_VCM!X162 -> 8966.642835 | Y165: =[1]Table_VCM!Y162 -> 0 | Z165: =[1]Table_VCM!Z162 -> 10.05493856 | AA165: =[1]Table_VCM!AA162 -> 858.7709413 | AB165: =[1]Table_VCM!AB162 -> 296.7780733 | AC165: =[1]Table_VCM!AC162 -> 2501.152601 | AD165: =[1]Table_VCM!AD162 -> 1180.992161 | AE165: =[1]Table_VCM!AE162 -> 0 | AF165: =[1]Table_VCM!AF162 -> 9987.575312 | AG165: =[1]Table_VCM!AG162 -> 3643.555737 | AH165: =[1]Table_VCM!AH162 -> 68639.03233 | AJ165: =[1]Table_VCM!AJ162 -> 11452.64694 | AL165: =[1]Table_VCM!AL162 -> 26286.15955 | AN165: 2405.055858
D166: 2021 | E166: 12 | F166: 2022 | G166: 2022 | H166: =[1]Table_VCM!H163 -> 553.0062384 | I166: =[1]Table_VCM!I163 -> 673.6642172 | J166: =[1]Table_VCM!J163 -> 563.7617487 | K166: =[1]Table_VCM!K163 -> 5750.120795 | L166: =[1]Table_VCM!L163 -> 3190.574682 | M166: =[1]Table_VCM!M163 -> 269.3737028 | N166: =[1]Table_VCM!N163 -> 4338.267717 | O166: =[1]Table_VCM!O163 -> 512.4921457 | P166: =[1]Table_VCM!P163 -> 316.4988633 | Q166: =[1]Table_VCM!Q163 -> 841.6939357 | R166: =[1]Table_VCM!R163 -> 0 | S166: =[1]Table_VCM!S163 -> 1073.82603 | T166: =[1]Table_VCM!T163 -> 2467.193624 | U166: =[1]Table_VCM!U163 -> 2908.594276 | V166: =[1]Table_VCM!V163 -> 7524.859618 | W166: =[1]Table_VCM!W163 -> 1197.585115 | X166: =[1]Table_VCM!X163 -> 6179.979907 | Y166: =[1]Table_VCM!Y163 -> 0 | Z166: =[1]Table_VCM!Z163 -> 24.50261581 | AA166: =[1]Table_VCM!AA163 -> 451.2969031 | AB166: =[1]Table_VCM!AB163 -> 191.9511127 | AC166: =[1]Table_VCM!AC163 -> 1762.531953 | AD166: =[1]Table_VCM!AD163 -> 1059.761015 | AE166: =[1]Table_VCM!AE163 -> 0 | AF166: =[1]Table_VCM!AF163 -> 9198.081264 | AG166: =[1]Table_VCM!AG163 -> 2150.674806 | AH166: =[1]Table_VCM!AH163 -> 53200.29229 | AJ166: =[1]Table_VCM!AJ163 -> 8441.246201 | AL166: =[1]Table_VCM!AL163 -> 20696.39971 | AN166: 1772.661702
D167: 2022 | E167: 1 | F167: 2022 | G167: 2022 | H167: =[1]Table_VCM!H164 -> 564.6090395 | I167: =[1]Table_VCM!I164 -> 732.8780843 | J167: =[1]Table_VCM!J164 -> 348.0182577 | K167: =[1]Table_VCM!K164 -> 6600.338457 | L167: =[1]Table_VCM!L164 -> 3255.425365 | M167: =[1]Table_VCM!M164 -> 261.7318222 | N167: =[1]Table_VCM!N164 -> 4653.14673 | O167: =[1]Table_VCM!O164 -> 573.6898005 | P167: =[1]Table_VCM!P164 -> 258.4718701 | Q167: =[1]Table_VCM!Q164 -> 861.4968059 | R167: =[1]Table_VCM!R164 -> 0 | S167: =[1]Table_VCM!S164 -> 1337.036867 | T167: =[1]Table_VCM!T164 -> 1955.459817 | U167: =[1]Table_VCM!U164 -> 6718.680096 | V167: =[1]Table_VCM!V164 -> 7234.697231 | W167: =[1]Table_VCM!W164 -> 1376.968117 | X167: =[1]Table_VCM!X164 -> 7079.458041 | Y167: =[1]Table_VCM!Y164 -> 0 | Z167: =[1]Table_VCM!Z164 -> 0.2140675879 | AA167: =[1]Table_VCM!AA164 -> 659.2596329 | AB167: =[1]Table_VCM!AB164 -> 266.5696957 | AC167: =[1]Table_VCM!AC164 -> 2065.173851 | AD167: =[1]Table_VCM!AD164 -> 1054.909618 | AE167: =[1]Table_VCM!AE164 -> 0 | AF167: =[1]Table_VCM!AF164 -> 9740.995021 | AG167: =[1]Table_VCM!AG164 -> 2319.173074 | AH167: =[1]Table_VCM!AH164 -> 59918.40136 | AJ167: =[1]Table_VCM!AJ164 -> 7433.648221 | AL167: =[1]Table_VCM!AL164 -> 18825.03183 | AN167: 1561.066126
D168: 2022 | E168: 2 | F168: 2022 | G168: 2022 | H168: =[1]Table_VCM!H165 -> 1029.812312 | I168: =[1]Table_VCM!I165 -> 628.6311372 | J168: =[1]Table_VCM!J165 -> 389.9138475 | K168: =[1]Table_VCM!K165 -> 4413.216514 | L168: =[1]Table_VCM!L165 -> 2763.923999 | M168: =[1]Table_VCM!M165 -> 250.4868481 | N168: =[1]Table_VCM!N165 -> 4175.900911 | O168: =[1]Table_VCM!O165 -> 496.0764201 | P168: =[1]Table_VCM!P165 -> 313.7048471 | Q168: =[1]Table_VCM!Q165 -> 738.3693358 | R168: =[1]Table_VCM!R165 -> 0 | S168: =[1]Table_VCM!S165 -> 961.8515349 | T168: =[1]Table_VCM!T165 -> 1360.350064 | U168: =[1]Table_VCM!U165 -> 5341.647336 | V168: =[1]Table_VCM!V165 -> 6376.833473 | W168: =[1]Table_VCM!W165 -> 1173.403131 | X168: =[1]Table_VCM!X165 -> 5477.973875 | Y168: =[1]Table_VCM!Y165 -> 0 | Z168: =[1]Table_VCM!Z165 -> 1.834865039 | AA168: =[1]Table_VCM!AA165 -> 645.2349189 | AB168: =[1]Table_VCM!AB165 -> 231.2072912 | AC168: =[1]Table_VCM!AC165 -> 1904.528301 | AD168: =[1]Table_VCM!AD165 -> 854.3428811 | AE168: =[1]Table_VCM!AE165 -> 0 | AF168: =[1]Table_VCM!AF165 -> 8777.867854 | AG168: =[1]Table_VCM!AG165 -> 2001.72805 | AH168: =[1]Table_VCM!AH165 -> 50308.83975 | AJ168: =[1]Table_VCM!AJ165 -> 6572.901115 | AL168: =[1]Table_VCM!AL165 -> 17373.64935 | AN168: 1380.309234
D169: 2022 | E169: 3 | F169: 2022 | G169: 2022 | H169: =[1]Table_VCM!H166 -> 1140.80887 | I169: =[1]Table_VCM!I166 -> 803.530849 | J169: =[1]Table_VCM!J166 -> 496.6329618 | K169: =[1]Table_VCM!K166 -> 6983.583105 | L169: =[1]Table_VCM!L166 -> 3194.758878 | M169: =[1]Table_VCM!M166 -> 282.0670448 | N169: =[1]Table_VCM!N166 -> 6372.539199 | O169: =[1]Table_VCM!O166 -> 607.4447322 | P169: =[1]Table_VCM!P166 -> 609.3320484 | Q169: =[1]Table_VCM!Q166 -> 918.0510721 | R169: =[1]Table_VCM!R166 -> 0 | S169: =[1]Table_VCM!S166 -> 1243.76748 | T169: =[1]Table_VCM!T166 -> 1649.91922 | U169: =[1]Table_VCM!U166 -> 3373.951649 | V169: =[1]Table_VCM!V166 -> 9065.380161 | W169: =[1]Table_VCM!W166 -> 1559.823018 | X169: =[1]Table_VCM!X166 -> 8276.829379 | Y169: =[1]Table_VCM!Y166 -> 0 | Z169: =[1]Table_VCM!Z166 -> 4.566775208 | AA169: =[1]Table_VCM!AA166 -> 788.8166063 | AB169: =[1]Table_VCM!AB166 -> 266.1313188 | AC169: =[1]Table_VCM!AC166 -> 2026.895028 | AD169: =[1]Table_VCM!AD166 -> 1048.362929 | AE169: =[1]Table_VCM!AE166 -> 0 | AF169: =[1]Table_VCM!AF166 -> 10289.61176 | AG169: =[1]Table_VCM!AG166 -> 2749.730694 | AH169: =[1]Table_VCM!AH166 -> 63752.53478 | AJ169: =[1]Table_VCM!AJ166 -> 9717.016736 | AL169: =[1]Table_VCM!AL166 -> 23007.418 | AN169: 2040.573515
D170: 2022 | E170: 4 | F170: 2022 | G170: 2022 | H170: =[1]Table_VCM!H167 -> 1205.442264 | I170: =[1]Table_VCM!I167 -> 883.4220139 | J170: =[1]Table_VCM!J167 -> 543.4615316 | K170: =[1]Table_VCM!K167 -> 7911.3432 | L170: =[1]Table_VCM!L167 -> 3441.023684 | M170: =[1]Table_VCM!M167 -> 272.101439 | N170: =[1]Table_VCM!N167 -> 8189.995877 | O170: =[1]Table_VCM!O167 -> 706.8725243 | P170: =[1]Table_VCM!P167 -> 736.2601989 | Q170: =[1]Table_VCM!Q167 -> 1027.204761 | R170: =[1]Table_VCM!R167 -> 0 | S170: =[1]Table_VCM!S167 -> 1225.148732 | T170: =[1]Table_VCM!T167 -> 2559.596905 | U170: =[1]Table_VCM!U167 -> 3362.882254 | V170: =[1]Table_VCM!V167 -> 10275.60639 | W170: =[1]Table_VCM!W167 -> 1924.017446 | X170: =[1]Table_VCM!X167 -> 11115.59726 | Y170: =[1]Table_VCM!Y167 -> 0 | Z170: =[1]Table_VCM!Z167 -> 19.64324961 | AA170: =[1]Table_VCM!AA167 -> 634.937052 | AB170: =[1]Table_VCM!AB167 -> 298.6077419 | AC170: =[1]Table_VCM!AC167 -> 2473.690465 | AD170: =[1]Table_VCM!AD167 -> 1205.037094 | AE170: =[1]Table_VCM!AE167 -> 0 | AF170: =[1]Table_VCM!AF167 -> 10949.30646 | AG170: =[1]Table_VCM!AG167 -> 3905.668437 | AH170: =[1]Table_VCM!AH167 -> 74866.86698 | AJ170: =[1]Table_VCM!AJ167 -> 13174.81248 | AL170: =[1]Table_VCM!AL167 -> 25613.89481 | AN170: 2766.710621
D171: 2022 | E171: 5 | F171: 2022 | G171: 2023 | H171: =[1]Table_VCM!H168 -> 1008.791725 | I171: =[1]Table_VCM!I168 -> 961.1085606 | J171: =[1]Table_VCM!J168 -> 602.1157768 | K171: =[1]Table_VCM!K168 -> 9743.306981 | L171: =[1]Table_VCM!L168 -> 3896.536456 | M171: =[1]Table_VCM!M168 -> 292.6723347 | N171: =[1]Table_VCM!N168 -> 11824.90923 | O171: =[1]Table_VCM!O168 -> 768.1059606 | P171: =[1]Table_VCM!P168 -> 902.8822437 | Q171: =[1]Table_VCM!Q168 -> 1232.461153 | R171: =[1]Table_VCM!R168 -> 0 | S171: =[1]Table_VCM!S168 -> 1724.868896 | T171: =[1]Table_VCM!T168 -> 2722.78336 | U171: =[1]Table_VCM!U168 -> 3653.343184 | V171: =[1]Table_VCM!V168 -> 13067.79573 | W171: =[1]Table_VCM!W168 -> 2424.847926 | X171: =[1]Table_VCM!X168 -> 16309.19544 | Y171: =[1]Table_VCM!Y168 -> 0 | Z171: =[1]Table_VCM!Z168 -> 38.99088208 | AA171: =[1]Table_VCM!AA168 -> 830.6945984 | AB171: =[1]Table_VCM!AB168 -> 341.6417424 | AC171: =[1]Table_VCM!AC168 -> 3527.926888 | AD171: =[1]Table_VCM!AD168 -> 1393.700761 | AE171: =[1]Table_VCM!AE168 -> 0 | AF171: =[1]Table_VCM!AF168 -> 12484.07873 | AG171: =[1]Table_VCM!AG168 -> 5217.044779 | AH171: =[1]Table_VCM!AH168 -> 94969.80334 | AJ171: =[1]Table_VCM!AJ168 -> 15238.95653 | AL171: =[1]Table_VCM!AL168 -> 25807.1262 | AN171: 3200.180871
D172: 2022 | E172: 6 | F172: 2022 | G172: 2023 | H172: =[1]Table_VCM!H169 -> 1168.901804 | I172: =[1]Table_VCM!I169 -> 934.3381965 | J172: =[1]Table_VCM!J169 -> 650.9040284 | K172: =[1]Table_VCM!K169 -> 10036.85607 | L172: =[1]Table_VCM!L169 -> 3969.027766 | M172: =[1]Table_VCM!M169 -> 321.8284652 | N172: =[1]Table_VCM!N169 -> 13626.02188 | O172: =[1]Table_VCM!O169 -> 755.7827315 | P172: =[1]Table_VCM!P169 -> 1012.271232 | Q172: =[1]Table_VCM!Q169 -> 1393.027811 | R172: =[1]Table_VCM!R169 -> 0 | S172: =[1]Table_VCM!S169 -> 1704.318014 | T172: =[1]Table_VCM!T169 -> 2911.663001 | U172: =[1]Table_VCM!U169 -> 3184.88638 | V172: =[1]Table_VCM!V169 -> 16424.49051 | W172: =[1]Table_VCM!W169 -> 2638.262831 | X172: =[1]Table_VCM!X169 -> 16049.76499 | Y172: =[1]Table_VCM!Y169 -> 0 | Z172: =[1]Table_VCM!Z169 -> 129.1948861 | AA172: =[1]Table_VCM!AA169 -> 837.0694684 | AB172: =[1]Table_VCM!AB169 -> 339.376795 | AC172: =[1]Table_VCM!AC169 -> 4127.210093 | AD172: =[1]Table_VCM!AD169 -> 1375.102213 | AE172: =[1]Table_VCM!AE169 -> 0 | AF172: =[1]Table_VCM!AF169 -> 12597.8659 | AG172: =[1]Table_VCM!AG169 -> 6016.860289 | AH172: =[1]Table_VCM!AH169 -> 102205.0254 | AJ172: =[1]Table_VCM!AJ169 -> 22736.54767 | AL172: =[1]Table_VCM!AL169 -> 28714.18518 | AN172: 4774.67501
D173: 2022 | E173: 7 | F173: 2023 | G173: 2023 | H173: =[1]Table_VCM!H170 -> 797.1660455 | I173: =[1]Table_VCM!I170 -> 1012.8804 | J173: =[1]Table_VCM!J170 -> 594.8135055 | K173: =[1]Table_VCM!K170 -> 10679.61274 | L173: =[1]Table_VCM!L170 -> 4412.708083 | M173: =[1]Table_VCM!M170 -> 313.4453298 | N173: =[1]Table_VCM!N170 -> 15521.89494 | O173: =[1]Table_VCM!O170 -> 865.4719375 | P173: =[1]Table_VCM!P170 -> 829.1071239 | Q173: =[1]Table_VCM!Q170 -> 1427.918445 | R173: =[1]Table_VCM!R170 -> 0 | S173: =[1]Table_VCM!S170 -> 1846.490833 | T173: =[1]Table_VCM!T170 -> 3186.554872 | U173: =[1]Table_VCM!U170 -> 3229.186543 | V173: =[1]Table_VCM!V170 -> 18980.79452 | W173: =[1]Table_VCM!W170 -> 3078.285657 | X173: =[1]Table_VCM!X170 -> 17604.70668 | Y173: =[1]Table_VCM!Y170 -> 0 | Z173: =[1]Table_VCM!Z170 -> 197.8664894 | AA173: =[1]Table_VCM!AA170 -> 1041.831434 | AB173: =[1]Table_VCM!AB170 -> 365.6855292 | AC173: =[1]Table_VCM!AC170 -> 5148.850114 | AD173: =[1]Table_VCM!AD170 -> 1492.504147 | AE173: =[1]Table_VCM!AE170 -> 0 | AF173: =[1]Table_VCM!AF170 -> 13547.7403 | AG173: =[1]Table_VCM!AG170 -> 7198.316483 | AH173: =[1]Table_VCM!AH170 -> 113373.8321 | AJ173: =[1]Table_VCM!AJ170 -> 28265.5715 | AL173: =[1]Table_VCM!AL170 -> 28890.24045 | AN173: 5935.770015
D174: 2022 | E174: 8 | F174: 2023 | G174: 2023 | H174: =[1]Table_VCM!H171 -> 847.7704587 | I174: =[1]Table_VCM!I171 -> 1075.004288 | J174: =[1]Table_VCM!J171 -> 680.9946264 | K174: =[1]Table_VCM!K171 -> 10631.85551 | L174: =[1]Table_VCM!L171 -> 4556.38954 | M174: =[1]Table_VCM!M171 -> 298.1765476 | N174: =[1]Table_VCM!N171 -> 15339.83899 | O174: =[1]Table_VCM!O171 -> 873.1605431 | P174: =[1]Table_VCM!P171 -> 901.6358268 | Q174: =[1]Table_VCM!Q171 -> 1372.983376 | R174: =[1]Table_VCM!R171 -> 0 | S174: =[1]Table_VCM!S171 -> 1811.203118 | T174: =[1]Table_VCM!T171 -> 3302.925591 | U174: =[1]Table_VCM!U171 -> 3338.396725 | V174: =[1]Table_VCM!V171 -> 19334.25427 | W174: =[1]Table_VCM!W171 -> 3150.376067 | X174: =[1]Table_VCM!X171 -> 18879.90669 | Y174: =[1]Table_VCM!Y171 -> 0 | Z174: =[1]Table_VCM!Z171 -> 252.9268422 | AA174: =[1]Table_VCM!AA171 -> 1060.851857 | AB174: =[1]Table_VCM!AB171 -> 371.0627233 | AC174: =[1]Table_VCM!AC171 -> 5234.352231 | AD174: =[1]Table_VCM!AD171 -> 1395.578684 | AE174: =[1]Table_VCM!AE171 -> 0 | AF174: =[1]Table_VCM!AF171 -> 13596.24057 | AG174: =[1]Table_VCM!AG171 -> 7067.675531 | AH174: =[1]Table_VCM!AH171 -> 115373.5606 | AJ174: =[1]Table_VCM!AJ171 -> 28450.82424 | AL174: =[1]Table_VCM!AL171 -> 29637.40184 | AN174: 5974.67309
D175: 2022 | E175: 9 | F175: 2023 | G175: 2023 | H175: =[1]Table_VCM!H172 -> 638.7097556 | I175: =[1]Table_VCM!I172 -> 1043.05486 | J175: =[1]Table_VCM!J172 -> 681.2931962 | K175: =[1]Table_VCM!K172 -> 10118.23997 | L175: =[1]Table_VCM!L172 -> 4088.529992 | M175: =[1]Table_VCM!M172 -> 259.7702028 | N175: =[1]Table_VCM!N172 -> 13576.17201 | O175: =[1]Table_VCM!O172 -> 853.2919682 | P175: =[1]Table_VCM!P172 -> 768.6665381 | Q175: =[1]Table_VCM!Q172 -> 1284.877491 | R175: =[1]Table_VCM!R172 -> 0 | S175: =[1]Table_VCM!S172 -> 1680.359066 | T175: =[1]Table_VCM!T172 -> 3072.601349 | U175: =[1]Table_VCM!U172 -> 3136.269816 | V175: =[1]Table_VCM!V172 -> 17455.50427 | W175: =[1]Table_VCM!W172 -> 2838.654117 | X175: =[1]Table_VCM!X172 -> 18011.57983 | Y175: =[1]Table_VCM!Y172 -> 0 | Z175: =[1]Table_VCM!Z172 -> 233.3804676 | AA175: =[1]Table_VCM!AA172 -> 1030.614262 | AB175: =[1]Table_VCM!AB172 -> 345.9933726 | AC175: =[1]Table_VCM!AC172 -> 4620.234835 | AD175: =[1]Table_VCM!AD172 -> 1446.187093 | AE175: =[1]Table_VCM!AE172 -> 0 | AF175: =[1]Table_VCM!AF172 -> 12565.60996 | AG175: =[1]Table_VCM!AG172 -> 6317.94162 | AH175: =[1]Table_VCM!AH172 -> 106067.536 | AJ175: =[1]Table_VCM!AJ172 -> 22605.348 | AL175: =[1]Table_VCM!AL172 -> 28297.66417 | AN175: 4747.123079
D176: 2022 | E176: 10 | F176: 2023 | G176: 2023 | H176: =[1]Table_VCM!H173 -> 396.6291844 | I176: =[1]Table_VCM!I173 -> 922.7746597 | J176: =[1]Table_VCM!J173 -> 829.9610844 | K176: =[1]Table_VCM!K173 -> 8820.684927 | L176: =[1]Table_VCM!L173 -> 3595.104349 | M176: =[1]Table_VCM!M173 -> 273.867039 | N176: =[1]Table_VCM!N173 -> 10265.02948 | O176: =[1]Table_VCM!O173 -> 700.6617282 | P176: =[1]Table_VCM!P173 -> 606.2420273 | Q176: =[1]Table_VCM!Q173 -> 1099.225805 | R176: =[1]Table_VCM!R173 -> 0 | S176: =[1]Table_VCM!S173 -> 1546.545255 | T176: =[1]Table_VCM!T173 -> 4632.038042 | U176: =[1]Table_VCM!U173 -> 3079.903271 | V176: =[1]Table_VCM!V173 -> 11410.33823 | W176: =[1]Table_VCM!W173 -> 2148.394714 | X176: =[1]Table_VCM!X173 -> 15605.07399 | Y176: =[1]Table_VCM!Y173 -> 0 | Z176: =[1]Table_VCM!Z173 -> 101.4829922 | AA176: =[1]Table_VCM!AA173 -> 948.1924328 | AB176: =[1]Table_VCM!AB173 -> 330.9880945 | AC176: =[1]Table_VCM!AC173 -> 3377.021571 | AD176: =[1]Table_VCM!AD173 -> 1357.104455 | AE176: =[1]Table_VCM!AE173 -> 0 | AF176: =[1]Table_VCM!AF173 -> 11505.34031 | AG176: =[1]Table_VCM!AG173 -> 4499.129248 | AH176: =[1]Table_VCM!AH173 -> 88051.73289 | AJ176: =[1]Table_VCM!AJ173 -> 13241.32615 | AL176: =[1]Table_VCM!AL173 -> 27438.85798 | AN176: 2780.678493
D177: 2022 | E177: 11 | F177: 2023 | G177: 2023 | H177: =[1]Table_VCM!H174 -> 501.9410713 | I177: =[1]Table_VCM!I174 -> 804.7914774 | J177: =[1]Table_VCM!J174 -> 805.3614552 | K177: =[1]Table_VCM!K174 -> 7440.230535 | L177: =[1]Table_VCM!L174 -> 3319.50184 | M177: =[1]Table_VCM!M174 -> 266.1656796 | N177: =[1]Table_VCM!N174 -> 6968.516451 | O177: =[1]Table_VCM!O174 -> 623.2427984 | P177: =[1]Table_VCM!P174 -> 415.5099003 | Q177: =[1]Table_VCM!Q174 -> 955.0048618 | R177: =[1]Table_VCM!R174 -> 0 | S177: =[1]Table_VCM!S174 -> 1362.245555 | T177: =[1]Table_VCM!T174 -> 3408.246271 | U177: =[1]Table_VCM!U174 -> 2864.125089 | V177: =[1]Table_VCM!V174 -> 9494.754932 | W177: =[1]Table_VCM!W174 -> 1667.373332 | X177: =[1]Table_VCM!X174 -> 9020.675521 | Y177: =[1]Table_VCM!Y174 -> 0 | Z177: =[1]Table_VCM!Z174 -> 10.11788474 | AA177: =[1]Table_VCM!AA174 -> 852.5050779 | AB177: =[1]Table_VCM!AB174 -> 294.8010317 | AC177: =[1]Table_VCM!AC174 -> 2489.547043 | AD177: =[1]Table_VCM!AD174 -> 1166.213085 | AE177: =[1]Table_VCM!AE174 -> 0 | AF177: =[1]Table_VCM!AF174 -> 9902.137154 | AG177: =[1]Table_VCM!AG174 -> 3654.317755 | AH177: =[1]Table_VCM!AH174 -> 68287.3258 | AJ177: =[1]Table_VCM!AJ174 -> 11271.2577 | AL177: =[1]Table_VCM!AL174 -> 26069.06209 | AN177: 2366.964118
D178: 2022 | E178: 12 | F178: 2023 | G178: 2023 | H178: =[1]Table_VCM!H175 -> 550.3962623 | I178: =[1]Table_VCM!I175 -> 665.5086763 | J178: =[1]Table_VCM!J175 -> 529.1684276 | K178: =[1]Table_VCM!K175 -> 5703.849585 | L178: =[1]Table_VCM!L175 -> 3134.91463 | M178: =[1]Table_VCM!M175 -> 265.261607 | N178: =[1]Table_VCM!N175 -> 4396.976207 | O178: =[1]Table_VCM!O175 -> 513.4708253 | P178: =[1]Table_VCM!P175 -> 317.5043429 | Q178: =[1]Table_VCM!Q175 -> 833.9903797 | R178: =[1]Table_VCM!R175 -> 0 | S178: =[1]Table_VCM!S175 -> 1069.98641 | T178: =[1]Table_VCM!T175 -> 2451.03668 | U178: =[1]Table_VCM!U175 -> 2892.748725 | V178: =[1]Table_VCM!V175 -> 7405.679436 | W178: =[1]Table_VCM!W175 -> 1198.66007 | X178: =[1]Table_VCM!X175 -> 6217.220257 | Y178: =[1]Table_VCM!Y175 -> 0 | Z178: =[1]Table_VCM!Z175 -> 24.6560077 | AA178: =[1]Table_VCM!AA175 -> 448.0040987 | AB178: =[1]Table_VCM!AB175 -> 190.6723952 | AC178: =[1]Table_VCM!AC175 -> 1754.353657 | AD178: =[1]Table_VCM!AD175 -> 1046.499041 | AE178: =[1]Table_VCM!AE175 -> 0 | AF178: =[1]Table_VCM!AF175 -> 9119.396789 | AG178: =[1]Table_VCM!AG175 -> 2157.027282 | AH178: =[1]Table_VCM!AH175 -> 52886.98179 | AJ178: =[1]Table_VCM!AJ175 -> 8307.552111 | AL178: =[1]Table_VCM!AL175 -> 20525.4681 | AN178: 1744.585943
D179: 2023 | E179: 1 | F179: 2023 | G179: 2023 | H179: =[1]Table_VCM!H176 -> 561.9806724 | I179: =[1]Table_VCM!I176 -> 723.8928117 | J179: =[1]Table_VCM!J176 -> 325.4976262 | K179: =[1]Table_VCM!K176 -> 6546.853657 | L179: =[1]Table_VCM!L176 -> 3198.232114 | M179: =[1]Table_VCM!M176 -> 257.706716 | N179: =[1]Table_VCM!N176 -> 4718.347835 | O179: =[1]Table_VCM!O176 -> 574.8871917 | P179: =[1]Table_VCM!P176 -> 259.2751514 | Q179: =[1]Table_VCM!Q176 -> 853.5286016 | R179: =[1]Table_VCM!R176 -> 0 | S179: =[1]Table_VCM!S176 -> 1332.272208 | T179: =[1]Table_VCM!T176 -> 1942.649485 | U179: =[1]Table_VCM!U176 -> 6682.077814 | V179: =[1]Table_VCM!V176 -> 7128.098842 | W179: =[1]Table_VCM!W176 -> 1378.085517 | X179: =[1]Table_VCM!X176 -> 7118.887424 | Y179: =[1]Table_VCM!Y176 -> 0 | Z179: =[1]Table_VCM!Z176 -> 0.2154113476 | AA179: =[1]Table_VCM!AA176 -> 654.4506985 | AB179: =[1]Table_VCM!AB176 -> 264.8666518 | AC179: =[1]Table_VCM!AC176 -> 2055.550068 | AD179: =[1]Table_VCM!AD176 -> 1041.583011 | AE179: =[1]Table_VCM!AE176 -> 0 | AF179: =[1]Table_VCM!AF176 -> 9617.219663 | AG179: =[1]Table_VCM!AG176 -> 2325.903059 | AH179: =[1]Table_VCM!AH176 -> 59562.06223 | AJ179: =[1]Table_VCM!AJ176 -> 7323.921543 | AL179: =[1]Table_VCM!AL176 -> 18668.26107 | AN179: 1538.023524
D180: 2023 | E180: 2 | F180: 2023 | G180: 2023 | H180: =[1]Table_VCM!H177 -> 1025.018332 | I180: =[1]Table_VCM!I177 -> 620.9239588 | J180: =[1]Table_VCM!J177 -> 364.6821079 | K180: =[1]Table_VCM!K177 -> 4378.178249 | L180: =[1]Table_VCM!L177 -> 2715.365737 | M180: =[1]Table_VCM!M177 -> 246.6346755 | N180: =[1]Table_VCM!N177 -> 4234.414723 | O180: =[1]Table_VCM!O177 -> 497.0448477 | P180: =[1]Table_VCM!P177 -> 314.679782 | Q180: =[1]Table_VCM!Q177 -> 731.539969 | R180: =[1]Table_VCM!R177 -> 0 | S180: =[1]Table_VCM!S177 -> 958.4238845 | T180: =[1]Table_VCM!T177 -> 1351.438332 | U180: =[1]Table_VCM!U177 -> 5312.546906 | V180: =[1]Table_VCM!V177 -> 6279.338199 | W180: =[1]Table_VCM!W177 -> 1174.35534 | X180: =[1]Table_VCM!X177 -> 5508.483715 | Y180: =[1]Table_VCM!Y177 -> 0 | Z180: =[1]Table_VCM!Z177 -> 1.846382979 | AA180: =[1]Table_VCM!AA177 -> 640.528287 | AB180: =[1]Table_VCM!AB177 -> 229.7301685 | AC180: =[1]Table_VCM!AC177 -> 1895.653132 | AD180: =[1]Table_VCM!AD177 -> 843.5500209 | AE180: =[1]Table_VCM!AE177 -> 0 | AF180: =[1]Table_VCM!AF177 -> 8666.33061 | AG180: =[1]Table_VCM!AG177 -> 2007.536844 | AH180: =[1]Table_VCM!AH177 -> 49998.2442 | AJ180: =[1]Table_VCM!AJ177 -> 6472.322889 | AL180: =[1]Table_VCM!AL177 -> 17228.9654 | AN180: 1359.187807
D181: 2023 | E181: 3 | F181: 2023 | G181: 2023 | H181: =[1]Table_VCM!H178 -> 1135.498178 | I181: =[1]Table_VCM!I178 -> 793.6793555 | J181: =[1]Table_VCM!J178 -> 464.4953149 | K181: =[1]Table_VCM!K178 -> 6926.865959 | L181: =[1]Table_VCM!L178 -> 3138.631452 | M181: =[1]Table_VCM!M178 -> 277.7292085 | N181: =[1]Table_VCM!N178 -> 6461.832879 | O181: =[1]Table_VCM!O178 -> 608.7417022 | P181: =[1]Table_VCM!P178 -> 611.2257364 | Q181: =[1]Table_VCM!Q178 -> 909.559783 | R181: =[1]Table_VCM!R178 -> 0 | S181: =[1]Table_VCM!S178 -> 1239.335195 | T181: =[1]Table_VCM!T178 -> 1639.110503 | U181: =[1]Table_VCM!U178 -> 3355.570907 | V181: =[1]Table_VCM!V178 -> 8931.001168 | W181: =[1]Table_VCM!W178 -> 1561.088803 | X181: =[1]Table_VCM!X178 -> 8322.92758 | Y181: =[1]Table_VCM!Y178 -> 0 | Z181: =[1]Table_VCM!Z178 -> 4.595442082 | AA181: =[1]Table_VCM!AA178 -> 783.0626254 | AB181: =[1]Table_VCM!AB178 -> 264.4310756 | AC181: =[1]Table_VCM!AC178 -> 2017.449626 | AD181: =[1]Table_VCM!AD178 -> 1035.119026 | AE181: =[1]Table_VCM!AE178 -> 0 | AF181: =[1]Table_VCM!AF178 -> 10158.86533 | AG181: =[1]Table_VCM!AG178 -> 2757.710109 | AH181: =[1]Table_VCM!AH178 -> 63398.52696 | AJ181: =[1]Table_VCM!AJ178 -> 9572.391462 | AL181: =[1]Table_VCM!AL178 -> 22815.81725 | AN181: 2010.202207
D182: 2023 | E182: 4 | F182: 2023 | G182: 2023 | H182: =[1]Table_VCM!H179 -> 1199.830691 | I182: =[1]Table_VCM!I179 -> 872.5910343 | J182: =[1]Table_VCM!J179 -> 508.2935581 | K182: =[1]Table_VCM!K179 -> 7846.801178 | L182: =[1]Table_VCM!L179 -> 3380.569731 | M182: =[1]Table_VCM!M179 -> 267.9168612 | N182: =[1]Table_VCM!N179 -> 8304.756234 | O182: =[1]Table_VCM!O179 -> 708.4628115 | P182: =[1]Table_VCM!P179 -> 738.5483554 | Q182: =[1]Table_VCM!Q179 -> 1017.703881 | R182: =[1]Table_VCM!R179 -> 0 | S182: =[1]Table_VCM!S179 -> 1220.782797 | T182: =[1]Table_VCM!T179 -> 2542.828836 | U182: =[1]Table_VCM!U179 -> 3344.561816 | V182: =[1]Table_VCM!V179 -> 10116.01213 | W182: =[1]Table_VCM!W179 -> 1925.578773 | X182: =[1]Table_VCM!X179 -> 11177.50612 | Y182: =[1]Table_VCM!Y179 -> 0 | Z182: =[1]Table_VCM!Z179 -> 19.76655556 | AA182: =[1]Table_VCM!AA179 -> 630.3055373 | AB182: =[1]Table_VCM!AB179 -> 296.7000154 | AC182: =[1]Table_VCM!AC179 -> 2462.16298 | AD182: =[1]Table_VCM!AD179 -> 1189.813936 | AE182: =[1]Table_VCM!AE179 -> 0 | AF182: =[1]Table_VCM!AF179 -> 10810.17752 | AG182: =[1]Table_VCM!AG179 -> 3917.002257 | AH182: =[1]Table_VCM!AH179 -> 74498.67361 | AJ182: =[1]Table_VCM!AJ179 -> 12969.63134 | AL182: =[1]Table_VCM!AL179 -> 25400.58789 | AN182: 2723.62258
D183: 2023 | E183: 5 | F183: 2023 | G183: 2024 | H183: =[1]Table_VCM!H180 -> 1004.0956 | I183: =[1]Table_VCM!I180 -> 949.3251241 | J183: =[1]Table_VCM!J180 -> 560.8607227 | K183: =[1]Table_VCM!K180 -> 9663.313885 | L183: =[1]Table_VCM!L180 -> 3828.079784 | M183: =[1]Table_VCM!M180 -> 288.1714024 | N183: =[1]Table_VCM!N180 -> 11990.60294 | O183: =[1]Table_VCM!O180 -> 769.8768896 | P183: =[1]Table_VCM!P180 -> 905.6882298 | Q183: =[1]Table_VCM!Q180 -> 1221.061805 | R183: =[1]Table_VCM!R180 -> 0 | S183: =[1]Table_VCM!S180 -> 1718.72216 | T183: =[1]Table_VCM!T180 -> 2704.946247 | U183: =[1]Table_VCM!U180 -> 3633.440361 | V183: =[1]Table_VCM!V180 -> 12870.87164 | W183: =[1]Table_VCM!W180 -> 2426.815673 | X183: =[1]Table_VCM!X180 -> 16400.03029 | Y183: =[1]Table_VCM!Y180 -> 0 | Z183: =[1]Table_VCM!Z180 -> 39.23563831 | AA183: =[1]Table_VCM!AA180 -> 824.6351407 | AB183: =[1]Table_VCM!AB180 -> 339.4590829 | AC183: =[1]Table_VCM!AC180 -> 3511.486625 | AD183: =[1]Table_VCM!AD180 -> 1376.094226 | AE183: =[1]Table_VCM!AE180 -> 0 | AF183: =[1]Table_VCM!AF180 -> 12325.44798 | AG183: =[1]Table_VCM!AG180 -> 5232.184069 | AH183: =[1]Table_VCM!AH180 -> 94584.44552 | AJ183: =[1]Table_VCM!AJ180 -> 15007.89328 | AL183: =[1]Table_VCM!AL180 -> 25592.2101 | AN183: 3151.657588
D184: 2023 | E184: 6 | F184: 2023 | G184: 2024 | H184: =[1]Table_VCM!H181 -> 1163.460334 | I184: =[1]Table_VCM!I181 -> 922.8829715 | J184: =[1]Table_VCM!J181 -> 604.540288 | K184: =[1]Table_VCM!K181 -> 9954.387138 | L184: =[1]Table_VCM!L181 -> 3899.297524 | M184: =[1]Table_VCM!M181 -> 316.8791483 | N184: =[1]Table_VCM!N181 -> 13816.95325 | O184: =[1]Table_VCM!O181 -> 757.5173064 | P184: =[1]Table_VCM!P181 -> 1015.417178 | Q184: =[1]Table_VCM!Q181 -> 1380.143341 | R184: =[1]Table_VCM!R181 -> 0 | S184: =[1]Table_VCM!S181 -> 1698.244513 | T184: =[1]Table_VCM!T181 -> 2892.588527 | U184: =[1]Table_VCM!U181 -> 3167.535634 | V184: =[1]Table_VCM!V181 -> 16197.91677 | W184: =[1]Table_VCM!W181 -> 2640.403763 | X184: =[1]Table_VCM!X181 -> 16139.15493 | Y184: =[1]Table_VCM!Y181 -> 0 | Z184: =[1]Table_VCM!Z181 -> 130.0058771 | AA184: =[1]Table_VCM!AA181 -> 830.9635096 | AB184: =[1]Table_VCM!AB181 -> 337.2086057 | AC184: =[1]Table_VCM!AC181 -> 4107.977149 | AD184: =[1]Table_VCM!AD181 -> 1357.730633 | AE184: =[1]Table_VCM!AE181 -> 0 | AF184: =[1]Table_VCM!AF181 -> 12437.7893 | AG184: =[1]Table_VCM!AG181 -> 6034.320555 | AH184: =[1]Table_VCM!AH181 -> 101803.3182 | AJ184: =[1]Table_VCM!AJ181 -> 22461.29062 | AL184: =[1]Table_VCM!AL181 -> 28475.05972 | AN184: 4716.87103
D185: 2023 | E185: 7 | F185: 2024 | G185: 2024 | H185: =[1]Table_VCM!H182 -> 793.3939866 | I185: =[1]Table_VCM!I182 -> 1000.385196 | J185: =[1]Table_VCM!J182 -> 556.2796567 | K185: =[1]Table_VCM!K182 -> 10590.89528 | L185: =[1]Table_VCM!L182 -> 4334.84921 | M185: =[1]Table_VCM!M182 -> 308.6011721 | N185: =[1]Table_VCM!N182 -> 15738.17991 | O185: =[1]Table_VCM!O182 -> 867.4660017 | P185: =[1]Table_VCM!P182 -> 831.6197947 | Q185: =[1]Table_VCM!Q182 -> 1414.602335 | R185: =[1]Table_VCM!R182 -> 0 | S185: =[1]Table_VCM!S182 -> 1839.76902 | T185: =[1]Table_VCM!T182 -> 3165.435821 | U185: =[1]Table_VCM!U182 -> 3211.347178 | V185: =[1]Table_VCM!V182 -> 18717.44003 | W185: =[1]Table_VCM!W182 -> 3080.546457 | X185: =[1]Table_VCM!X182 -> 17701.39391 | Y185: =[1]Table_VCM!Y182 -> 0 | Z185: =[1]Table_VCM!Z182 -> 199.09322 | AA185: =[1]Table_VCM!AA182 -> 1034.152219 | AB185: =[1]Table_VCM!AB182 -> 363.3212839 | AC185: =[1]Table_VCM!AC182 -> 5124.461698 | AD185: =[1]Table_VCM!AD182 -> 1473.53597 | AE185: =[1]Table_VCM!AE182 -> 0 | AF185: =[1]Table_VCM!AF182 -> 13374.56412 | AG185: =[1]Table_VCM!AG182 -> 7218.649356 | AH185: =[1]Table_VCM!AH182 -> 112939.9828 | AJ185: =[1]Table_VCM!AJ182 -> 27946.10639 | AL185: =[1]Table_VCM!AL182 -> 28649.64884 | AN185: 5868.682343
D186: 2023 | E186: 8 | F186: 2024 | G186: 2024 | H186: =[1]Table_VCM!H183 -> 843.758948 | I186: =[1]Table_VCM!I183 -> 1061.742705 | J186: =[1]Table_VCM!J183 -> 633.5822114 | K186: =[1]Table_VCM!K183 -> 10543.54448 | L186: =[1]Table_VCM!L183 -> 4475.995517 | M186: =[1]Table_VCM!M183 -> 293.5683621 | N186: =[1]Table_VCM!N183 -> 15553.58716 | O186: =[1]Table_VCM!O183 -> 875.1766953 | P186: =[1]Table_VCM!P183 -> 904.3683013 | Q186: =[1]Table_VCM!Q183 -> 1360.179566 | R186: =[1]Table_VCM!R183 -> 0 | S186: =[1]Table_VCM!S183 -> 1804.609764 | T186: =[1]Table_VCM!T183 -> 3281.035287 | U186: =[1]Table_VCM!U183 -> 3319.954038 | V186: =[1]Table_VCM!V183 -> 19067.47384 | W186: =[1]Table_VCM!W183 -> 3152.689813 | X186: =[1]Table_VCM!X183 -> 18983.59747 | Y186: =[1]Table_VCM!Y183 -> 0 | Z186: =[1]Table_VCM!Z183 -> 254.4949353 | AA186: =[1]Table_VCM!AA183 -> 1053.032444 | AB186: =[1]Table_VCM!AB183 -> 368.6637131 | AC186: =[1]Table_VCM!AC183 -> 5209.55882 | AD186: =[1]Table_VCM!AD183 -> 1377.842329 | AE186: =[1]Table_VCM!AE183 -> 0 | AF186: =[1]Table_VCM!AF183 -> 13422.44442 | AG186: =[1]Table_VCM!AG183 -> 7087.639386 | AH186: =[1]Table_VCM!AH183 -> 114928.5402 | AJ186: =[1]Table_VCM!AJ183 -> 28123.01346 | AL186: =[1]Table_VCM!AL183 -> 29390.58803 | AN186: 5905.832827
D187: 2023 | E187: 9 | F187: 2024 | G187: 2024 | H187: =[1]Table_VCM!H184 -> 635.6874859 | I187: =[1]Table_VCM!I184 -> 1030.187414 | J187: =[1]Table_VCM!J184 -> 630.8596164 | K187: =[1]Table_VCM!K184 -> 10034.30007 | L187: =[1]Table_VCM!L184 -> 4016.390994 | M187: =[1]Table_VCM!M184 -> 255.7555703 | N187: =[1]Table_VCM!N184 -> 13765.34491 | O187: =[1]Table_VCM!O184 -> 855.2510414 | P187: =[1]Table_VCM!P184 -> 770.9960393 | Q187: =[1]Table_VCM!Q184 -> 1272.895315 | R187: =[1]Table_VCM!R184 -> 0 | S187: =[1]Table_VCM!S184 -> 1674.242025 | T187: =[1]Table_VCM!T184 -> 3052.237531 | U187: =[1]Table_VCM!U184 -> 3118.943761 | V187: =[1]Table_VCM!V184 -> 17215.05858 | W187: =[1]Table_VCM!W184 -> 2840.738923 | X187: =[1]Table_VCM!X184 -> 18110.50166 | Y187: =[1]Table_VCM!Y184 -> 0 | Z187: =[1]Table_VCM!Z184 -> 234.8273774 | AA187: =[1]Table_VCM!AA184 -> 1023.017727 | AB187: =[1]Table_VCM!AB184 -> 343.7564418 | AC187: =[1]Table_VCM!AC184 -> 4598.350297 | AD187: =[1]Table_VCM!AD184 -> 1427.807559 | AE187: =[1]Table_VCM!AE184 -> 0 | AF187: =[1]Table_VCM!AF184 -> 12404.98802 | AG187: =[1]Table_VCM!AG184 -> 6335.787724 | AH187: =[1]Table_VCM!AH184 -> 105647.9261 | AJ187: =[1]Table_VCM!AJ184 -> 22333.25539 | AL187: =[1]Table_VCM!AL184 -> 28062.00741 | AN187: 4689.983632
D188: 2023 | E188: 10 | F188: 2024 | G188: 2024 | H188: =[1]Table_VCM!H185 -> 394.7524002 | I188: =[1]Table_VCM!I185 -> 911.3910279 | J188: =[1]Table_VCM!J185 -> 776.193652 | K188: =[1]Table_VCM!K185 -> 8747.787882 | L188: =[1]Table_VCM!L185 -> 3531.671471 | M188: =[1]Table_VCM!M185 -> 269.6345462 | N188: =[1]Table_VCM!N185 -> 10408.06431 | O188: =[1]Table_VCM!O185 -> 702.1823207 | P188: =[1]Table_VCM!P185 -> 608.0792889 | Q188: =[1]Table_VCM!Q185 -> 1088.974931 | R188: =[1]Table_VCM!R185 -> 0 | S188: =[1]Table_VCM!S185 -> 1540.915339 | T188: =[1]Table_VCM!T185 -> 4601.33898 | U188: =[1]Table_VCM!U185 -> 3062.888608 | V188: =[1]Table_VCM!V185 -> 11230.05825 | W188: =[1]Table_VCM!W185 -> 2149.97257 | X188: =[1]Table_VCM!X185 -> 15690.77898 | Y188: =[1]Table_VCM!Y185 -> 0 | Z188: =[1]Table_VCM!Z185 -> 102.1121654 | AA188: =[1]Table_VCM!AA185 -> 941.203419 | AB188: =[1]Table_VCM!AB185 -> 328.8481765 | AC188: =[1]Table_VCM!AC185 -> 3361.025727 | AD188: =[1]Table_VCM!AD185 -> 1339.857067 | AE188: =[1]Table_VCM!AE185 -> 0 | AF188: =[1]Table_VCM!AF185 -> 11358.27144 | AG188: =[1]Table_VCM!AG185 -> 4511.837806 | AH188: =[1]Table_VCM!AH185 -> 87657.84036 | AJ188: =[1]Table_VCM!AJ185 -> 13032.1171 | AL188: =[1]Table_VCM!AL185 -> 27210.35316 | AN188: 2736.744592
D189: 2023 | E189: 11 | F189: 2024 | G189: 2024 | H189: =[1]Table_VCM!H186 -> 499.5659685 | I189: =[1]Table_VCM!I186 -> 794.8633223 | J189: =[1]Table_VCM!J186 -> 753.1876625 | K189: =[1]Table_VCM!K186 -> 7379.081854 | L189: =[1]Table_VCM!L186 -> 3260.931758 | M189: =[1]Table_VCM!M186 -> 262.0522078 | N189: =[1]Table_VCM!N186 -> 7065.617055 | O189: =[1]Table_VCM!O186 -> 624.5409796 | P189: =[1]Table_VCM!P186 -> 416.769134 | Q189: =[1]Table_VCM!Q186 -> 946.0989263 | R189: =[1]Table_VCM!R186 -> 0 | S189: =[1]Table_VCM!S186 -> 1357.286549 | T189: =[1]Table_VCM!T186 -> 3385.657949 | U189: =[1]Table_VCM!U186 -> 2848.302475 | V189: =[1]Table_VCM!V186 -> 9344.740603 | W189: =[1]Table_VCM!W186 -> 1668.597909 | X189: =[1]Table_VCM!X186 -> 9070.218185 | Y189: =[1]Table_VCM!Y186 -> 0 | Z189: =[1]Table_VCM!Z186 -> 10.18061349 | AA189: =[1]Table_VCM!AA186 -> 846.2213643 | AB189: =[1]Table_VCM!AB186 -> 292.8950718 | AC189: =[1]Table_VCM!AC186 -> 2477.754874 | AD189: =[1]Table_VCM!AD186 -> 1151.391729 | AE189: =[1]Table_VCM!AE186 -> 0 | AF189: =[1]Table_VCM!AF186 -> 9775.561485 | AG189: =[1]Table_VCM!AG186 -> 3664.639999 | AH189: =[1]Table_VCM!AH186 -> 67896.15767 | AJ189: =[1]Table_VCM!AJ186 -> 11093.17516 | AL189: =[1]Table_VCM!AL186 -> 25851.96464 | AN189: 2329.566783
D190: 2023 | E190: 12 | F190: 2024 | G190: 2024 | H190: =[1]Table_VCM!H187 -> 547.7918775 | I190: =[1]Table_VCM!I187 -> 657.2987567 | J190: =[1]Table_VCM!J187 -> 494.8872689 | K190: =[1]Table_VCM!K187 -> 5657.478384 | L190: =[1]Table_VCM!L187 -> 3079.601449 | M190: =[1]Table_VCM!M187 -> 261.1621072 | N190: =[1]Table_VCM!N187 -> 4458.244491 | O190: =[1]Table_VCM!O187 -> 514.4536503 | P190: =[1]Table_VCM!P187 -> 318.4665634 | Q190: =[1]Table_VCM!Q187 -> 826.2129696 | R190: =[1]Table_VCM!R187 -> 0 | S190: =[1]Table_VCM!S187 -> 1066.09132 | T190: =[1]Table_VCM!T187 -> 2434.792312 | U190: =[1]Table_VCM!U187 -> 2876.767982 | V190: =[1]Table_VCM!V187 -> 7288.671884 | W190: =[1]Table_VCM!W187 -> 1199.540407 | X190: =[1]Table_VCM!X187 -> 6251.365999 | Y190: =[1]Table_VCM!Y187 -> 0 | Z190: =[1]Table_VCM!Z187 -> 24.80886976 | AA190: =[1]Table_VCM!AA187 -> 444.7019138 | AB190: =[1]Table_VCM!AB187 -> 189.4396521 | AC190: =[1]Table_VCM!AC187 -> 1746.043859 | AD190: =[1]Table_VCM!AD187 -> 1033.199126 | AE190: =[1]Table_VCM!AE187 -> 0 | AF190: =[1]Table_VCM!AF187 -> 9002.826624 | AG190: =[1]Table_VCM!AG187 -> 2163.120174 | AH190: =[1]Table_VCM!AH187 -> 52536.96764 | AJ190: =[1]Table_VCM!AJ187 -> 8176.295236 | AL190: =[1]Table_VCM!AL187 -> 20354.53648 | AN190: 1717.022
D191: 2024 | E191: 1 | F191: 2024 | G191: 2024 | H191: =[1]Table_VCM!H188 -> 559.3817735 | I191: =[1]Table_VCM!I188 -> 715.0036611 | J191: =[1]Table_VCM!J188 -> 303.1653492 | K191: =[1]Table_VCM!K188 -> 6493.184432 | L191: =[1]Table_VCM!L188 -> 3141.313679 | M191: =[1]Table_VCM!M188 -> 253.7142682 | N191: =[1]Table_VCM!N188 -> 4787.785282 | O191: =[1]Table_VCM!O188 -> 575.9309181 | P191: =[1]Table_VCM!P188 -> 260.0432908 | Q191: =[1]Table_VCM!Q188 -> 845.6250765 | R191: =[1]Table_VCM!R188 -> 0 | S191: =[1]Table_VCM!S188 -> 1327.518098 | T191: =[1]Table_VCM!T188 -> 1929.835542 | U191: =[1]Table_VCM!U188 -> 6645.163246 | V191: =[1]Table_VCM!V188 -> 7034.108264 | W191: =[1]Table_VCM!W188 -> 1379.105102 | X191: =[1]Table_VCM!X188 -> 7160.085513 | Y191: =[1]Table_VCM!Y188 -> 0 | Z191: =[1]Table_VCM!Z188 -> 0.2166902346 | AA191: =[1]Table_VCM!AA188 -> 649.6193501 | AB191: =[1]Table_VCM!AB188 -> 262.999985 | AC191: =[1]Table_VCM!AC188 -> 2045.850244 | AD191: =[1]Table_VCM!AD188 -> 1028.279183 | AE191: =[1]Table_VCM!AE188 -> 0 | AF191: =[1]Table_VCM!AF188 -> 9473.892262 | AG191: =[1]Table_VCM!AG188 -> 2332.285781 | AH191: =[1]Table_VCM!AH188 -> 59204.10699 | AJ191: =[1]Table_VCM!AJ188 -> 7227.187315 | AL191: =[1]Table_VCM!AL188 -> 18668.26107 | AN191: 1517.709336
D192: 2024 | E192: 2 | F192: 2024 | G192: 2024 | H192: =[1]Table_VCM!H189 -> 1020.278099 | I192: =[1]Table_VCM!I189 -> 613.2992298 | J192: =[1]Table_VCM!J189 -> 339.6613975 | K192: =[1]Table_VCM!K189 -> 4343.011619 | L192: =[1]Table_VCM!L189 -> 2667.040799 | M192: =[1]Table_VCM!M189 -> 242.8137581 | N192: =[1]Table_VCM!N189 -> 4296.730382 | O192: =[1]Table_VCM!O189 -> 497.8823671 | P192: =[1]Table_VCM!P189 -> 315.6120654 | Q192: =[1]Table_VCM!Q189 -> 724.7660373 | R192: =[1]Table_VCM!R189 -> 0 | S192: =[1]Table_VCM!S189 -> 955.0038234 | T192: =[1]Table_VCM!T189 -> 1342.524086 | U192: =[1]Table_VCM!U189 -> 5283.198194 | V192: =[1]Table_VCM!V189 -> 6193.637186 | W192: =[1]Table_VCM!W189 -> 1175.224194 | X192: =[1]Table_VCM!X189 -> 5540.362151 | Y192: =[1]Table_VCM!Y189 -> 0 | Z192: =[1]Table_VCM!Z189 -> 1.857344868 | AA192: =[1]Table_VCM!AA189 -> 635.799718 | AB192: =[1]Table_VCM!AB189 -> 228.1111286 | AC192: =[1]Table_VCM!AC189 -> 1886.707836 | AD192: =[1]Table_VCM!AD189 -> 832.7756091 | AE192: =[1]Table_VCM!AE189 -> 0 | AF192: =[1]Table_VCM!AF189 -> 8537.174504 | AG192: =[1]Table_VCM!AG189 -> 2013.045909 | AH192: =[1]Table_VCM!AH189 -> 49686.51744 | AJ192: =[1]Table_VCM!AJ189 -> 6383.91799 | AL192: =[1]Table_VCM!AL189 -> 17228.9654 | AN192: 1340.622778
